Workbook

Sheet Sample Report (hidden)
A2: Date
A3: Hen
A4: Program
A5: Start at 999999
A6: Sequence component 1 | B6: Time 1 | C6: Seqeunce Component 2 | D6: Time 2 | E6: Seqeunce Component 3 | F6: Time 3 | G6: Correct 0 = No 1=Yes | J6: Seqeunce | K6: Time
A7: 12 | B7: 7 | C7: 12 | D7: 42 | E7: 13 | F7: 18 | G7: if 77 new line, if 31 or 41 = yes new line on 77, | J7: =string of Seqeunce compponent 1, 2 & 3 | K7: =time 3
A8: This continues until ther is a 1 on its own to indicate start of summary data
J9: 10-19 =1
A10: Summary Data | J10: 20-29 =2
A11: Correct | B11: Incorrect | C11: Rft | D11: total | E11: Av Correct | F11: Av Incorrect | G11: Percent correct | H11: Time | J11: in this example the seqeunce would be 111
A12: 40 | B12: 33 | C12: 40 | D12: 73 | E12: 23.95 | F12: 15 | G12: 54 | H12: 806

Sheet Summary
A2: Day | B2: Date | C2: Average Response Rate | D2: Target % | E2: RF for non correct sequence | F2: U Value | K2: Block 1 | L2: Block 2 | M2: Block 3 | N2: Block 4 | O2: Block 5 | P2: Block 6
A3: 1 | B3: ='!LA06952..Is'!B2:C2 -> <date> | C3: =('!LA06952..Is'!F177/60)/'!LA06952..Is'!Q3 -> 2.335769981 | D3: ='!LA06952..Is'!N20/'!LA06952..Is'!Q3 -> 0.2105263158 | E3: =SUM('!LA06952..Is'!L20:Q20)/'!LA06952..Is'!Q3 -> 1.192982456 | F3: ='!LA06952..Is'!Q16 -> 0.2430701692 | J3: Average Response Rate | K3: =AVERAGE(C3:C7) -> 2.288970154 | L3: =AVERAGE(C8:C12) -> 2.172672497 | M3: =AVERAGE(C13:C17) -> 2.147544687 | N3: =AVERAGE(C18:C22) -> 2.080414146 | O3: =AVERAGE(C23:C27) -> 2.114159145 | P3: =AVERAGE(C28:C32) -> 2.111608227
A4: 2 | B4: ='!LA07A02..Is'!B2:C2 -> <date> | C4: =('!LA07A02..Is'!F190/60)/'!LA07A02..Is'!Q3 -> 2.166757246 | D4: ='!LA07A02..Is'!N20/'!LA07A02..Is'!Q3 -> 0.2010869565 | E4: =SUM('!LA07A02..Is'!L20:Q20)/'!LA07A02..Is'!Q3 -> 1.739130435 | F4: ='!LA07A02..Is'!Q16 -> 0.1313817176 | J4: Target % | K4: =AVERAGE(D3:D7) -> 0.1421444013 | L4: =AVERAGE(D8:D12) -> 0.3921812341 | M4: =AVERAGE(D13:D17) -> 0.5075553248 | N4: =AVERAGE(D18:D22) -> 0.5270797528 | O4: =AVERAGE(D23:D27) -> 0.5867329782 | P4: =AVERAGE(D28:D32) -> 0.5495900147
A5: 3 | B5: ='!LA08A02..Is'!B2:C2 -> <date> | C5: =('!LA08A02..Is'!F193/60)/'!LA08A02..Is'!Q3 -> 2.1385918 | D5: ='!LA08A02..Is'!N20/'!LA08A02..Is'!Q3 -> 0.1657754011 | E5: =SUM('!LA08A02..Is'!L20:Q20)/'!LA08A02..Is'!Q3 -> 1.684491979 | F5: ='!LA08A02..Is'!Q16 -> 0.09203764219 | J5: CCRF | K5: =AVERAGE(E3:E7) -> 1.485291497 | L5: =AVERAGE(E8:E12) -> 2.506783366 | M5: =AVERAGE(E13:E17) -> 2.569882934 | N5: =AVERAGE(E18:E22) -> 3.258700588 | O5: =AVERAGE(E23:E27) -> 2.68575188 | P5: =AVERAGE(E28:E32) -> 3.192444793
A6: 4 | B6: ='!LA09922..Is'!B2:C2 -> <date> | C6: =('!LA09922..Is'!F201/60)/'!LA09922..Is'!Q3 -> 2.045726496 | D6: ='!LA09922..Is'!N20/'!LA09922..Is'!Q3 -> 0.1333333333 | E6: =SUM('!LA09922..Is'!L20:Q20)/'!LA09922..Is'!Q3 -> 1.605128205 | F6: ='!LA09922..Is'!Q16 -> 0.1082307229 | J6: U Value | K6: =AVERAGE(F3:F7) -> 0.1149440504 | L6: =AVERAGE(F8:F12) -> 0.1618494567 | M6: =AVERAGE(F13:F17) -> 0.2058693128 | N6: =AVERAGE(F18:F22) -> 0.2017733629 | O6: =AVERAGE(F23:F27) -> 0.2381118441 | P6: =AVERAGE(F28:F32) -> 0.253114512
A7: 5 | B7: ='!LA10B12..Is'!B2:C2 -> <date> | C7: =('!LA10B12..Is'!F133/60)/'!LA10B12..Is'!Q3 -> 2.758005249 | D7: ='!LA10B12..Is'!N20/'!LA10B12..Is'!Q3 -> 0 | E7: =SUM('!LA10B12..Is'!L20:Q20)/'!LA10B12..Is'!Q3 -> 1.204724409 | F7: ='!LA10B12..Is'!Q16 -> 0
A8: 6 | B8: ='!LA11A12..Is'!B2:C2 -> <date> | C8: =('!LA11A12..Is'!F121/60)/'!LA11A12..Is'!Q3 -> 2.146231884 | D8: ='!LA11A12..Is'!N20/'!LA11A12..Is'!Q3 -> 0.347826087 | E8: =SUM('!LA11A12..Is'!L20:Q20)/'!LA11A12..Is'!Q3 -> 1.739130435 | F8: ='!LA11A12..Is'!Q16 -> 0.1881418416
A9: 7 | B9: ='!LA13A52.. I'!B2:C2 -> <date> | C9: =('!LA13A52.. I'!F123/60)/'!LA13A52.. I'!Q3 -> 2.305982906 | D9: ='!LA13A52.. I'!N20/'!LA13A52.. I'!Q3 -> 0.3418803419 | E9: =SUM('!LA13A52.. I'!L20:Q20)/'!LA13A52.. I'!Q3 -> 2.572649573 | F9: ='!LA13A52.. I'!Q16 -> 0.1348700899 | G9: =K3 -> 2.288970154 | H9: =L3 -> 2.172672497 | I9: 2.147544687 | J9: 2.080414146 | K9: 2.114159145 | L9: 2.111608227 | M9: =K4 -> 0.1421444013 | N9: =L4 -> 0.3921812341 | O9: 0.5075553248 | P9: 0.5270797528 | Q9: 0.5867329782 | R9: 0.5495900147 | S9: =K6 -> 0.1149440504 | T9: =L6 -> 0.1618494567 | U9: 0.2058693128 | V9: 0.2017733629 | W9: 0.2381118441 | X9: 0.253114512
A10: 8 | B10: ='!LA17B02.. I'!B2:C2 -> <date> | C10: =('!LA17B02.. I'!F122/60)/'!LA17B02.. I'!Q3 -> 2.233477011 | D10: ='!LA17B02.. I'!N20/'!LA17B02.. I'!Q3 -> 0.3448275862 | E10: =SUM('!LA17B02.. I'!L20:Q20)/'!LA17B02.. I'!Q3 -> 2.594827586 | F10: ='!LA17B02.. I'!Q16 -> 0.154802174
A11: 9 | B11: ='!LA18A12.. I'!B2:C2 -> <date> | C11: =('!LA18A12.. I'!F89/60)/'!LA18A12.. I'!Q3 -> 2.067670683 | D11: ='!LA18A12.. I'!N20/'!LA18A12.. I'!Q3 -> 0.4819277108 | E11: =SUM('!LA18A12.. I'!L20:Q20)/'!LA18A12.. I'!Q3 -> 3.493975904 | F11: ='!LA18A12.. I'!Q16 -> 0.1787685929
A12: 10 | B12: ='!LA19B02.. I'!B2:C2 -> <date> | C12: =('!LA19B02.. I'!F96/60)/'!LA19B02.. I'!Q3 -> 2.11 | D12: ='!LA19B02.. I'!N20/'!LA19B02.. I'!Q3 -> 0.4444444444 | E12: =SUM('!LA19B02.. I'!L20:Q20)/'!LA19B02.. I'!Q3 -> 2.133333333 | F12: ='!LA19B02.. I'!Q16 -> 0.1526645852
A13: 11 | B13: ='!LA20A02.. I'!B2:C2 -> <date> | C13: =('!LA20A02.. I'!F104/60)/'!LA20A02.. I'!Q3 -> 2.033673469 | D13: ='!LA20A02.. I'!N20/'!LA20A02.. I'!Q3 -> 0.4081632653 | E13: =SUM('!LA20A02.. I'!L20:Q20)/'!LA20A02.. I'!Q3 -> 3.010204082 | F13: ='!LA20A02.. I'!Q16 -> 0.1699251811
A14: 12 | B14: ='!LA21912.. I'!B2:C2 -> <date> | C14: =('!LA21912.. I'!F84/60)/'!LA21912.. I'!Q3 -> 2.232051282 | D14: ='!LA21912.. I'!N20/'!LA21912.. I'!Q3 -> 0.5128205128 | E14: =SUM('!LA21912.. I'!L20:Q20)/'!LA21912.. I'!Q3 -> 2.41025641 | F14: ='!LA21912.. I'!Q16 -> 0.1820803231
A15: 13 | B15: ='!LA25A02.. I'!B2:C2 -> <date> | C15: =('!LA25A02.. I'!F89/60)/'!LA25A02.. I'!Q3 -> 2.084136546 | D15: ='!LA25A02.. I'!N20/'!LA25A02.. I'!Q3 -> 0.4819277108 | E15: =SUM('!LA25A02.. I'!L20:Q20)/'!LA25A02.. I'!Q3 -> 2.156626506 | F15: ='!LA25A02.. I'!Q16 -> 0.266814532
A16: 14 | B16: ='!LA26A22.. I'!B2:C2 -> <date> | C16: =('!LA26A22.. I'!F83/60)/'!LA26A22.. I'!Q3 -> 2.086580087 | D16: ='!LA26A22.. I'!N20/'!LA26A22.. I'!Q3 -> 0.5194805195 | E16: =SUM('!LA26A22.. I'!L20:Q20)/'!LA26A22.. I'!Q3 -> 2.441558442 | F16: ='!LA26A22.. I'!Q16 -> 0.1731414928
A17: 15 | B17: ='!LA27A0I.sha'!B2:C2 -> <date> | C17: =('!LA27A0I.sha'!F71/60)/'!LA27A0I.sha'!Q3 -> 2.301282051 | D17: ='!LA27A0I.sha'!N20/'!LA27A0I.sha'!Q3 -> 0.6153846154 | E17: =SUM('!LA27A0I.sha'!L20:Q20)/'!LA27A0I.sha'!Q3 -> 2.830769231 | F17: ='!LA27A0I.sha'!Q16 -> 0.237385035
A18: 16 | B18: ='!LA28A44..Is'!B2:C2 -> <date> | C18: =('!LA28A44..Is'!F94/60)/'!LA28A44..Is'!Q3 -> 2.148863636 | D18: ='!LA28A44..Is'!N20/'!LA28A44..Is'!Q3 -> 0.4545454545 | E18: =SUM('!LA28A44..Is'!L20:Q20)/'!LA28A44..Is'!Q3 -> 3.306818182 | F18: ='!LA28A44..Is'!Q16 -> 0.1662248395
A19: 17 | B19: ='!LA29B14..Is'!B2:C2 -> <date> | C19: =('!LA29B14..Is'!F73/60)/'!LA29B14..Is'!Q3 -> 2.144776119 | D19: ='!LA29B14..Is'!N20/'!LA29B14..Is'!Q3 -> 0.5970149254 | E19: =SUM('!LA29B14..Is'!L20:Q20)/'!LA29B14..Is'!Q3 -> 4.23880597 | F19: ='!LA29B14..Is'!Q16 -> 0.1856526906
A20: 18 | B20: ='!LA30A44..Is'!B2:C2 -> <date> | C20: =('!LA30A44..Is'!F81/60)/'!LA30A44..Is'!Q3 -> 2.057555556 | D20: ='!LA30A44..Is'!N20/'!LA30A44..Is'!Q3 -> 0.5333333333 | E20: =SUM('!LA30A44..Is'!L20:Q20)/'!LA30A44..Is'!Q3 -> 3.826666667 | F20: ='!LA30A44..Is'!Q16 -> 0.1879848629
A21: 19 | B21: ='!LA31A14..Is'!B2:C2 -> <date> | C21: =('!LA31A14..Is'!F72/60)/'!LA31A14..Is'!Q3 -> 2.097727273 | D21: ='!LA31A14..Is'!N20/'!LA31A14..Is'!Q3 -> 0.6060606061 | E21: =SUM('!LA31A14..Is'!L20:Q20)/'!LA31A14..Is'!Q3 -> 2.787878788 | F21: ='!LA31A14..Is'!Q16 -> 0.2206018176
A22: 20 | B22: ='!LB01944..Is'!B2:C2 -> <date> | C22: =('!LB01944..Is'!F96/60)/'!LB01944..Is'!Q3 -> 1.953148148 | D22: ='!LB01944..Is'!N20/'!LB01944..Is'!Q3 -> 0.4444444444 | E22: =SUM('!LB01944..Is'!L20:Q20)/'!LB01944..Is'!Q3 -> 2.133333333 | F22: ='!LB01944..Is'!Q16 -> 0.2484026041
A23: 21 | B23: ='!LB02A14..Is'!B2:C2 -> <date> | C23: =('!LB02A14..Is'!F85/60)/'!LB02A14..Is'!Q3 -> 2.091139241 | D23: ='!LB02A14..Is'!N20/'!LB02A14..Is'!Q3 -> 0.5063291139 | E23: =SUM('!LB02A14..Is'!L20:Q20)/'!LB02A14..Is'!Q3 -> 2.379746835 | F23: ='!LB02A14..Is'!Q16 -> 0.2406306272
A24: 22 | B24: ='!LB03A14..Is'!B2:C2 -> <date> | C24: =('!LB03A14..Is'!F68/60)/'!LB03A14..Is'!Q3 -> 1.994354839 | D24: ='!LB03A14..Is'!N20/'!LB03A14..Is'!Q3 -> 0.6451612903 | E24: =SUM('!LB03A14..Is'!L20:Q20)/'!LB03A14..Is'!Q3 -> 2.951612903 | F24: ='!LB03A14..Is'!Q16 -> 0.2228925379
A25: 23 | B25: ='!LB04A44.. I'!B2:C2 -> <date> | C25: =('!LB04A44.. I'!F67/60)/'!LB04A44.. I'!Q3 -> 2.072131148 | D25: ='!LB04A44.. I'!N20/'!LB04A44.. I'!Q3 -> 0.6557377049 | E25: =SUM('!LB04A44.. I'!L20:Q20)/'!LB04A44.. I'!Q3 -> 2.983606557 | F25: ='!LB04A44.. I'!Q16 -> 0.2357331704
A26: 24 | B26: ='!LB05944.. I'!B2:C2 -> <date> | C26: =('!LB05944.. I'!F66/60)/'!LB05944.. I'!Q3 -> 2.359722222 | D26: ='!LB05944.. I'!N20/'!LB05944.. I'!Q3 -> 0.6666666667 | E26: =SUM('!LB05944.. I'!L20:Q20)/'!LB05944.. I'!Q3 -> 3.033333333 | F26: ='!LB05944.. I'!Q16 -> 0.2198585402
A27: 25 | B27: ='!LB06944.. I'!B2:C2 -> <date> | C27: =('!LB06944.. I'!F93/60)/'!LB06944.. I'!Q3 -> 2.053448276 | D27: ='!LB06944.. I'!N20/'!LB06944.. I'!Q3 -> 0.4597701149 | E27: =SUM('!LB06944.. I'!L20:Q20)/'!LB06944.. I'!Q3 -> 2.08045977 | F27: ='!LB06944.. I'!Q16 -> 0.2714443448
A28: 26 | B28: ='!LB07C14.. I'!B2:C2 -> <date> | C28: =('!LB07C14.. I'!F85/60)/'!LB07C14.. I'!Q3 -> 2.15907173 | D28: ='!LB07C14.. I'!N20/'!LB07C14.. I'!Q3 -> 0.5063291139 | E28: =SUM('!LB07C14.. I'!L20:Q20)/'!LB07C14.. I'!Q3 -> 3.64556962 | F28: ='!LB07C14.. I'!Q16 -> 0.2554145833
A29: 27 | B29: ='!LB08954.. I'!B2:C2 -> <date> | C29: =('!LB08954.. I'!F68/60)/'!LB08954.. I'!Q3 -> 2.130376344 | D29: ='!LB08954.. I'!N20/'!LB08954.. I'!Q3 -> 0.6451612903 | E29: =SUM('!LB08954.. I'!L20:Q20)/'!LB08954.. I'!Q3 -> 2.951612903 | F29: ='!LB08954.. I'!Q16 -> 0.2429838905
A30: 28 | B30: ='!LB09A44..Is'!B2:C2 -> <date> | C30: =('!LB09A44..Is'!F85/60)/'!LB09A44..Is'!Q3 -> 2.096624473 | D30: ='!LB09A44..Is'!N20/'!LB09A44..Is'!Q3 -> 0.5063291139 | E30: =SUM('!LB09A44..Is'!L20:Q20)/'!LB09A44..Is'!Q3 -> 3.64556962 | F30: ='!LB09A44..Is'!Q16 -> 0.2557281533
A31: 29 | B31: ='!LB10A54..Is'!B2:C2 -> <date> | C31: =('!LB10A54..Is'!F80/60)/'!LB10A54..Is'!Q3 -> 2.06036036 | D31: ='!LB10A54..Is'!N20/'!LB10A54..Is'!Q3 -> 0.5405405405 | E31: =SUM('!LB10A54..Is'!L20:Q20)/'!LB10A54..Is'!Q3 -> 2.527027027 | F31: ='!LB10A54..Is'!Q16 -> 0.2583314209
A32: 30

Sheet Start
F1: Use Folder 51 | H1: Auto Clean Up | J1: Correct sequence
F2: FALSE | H2: TRUE | J2: 122
A4: Working with Folder | G4: Process All/Or Pick A number: ALL or an integer
A5: F:\Possum Chapter\Raw Data\Ishan\phase 2\ | G5: ALL
A6: Filenames:
A7: !LA06952..Is | G7: Paint Cells
A8: !LA07A02..Is | G8: FALSE
A9: !LA08A02..Is
A10: !LA09922..Is
A11: !LA10B12..Is
A12: !LA11A12..Is
A13: !LA13A52.. I
A14: !LA17B02.. I
A15: !LA18A12.. I
A16: !LA19B02.. I
A17: !LA20A02.. I
A18: !LA21912.. I
A19: !LA25A02.. I
A20: !LA26A22.. I
A21: !LA27A0I.sha
A22: !LA28A44..Is
A23: !LA29B14..Is
A24: !LA30A44..Is
A25: !LA31A14..Is
A26: !LB02A14..Is
A27: !LB03A14..Is
A28: !LB04A44.. I
A29: !LB05944.. I
A30: !LB06944.. I
A31: !LB07C14.. I
A32: !LB08954.. I
A33: !LB09A44..Is
A34: !LB01944..Is
A35: !LB10A54..Is

Sheet !LA06952..Is
A1: Report for:!LA06952..Is
A2: Date: | B2: <date>
A3: Hen: | B3: <hen> | F3: Correct Sequence | G3: =Start!J2 -> 122 | P3: Total Sequences in Data | Q3: =4994-COUNTBLANK(L7:L5000) -> 171 | V3: Total Sequences in Block Data | W3: =COUNTA(L7:L35) -> 29 | AA3: Total Sequences in Block Data | AB3: =COUNTA(L36:L63) -> 28 | AF3: Total Sequences in Block Data | AG3: =COUNTA(L64:L92) -> 29 | AK3: Total Sequences in Block Data | AL3: =COUNTA(L93:L120) -> 28 | AP3: Total Sequences in Block Data | AQ3: =COUNTA(L121:L149) -> 29 | AU3: Total Sequences in Block Data | AV3: =COUNTA(L150:L177) -> 28
P4: Total Sequences in Summary | Q4: =SUM(O7:O14) -> 171 | V4: Total Sequences in Block Summary | W4: =SUM(U7:U14) -> 29 | AA4: Total Sequences in Block Summary | AB4: =SUM(Z7:Z14) -> 28 | AF4: Total Sequences in Block Summary | AG4: =SUM(AE7:AE14) -> 29 | AK4: Total Sequences in Block Summary | AL4: =SUM(AJ7:AJ14) -> 28 | AP4: Total Sequences in Block Summary | AQ4: =SUM(AO7:AO14) -> 29 | AU4: Total Sequences in Block Summary | AV4: =SUM(AT7:AT14) -> 28
T5: Block 1 | Y5: Block 2 | AD5: Block 3 | AI5: Block 4 | AN5: Block 5 | AS5: Block 6
A6: Sequence Component 1 | B6: Time 1 | C6: Sequence Component 2 | D6: Time 2 | E6: Sequence Component 3 | F6: Time 3 | G6: Sequence Component 4 | H6: Time 4 | I6: Sequence Component 5 | J6: Time 5 | K6: Correct? 0=No 1=Yes | L6: Sequence | N6: Frequency | P6: Relative Frequency | Q6: Variability | T6: Frequency | V6: Relative Frequency | W6: Variability | Y6: Frequency | AA6: Relative Frequency | AB6: Variability | AD6: Frequency | AF6: Relative Frequency | AG6: Variability | AI6: Frequency | AK6: Relative Frequency | AL6: Variability | AN6: Frequency | AP6: Relative Frequency | AQ6: Variability | AS6: Frequency | AU6: Relative Frequency | AV6: Variability
A7: 11 | B7: 30 | C7: 12 | D7: 39 | E7: 14 | F7: 47 | K7: 0 | L7: 111 | N7: 111 | O7: =COUNTIF($L$7:$L$500,N7) -> 31 | P7: =O7/$Q$4 -> 0.1812865497 | Q7: =IF(P7=0,0,(P7*((LOG(P7))/LOG(2)))) -> -0.446627733 | T7: =N7 -> 111 | U7: =COUNTIF(L7:L35,T7) -> 25 | V7: =U7/(W4-U10) -> 0.8620689655 | W7: =IF(V7=0,0,(V7*((LOG(V7))/LOG(2)))) -> -0.1845903494 | Y7: =N7 -> 111 | Z7: =COUNTIF(L36:L63,Y7) -> 6 | AA7: =Z7/(AB4-Z10) -> 0.2608695652 | AB7: =IF(AA7=0,0,(AA7*((LOG(AA7))/LOG(2)))) -> -0.505721597 | AD7: =N7 -> 111 | AE7: =COUNTIF(L64:L92,AD7) -> 0 | AF7: =AE7/(AG4-AE10) -> 0 | AG7: =IF(AF7=0,0,(AF7*((LOG(AF7))/LOG(2)))) -> 0 | AI7: =N7 -> 111 | AJ7: =COUNTIF(L93:L120,AI7) -> 0 | AK7: =AJ7/(AL4-AJ10) -> 0 | AL7: =IF(AK7=0,0,(AK7*((LOG(AK7))/LOG(2)))) -> 0 | AN7: =N7 -> 111 | AO7: =COUNTIF(L121:L149,AN7) -> 0 | AP7: =AO7/(AQ4-AO10) -> 0 | AQ7: =IF(AP7=0,0,(AP7*((LOG(AP7))/LOG(2)))) -> 0 | AS7: =N7 -> 111 | AT7: =COUNTIF(L150:L177,AS7) -> 0 | AU7: =AT7/(AV4-AT10) -> 0 | AV7: =IF(AU7=0,0,(AU7*((LOG(AU7))/LOG(2)))) -> 0
A8: 11 | B8: 147 | C8: 12 | D8: 155 | E8: 14 | F8: 163 | K8: 0 | L8: 111 | N8: 112 | O8: =COUNTIF($L$7:$L$500,N8) -> 3 | P8: =O8/$Q$4 -> 0.01754385965 | Q8: =IF(P8=0,0,(P8*((LOG(P8))/LOG(2)))) -> -0.1023314038 | T8: =N8 -> 112 | U8: =COUNTIF(L7:L35,T8) -> 1 | V8: =U8/(W4-U10) -> 0.03448275862 | W8: =IF(V8=0,0,(V8*((LOG(V8))/LOG(2)))) -> -0.167516586 | Y8: =N8 -> 112 | Z8: =COUNTIF(L36:L63,Y8) -> 2 | AA8: =Z8/(AB4-Z10) -> 0.08695652174 | AB8: =IF(AA8=0,0,(AA8*((LOG(AA8))/LOG(2)))) -> -0.3063966918 | AD8: =N8 -> 112 | AE8: =COUNTIF(L64:L92,AD8) -> 0 | AF8: =AE8/(AG4-AE10) -> 0 | AG8: =IF(AF8=0,0,(AF8*((LOG(AF8))/LOG(2)))) -> 0 | AI8: =N8 -> 112 | AJ8: =COUNTIF(L93:L120,AI8) -> 0 | AK8: =AJ8/(AL4-AJ10) -> 0 | AL8: =IF(AK8=0,0,(AK8*((LOG(AK8))/LOG(2)))) -> 0 | AN8: =N8 -> 112 | AO8: =COUNTIF(L121:L149,AN8) -> 0 | AP8: =AO8/(AQ4-AO10) -> 0 | AQ8: =IF(AP8=0,0,(AP8*((LOG(AP8))/LOG(2)))) -> 0 | AS8: =N8 -> 112 | AT8: =COUNTIF(L150:L177,AS8) -> 0 | AU8: =AT8/(AV4-AT10) -> 0 | AV8: =IF(AU8=0,0,(AU8*((LOG(AU8))/LOG(2)))) -> 0
A9: 11 | B9: 270 | C9: 12 | D9: 275 | E9: 14 | F9: 283 | K9: 0 | L9: 111 | N9: 121 | O9: =COUNTIF($L$7:$L$500,N9) -> 1 | P9: =O9/$Q$4 -> 0.005847953216 | Q9: =IF(P9=0,0,(P9*((LOG(P9))/LOG(2)))) -> -0.04337925447 | T9: =N9 -> 121 | U9: =COUNTIF(L7:L35,T9) -> 0 | V9: =U9/(W4-U10) -> 0 | W9: =IF(V9=0,0,(V9*((LOG(V9))/LOG(2)))) -> 0 | Y9: =N9 -> 121 | Z9: =COUNTIF(L36:L63,Y9) -> 1 | AA9: =Z9/(AB4-Z10) -> 0.04347826087 | AB9: =IF(AA9=0,0,(AA9*((LOG(AA9))/LOG(2)))) -> -0.1966766068 | AD9: =N9 -> 121 | AE9: =COUNTIF(L64:L92,AD9) -> 0 | AF9: =AE9/(AG4-AE10) -> 0 | AG9: =IF(AF9=0,0,(AF9*((LOG(AF9))/LOG(2)))) -> 0 | AI9: =N9 -> 121 | AJ9: =COUNTIF(L93:L120,AI9) -> 0 | AK9: =AJ9/(AL4-AJ10) -> 0 | AL9: =IF(AK9=0,0,(AK9*((LOG(AK9))/LOG(2)))) -> 0 | AN9: =N9 -> 121 | AO9: =COUNTIF(L121:L149,AN9) -> 0 | AP9: =AO9/(AQ4-AO10) -> 0 | AQ9: =IF(AP9=0,0,(AP9*((LOG(AP9))/LOG(2)))) -> 0 | AS9: =N9 -> 121 | AT9: =COUNTIF(L150:L177,AS9) -> 0 | AU9: =AT9/(AV4-AT10) -> 0 | AV9: =IF(AU9=0,0,(AU9*((LOG(AU9))/LOG(2)))) -> 0
A10: 11 | B10: 388 | C10: 12 | D10: 395 | E10: 14 | F10: 402 | K10: 0 | L10: 111 | N10: 122 | O10: =COUNTIF($L$7:$L$500,N10) -> 36 | P10: =O10/$Q$4 -> 0.2105263158 | Q10: =IF(P10=0,0,(P10*((LOG(P10))/LOG(2)))) -> -0.4732478976 | T10: =N10 -> 122 | U10: =COUNTIF(L7:L35,T10) -> 0 | Y10: =N10 -> 122 | Z10: =COUNTIF(L36:L63,Y10) -> 5 | AD10: =N10 -> 122 | AE10: =COUNTIF(L64:L92,AD10) -> 11 | AI10: =N10 -> 122 | AJ10: =COUNTIF(L93:L120,AI10) -> 7 | AN10: =N10 -> 122 | AO10: =COUNTIF(L121:L149,AN10) -> 5 | AS10: =N10 -> 122 | AT10: =COUNTIF(L150:L177,AS10) -> 8
A11: 11 | B11: 507 | C11: 12 | D11: 516 | E11: 14 | F11: 522 | K11: 0 | L11: 111 | N11: 211 | O11: =COUNTIF($L$7:$L$500,N11) -> 6 | P11: =O11/$Q$4 -> 0.0350877193 | Q11: =IF(P11=0,0,(P11*((LOG(P11))/LOG(2)))) -> -0.1695750882 | T11: =N11 -> 211 | U11: =COUNTIF(L7:L35,T11) -> 1 | V11: =U11/(W4-U10) -> 0.03448275862 | W11: =IF(V11=0,0,(V11*((LOG(V11))/LOG(2)))) -> -0.167516586 | Y11: =N11 -> 211 | Z11: =COUNTIF(L36:L63,Y11) -> 5 | AA11: =Z11/(AB4-Z10) -> 0.2173913043 | AB11: =IF(AA11=0,0,(AA11*((LOG(AA11))/LOG(2)))) -> -0.4786160568 | AD11: =N11 -> 211 | AE11: =COUNTIF(L64:L92,AD11) -> 0 | AF11: =AE11/(AG4-AE10) -> 0 | AG11: =IF(AF11=0,0,(AF11*((LOG(AF11))/LOG(2)))) -> 0 | AI11: =N11 -> 211 | AJ11: =COUNTIF(L93:L120,AI11) -> 0 | AK11: =AJ11/(AL4-AJ10) -> 0 | AL11: =IF(AK11=0,0,(AK11*((LOG(AK11))/LOG(2)))) -> 0 | AN11: =N11 -> 211 | AO11: =COUNTIF(L121:L149,AN11) -> 0 | AP11: =AO11/(AQ4-AO10) -> 0 | AQ11: =IF(AP11=0,0,(AP11*((LOG(AP11))/LOG(2)))) -> 0 | AS11: =N11 -> 211 | AT11: =COUNTIF(L150:L177,AS11) -> 0 | AU11: =AT11/(AV4-AT10) -> 0 | AV11: =IF(AU11=0,0,(AU11*((LOG(AU11))/LOG(2)))) -> 0
A12: 11 | B12: 639 | C12: 12 | D12: 646 | E12: 14 | F12: 692 | K12: 0 | L12: 111 | N12: 212 | O12: =COUNTIF($L$7:$L$500,N12) -> 1 | P12: =O12/$Q$4 -> 0.005847953216 | Q12: =IF(P12=0,0,(P12*((LOG(P12))/LOG(2)))) -> -0.04337925447 | T12: =N12 -> 212 | U12: =COUNTIF(L7:L35,T12) -> 0 | V12: =U12/(W4-U10) -> 0 | W12: =IF(V12=0,0,(V12*((LOG(V12))/LOG(2)))) -> 0 | Y12: =N12 -> 212 | Z12: =COUNTIF(L36:L63,Y12) -> 0 | AA12: =Z12/(AB4-Z10) -> 0 | AB12: =IF(AA12=0,0,(AA12*((LOG(AA12))/LOG(2)))) -> 0 | AD12: =N12 -> 212 | AE12: =COUNTIF(L64:L92,AD12) -> 0 | AF12: =AE12/(AG4-AE10) -> 0 | AG12: =IF(AF12=0,0,(AF12*((LOG(AF12))/LOG(2)))) -> 0 | AI12: =N12 -> 212 | AJ12: =COUNTIF(L93:L120,AI12) -> 1 | AK12: =AJ12/(AL4-AJ10) -> 0.04761904762 | AL12: =IF(AK12=0,0,(AK12*((LOG(AK12))/LOG(2)))) -> -0.2091579725 | AN12: =N12 -> 212 | AO12: =COUNTIF(L121:L149,AN12) -> 0 | AP12: =AO12/(AQ4-AO10) -> 0 | AQ12: =IF(AP12=0,0,(AP12*((LOG(AP12))/LOG(2)))) -> 0 | AS12: =N12 -> 212 | AT12: =COUNTIF(L150:L177,AS12) -> 0 | AU12: =AT12/(AV4-AT10) -> 0 | AV12: =IF(AU12=0,0,(AU12*((LOG(AU12))/LOG(2)))) -> 0
A13: 11 | B13: 807 | C13: 12 | D13: 829 | E13: 14 | F13: 840 | K13: 0 | L13: 111 | N13: 221 | O13: =COUNTIF($L$7:$L$500,N13) -> 1 | P13: =O13/$Q$4 -> 0.005847953216 | Q13: =IF(P13=0,0,(P13*((LOG(P13))/LOG(2)))) -> -0.04337925447 | T13: =N13 -> 221 | U13: =COUNTIF(L7:L35,T13) -> 1 | V13: =U13/(W4-U10) -> 0.03448275862 | W13: =IF(V13=0,0,(V13*((LOG(V13))/LOG(2)))) -> -0.167516586 | Y13: =N13 -> 221 | Z13: =COUNTIF(L36:L63,Y13) -> 0 | AA13: =Z13/(AB4-Z10) -> 0 | AB13: =IF(AA13=0,0,(AA13*((LOG(AA13))/LOG(2)))) -> 0 | AD13: =N13 -> 221 | AE13: =COUNTIF(L64:L92,AD13) -> 0 | AF13: =AE13/(AG4-AE10) -> 0 | AG13: =IF(AF13=0,0,(AF13*((LOG(AF13))/LOG(2)))) -> 0 | AI13: =N13 -> 221 | AJ13: =COUNTIF(L93:L120,AI13) -> 0 | AK13: =AJ13/(AL4-AJ10) -> 0 | AL13: =IF(AK13=0,0,(AK13*((LOG(AK13))/LOG(2)))) -> 0 | AN13: =N13 -> 221 | AO13: =COUNTIF(L121:L149,AN13) -> 0 | AP13: =AO13/(AQ4-AO10) -> 0 | AQ13: =IF(AP13=0,0,(AP13*((LOG(AP13))/LOG(2)))) -> 0 | AS13: =N13 -> 221 | AT13: =COUNTIF(L150:L177,AS13) -> 0 | AU13: =AT13/(AV4-AT10) -> 0 | AV13: =IF(AU13=0,0,(AU13*((LOG(AU13))/LOG(2)))) -> 0
A14: 11 | B14: 949 | C14: 12 | D14: 955 | E14: 14 | F14: 981 | K14: 0 | L14: 111 | N14: 222 | O14: =COUNTIF($L$7:$L$500,N14) -> 92 | P14: =O14/$Q$4 -> 0.5380116959 | Q14: =IF(P14=0,0,(P14*((LOG(P14))/LOG(2)))) -> -0.4811387802 | T14: =N14 -> 222 | U14: =COUNTIF(L7:L35,T14) -> 1 | V14: =U14/(W4-U10) -> 0.03448275862 | W14: =IF(V14=0,0,(V14*((LOG(V14))/LOG(2)))) -> -0.167516586 | Y14: =N14 -> 222 | Z14: =COUNTIF(L36:L63,Y14) -> 9 | AA14: =Z14/(AB4-Z10) -> 0.3913043478 | AB14: =IF(AA14=0,0,(AA14*((LOG(AA14))/LOG(2)))) -> -0.5296840257 | AD14: =N14 -> 222 | AE14: =COUNTIF(L64:L92,AD14) -> 18 | AF14: =AE14/(AG4-AE10) -> 1 | AG14: =IF(AF14=0,0,(AF14*((LOG(AF14))/LOG(2)))) -> 0 | AI14: =N14 -> 222 | AJ14: =COUNTIF(L93:L120,AI14) -> 20 | AK14: =AJ14/(AL4-AJ10) -> 0.9523809524 | AL14: =IF(AK14=0,0,(AK14*((LOG(AK14))/LOG(2)))) -> -0.06703745513 | AN14: =N14 -> 222 | AO14: =COUNTIF(L121:L149,AN14) -> 24 | AP14: =AO14/(AQ4-AO10) -> 1 | AQ14: =IF(AP14=0,0,(AP14*((LOG(AP14))/LOG(2)))) -> 0 | AS14: =N14 -> 222 | AT14: =COUNTIF(L150:L177,AS14) -> 20 | AU14: =AT14/(AV4-AT10) -> 1 | AV14: =IF(AU14=0,0,(AU14*((LOG(AU14))/LOG(2)))) -> 0
A15: 11 | B15: 1098 | C15: 12 | D15: 1105 | E15: 14 | F15: 1180 | K15: 0 | L15: 111 | P15: =SUM(P7:P14) -> 1 | Q15: =-SUM(Q7:Q14) -> 1.803058666 | V15: =SUM(V7:V14) -> 1 | W15: =-SUM(W7:W14) -> 0.8546566936 | AA15: =SUM(AA7:AA14) -> 1 | AB15: =-SUM(AB7:AB14) -> 2.017094978 | AF15: =SUM(AF7:AF14) -> 1 | AG15: =-SUM(AG7:AG14) -> 0 | AK15: =SUM(AK7:AK14) -> 1 | AL15: =-SUM(AL7:AL14) -> 0.2761954276 | AP15: =SUM(AP7:AP14) -> 1 | AQ15: =-SUM(AQ7:AQ14) -> 0 | AU15: =SUM(AU7:AU14) -> 1 | AV15: =-SUM(AV7:AV14) -> 0
A16: 11 | B16: 1300 | C16: 12 | D16: 1306 | E16: 14 | F16: 1314 | K16: 0 | L16: 111 | P16: U= | Q16: =Q15/(LOG(Q4)/LOG(2)) -> 0.2430701692 | V16: U1= | W16: =W15/(LOG(W4)/LOG(2)) -> 0.1759283732 | AA16: U2= | AB16: =AB15/(LOG(AB4)/LOG(2)) -> 0.4195852004 | AF16: U3= | AG16: =AG15/(LOG(AG4)/LOG(2)) -> 0 | AK16: U4= | AL16: =AL15/(LOG(AL4)/LOG(2)) -> 0.05745268076 | AP16: U5= | AQ16: =AQ15/(LOG(AQ4)/LOG(2)) -> 0 | AU16: U6= | AV16: =AV15/(LOG(AV4)/LOG(2)) -> 0
A17: 11 | B17: 1438 | C17: 12 | D17: 1444 | E17: 14 | F17: 1450 | K17: 0 | L17: 111
A18: 11 | B18: 1585 | C18: 12 | D18: 1591 | E18: 14 | F18: 1628 | K18: 0 | L18: 111
A19: 11 | B19: 1728 | C19: 12 | D19: 1733 | E19: 14 | F19: 1833 | K19: 0 | L19: 111 | N19: Total Target Seq
A20: 11 | B20: 1982 | C20: 12 | D20: 2095 | E20: 14 | F20: 2102 | K20: 0 | L20: 111 | N20: =COUNTIF(L7:L177,G3) -> 36 | P20: 29 | Q20: 28 | R20: 29 | S20: 28 | T20: 29 | U20: 28
A21: 11 | B21: 2289 | C21: 12 | D21: 2303 | E21: 14 | F21: 2311 | K21: 0 | L21: 111 | P21: % of reinforcement given in 6 equal intervals based on number of trials
A22: 11 | B22: 2428 | C22: 12 | D22: 2433 | E22: 14 | F22: 2441 | K22: 0 | L22: 111 | P22: %_1 | Q22: %_2 | R22: %_3 | S22: %_4 | T22: %_5 | U22: %_6
A23: 11 | B23: 2559 | C23: 12 | D23: 2566 | E23: 14 | F23: 2573 | K23: 0 | L23: 111 | O23: target sequence | P23: =$G$3 -> 122 | Q23: =$G$3 -> 122 | R23: =$G$3 -> 122 | S23: =$G$3 -> 122 | T23: =$G$3 -> 122 | U23: =$G$3 -> 122
A24: 11 | B24: 2713 | C24: 12 | D24: 2724 | E24: 14 | F24: 2737 | K24: 0 | L24: 111 | O24: total reinforcement | P24: =U10 -> 0 | Q24: =Z10 -> 5 | R24: =AE10 -> 11 | S24: =AJ10 -> 7 | T24: =AO10 -> 5 | U24: =AT10 -> 8
A25: 11 | B25: 2844 | C25: 12 | D25: 2855 | E25: 14 | F25: 2862 | K25: 0 | L25: 111 | O25: % target
A26: 11 | B26: 2976 | C26: 12 | D26: 3031 | E26: 14 | F26: 3117 | K26: 0 | L26: 111 | O26: CCRF
A27: 11 | B27: 3213 | C27: 12 | D27: 3217 | E27: 14 | F27: 3223 | K27: 0 | L27: 111 | O27: % CCRf
A28: 11 | B28: 3322 | C28: 12 | D28: 3435 | E28: 14 | F28: 3444 | K28: 0 | L28: 111 | O28: average response rate | P28: =F35/P20 -> 155.5172414 | Q28: =(F63-F35)/Q20 -> 142.8214286 | R28: =(F92-F63)/R20 -> 143.862069 | S28: =(F120-F92)/S20 -> 137 | T28: =(F149-F120)/T20 -> 131.0344828 | U28: =(F177-F149)/U20 -> 130.2857143
A29: 11 | B29: 3560 | C29: 12 | D29: 3630 | E29: 14 | F29: 3636 | K29: 0 | L29: 111
A30: 11 | B30: 3752 | C30: 12 | D30: 3757 | E30: 14 | F30: 3764 | K30: 0 | L30: 111
A31: 22 | B31: 3876 | C31: 23 | D31: 3882 | E31: 14 | F31: 3910 | K31: 0 | L31: 221
A32: 11 | B32: 4038 | C32: 12 | D32: 4043 | E32: 14 | F32: 4049 | K32: 0 | L32: 111
A33: 22 | B33: 4167 | C33: 23 | D33: 4179 | E33: 23 | F33: 4185 | K33: 0 | L33: 222
A34: 22 | B34: 4301 | C34: 14 | D34: 4342 | E34: 14 | F34: 4353 | K34: 0 | L34: 211
A35: 11 | B35: 4473 | C35: 12 | D35: 4478 | E35: 23 | F35: 4510 | K35: 0 | L35: 112
A36: 22 | B36: 4612 | C36: 14 | D36: 4621 | E36: 14 | F36: 4635 | K36: 0 | L36: 211
A37: 11 | B37: 4736 | C37: 21 | D37: 4764 | E37: 21 | F37: 4771 | K37: 0 | L37: 122
A38: 11 | B38: 4929 | C38: 12 | D38: 4938 | E38: 14 | F38: 4950 | K38: 0 | L38: 111
A39: 11 | B39: 5066 | C39: 12 | D39: 5083 | E39: 14 | F39: 5089 | K39: 0 | L39: 111
A40: 11 | B40: 5205 | C40: 21 | D40: 5212 | E40: 12 | F40: 5229 | K40: 0 | L40: 121
A41: 11 | B41: 5337 | C41: 12 | D41: 5347 | E41: 14 | F41: 5354 | K41: 0 | L41: 111
A42: 11 | B42: 5457 | C42: 12 | D42: 5474 | E42: 23 | F42: 5493 | K42: 0 | L42: 112
A43: 11 | B43: 5589 | C43: 21 | D43: 5601 | E43: 21 | F43: 5608 | K43: 0 | L43: 122
A44: 11 | B44: 5830 | C44: 21 | D44: 5845 | E44: 21 | F44: 5855 | K44: 0 | L44: 122
A45: 11 | B45: 6068 | C45: 12 | D45: 6079 | E45: 14 | F45: 6086 | K45: 0 | L45: 111
A46: 11 | B46: 6197 | C46: 12 | D46: 6213 | E46: 14 | F46: 6220 | K46: 0 | L46: 111
A47: 22 | B47: 6331 | C47: 23 | D47: 6338 | E47: 23 | F47: 6346 | K47: 0 | L47: 222
A48: 22 | B48: 6445 | C48: 14 | D48: 6455 | E48: 14 | F48: 6459 | K48: 0 | L48: 211
A49: 22 | B49: 6564 | C49: 14 | D49: 6574 | E49: 14 | F49: 6589 | K49: 0 | L49: 211
A50: 11 | B50: 6725 | C50: 21 | D50: 6743 | E50: 21 | F50: 6751 | K50: 0 | L50: 122
A51: 11 | B51: 6928 | C51: 21 | D51: 6954 | E51: 21 | F51: 6963 | K51: 0 | L51: 122
A52: 11 | B52: 7089 | C52: 12 | D52: 7095 | E52: 14 | F52: 7102 | K52: 0 | L52: 111
A53: 22 | B53: 7205 | C53: 14 | D53: 7220 | E53: 14 | F53: 7226 | K53: 0 | L53: 211
A54: 22 | B54: 7329 | C54: 14 | D54: 7338 | E54: 14 | F54: 7348 | K54: 0 | L54: 211
A55: 22 | B55: 7477 | C55: 23 | D55: 7485 | E55: 23 | F55: 7492 | K55: 0 | L55: 222
A56: 22 | B56: 7604 | C56: 23 | D56: 7615 | E56: 23 | F56: 7623 | K56: 0 | L56: 222
A57: 22 | B57: 7739 | C57: 23 | D57: 7746 | E57: 23 | F57: 7752 | K57: 0 | L57: 222
A58: 22 | B58: 7869 | C58: 23 | D58: 7876 | E58: 23 | F58: 7883 | K58: 0 | L58: 222
A59: 22 | B59: 7995 | C59: 23 | D59: 8002 | E59: 23 | F59: 8010 | K59: 0 | L59: 222
A60: 22 | B60: 8118 | C60: 23 | D60: 8125 | E60: 23 | F60: 8132 | K60: 0 | L60: 222
A61: 22 | B61: 8244 | C61: 23 | D61: 8249 | E61: 23 | F61: 8256 | K61: 0 | L61: 222
A62: 11 | B62: 8359 | C62: 12 | D62: 8364 | E62: 23 | F62: 8376 | K62: 0 | L62: 112
A63: 22 | B63: 8488 | C63: 23 | D63: 8498 | E63: 23 | F63: 8509 | K63: 0 | L63: 222
A64: 22 | B64: 8619 | C64: 23 | D64: 8624 | E64: 23 | F64: 8633 | K64: 0 | L64: 222
A65: 11 | B65: 8734 | C65: 21 | D65: 8745 | E65: 21 | F65: 8750 | K65: 0 | L65: 122
A66: 11 | B66: 8953 | C66: 21 | D66: 8973 | E66: 21 | F66: 8984 | K66: 0 | L66: 122
A67: 11 | B67: 9136 | C67: 21 | D67: 9148 | E67: 21 | F67: 9152 | K67: 0 | L67: 122
A68: 22 | B68: 9332 | C68: 23 | D68: 9344 | E68: 23 | F68: 9351 | K68: 0 | L68: 222
A69: 22 | B69: 9462 | C69: 23 | D69: 9469 | E69: 23 | F69: 9476 | K69: 0 | L69: 222
A70: 22 | B70: 9589 | C70: 23 | D70: 9596 | E70: 23 | F70: 9603 | K70: 0 | L70: 222
A71: 11 | B71: 9701 | C71: 21 | D71: 9717 | E71: 21 | F71: 9724 | K71: 0 | L71: 122
A72: 22 | B72: 9878 | C72: 23 | D72: 9883 | E72: 23 | F72: 9889 | K72: 0 | L72: 222
A73: 22 | B73: 9999 | C73: 23 | D73: 10007 | E73: 23 | F73: 10014 | K73: 0 | L73: 222
A74: 11 | B74: 10105 | C74: 21 | D74: 10118 | E74: 21 | F74: 10127 | K74: 0 | L74: 122
A75: 11 | B75: 10262 | C75: 21 | D75: 10276 | E75: 21 | F75: 10282 | K75: 0 | L75: 122
A76: 22 | B76: 10505 | C76: 23 | D76: 10511 | E76: 23 | F76: 10519 | K76: 0 | L76: 222
A77: 22 | B77: 10631 | C77: 23 | D77: 10636 | E77: 23 | F77: 10643 | K77: 0 | L77: 222
A78: 22 | B78: 10752 | C78: 23 | D78: 10757 | E78: 23 | F78: 10763 | K78: 0 | L78: 222
A79: 22 | B79: 10871 | C79: 23 | D79: 10879 | E79: 23 | F79: 10886 | K79: 0 | L79: 222
A80: 11 | B80: 10983 | C80: 21 | D80: 11002 | E80: 21 | F80: 11009 | K80: 0 | L80: 122
A81: 11 | B81: 11151 | C81: 21 | D81: 11182 | E81: 21 | F81: 11193 | K81: 0 | L81: 122
A82: 22 | B82: 11404 | C82: 23 | D82: 11410 | E82: 23 | F82: 11422 | K82: 0 | L82: 222
A83: 22 | B83: 11536 | C83: 23 | D83: 11542 | E83: 23 | F83: 11549 | K83: 0 | L83: 222
A84: 11 | B84: 11645 | C84: 21 | D84: 11658 | E84: 21 | F84: 11663 | K84: 0 | L84: 122
A85: 22 | B85: 11782 | C85: 23 | D85: 11788 | E85: 23 | F85: 11796 | K85: 0 | L85: 222
A86: 22 | B86: 11906 | C86: 23 | D86: 11912 | E86: 23 | F86: 11919 | K86: 0 | L86: 222
A87: 22 | B87: 12049 | C87: 23 | D87: 12056 | E87: 23 | F87: 12063 | K87: 0 | L87: 222
A88: 22 | B88: 12173 | C88: 23 | D88: 12179 | E88: 23 | F88: 12186 | K88: 0 | L88: 222
A89: 22 | B89: 12291 | C89: 23 | D89: 12296 | E89: 23 | F89: 12304 | K89: 0 | L89: 222
A90: 11 | B90: 12400 | C90: 21 | D90: 12408 | E90: 21 | F90: 12418 | K90: 0 | L90: 122
A91: 22 | B91: 12551 | C91: 23 | D91: 12557 | E91: 23 | F91: 12564 | K91: 0 | L91: 222
A92: 11 | B92: 12657 | C92: 21 | D92: 12674 | E92: 21 | F92: 12681 | K92: 0 | L92: 122
A93: 22 | B93: 12836 | C93: 14 | D93: 12903 | E93: 23 | F93: 12920 | K93: 0 | L93: 212
A94: 22 | B94: 13026 | C94: 23 | D94: 13031 | E94: 23 | F94: 13038 | K94: 0 | L94: 222
A95: 11 | B95: 13133 | C95: 21 | D95: 13147 | E95: 21 | F95: 13153 | K95: 0 | L95: 122
A96: 22 | B96: 13320 | C96: 23 | D96: 13325 | E96: 23 | F96: 13332 | K96: 0 | L96: 222
A97: 11 | B97: 13428 | C97: 21 | D97: 13440 | E97: 21 | F97: 13454 | K97: 0 | L97: 122
A98: 22 | B98: 13577 | C98: 23 | D98: 13589 | E98: 23 | F98: 13596 | K98: 0 | L98: 222
A99: 22 | B99: 13702 | C99: 23 | D99: 13712 | E99: 23 | F99: 13719 | K99: 0 | L99: 222
A100: 11 | B100: 13815 | C100: 21 | D100: 13828 | E100: 21 | F100: 13834 | K100: 0 | L100: 122
A101: 22 | B101: 14012 | C101: 23 | D101: 14016 | E101: 23 | F101: 14022 | K101: 0 | L101: 222
A102: 11 | B102: 14135 | C102: 21 | D102: 14146 | E102: 21 | F102: 14152 | K102: 0 | L102: 122
A103: 22 | B103: 14324 | C103: 23 | D103: 14331 | E103: 23 | F103: 14338 | K103: 0 | L103: 222
A104: 22 | B104: 14447 | C104: 23 | D104: 14460 | E104: 23 | F104: 14468 | K104: 0 | L104: 222
A105: 22 | B105: 14576 | C105: 23 | D105: 14587 | E105: 23 | F105: 14595 | K105: 0 | L105: 222
A106: 22 | B106: 14713 | C106: 23 | D106: 14719 | E106: 23 | F106: 14726 | K106: 0 | L106: 222
A107: 22 | B107: 14830 | C107: 23 | D107: 14840 | E107: 23 | F107: 14848 | K107: 0 | L107: 222
A108: 22 | B108: 14956 | C108: 23 | D108: 14964 | E108: 23 | F108: 14971 | K108: 0 | L108: 222
A109: 22 | B109: 15074 | C109: 23 | D109: 15079 | E109: 23 | F109: 15083 | K109: 0 | L109: 222
A110: 22 | B110: 15189 | C110: 23 | D110: 15192 | E110: 23 | F110: 15199 | K110: 0 | L110: 222
A111: 22 | B111: 15317 | C111: 23 | D111: 15325 | E111: 23 | F111: 15332 | K111: 0 | L111: 222
A112: 22 | B112: 15434 | C112: 23 | D112: 15440 | E112: 23 | F112: 15445 | K112: 0 | L112: 222
A113: 11 | B113: 15539 | C113: 21 | D113: 15552 | E113: 21 | F113: 15567 | K113: 0 | L113: 122
A114: 22 | B114: 15705 | C114: 23 | D114: 15711 | E114: 23 | F114: 15718 | K114: 0 | L114: 222
A115: 22 | B115: 15829 | C115: 23 | D115: 15837 | E115: 23 | F115: 15844 | K115: 0 | L115: 222
A116: 22 | B116: 15949 | C116: 23 | D116: 15954 | E116: 23 | F116: 15960 | K116: 0 | L116: 222
A117: 22 | B117: 16062 | C117: 23 | D117: 16067 | E117: 23 | F117: 16071 | K117: 0 | L117: 222
A118: 11 | B118: 16170 | C118: 21 | D118: 16182 | E118: 21 | F118: 16188 | K118: 0 | L118: 122
A119: 11 | B119: 16346 | C119: 21 | D119: 16354 | E119: 21 | F119: 16358 | K119: 0 | L119: 122
A120: 22 | B120: 16501 | C120: 23 | D120: 16511 | E120: 23 | F120: 16517 | K120: 0 | L120: 222
A121: 22 | B121: 16631 | C121: 23 | D121: 16637 | E121: 23 | F121: 16644 | K121: 0 | L121: 222
A122: 22 | B122: 16751 | C122: 23 | D122: 16755 | E122: 23 | F122: 16766 | K122: 0 | L122: 222
A123: 22 | B123: 16881 | C123: 23 | D123: 16892 | E123: 23 | F123: 16897 | K123: 0 | L123: 222
A124: 11 | B124: 16992 | C124: 21 | D124: 17021 | E124: 21 | F124: 17030 | K124: 0 | L124: 122
A125: 22 | B125: 17235 | C125: 23 | D125: 17242 | E125: 23 | F125: 17248 | K125: 0 | L125: 222
A126: 11 | B126: 17347 | C126: 21 | D126: 17359 | E126: 21 | F126: 17365 | K126: 0 | L126: 122
A127: 22 | B127: 17483 | C127: 23 | D127: 17491 | E127: 23 | F127: 17505 | K127: 0 | L127: 222
A128: 22 | B128: 17618 | C128: 23 | D128: 17626 | E128: 23 | F128: 17633 | K128: 0 | L128: 222
A129: 11 | B129: 17750 | C129: 21 | D129: 17759 | E129: 21 | F129: 17766 | K129: 0 | L129: 122
A130: 11 | B130: 17872 | C130: 21 | D130: 17885 | E130: 21 | F130: 17891 | K130: 0 | L130: 122
A131: 22 | B131: 18037 | C131: 23 | D131: 18044 | E131: 23 | F131: 18051 | K131: 0 | L131: 222
A132: 22 | B132: 18155 | C132: 23 | D132: 18162 | E132: 23 | F132: 18171 | K132: 0 | L132: 222
A133: 22 | B133: 18282 | C133: 23 | D133: 18289 | E133: 23 | F133: 18296 | K133: 0 | L133: 222
A134: 22 | B134: 18411 | C134: 23 | D134: 18417 | E134: 23 | F134: 18424 | K134: 0 | L134: 222
A135: 22 | B135: 18528 | C135: 23 | D135: 18540 | E135: 23 | F135: 18549 | K135: 0 | L135: 222
A136: 22 | B136: 18655 | C136: 23 | D136: 18672 | E136: 23 | F136: 18679 | K136: 0 | L136: 222
A137: 22 | B137: 18788 | C137: 23 | D137: 18794 | E137: 23 | F137: 18801 | K137: 0 | L137: 222
A138: 22 | B138: 18904 | C138: 23 | D138: 18908 | E138: 23 | F138: 18916 | K138: 0 | L138: 222
A139: 11 | B139: 19011 | C139: 21 | D139: 19020 | E139: 21 | F139: 19026 | K139: 0 | L139: 122
A140: 22 | B140: 19194 | C140: 23 | D140: 19202 | E140: 23 | F140: 19209 | K140: 0 | L140: 222
A141: 22 | B141: 19318 | C141: 23 | D141: 19323 | E141: 23 | F141: 19335 | K141: 0 | L141: 222
A142: 22 | B142: 19441 | C142: 23 | D142: 19447 | E142: 23 | F142: 19457 | K142: 0 | L142: 222
A143: 22 | B143: 19570 | C143: 23 | D143: 19577 | E143: 23 | F143: 19583 | K143: 0 | L143: 222
A144: 22 | B144: 19687 | C144: 23 | D144: 19693 | E144: 23 | F144: 19700 | K144: 0 | L144: 222
A145: 22 | B145: 19809 | C145: 23 | D145: 19816 | E145: 23 | F145: 19824 | K145: 0 | L145: 222
A146: 22 | B146: 19931 | C146: 23 | D146: 19936 | E146: 23 | F146: 19944 | K146: 0 | L146: 222
A147: 22 | B147: 20052 | C147: 23 | D147: 20059 | E147: 23 | F147: 20067 | K147: 0 | L147: 222
A148: 22 | B148: 20177 | C148: 23 | D148: 20187 | E148: 23 | F148: 20195 | K148: 0 | L148: 222
A149: 22 | B149: 20304 | C149: 23 | D149: 20311 | E149: 23 | F149: 20317 | K149: 0 | L149: 222
A150: 22 | B150: 20422 | C150: 23 | D150: 20428 | E150: 23 | F150: 20435 | K150: 0 | L150: 222
A151: 22 | B151: 20541 | C151: 23 | D151: 20547 | E151: 23 | F151: 20554 | K151: 0 | L151: 222
A152: 11 | B152: 20653 | C152: 21 | D152: 20668 | E152: 21 | F152: 20678 | K152: 0 | L152: 122
A153: 22 | B153: 20826 | C153: 23 | D153: 20836 | E153: 23 | F153: 20841 | K153: 0 | L153: 222
A154: 22 | B154: 20945 | C154: 23 | D154: 20952 | E154: 23 | F154: 20958 | K154: 0 | L154: 222
A155: 11 | B155: 21058 | C155: 21 | D155: 21072 | E155: 21 | F155: 21085 | K155: 0 | L155: 122
A156: 22 | B156: 21211 | C156: 23 | D156: 21215 | E156: 23 | F156: 21221 | K156: 0 | L156: 222
A157: 22 | B157: 21330 | C157: 23 | D157: 21337 | E157: 23 | F157: 21346 | K157: 0 | L157: 222
A158: 22 | B158: 21451 | C158: 23 | D158: 21458 | E158: 23 | F158: 21465 | K158: 0 | L158: 222
A159: 22 | B159: 21579 | C159: 23 | D159: 21581 | E159: 23 | F159: 21591 | K159: 0 | L159: 222
A160: 22 | B160: 21697 | C160: 23 | D160: 21703 | E160: 23 | F160: 21709 | K160: 0 | L160: 222
A161: 22 | B161: 21814 | C161: 23 | D161: 21827 | E161: 23 | F161: 21857 | K161: 0 | L161: 222
A162: 22 | B162: 21967 | C162: 23 | D162: 21977 | E162: 23 | F162: 21984 | K162: 0 | L162: 222
A163: 11 | B163: 22084 | C163: 21 | D163: 22096 | E163: 21 | F163: 22101 | K163: 0 | L163: 122
A164: 22 | B164: 22240 | C164: 23 | D164: 22245 | E164: 23 | F164: 22250 | K164: 0 | L164: 222
A165: 11 | B165: 22349 | C165: 21 | D165: 22371 | E165: 21 | F165: 22378 | K165: 0 | L165: 122
A166: 22 | B166: 22490 | C166: 23 | D166: 22496 | E166: 23 | F166: 22502 | K166: 0 | L166: 222
A167: 22 | B167: 22610 | C167: 23 | D167: 22617 | E167: 23 | F167: 22630 | K167: 0 | L167: 222
A168: 22 | B168: 22739 | C168: 23 | D168: 22749 | E168: 23 | F168: 22754 | K168: 0 | L168: 222
A169: 22 | B169: 22863 | C169: 23 | D169: 22872 | E169: 23 | F169: 22877 | K169: 0 | L169: 222
A170: 22 | B170: 22986 | C170: 23 | D170: 22992 | E170: 23 | F170: 22999 | K170: 0 | L170: 222
A171: 11 | B171: 23095 | C171: 21 | D171: 23108 | E171: 21 | F171: 23113 | K171: 0 | L171: 122
A172: 11 | B172: 23278 | C172: 21 | D172: 23288 | E172: 21 | F172: 23297 | K172: 0 | L172: 122
A173: 22 | B173: 23437 | C173: 23 | D173: 23449 | E173: 23 | F173: 23458 | K173: 0 | L173: 222
A174: 22 | B174: 23566 | C174: 23 | D174: 23573 | E174: 23 | F174: 23581 | K174: 0 | L174: 222
A175: 22 | B175: 23696 | C175: 23 | D175: 23706 | E175: 23 | F175: 23715 | K175: 0 | L175: 222
A176: 11 | B176: 23811 | C176: 21 | D176: 23823 | E176: 21 | F176: 23832 | K176: 0 | L176: 122
A177: 11 | B177: 23937 | C177: 21 | D177: 23954 | E177: 21 | F177: 23965 | K177: 1 | L177: 122

Sheet !LA07A02..Is
A1: Report for:!LA07A02..Is
A2: Date: | B2: <date>
A3: Hen: | B3: <hen> | F3: Correct Sequence | G3: =Start!J2 -> 122 | P3: Total Sequences in Data | Q3: =4994-COUNTBLANK(L7:L5000) -> 184 | V3: Total Sequences in Block Data | W3: =COUNTA(L7:L37) -> 31 | AA3: Total Sequences in Block Data | AB3: =COUNTA(L38:L67) -> 30 | AF3: Total Sequences in Block Data | AG3: =COUNTA(L68:L98) -> 31 | AK3: Total Sequences in Block Data | AL3: =COUNTA(L99:L129) -> 31 | AP3: Total Sequences in Block Data | AQ3: =COUNTA(L130:L159) -> 30 | AU3: Total Sequences in Block Data | AV3: =COUNTA(L160:L190) -> 31
P4: Total Sequences in Summary | Q4: =SUM(O7:O14) -> 184 | V4: Total Sequences in Block Summary | W4: =SUM(U7:U14) -> 31 | AA4: Total Sequences in Block Summary | AB4: =SUM(Z7:Z14) -> 30 | AF4: Total Sequences in Block Summary | AG4: =SUM(AE7:AE14) -> 31 | AK4: Total Sequences in Block Summary | AL4: =SUM(AJ7:AJ14) -> 31 | AP4: Total Sequences in Block Summary | AQ4: =SUM(AO7:AO14) -> 30 | AU4: Total Sequences in Block Summary | AV4: =SUM(AT7:AT14) -> 31
T5: Block 1 | Y5: Block 2 | AD5: Block 3 | AI5: Block 4 | AN5: Block 5 | AS5: Block 6
A6: Sequence Component 1 | B6: Time 1 | C6: Sequence Component 2 | D6: Time 2 | E6: Sequence Component 3 | F6: Time 3 | G6: Sequence Component 4 | H6: Time 4 | I6: Sequence Component 5 | J6: Time 5 | K6: Correct? 0=No 1=Yes | L6: Sequence | N6: Frequency | P6: Relative Frequency | Q6: Variability | T6: Frequency | V6: Relative Frequency | W6: Variability | Y6: Frequency | AA6: Relative Frequency | AB6: Variability | AD6: Frequency | AF6: Relative Frequency | AG6: Variability | AI6: Frequency | AK6: Relative Frequency | AL6: Variability | AN6: Frequency | AP6: Relative Frequency | AQ6: Variability | AS6: Frequency | AU6: Relative Frequency | AV6: Variability
A7: 22 | B7: 25 | C7: 14 | D7: 37 | E7: 14 | F7: 46 | K7: 0 | L7: 211 | N7: 111 | O7: =COUNTIF($L$7:$L$500,N7) -> 0 | P7: =O7/$Q$4 -> 0 | Q7: =IF(P7=0,0,(P7*((LOG(P7))/LOG(2)))) -> 0 | T7: =N7 -> 111 | U7: =COUNTIF(L7:L37,T7) -> 0 | V7: =U7/(W4-U10) -> 0 | W7: =IF(V7=0,0,(V7*((LOG(V7))/LOG(2)))) -> 0 | Y7: =N7 -> 111 | Z7: =COUNTIF(L38:L67,Y7) -> 0 | AA7: =Z7/(AB4-Z10) -> 0 | AB7: =IF(AA7=0,0,(AA7*((LOG(AA7))/LOG(2)))) -> 0 | AD7: =N7 -> 111 | AE7: =COUNTIF(L68:L98,AD7) -> 0 | AF7: =AE7/(AG4-AE10) -> 0 | AG7: =IF(AF7=0,0,(AF7*((LOG(AF7))/LOG(2)))) -> 0 | AI7: =N7 -> 111 | AJ7: =COUNTIF(L99:L129,AI7) -> 0 | AK7: =AJ7/(AL4-AJ10) -> 0 | AL7: =IF(AK7=0,0,(AK7*((LOG(AK7))/LOG(2)))) -> 0 | AN7: =N7 -> 111 | AO7: =COUNTIF(L130:L159,AN7) -> 0 | AP7: =AO7/(AQ4-AO10) -> 0 | AQ7: =IF(AP7=0,0,(AP7*((LOG(AP7))/LOG(2)))) -> 0 | AS7: =N7 -> 111 | AT7: =COUNTIF(L160:L190,AS7) -> 0 | AU7: =AT7/(AV4-AT10) -> 0 | AV7: =IF(AU7=0,0,(AU7*((LOG(AU7))/LOG(2)))) -> 0
A8: 22 | B8: 143 | C8: 14 | D8: 155 | E8: 14 | F8: 160 | K8: 0 | L8: 211 | N8: 112 | O8: =COUNTIF($L$7:$L$500,N8) -> 1 | P8: =O8/$Q$4 -> 0.005434782609 | Q8: =IF(P8=0,0,(P8*((LOG(P8))/LOG(2)))) -> -0.04088892367 | T8: =N8 -> 112 | U8: =COUNTIF(L7:L37,T8) -> 0 | V8: =U8/(W4-U10) -> 0 | W8: =IF(V8=0,0,(V8*((LOG(V8))/LOG(2)))) -> 0 | Y8: =N8 -> 112 | Z8: =COUNTIF(L38:L67,Y8) -> 0 | AA8: =Z8/(AB4-Z10) -> 0 | AB8: =IF(AA8=0,0,(AA8*((LOG(AA8))/LOG(2)))) -> 0 | AD8: =N8 -> 112 | AE8: =COUNTIF(L68:L98,AD8) -> 1 | AF8: =AE8/(AG4-AE10) -> 0.04 | AG8: =IF(AF8=0,0,(AF8*((LOG(AF8))/LOG(2)))) -> -0.1857542476 | AI8: =N8 -> 112 | AJ8: =COUNTIF(L99:L129,AI8) -> 0 | AK8: =AJ8/(AL4-AJ10) -> 0 | AL8: =IF(AK8=0,0,(AK8*((LOG(AK8))/LOG(2)))) -> 0 | AN8: =N8 -> 112 | AO8: =COUNTIF(L130:L159,AN8) -> 0 | AP8: =AO8/(AQ4-AO10) -> 0 | AQ8: =IF(AP8=0,0,(AP8*((LOG(AP8))/LOG(2)))) -> 0 | AS8: =N8 -> 112 | AT8: =COUNTIF(L160:L190,AS8) -> 0 | AU8: =AT8/(AV4-AT10) -> 0 | AV8: =IF(AU8=0,0,(AU8*((LOG(AU8))/LOG(2)))) -> 0
A9: 22 | B9: 255 | C9: 14 | D9: 267 | E9: 14 | F9: 272 | K9: 0 | L9: 211 | N9: 121 | O9: =COUNTIF($L$7:$L$500,N9) -> 0 | P9: =O9/$Q$4 -> 0 | Q9: =IF(P9=0,0,(P9*((LOG(P9))/LOG(2)))) -> 0 | T9: =N9 -> 121 | U9: =COUNTIF(L7:L37,T9) -> 0 | V9: =U9/(W4-U10) -> 0 | W9: =IF(V9=0,0,(V9*((LOG(V9))/LOG(2)))) -> 0 | Y9: =N9 -> 121 | Z9: =COUNTIF(L38:L67,Y9) -> 0 | AA9: =Z9/(AB4-Z10) -> 0 | AB9: =IF(AA9=0,0,(AA9*((LOG(AA9))/LOG(2)))) -> 0 | AD9: =N9 -> 121 | AE9: =COUNTIF(L68:L98,AD9) -> 0 | AF9: =AE9/(AG4-AE10) -> 0 | AG9: =IF(AF9=0,0,(AF9*((LOG(AF9))/LOG(2)))) -> 0 | AI9: =N9 -> 121 | AJ9: =COUNTIF(L99:L129,AI9) -> 0 | AK9: =AJ9/(AL4-AJ10) -> 0 | AL9: =IF(AK9=0,0,(AK9*((LOG(AK9))/LOG(2)))) -> 0 | AN9: =N9 -> 121 | AO9: =COUNTIF(L130:L159,AN9) -> 0 | AP9: =AO9/(AQ4-AO10) -> 0 | AQ9: =IF(AP9=0,0,(AP9*((LOG(AP9))/LOG(2)))) -> 0 | AS9: =N9 -> 121 | AT9: =COUNTIF(L160:L190,AS9) -> 0 | AU9: =AT9/(AV4-AT10) -> 0 | AV9: =IF(AU9=0,0,(AU9*((LOG(AU9))/LOG(2)))) -> 0
A10: 22 | B10: 377 | C10: 14 | D10: 385 | E10: 14 | F10: 402 | K10: 0 | L10: 211 | N10: 122 | O10: =COUNTIF($L$7:$L$500,N10) -> 37 | P10: =O10/$Q$4 -> 0.2010869565 | Q10: =IF(P10=0,0,(P10*((LOG(P10))/LOG(2)))) -> -0.4653370535 | T10: =N10 -> 122 | U10: =COUNTIF(L7:L37,T10) -> 7 | Y10: =N10 -> 122 | Z10: =COUNTIF(L38:L67,Y10) -> 8 | AD10: =N10 -> 122 | AE10: =COUNTIF(L68:L98,AD10) -> 6 | AI10: =N10 -> 122 | AJ10: =COUNTIF(L99:L129,AI10) -> 4 | AN10: =N10 -> 122 | AO10: =COUNTIF(L130:L159,AN10) -> 9 | AS10: =N10 -> 122 | AT10: =COUNTIF(L160:L190,AS10) -> 3
A11: 22 | B11: 494 | C11: 23 | D11: 499 | E11: 23 | F11: 506 | K11: 0 | L11: 222 | N11: 211 | O11: =COUNTIF($L$7:$L$500,N11) -> 5 | P11: =O11/$Q$4 -> 0.02717391304 | Q11: =IF(P11=0,0,(P11*((LOG(P11))/LOG(2)))) -> -0.1413487462 | T11: =N11 -> 211 | U11: =COUNTIF(L7:L37,T11) -> 5 | V11: =U11/(W4-U10) -> 0.2083333333 | W11: =IF(V11=0,0,(V11*((LOG(V11))/LOG(2)))) -> -0.4714655012 | Y11: =N11 -> 211 | Z11: =COUNTIF(L38:L67,Y11) -> 0 | AA11: =Z11/(AB4-Z10) -> 0 | AB11: =IF(AA11=0,0,(AA11*((LOG(AA11))/LOG(2)))) -> 0 | AD11: =N11 -> 211 | AE11: =COUNTIF(L68:L98,AD11) -> 0 | AF11: =AE11/(AG4-AE10) -> 0 | AG11: =IF(AF11=0,0,(AF11*((LOG(AF11))/LOG(2)))) -> 0 | AI11: =N11 -> 211 | AJ11: =COUNTIF(L99:L129,AI11) -> 0 | AK11: =AJ11/(AL4-AJ10) -> 0 | AL11: =IF(AK11=0,0,(AK11*((LOG(AK11))/LOG(2)))) -> 0 | AN11: =N11 -> 211 | AO11: =COUNTIF(L130:L159,AN11) -> 0 | AP11: =AO11/(AQ4-AO10) -> 0 | AQ11: =IF(AP11=0,0,(AP11*((LOG(AP11))/LOG(2)))) -> 0 | AS11: =N11 -> 211 | AT11: =COUNTIF(L160:L190,AS11) -> 0 | AU11: =AT11/(AV4-AT10) -> 0 | AV11: =IF(AU11=0,0,(AU11*((LOG(AU11))/LOG(2)))) -> 0
A12: 22 | B12: 607 | C12: 23 | D12: 613 | E12: 14 | F12: 622 | K12: 0 | L12: 221 | N12: 212 | O12: =COUNTIF($L$7:$L$500,N12) -> 0 | P12: =O12/$Q$4 -> 0 | Q12: =IF(P12=0,0,(P12*((LOG(P12))/LOG(2)))) -> 0 | T12: =N12 -> 212 | U12: =COUNTIF(L7:L37,T12) -> 0 | V12: =U12/(W4-U10) -> 0 | W12: =IF(V12=0,0,(V12*((LOG(V12))/LOG(2)))) -> 0 | Y12: =N12 -> 212 | Z12: =COUNTIF(L38:L67,Y12) -> 0 | AA12: =Z12/(AB4-Z10) -> 0 | AB12: =IF(AA12=0,0,(AA12*((LOG(AA12))/LOG(2)))) -> 0 | AD12: =N12 -> 212 | AE12: =COUNTIF(L68:L98,AD12) -> 0 | AF12: =AE12/(AG4-AE10) -> 0 | AG12: =IF(AF12=0,0,(AF12*((LOG(AF12))/LOG(2)))) -> 0 | AI12: =N12 -> 212 | AJ12: =COUNTIF(L99:L129,AI12) -> 0 | AK12: =AJ12/(AL4-AJ10) -> 0 | AL12: =IF(AK12=0,0,(AK12*((LOG(AK12))/LOG(2)))) -> 0 | AN12: =N12 -> 212 | AO12: =COUNTIF(L130:L159,AN12) -> 0 | AP12: =AO12/(AQ4-AO10) -> 0 | AQ12: =IF(AP12=0,0,(AP12*((LOG(AP12))/LOG(2)))) -> 0 | AS12: =N12 -> 212 | AT12: =COUNTIF(L160:L190,AS12) -> 0 | AU12: =AT12/(AV4-AT10) -> 0 | AV12: =IF(AU12=0,0,(AU12*((LOG(AU12))/LOG(2)))) -> 0
A13: 22 | B13: 722 | C13: 14 | D13: 731 | E13: 14 | F13: 741 | K13: 0 | L13: 211 | N13: 221 | O13: =COUNTIF($L$7:$L$500,N13) -> 1 | P13: =O13/$Q$4 -> 0.005434782609 | Q13: =IF(P13=0,0,(P13*((LOG(P13))/LOG(2)))) -> -0.04088892367 | T13: =N13 -> 221 | U13: =COUNTIF(L7:L37,T13) -> 1 | V13: =U13/(W4-U10) -> 0.04166666667 | W13: =IF(V13=0,0,(V13*((LOG(V13))/LOG(2)))) -> -0.1910401042 | Y13: =N13 -> 221 | Z13: =COUNTIF(L38:L67,Y13) -> 0 | AA13: =Z13/(AB4-Z10) -> 0 | AB13: =IF(AA13=0,0,(AA13*((LOG(AA13))/LOG(2)))) -> 0 | AD13: =N13 -> 221 | AE13: =COUNTIF(L68:L98,AD13) -> 0 | AF13: =AE13/(AG4-AE10) -> 0 | AG13: =IF(AF13=0,0,(AF13*((LOG(AF13))/LOG(2)))) -> 0 | AI13: =N13 -> 221 | AJ13: =COUNTIF(L99:L129,AI13) -> 0 | AK13: =AJ13/(AL4-AJ10) -> 0 | AL13: =IF(AK13=0,0,(AK13*((LOG(AK13))/LOG(2)))) -> 0 | AN13: =N13 -> 221 | AO13: =COUNTIF(L130:L159,AN13) -> 0 | AP13: =AO13/(AQ4-AO10) -> 0 | AQ13: =IF(AP13=0,0,(AP13*((LOG(AP13))/LOG(2)))) -> 0 | AS13: =N13 -> 221 | AT13: =COUNTIF(L160:L190,AS13) -> 0 | AU13: =AT13/(AV4-AT10) -> 0 | AV13: =IF(AU13=0,0,(AU13*((LOG(AU13))/LOG(2)))) -> 0
A14: 11 | B14: 841 | C14: 21 | D14: 852 | E14: 21 | F14: 854 | K14: 0 | L14: 122 | N14: 222 | O14: =COUNTIF($L$7:$L$500,N14) -> 140 | P14: =O14/$Q$4 -> 0.7608695652 | Q14: =IF(P14=0,0,(P14*((LOG(P14))/LOG(2)))) -> -0.299994845 | T14: =N14 -> 222 | U14: =COUNTIF(L7:L37,T14) -> 18 | V14: =U14/(W4-U10) -> 0.75 | W14: =IF(V14=0,0,(V14*((LOG(V14))/LOG(2)))) -> -0.3112781245 | Y14: =N14 -> 222 | Z14: =COUNTIF(L38:L67,Y14) -> 22 | AA14: =Z14/(AB4-Z10) -> 1 | AB14: =IF(AA14=0,0,(AA14*((LOG(AA14))/LOG(2)))) -> 0 | AD14: =N14 -> 222 | AE14: =COUNTIF(L68:L98,AD14) -> 24 | AF14: =AE14/(AG4-AE10) -> 0.96 | AG14: =IF(AF14=0,0,(AF14*((LOG(AF14))/LOG(2)))) -> -0.05653794149 | AI14: =N14 -> 222 | AJ14: =COUNTIF(L99:L129,AI14) -> 27 | AK14: =AJ14/(AL4-AJ10) -> 1 | AL14: =IF(AK14=0,0,(AK14*((LOG(AK14))/LOG(2)))) -> 0 | AN14: =N14 -> 222 | AO14: =COUNTIF(L130:L159,AN14) -> 21 | AP14: =AO14/(AQ4-AO10) -> 1 | AQ14: =IF(AP14=0,0,(AP14*((LOG(AP14))/LOG(2)))) -> 0 | AS14: =N14 -> 222 | AT14: =COUNTIF(L160:L190,AS14) -> 28 | AU14: =AT14/(AV4-AT10) -> 1 | AV14: =IF(AU14=0,0,(AU14*((LOG(AU14))/LOG(2)))) -> 0
A15: 22 | B15: 1032 | C15: 23 | D15: 1041 | E15: 23 | F15: 1047 | K15: 0 | L15: 222 | P15: =SUM(P7:P14) -> 1 | Q15: =-SUM(Q7:Q14) -> 0.9884584921 | V15: =SUM(V7:V14) -> 1 | W15: =-SUM(W7:W14) -> 0.9737837299 | AA15: =SUM(AA7:AA14) -> 1 | AB15: =-SUM(AB7:AB14) -> 0 | AF15: =SUM(AF7:AF14) -> 1 | AG15: =-SUM(AG7:AG14) -> 0.2422921891 | AK15: =SUM(AK7:AK14) -> 1 | AL15: =-SUM(AL7:AL14) -> 0 | AP15: =SUM(AP7:AP14) -> 1 | AQ15: =-SUM(AQ7:AQ14) -> 0 | AU15: =SUM(AU7:AU14) -> 1 | AV15: =-SUM(AV7:AV14) -> 0
A16: 11 | B16: 1149 | C16: 21 | D16: 1159 | E16: 21 | F16: 1170 | K16: 0 | L16: 122 | P16: U= | Q16: =Q15/(LOG(Q4)/LOG(2)) -> 0.1313817176 | V16: U1= | W16: =W15/(LOG(W4)/LOG(2)) -> 0.1965573564 | AA16: U2= | AB16: =AB15/(LOG(AB4)/LOG(2)) -> 0 | AF16: U3= | AG16: =AG15/(LOG(AG4)/LOG(2)) -> 0.04890645705 | AK16: U4= | AL16: =AL15/(LOG(AL4)/LOG(2)) -> 0 | AP16: U5= | AQ16: =AQ15/(LOG(AQ4)/LOG(2)) -> 0 | AU16: U6= | AV16: =AV15/(LOG(AV4)/LOG(2)) -> 0
A17: 22 | B17: 1315 | C17: 23 | D17: 1321 | E17: 23 | F17: 1327 | K17: 0 | L17: 222
A18: 22 | B18: 1450 | C18: 23 | D18: 1455 | E18: 23 | F18: 1462 | K18: 0 | L18: 222
A19: 22 | B19: 1562 | C19: 23 | D19: 1567 | E19: 23 | F19: 1573 | K19: 0 | L19: 222 | N19: Total Target Seq
A20: 22 | B20: 1677 | C20: 23 | D20: 1681 | E20: 23 | F20: 1687 | K20: 0 | L20: 222 | N20: =COUNTIF(L7:L190,G3) -> 37 | P20: 31 | Q20: 30 | R20: 31 | S20: 31 | T20: 30 | U20: 31
A21: 11 | B21: 1805 | C21: 21 | D21: 1815 | E21: 21 | F21: 1821 | K21: 0 | L21: 122 | P21: % of reinforcement given in 6 equal intervals based on number of trials
A22: 22 | B22: 2001 | C22: 23 | D22: 2009 | E22: 23 | F22: 2016 | K22: 0 | L22: 222 | P22: %_1 | Q22: %_2 | R22: %_3 | S22: %_4 | T22: %_5 | U22: %_6
A23: 22 | B23: 2119 | C23: 23 | D23: 2123 | E23: 23 | F23: 2126 | K23: 0 | L23: 222 | O23: target sequence | P23: =$G$3 -> 122 | Q23: =$G$3 -> 122 | R23: =$G$3 -> 122 | S23: =$G$3 -> 122 | T23: =$G$3 -> 122 | U23: =$G$3 -> 122
A24: 22 | B24: 2230 | C24: 23 | D24: 2233 | E24: 23 | F24: 2240 | K24: 0 | L24: 222 | O24: total reinforcement | P24: =U10 -> 7 | Q24: =Z10 -> 8 | R24: =AE10 -> 6 | S24: =AJ10 -> 4 | T24: =AO10 -> 9 | U24: =AT10 -> 3
A25: 22 | B25: 2345 | C25: 23 | D25: 2348 | E25: 23 | F25: 2351 | K25: 0 | L25: 222 | O25: % target
A26: 11 | B26: 2450 | C26: 21 | D26: 2462 | E26: 21 | F26: 2469 | K26: 0 | L26: 122 | O26: CCRF
A27: 22 | B27: 2622 | C27: 23 | D27: 2626 | E27: 23 | F27: 2637 | K27: 0 | L27: 222 | O27: % CCRf
A28: 22 | B28: 2741 | C28: 23 | D28: 2746 | E28: 23 | F28: 2752 | K28: 0 | L28: 222 | O28: average response rate | P28: =F37/P20 -> 125.9032258 | Q28: =(F67-F37)/Q20 -> 127.3333333 | R28: =(F98-F67)/R20 -> 132.6774194 | S28: =(F129-F98)/S20 -> 138.516129 | T28: =(F159-F129)/T20 -> 131.3 | U28: =(F190-F159)/U20 -> 124.2580645
A29: 11 | B29: 2848 | C29: 21 | D29: 2860 | E29: 21 | F29: 2865 | K29: 0 | L29: 122
A30: 11 | B30: 2994 | C30: 21 | D30: 3006 | E30: 21 | F30: 3011 | K30: 0 | L30: 122
A31: 22 | B31: 3182 | C31: 23 | D31: 3188 | E31: 23 | F31: 3196 | K31: 0 | L31: 222
A32: 22 | B32: 3297 | C32: 23 | D32: 3304 | E32: 23 | F32: 3309 | K32: 0 | L32: 222
A33: 22 | B33: 3412 | C33: 23 | D33: 3416 | E33: 23 | F33: 3424 | K33: 0 | L33: 222
A34: 22 | B34: 3531 | C34: 23 | D34: 3534 | E34: 23 | F34: 3542 | K34: 0 | L34: 222
A35: 22 | B35: 3646 | C35: 23 | D35: 3649 | E35: 23 | F35: 3656 | K35: 0 | L35: 222
A36: 11 | B36: 3748 | C36: 21 | D36: 3760 | E36: 21 | F36: 3763 | K36: 0 | L36: 122
A37: 22 | B37: 3884 | C37: 23 | D37: 3897 | E37: 23 | F37: 3903 | K37: 0 | L37: 222
A38: 22 | B38: 4011 | C38: 23 | D38: 4026 | E38: 23 | F38: 4034 | K38: 0 | L38: 222
A39: 22 | B39: 4150 | C39: 23 | D39: 4154 | E39: 23 | F39: 4160 | K39: 0 | L39: 222
A40: 22 | B40: 4263 | C40: 23 | D40: 4269 | E40: 23 | F40: 4275 | K40: 0 | L40: 222
A41: 22 | B41: 4378 | C41: 23 | D41: 4381 | E41: 23 | F41: 4386 | K41: 0 | L41: 222
A42: 22 | B42: 4488 | C42: 23 | D42: 4494 | E42: 23 | F42: 4502 | K42: 0 | L42: 222
A43: 22 | B43: 4626 | C43: 23 | D43: 4629 | E43: 23 | F43: 4633 | K43: 0 | L43: 222
A44: 11 | B44: 4730 | C44: 21 | D44: 4738 | E44: 21 | F44: 4743 | K44: 0 | L44: 122
A45: 11 | B45: 4873 | C45: 21 | D45: 4895 | E45: 21 | F45: 4898 | K45: 0 | L45: 122
A46: 11 | B46: 5042 | C46: 21 | D46: 5053 | E46: 21 | F46: 5065 | K46: 0 | L46: 122
A47: 22 | B47: 5216 | C47: 23 | D47: 5227 | E47: 23 | F47: 5235 | K47: 0 | L47: 222
A48: 22 | B48: 5336 | C48: 23 | D48: 5340 | E48: 23 | F48: 5347 | K48: 0 | L48: 222
A49: 22 | B49: 5454 | C49: 23 | D49: 5462 | E49: 23 | F49: 5470 | K49: 0 | L49: 222
A50: 22 | B50: 5576 | C50: 23 | D50: 5579 | E50: 23 | F50: 5583 | K50: 0 | L50: 222
A51: 22 | B51: 5688 | C51: 23 | D51: 5697 | E51: 23 | F51: 5704 | K51: 0 | L51: 222
A52: 11 | B52: 5796 | C52: 21 | D52: 5806 | E52: 21 | F52: 5810 | K52: 0 | L52: 122
A53: 22 | B53: 5926 | C53: 23 | D53: 5929 | E53: 23 | F53: 5937 | K53: 0 | L53: 222
A54: 22 | B54: 6042 | C54: 23 | D54: 6046 | E54: 23 | F54: 6052 | K54: 0 | L54: 222
A55: 11 | B55: 6147 | C55: 21 | D55: 6158 | E55: 21 | F55: 6162 | K55: 0 | L55: 122
A56: 11 | B56: 6293 | C56: 21 | D56: 6308 | E56: 21 | F56: 6315 | K56: 0 | L56: 122
A57: 11 | B57: 6435 | C57: 21 | D57: 6445 | E57: 21 | F57: 6450 | K57: 0 | L57: 122
A58: 22 | B58: 6648 | C58: 23 | D58: 6655 | E58: 23 | F58: 6664 | K58: 0 | L58: 222
A59: 22 | B59: 6770 | C59: 23 | D59: 6773 | E59: 23 | F59: 6780 | K59: 0 | L59: 222
A60: 22 | B60: 6884 | C60: 23 | D60: 6888 | E60: 23 | F60: 6901 | K60: 0 | L60: 222
A61: 22 | B61: 7011 | C61: 23 | D61: 7014 | E61: 23 | F61: 7020 | K61: 0 | L61: 222
A62: 22 | B62: 7120 | C62: 23 | D62: 7125 | E62: 23 | F62: 7132 | K62: 0 | L62: 222
A63: 22 | B63: 7236 | C63: 23 | D63: 7240 | E63: 23 | F63: 7248 | K63: 0 | L63: 222
A64: 22 | B64: 7358 | C64: 23 | D64: 7362 | E64: 23 | F64: 7366 | K64: 0 | L64: 222
A65: 22 | B65: 7471 | C65: 23 | D65: 7475 | E65: 23 | F65: 7489 | K65: 0 | L65: 222
A66: 11 | B66: 7587 | C66: 21 | D66: 7596 | E66: 21 | F66: 7601 | K66: 0 | L66: 122
A67: 22 | B67: 7710 | C67: 23 | D67: 7714 | E67: 23 | F67: 7723 | K67: 0 | L67: 222
A68: 22 | B68: 7831 | C68: 23 | D68: 7835 | E68: 23 | F68: 7843 | K68: 0 | L68: 222
A69: 22 | B69: 7947 | C69: 23 | D69: 7956 | E69: 23 | F69: 7964 | K69: 0 | L69: 222
A70: 11 | B70: 8056 | C70: 21 | D70: 8070 | E70: 21 | F70: 8077 | K70: 0 | L70: 122
A71: 22 | B71: 8231 | C71: 23 | D71: 8240 | E71: 23 | F71: 8248 | K71: 0 | L71: 222
A72: 22 | B72: 8352 | C72: 23 | D72: 8360 | E72: 23 | F72: 8368 | K72: 0 | L72: 222
A73: 11 | B73: 8513 | C73: 21 | D73: 8526 | E73: 21 | F73: 8532 | K73: 0 | L73: 122
A74: 22 | B74: 8697 | C74: 23 | D74: 8703 | E74: 23 | F74: 8710 | K74: 0 | L74: 222
A75: 22 | B75: 8820 | C75: 23 | D75: 8824 | E75: 23 | F75: 8830 | K75: 0 | L75: 222
A76: 22 | B76: 8935 | C76: 23 | D76: 8939 | E76: 23 | F76: 8947 | K76: 0 | L76: 222
A77: 22 | B77: 9053 | C77: 23 | D77: 9056 | E77: 23 | F77: 9061 | K77: 0 | L77: 222
A78: 22 | B78: 9169 | C78: 23 | D78: 9175 | E78: 23 | F78: 9184 | K78: 0 | L78: 222
A79: 22 | B79: 9287 | C79: 23 | D79: 9290 | E79: 23 | F79: 9298 | K79: 0 | L79: 222
A80: 22 | B80: 9401 | C80: 23 | D80: 9405 | E80: 23 | F80: 9413 | K80: 0 | L80: 222
A81: 11 | B81: 9508 | C81: 21 | D81: 9517 | E81: 21 | F81: 9521 | K81: 0 | L81: 122
A82: 22 | B82: 9680 | C82: 23 | D82: 9690 | E82: 23 | F82: 9698 | K82: 0 | L82: 222
A83: 11 | B83: 9797 | C83: 21 | D83: 9806 | E83: 21 | F83: 9810 | K83: 0 | L83: 122
A84: 22 | B84: 9999 | C84: 23 | D84: 10003 | E84: 23 | F84: 10015 | K84: 0 | L84: 222
A85: 11 | B85: 10107 | C85: 21 | D85: 10116 | E85: 21 | F85: 10120 | K85: 0 | L85: 122
A86: 22 | B86: 10280 | C86: 23 | D86: 10285 | E86: 23 | F86: 10289 | K86: 0 | L86: 222
A87: 22 | B87: 10393 | C87: 23 | D87: 10397 | E87: 23 | F87: 10406 | K87: 0 | L87: 222
A88: 11 | B88: 10538 | C88: 12 | D88: 10543 | E88: 23 | F88: 10556 | K88: 0 | L88: 112
A89: 22 | B89: 10662 | C89: 23 | D89: 10665 | E89: 23 | F89: 10673 | K89: 0 | L89: 222
A90: 22 | B90: 10780 | C90: 23 | D90: 10792 | E90: 23 | F90: 10801 | K90: 0 | L90: 222
A91: 22 | B91: 10909 | C91: 23 | D91: 10920 | E91: 23 | F91: 10929 | K91: 0 | L91: 222
A92: 22 | B92: 11059 | C92: 23 | D92: 11063 | E92: 23 | F92: 11068 | K92: 0 | L92: 222
A93: 22 | B93: 11174 | C93: 23 | D93: 11178 | E93: 23 | F93: 11189 | K93: 0 | L93: 222
A94: 11 | B94: 11285 | C94: 21 | D94: 11294 | E94: 21 | F94: 11297 | K94: 0 | L94: 122
A95: 22 | B95: 11454 | C95: 23 | D95: 11459 | E95: 23 | F95: 11466 | K95: 0 | L95: 222
A96: 22 | B96: 11571 | C96: 23 | D96: 11574 | E96: 23 | F96: 11581 | K96: 0 | L96: 222
A97: 22 | B97: 11684 | C97: 23 | D97: 11689 | E97: 23 | F97: 11706 | K97: 0 | L97: 222
A98: 22 | B98: 11814 | C98: 23 | D98: 11824 | E98: 23 | F98: 11836 | K98: 0 | L98: 222
A99: 22 | B99: 11939 | C99: 23 | D99: 11942 | E99: 23 | F99: 11946 | K99: 0 | L99: 222
A100: 22 | B100: 12051 | C100: 23 | D100: 12056 | E100: 23 | F100: 12062 | K100: 0 | L100: 222
A101: 22 | B101: 12170 | C101: 23 | D101: 12176 | E101: 23 | F101: 12183 | K101: 0 | L101: 222
A102: 22 | B102: 12341 | C102: 23 | D102: 12346 | E102: 23 | F102: 12352 | K102: 0 | L102: 222
A103: 22 | B103: 12455 | C103: 23 | D103: 12458 | E103: 23 | F103: 12465 | K103: 0 | L103: 222
A104: 22 | B104: 12572 | C104: 23 | D104: 12575 | E104: 23 | F104: 12581 | K104: 0 | L104: 222
A105: 22 | B105: 12687 | C105: 23 | D105: 12699 | E105: 23 | F105: 12706 | K105: 0 | L105: 222
A106: 22 | B106: 12816 | C106: 23 | D106: 12830 | E106: 23 | F106: 12837 | K106: 0 | L106: 222
A107: 11 | B107: 12936 | C107: 21 | D107: 12949 | E107: 21 | F107: 12955 | K107: 0 | L107: 122
A108: 22 | B108: 13112 | C108: 23 | D108: 13122 | E108: 23 | F108: 13130 | K108: 0 | L108: 222
A109: 22 | B109: 13234 | C109: 23 | D109: 13238 | E109: 23 | F109: 13246 | K109: 0 | L109: 222
A110: 22 | B110: 13351 | C110: 23 | D110: 13355 | E110: 23 | F110: 13359 | K110: 0 | L110: 222
A111: 22 | B111: 13470 | C111: 23 | D111: 13482 | E111: 23 | F111: 13489 | K111: 0 | L111: 222
A112: 11 | B112: 13584 | C112: 21 | D112: 13599 | E112: 21 | F112: 13630 | K112: 0 | L112: 122
A113: 22 | B113: 13833 | C113: 23 | D113: 13843 | E113: 23 | F113: 13851 | K113: 0 | L113: 222
A114: 22 | B114: 13954 | C114: 23 | D114: 13957 | E114: 23 | F114: 13961 | K114: 0 | L114: 222
A115: 22 | B115: 14068 | C115: 23 | D115: 14072 | E115: 23 | F115: 14081 | K115: 0 | L115: 222
A116: 22 | B116: 14184 | C116: 23 | D116: 14188 | E116: 23 | F116: 14203 | K116: 0 | L116: 222
A117: 11 | B117: 14299 | C117: 21 | D117: 14313 | E117: 21 | F117: 14325 | K117: 0 | L117: 122
A118: 22 | B118: 14481 | C118: 23 | D118: 14485 | E118: 23 | F118: 14491 | K118: 0 | L118: 222
A119: 22 | B119: 14591 | C119: 23 | D119: 14596 | E119: 23 | F119: 14608 | K119: 0 | L119: 222
A120: 22 | B120: 14711 | C120: 23 | D120: 14714 | E120: 23 | F120: 14720 | K120: 0 | L120: 222
A121: 22 | B121: 14821 | C121: 23 | D121: 14826 | E121: 23 | F121: 14830 | K121: 0 | L121: 222
A122: 22 | B122: 14934 | C122: 23 | D122: 14937 | E122: 23 | F122: 14949 | K122: 0 | L122: 222
A123: 22 | B123: 15055 | C123: 23 | D123: 15059 | E123: 23 | F123: 15067 | K123: 0 | L123: 222
A124: 22 | B124: 15172 | C124: 23 | D124: 15178 | E124: 23 | F124: 15187 | K124: 0 | L124: 222
A125: 11 | B125: 15509 | C125: 21 | D125: 15521 | E125: 21 | F125: 15531 | K125: 0 | L125: 122
A126: 22 | B126: 15718 | C126: 23 | D126: 15731 | E126: 23 | F126: 15738 | K126: 0 | L126: 222
A127: 22 | B127: 15842 | C127: 23 | D127: 15846 | E127: 23 | F127: 15858 | K127: 0 | L127: 222
A128: 22 | B128: 15990 | C128: 23 | D128: 15994 | E128: 23 | F128: 16006 | K128: 0 | L128: 222
A129: 22 | B129: 16111 | C129: 23 | D129: 16117 | E129: 23 | F129: 16130 | K129: 0 | L129: 222
A130: 22 | B130: 16237 | C130: 23 | D130: 16243 | E130: 23 | F130: 16250 | K130: 0 | L130: 222
A131: 22 | B131: 16356 | C131: 23 | D131: 16359 | E131: 23 | F131: 16365 | K131: 0 | L131: 222
A132: 11 | B132: 16462 | C132: 21 | D132: 16475 | E132: 21 | F132: 16486 | K132: 0 | L132: 122
A133: 22 | B133: 16639 | C133: 23 | D133: 16651 | E133: 23 | F133: 16659 | K133: 0 | L133: 222
A134: 22 | B134: 16770 | C134: 23 | D134: 16781 | E134: 23 | F134: 16788 | K134: 0 | L134: 222
A135: 22 | B135: 16897 | C135: 23 | D135: 16901 | E135: 23 | F135: 16909 | K135: 0 | L135: 222
A136: 22 | B136: 17009 | C136: 23 | D136: 17013 | E136: 23 | F136: 17025 | K136: 0 | L136: 222
A137: 22 | B137: 17128 | C137: 23 | D137: 17132 | E137: 23 | F137: 17143 | K137: 0 | L137: 222
A138: 22 | B138: 17251 | C138: 23 | D138: 17254 | E138: 23 | F138: 17259 | K138: 0 | L138: 222
A139: 22 | B139: 17363 | C139: 23 | D139: 17366 | E139: 23 | F139: 17370 | K139: 0 | L139: 222
A140: 11 | B140: 17463 | C140: 21 | D140: 17474 | E140: 21 | F140: 17483 | K140: 0 | L140: 122
A141: 22 | B141: 17641 | C141: 23 | D141: 17646 | E141: 23 | F141: 17658 | K141: 0 | L141: 222
A142: 22 | B142: 17761 | C142: 23 | D142: 17765 | E142: 23 | F142: 17771 | K142: 0 | L142: 222
A143: 22 | B143: 17874 | C143: 23 | D143: 17878 | E143: 23 | F143: 17886 | K143: 0 | L143: 222
A144: 22 | B144: 17990 | C144: 23 | D144: 17994 | E144: 23 | F144: 18002 | K144: 0 | L144: 222
A145: 11 | B145: 18094 | C145: 21 | D145: 18105 | E145: 21 | F145: 18108 | K145: 0 | L145: 122
A146: 22 | B146: 18268 | C146: 23 | D146: 18276 | E146: 23 | F146: 18282 | K146: 0 | L146: 222
A147: 22 | B147: 18387 | C147: 23 | D147: 18404 | E147: 23 | F147: 18411 | K147: 0 | L147: 222
A148: 22 | B148: 18516 | C148: 23 | D148: 18523 | E148: 23 | F148: 18539 | K148: 0 | L148: 222
A149: 22 | B149: 18646 | C149: 23 | D149: 18650 | E149: 23 | F149: 18656 | K149: 0 | L149: 222
A150: 11 | B150: 18752 | C150: 21 | D150: 18765 | E150: 21 | F150: 18776 | K150: 0 | L150: 122
A151: 22 | B151: 18921 | C151: 23 | D151: 18928 | E151: 23 | F151: 18934 | K151: 0 | L151: 222
A152: 11 | B152: 19027 | C152: 21 | D152: 19039 | E152: 21 | F152: 19048 | K152: 0 | L152: 122
A153: 11 | B153: 19176 | C153: 21 | D153: 19189 | E153: 21 | F153: 19193 | K153: 0 | L153: 122
A154: 22 | B154: 19374 | C154: 23 | D154: 19378 | E154: 23 | F154: 19383 | K154: 0 | L154: 222
A155: 11 | B155: 19481 | C155: 21 | D155: 19491 | E155: 21 | F155: 19497 | K155: 0 | L155: 122
A156: 11 | B156: 19616 | C156: 21 | D156: 19626 | E156: 21 | F156: 19629 | K156: 0 | L156: 122
A157: 11 | B157: 19769 | C157: 21 | D157: 19782 | E157: 21 | F157: 19787 | K157: 0 | L157: 122
A158: 22 | B158: 19942 | C158: 23 | D158: 19952 | E158: 23 | F158: 19958 | K158: 0 | L158: 222
A159: 22 | B159: 20062 | C159: 23 | D159: 20065 | E159: 23 | F159: 20069 | K159: 0 | L159: 222
A160: 11 | B160: 20165 | C160: 21 | D160: 20176 | E160: 21 | F160: 20179 | K160: 0 | L160: 122
A161: 22 | B161: 20331 | C161: 23 | D161: 20335 | E161: 23 | F161: 20347 | K161: 0 | L161: 222
A162: 22 | B162: 20450 | C162: 23 | D162: 20454 | E162: 23 | F162: 20462 | K162: 0 | L162: 222
A163: 22 | B163: 20568 | C163: 23 | D163: 20571 | E163: 23 | F163: 20575 | K163: 0 | L163: 222
A164: 11 | B164: 20667 | C164: 21 | D164: 20679 | E164: 21 | F164: 20684 | K164: 0 | L164: 122
A165: 22 | B165: 20830 | C165: 23 | D165: 20836 | E165: 23 | F165: 20848 | K165: 0 | L165: 222
A166: 22 | B166: 20949 | C166: 23 | D166: 20962 | E166: 23 | F166: 20970 | K166: 0 | L166: 222
A167: 22 | B167: 21074 | C167: 23 | D167: 21078 | E167: 23 | F167: 21090 | K167: 0 | L167: 222
A168: 22 | B168: 21200 | C168: 23 | D168: 21204 | E168: 23 | F168: 21210 | K168: 0 | L168: 222
A169: 22 | B169: 21312 | C169: 23 | D169: 21315 | E169: 23 | F169: 21319 | K169: 0 | L169: 222
A170: 22 | B170: 21429 | C170: 23 | D170: 21437 | E170: 23 | F170: 21447 | K170: 0 | L170: 222
A171: 22 | B171: 21548 | C171: 23 | D171: 21555 | E171: 23 | F171: 21562 | K171: 0 | L171: 222
A172: 22 | B172: 21667 | C172: 23 | D172: 21670 | E172: 23 | F172: 21674 | K172: 0 | L172: 222
A173: 11 | B173: 21770 | C173: 21 | D173: 21794 | E173: 21 | F173: 21801 | K173: 0 | L173: 122
A174: 22 | B174: 21963 | C174: 23 | D174: 21968 | E174: 23 | F174: 21979 | K174: 0 | L174: 222
A175: 22 | B175: 22085 | C175: 23 | D175: 22089 | E175: 23 | F175: 22096 | K175: 0 | L175: 222
A176: 22 | B176: 22191 | C176: 23 | D176: 22196 | E176: 23 | F176: 22202 | K176: 0 | L176: 222
A177: 22 | B177: 22308 | C177: 23 | D177: 22312 | E177: 23 | F177: 22315 | K177: 0 | L177: 222
A178: 22 | B178: 22438 | C178: 23 | D178: 22442 | E178: 23 | F178: 22451 | K178: 0 | L178: 222
A179: 22 | B179: 22563 | C179: 23 | D179: 22568 | E179: 23 | F179: 22574 | K179: 0 | L179: 222
A180: 22 | B180: 22681 | C180: 23 | D180: 22686 | E180: 23 | F180: 22690 | K180: 0 | L180: 222
A181: 22 | B181: 22796 | C181: 23 | D181: 22800 | E181: 23 | F181: 22803 | K181: 0 | L181: 222
A182: 22 | B182: 22912 | C182: 23 | D182: 22918 | E182: 23 | F182: 22929 | K182: 0 | L182: 222
A183: 22 | B183: 23034 | C183: 23 | D183: 23038 | E183: 23 | F183: 23041 | K183: 0 | L183: 222
A184: 22 | B184: 23146 | C184: 23 | D184: 23150 | E184: 23 | F184: 23154 | K184: 0 | L184: 222
A185: 22 | B185: 23263 | C185: 23 | D185: 23267 | E185: 23 | F185: 23277 | K185: 0 | L185: 222
A186: 22 | B186: 23381 | C186: 23 | D186: 23392 | E186: 23 | F186: 23399 | K186: 0 | L186: 222
A187: 22 | B187: 23507 | C187: 23 | D187: 23513 | E187: 23 | F187: 23519 | K187: 0 | L187: 222
A188: 22 | B188: 23629 | C188: 23 | D188: 23634 | E188: 23 | F188: 23639 | K188: 0 | L188: 222
A189: 22 | B189: 23793 | C189: 23 | D189: 23799 | E189: 23 | F189: 23811 | K189: 0 | L189: 222
A190: 22 | B190: 23913 | C190: 23 | D190: 23916 | E190: 23 | F190: 23921 | L190: 222

Sheet !LA08A02..Is
A1: Report for:!LA08A02..Is
A2: Date: | B2: <date>
A3: Hen: | B3: <hen> | F3: Correct Sequence | G3: =Start!J2 -> 122 | P3: Total Sequences in Data | Q3: =4994-COUNTBLANK(L7:L5000) -> 187 | V3: Total Sequences in Block Data | W3: =COUNTA(L7:L37) -> 31 | AA3: Total Sequences in Block Data | AB3: =COUNTA(L38:L68) -> 31 | AF3: Total Sequences in Block Data | AG3: =COUNTA(L69:L100) -> 32 | AK3: Total Sequences in Block Data | AL3: =COUNTA(L101:L131) -> 31 | AP3: Total Sequences in Block Data | AQ3: =COUNTA(L132:L162) -> 31 | AU3: Total Sequences in Block Data | AV3: =COUNTA(L163:L193) -> 31
P4: Total Sequences in Summary | Q4: =SUM(O7:O14) -> 187 | V4: Total Sequences in Block Summary | W4: =SUM(U7:U14) -> 31 | AA4: Total Sequences in Block Summary | AB4: =SUM(Z7:Z14) -> 31 | AF4: Total Sequences in Block Summary | AG4: =SUM(AE7:AE14) -> 32 | AK4: Total Sequences in Block Summary | AL4: =SUM(AJ7:AJ14) -> 31 | AP4: Total Sequences in Block Summary | AQ4: =SUM(AO7:AO14) -> 31 | AU4: Total Sequences in Block Summary | AV4: =SUM(AT7:AT14) -> 31
T5: Block 1 | Y5: Block 2 | AD5: Block 3 | AI5: Block 4 | AN5: Block 5 | AS5: Block 6
A6: Sequence Component 1 | B6: Time 1 | C6: Sequence Component 2 | D6: Time 2 | E6: Sequence Component 3 | F6: Time 3 | G6: Sequence Component 4 | H6: Time 4 | I6: Sequence Component 5 | J6: Time 5 | K6: Correct? 0=No 1=Yes | L6: Sequence | N6: Frequency | P6: Relative Frequency | Q6: Variability | T6: Frequency | V6: Relative Frequency | W6: Variability | Y6: Frequency | AA6: Relative Frequency | AB6: Variability | AD6: Frequency | AF6: Relative Frequency | AG6: Variability | AI6: Frequency | AK6: Relative Frequency | AL6: Variability | AN6: Frequency | AP6: Relative Frequency | AQ6: Variability | AS6: Frequency | AU6: Relative Frequency | AV6: Variability
A7: 22 | B7: 13 | C7: 23 | D7: 19 | E7: 23 | F7: 24 | K7: 0 | L7: 222 | N7: 111 | O7: =COUNTIF($L$7:$L$500,N7) -> 0 | P7: =O7/$Q$4 -> 0 | Q7: =IF(P7=0,0,(P7*((LOG(P7))/LOG(2)))) -> 0 | T7: =N7 -> 111 | U7: =COUNTIF(L7:L37,T7) -> 0 | V7: =U7/(W4-U10) -> 0 | W7: =IF(V7=0,0,(V7*((LOG(V7))/LOG(2)))) -> 0 | Y7: =N7 -> 111 | Z7: =COUNTIF(L38:L68,Y7) -> 0 | AA7: =Z7/(AB4-Z10) -> 0 | AB7: =IF(AA7=0,0,(AA7*((LOG(AA7))/LOG(2)))) -> 0 | AD7: =N7 -> 111 | AE7: =COUNTIF(L69:L100,AD7) -> 0 | AF7: =AE7/(AG4-AE10) -> 0 | AG7: =IF(AF7=0,0,(AF7*((LOG(AF7))/LOG(2)))) -> 0 | AI7: =N7 -> 111 | AJ7: =COUNTIF(L101:L131,AI7) -> 0 | AK7: =AJ7/(AL4-AJ10) -> 0 | AL7: =IF(AK7=0,0,(AK7*((LOG(AK7))/LOG(2)))) -> 0 | AN7: =N7 -> 111 | AO7: =COUNTIF(L132:L162,AN7) -> 0 | AP7: =AO7/(AQ4-AO10) -> 0 | AQ7: =IF(AP7=0,0,(AP7*((LOG(AP7))/LOG(2)))) -> 0 | AS7: =N7 -> 111 | AT7: =COUNTIF(L163:L193,AS7) -> 0 | AU7: =AT7/(AV4-AT10) -> 0 | AV7: =IF(AU7=0,0,(AU7*((LOG(AU7))/LOG(2)))) -> 0
A8: 22 | B8: 128 | C8: 14 | D8: 136 | E8: 23 | F8: 150 | K8: 0 | L8: 212 | N8: 112 | O8: =COUNTIF($L$7:$L$500,N8) -> 0 | P8: =O8/$Q$4 -> 0 | Q8: =IF(P8=0,0,(P8*((LOG(P8))/LOG(2)))) -> 0 | T8: =N8 -> 112 | U8: =COUNTIF(L7:L37,T8) -> 0 | V8: =U8/(W4-U10) -> 0 | W8: =IF(V8=0,0,(V8*((LOG(V8))/LOG(2)))) -> 0 | Y8: =N8 -> 112 | Z8: =COUNTIF(L38:L68,Y8) -> 0 | AA8: =Z8/(AB4-Z10) -> 0 | AB8: =IF(AA8=0,0,(AA8*((LOG(AA8))/LOG(2)))) -> 0 | AD8: =N8 -> 112 | AE8: =COUNTIF(L69:L100,AD8) -> 0 | AF8: =AE8/(AG4-AE10) -> 0 | AG8: =IF(AF8=0,0,(AF8*((LOG(AF8))/LOG(2)))) -> 0 | AI8: =N8 -> 112 | AJ8: =COUNTIF(L101:L131,AI8) -> 0 | AK8: =AJ8/(AL4-AJ10) -> 0 | AL8: =IF(AK8=0,0,(AK8*((LOG(AK8))/LOG(2)))) -> 0 | AN8: =N8 -> 112 | AO8: =COUNTIF(L132:L162,AN8) -> 0 | AP8: =AO8/(AQ4-AO10) -> 0 | AQ8: =IF(AP8=0,0,(AP8*((LOG(AP8))/LOG(2)))) -> 0 | AS8: =N8 -> 112 | AT8: =COUNTIF(L163:L193,AS8) -> 0 | AU8: =AT8/(AV4-AT10) -> 0 | AV8: =IF(AU8=0,0,(AU8*((LOG(AU8))/LOG(2)))) -> 0
A9: 11 | B9: 266 | C9: 21 | D9: 274 | E9: 21 | F9: 278 | K9: 0 | L9: 122 | N9: 121 | O9: =COUNTIF($L$7:$L$500,N9) -> 0 | P9: =O9/$Q$4 -> 0 | Q9: =IF(P9=0,0,(P9*((LOG(P9))/LOG(2)))) -> 0 | T9: =N9 -> 121 | U9: =COUNTIF(L7:L37,T9) -> 0 | V9: =U9/(W4-U10) -> 0 | W9: =IF(V9=0,0,(V9*((LOG(V9))/LOG(2)))) -> 0 | Y9: =N9 -> 121 | Z9: =COUNTIF(L38:L68,Y9) -> 0 | AA9: =Z9/(AB4-Z10) -> 0 | AB9: =IF(AA9=0,0,(AA9*((LOG(AA9))/LOG(2)))) -> 0 | AD9: =N9 -> 121 | AE9: =COUNTIF(L69:L100,AD9) -> 0 | AF9: =AE9/(AG4-AE10) -> 0 | AG9: =IF(AF9=0,0,(AF9*((LOG(AF9))/LOG(2)))) -> 0 | AI9: =N9 -> 121 | AJ9: =COUNTIF(L101:L131,AI9) -> 0 | AK9: =AJ9/(AL4-AJ10) -> 0 | AL9: =IF(AK9=0,0,(AK9*((LOG(AK9))/LOG(2)))) -> 0 | AN9: =N9 -> 121 | AO9: =COUNTIF(L132:L162,AN9) -> 0 | AP9: =AO9/(AQ4-AO10) -> 0 | AQ9: =IF(AP9=0,0,(AP9*((LOG(AP9))/LOG(2)))) -> 0 | AS9: =N9 -> 121 | AT9: =COUNTIF(L163:L193,AS9) -> 0 | AU9: =AT9/(AV4-AT10) -> 0 | AV9: =IF(AU9=0,0,(AU9*((LOG(AU9))/LOG(2)))) -> 0
A10: 22 | B10: 484 | C10: 23 | D10: 490 | E10: 23 | F10: 497 | K10: 0 | L10: 222 | N10: 122 | O10: =COUNTIF($L$7:$L$500,N10) -> 31 | P10: =O10/$Q$4 -> 0.1657754011 | Q10: =IF(P10=0,0,(P10*((LOG(P10))/LOG(2)))) -> -0.4298055756 | T10: =N10 -> 122 | U10: =COUNTIF(L7:L37,T10) -> 7 | Y10: =N10 -> 122 | Z10: =COUNTIF(L38:L68,Y10) -> 4 | AD10: =N10 -> 122 | AE10: =COUNTIF(L69:L100,AD10) -> 3 | AI10: =N10 -> 122 | AJ10: =COUNTIF(L101:L131,AI10) -> 8 | AN10: =N10 -> 122 | AO10: =COUNTIF(L132:L162,AN10) -> 5 | AS10: =N10 -> 122 | AT10: =COUNTIF(L163:L193,AS10) -> 4
A11: 22 | B11: 604 | C11: 23 | D11: 613 | E11: 23 | F11: 618 | K11: 0 | L11: 222 | N11: 211 | O11: =COUNTIF($L$7:$L$500,N11) -> 0 | P11: =O11/$Q$4 -> 0 | Q11: =IF(P11=0,0,(P11*((LOG(P11))/LOG(2)))) -> 0 | T11: =N11 -> 211 | U11: =COUNTIF(L7:L37,T11) -> 0 | V11: =U11/(W4-U10) -> 0 | W11: =IF(V11=0,0,(V11*((LOG(V11))/LOG(2)))) -> 0 | Y11: =N11 -> 211 | Z11: =COUNTIF(L38:L68,Y11) -> 0 | AA11: =Z11/(AB4-Z10) -> 0 | AB11: =IF(AA11=0,0,(AA11*((LOG(AA11))/LOG(2)))) -> 0 | AD11: =N11 -> 211 | AE11: =COUNTIF(L69:L100,AD11) -> 0 | AF11: =AE11/(AG4-AE10) -> 0 | AG11: =IF(AF11=0,0,(AF11*((LOG(AF11))/LOG(2)))) -> 0 | AI11: =N11 -> 211 | AJ11: =COUNTIF(L101:L131,AI11) -> 0 | AK11: =AJ11/(AL4-AJ10) -> 0 | AL11: =IF(AK11=0,0,(AK11*((LOG(AK11))/LOG(2)))) -> 0 | AN11: =N11 -> 211 | AO11: =COUNTIF(L132:L162,AN11) -> 0 | AP11: =AO11/(AQ4-AO10) -> 0 | AQ11: =IF(AP11=0,0,(AP11*((LOG(AP11))/LOG(2)))) -> 0 | AS11: =N11 -> 211 | AT11: =COUNTIF(L163:L193,AS11) -> 0 | AU11: =AT11/(AV4-AT10) -> 0 | AV11: =IF(AU11=0,0,(AU11*((LOG(AU11))/LOG(2)))) -> 0
A12: 22 | B12: 720 | C12: 23 | D12: 723 | E12: 23 | F12: 727 | K12: 0 | L12: 222 | N12: 212 | O12: =COUNTIF($L$7:$L$500,N12) -> 1 | P12: =O12/$Q$4 -> 0.005347593583 | Q12: =IF(P12=0,0,(P12*((LOG(P12))/LOG(2)))) -> -0.04035772438 | T12: =N12 -> 212 | U12: =COUNTIF(L7:L37,T12) -> 1 | V12: =U12/(W4-U10) -> 0.04166666667 | W12: =IF(V12=0,0,(V12*((LOG(V12))/LOG(2)))) -> -0.1910401042 | Y12: =N12 -> 212 | Z12: =COUNTIF(L38:L68,Y12) -> 0 | AA12: =Z12/(AB4-Z10) -> 0 | AB12: =IF(AA12=0,0,(AA12*((LOG(AA12))/LOG(2)))) -> 0 | AD12: =N12 -> 212 | AE12: =COUNTIF(L69:L100,AD12) -> 0 | AF12: =AE12/(AG4-AE10) -> 0 | AG12: =IF(AF12=0,0,(AF12*((LOG(AF12))/LOG(2)))) -> 0 | AI12: =N12 -> 212 | AJ12: =COUNTIF(L101:L131,AI12) -> 0 | AK12: =AJ12/(AL4-AJ10) -> 0 | AL12: =IF(AK12=0,0,(AK12*((LOG(AK12))/LOG(2)))) -> 0 | AN12: =N12 -> 212 | AO12: =COUNTIF(L132:L162,AN12) -> 0 | AP12: =AO12/(AQ4-AO10) -> 0 | AQ12: =IF(AP12=0,0,(AP12*((LOG(AP12))/LOG(2)))) -> 0 | AS12: =N12 -> 212 | AT12: =COUNTIF(L163:L193,AS12) -> 0 | AU12: =AT12/(AV4-AT10) -> 0 | AV12: =IF(AU12=0,0,(AU12*((LOG(AU12))/LOG(2)))) -> 0
A13: 22 | B13: 832 | C13: 23 | D13: 835 | E13: 23 | F13: 845 | K13: 0 | L13: 222 | N13: 221 | O13: =COUNTIF($L$7:$L$500,N13) -> 0 | P13: =O13/$Q$4 -> 0 | Q13: =IF(P13=0,0,(P13*((LOG(P13))/LOG(2)))) -> 0 | T13: =N13 -> 221 | U13: =COUNTIF(L7:L37,T13) -> 0 | V13: =U13/(W4-U10) -> 0 | W13: =IF(V13=0,0,(V13*((LOG(V13))/LOG(2)))) -> 0 | Y13: =N13 -> 221 | Z13: =COUNTIF(L38:L68,Y13) -> 0 | AA13: =Z13/(AB4-Z10) -> 0 | AB13: =IF(AA13=0,0,(AA13*((LOG(AA13))/LOG(2)))) -> 0 | AD13: =N13 -> 221 | AE13: =COUNTIF(L69:L100,AD13) -> 0 | AF13: =AE13/(AG4-AE10) -> 0 | AG13: =IF(AF13=0,0,(AF13*((LOG(AF13))/LOG(2)))) -> 0 | AI13: =N13 -> 221 | AJ13: =COUNTIF(L101:L131,AI13) -> 0 | AK13: =AJ13/(AL4-AJ10) -> 0 | AL13: =IF(AK13=0,0,(AK13*((LOG(AK13))/LOG(2)))) -> 0 | AN13: =N13 -> 221 | AO13: =COUNTIF(L132:L162,AN13) -> 0 | AP13: =AO13/(AQ4-AO10) -> 0 | AQ13: =IF(AP13=0,0,(AP13*((LOG(AP13))/LOG(2)))) -> 0 | AS13: =N13 -> 221 | AT13: =COUNTIF(L163:L193,AS13) -> 0 | AU13: =AT13/(AV4-AT10) -> 0 | AV13: =IF(AU13=0,0,(AU13*((LOG(AU13))/LOG(2)))) -> 0
A14: 22 | B14: 953 | C14: 23 | D14: 957 | E14: 23 | F14: 964 | K14: 0 | L14: 222 | N14: 222 | O14: =COUNTIF($L$7:$L$500,N14) -> 155 | P14: =O14/$Q$4 -> 0.8288770053 | Q14: =IF(P14=0,0,(P14*((LOG(P14))/LOG(2)))) -> -0.224435072 | T14: =N14 -> 222 | U14: =COUNTIF(L7:L37,T14) -> 23 | V14: =U14/(W4-U10) -> 0.9583333333 | W14: =IF(V14=0,0,(V14*((LOG(V14))/LOG(2)))) -> -0.05884218864 | Y14: =N14 -> 222 | Z14: =COUNTIF(L38:L68,Y14) -> 27 | AA14: =Z14/(AB4-Z10) -> 1 | AB14: =IF(AA14=0,0,(AA14*((LOG(AA14))/LOG(2)))) -> 0 | AD14: =N14 -> 222 | AE14: =COUNTIF(L69:L100,AD14) -> 29 | AF14: =AE14/(AG4-AE10) -> 1 | AG14: =IF(AF14=0,0,(AF14*((LOG(AF14))/LOG(2)))) -> 0 | AI14: =N14 -> 222 | AJ14: =COUNTIF(L101:L131,AI14) -> 23 | AK14: =AJ14/(AL4-AJ10) -> 1 | AL14: =IF(AK14=0,0,(AK14*((LOG(AK14))/LOG(2)))) -> 0 | AN14: =N14 -> 222 | AO14: =COUNTIF(L132:L162,AN14) -> 26 | AP14: =AO14/(AQ4-AO10) -> 1 | AQ14: =IF(AP14=0,0,(AP14*((LOG(AP14))/LOG(2)))) -> 0 | AS14: =N14 -> 222 | AT14: =COUNTIF(L163:L193,AS14) -> 27 | AU14: =AT14/(AV4-AT10) -> 1 | AV14: =IF(AU14=0,0,(AU14*((LOG(AU14))/LOG(2)))) -> 0
A15: 22 | B15: 1070 | C15: 23 | D15: 1075 | E15: 23 | F15: 1082 | K15: 0 | L15: 222 | P15: =SUM(P7:P14) -> 1 | Q15: =-SUM(Q7:Q14) -> 0.694598372 | V15: =SUM(V7:V14) -> 1 | W15: =-SUM(W7:W14) -> 0.2498822928 | AA15: =SUM(AA7:AA14) -> 1 | AB15: =-SUM(AB7:AB14) -> 0 | AF15: =SUM(AF7:AF14) -> 1 | AG15: =-SUM(AG7:AG14) -> 0 | AK15: =SUM(AK7:AK14) -> 1 | AL15: =-SUM(AL7:AL14) -> 0 | AP15: =SUM(AP7:AP14) -> 1 | AQ15: =-SUM(AQ7:AQ14) -> 0 | AU15: =SUM(AU7:AU14) -> 1 | AV15: =-SUM(AV7:AV14) -> 0
A16: 11 | B16: 1178 | C16: 21 | D16: 1187 | E16: 21 | F16: 1189 | K16: 0 | L16: 122 | P16: U= | Q16: =Q15/(LOG(Q4)/LOG(2)) -> 0.09203764219 | V16: U1= | W16: =W15/(LOG(W4)/LOG(2)) -> 0.05043851256 | AA16: U2= | AB16: =AB15/(LOG(AB4)/LOG(2)) -> 0 | AF16: U3= | AG16: =AG15/(LOG(AG4)/LOG(2)) -> 0 | AK16: U4= | AL16: =AL15/(LOG(AL4)/LOG(2)) -> 0 | AP16: U5= | AQ16: =AQ15/(LOG(AQ4)/LOG(2)) -> 0 | AU16: U6= | AV16: =AV15/(LOG(AV4)/LOG(2)) -> 0
A17: 22 | B17: 1352 | C17: 23 | D17: 1356 | E17: 23 | F17: 1367 | K17: 0 | L17: 222
A18: 22 | B18: 1490 | C18: 23 | D18: 1498 | E18: 23 | F18: 1506 | K18: 0 | L18: 222
A19: 22 | B19: 1612 | C19: 23 | D19: 1616 | E19: 23 | F19: 1622 | K19: 0 | L19: 222 | N19: Total Target Seq
A20: 22 | B20: 1730 | C20: 23 | D20: 1734 | E20: 23 | F20: 1741 | K20: 0 | L20: 222 | N20: =COUNTIF(L7:L193,G3) -> 31 | P20: 31 | Q20: 31 | R20: 32 | S20: 31 | T20: 31 | U20: 31
A21: 11 | B21: 1836 | C21: 21 | D21: 1851 | E21: 21 | F21: 1857 | K21: 0 | L21: 122 | P21: % of reinforcement given in 6 equal intervals based on number of trials
A22: 22 | B22: 2019 | C22: 23 | D22: 2024 | E22: 23 | F22: 2035 | K22: 0 | L22: 222 | P22: %_1 | Q22: %_2 | R22: %_3 | S22: %_4 | T22: %_5 | U22: %_6
A23: 11 | B23: 2129 | C23: 21 | D23: 2138 | E23: 21 | F23: 2142 | K23: 0 | L23: 122 | O23: target sequence | P23: =$G$3 -> 122 | Q23: =$G$3 -> 122 | R23: =$G$3 -> 122 | S23: =$G$3 -> 122 | T23: =$G$3 -> 122 | U23: =$G$3 -> 122
A24: 22 | B24: 2270 | C24: 23 | D24: 2280 | E24: 23 | F24: 2288 | K24: 0 | L24: 222 | O24: total reinforcement | P24: =U10 -> 7 | Q24: =Z10 -> 4 | R24: =AE10 -> 3 | S24: =AJ10 -> 8 | T24: =AO10 -> 5 | U24: =AT10 -> 4
A25: 22 | B25: 2389 | C25: 23 | D25: 2392 | E25: 23 | F25: 2400 | K25: 0 | L25: 222 | O25: % target
A26: 22 | B26: 2502 | C26: 23 | D26: 2505 | E26: 23 | F26: 2509 | K26: 0 | L26: 222 | O26: CCRF
A27: 22 | B27: 2612 | C27: 23 | D27: 2616 | E27: 23 | F27: 2625 | K27: 0 | L27: 222 | O27: % CCRf
A28: 11 | B28: 2718 | C28: 21 | D28: 2726 | E28: 21 | F28: 2729 | K28: 0 | L28: 122 | O28: average response rate | P28: =F37/P20 -> 124.9354839 | Q28: =(F68-F37)/Q20 -> 138.5806452 | R28: =(F100-F68)/R20 -> 124.8125 | S28: =(F131-F100)/S20 -> 126.2258065 | T28: =(F162-F131)/T20 -> 131.7419355 | U28: =(F193-F162)/U20 -> 123.7096774
A29: 22 | B29: 2855 | C29: 23 | D29: 2863 | E29: 23 | F29: 2870 | K29: 0 | L29: 222
A30: 22 | B30: 2975 | C30: 23 | D30: 2979 | E30: 23 | F30: 2986 | K30: 0 | L30: 222
A31: 11 | B31: 3082 | C31: 21 | D31: 3093 | E31: 21 | F31: 3099 | K31: 0 | L31: 122
A32: 22 | B32: 3271 | C32: 23 | D32: 3281 | E32: 23 | F32: 3292 | K32: 0 | L32: 222
A33: 22 | B33: 3396 | C33: 23 | D33: 3402 | E33: 23 | F33: 3409 | K33: 0 | L33: 222
A34: 22 | B34: 3512 | C34: 23 | D34: 3521 | E34: 23 | F34: 3529 | K34: 0 | L34: 222
A35: 22 | B35: 3630 | C35: 23 | D35: 3634 | E35: 23 | F35: 3645 | K35: 0 | L35: 222
A36: 22 | B36: 3751 | C36: 23 | D36: 3757 | E36: 23 | F36: 3770 | K36: 0 | L36: 222
A37: 11 | B37: 3862 | C37: 21 | D37: 3870 | E37: 21 | F37: 3873 | K37: 0 | L37: 122
A38: 22 | B38: 4020 | C38: 23 | D38: 4025 | E38: 23 | F38: 4032 | K38: 0 | L38: 222
A39: 22 | B39: 4137 | C39: 23 | D39: 4142 | E39: 23 | F39: 4148 | K39: 0 | L39: 222
A40: 22 | B40: 4460 | C40: 23 | D40: 4463 | E40: 23 | F40: 4469 | K40: 0 | L40: 222
A41: 11 | B41: 4565 | C41: 21 | D41: 4579 | E41: 21 | F41: 4587 | K41: 0 | L41: 122
A42: 22 | B42: 4710 | C42: 23 | D42: 4713 | E42: 23 | F42: 4717 | K42: 0 | L42: 222
A43: 22 | B43: 4822 | C43: 23 | D43: 4826 | E43: 23 | F43: 4834 | K43: 0 | L43: 222
A44: 22 | B44: 5048 | C44: 23 | D44: 5052 | E44: 23 | F44: 5058 | K44: 0 | L44: 222
A45: 22 | B45: 5163 | C45: 23 | D45: 5167 | E45: 23 | F45: 5174 | K45: 0 | L45: 222
A46: 22 | B46: 5277 | C46: 23 | D46: 5281 | E46: 23 | F46: 5286 | K46: 0 | L46: 222
A47: 22 | B47: 5388 | C47: 23 | D47: 5391 | E47: 23 | F47: 5400 | K47: 0 | L47: 222
A48: 22 | B48: 5502 | C48: 23 | D48: 5506 | E48: 23 | F48: 5516 | K48: 0 | L48: 222
A49: 22 | B49: 5625 | C49: 23 | D49: 5629 | E49: 23 | F49: 5635 | K49: 0 | L49: 222
A50: 11 | B50: 5731 | C50: 21 | D50: 5740 | E50: 21 | F50: 5743 | K50: 0 | L50: 122
A51: 22 | B51: 5944 | C51: 23 | D51: 5948 | E51: 23 | F51: 5955 | K51: 0 | L51: 222
A52: 22 | B52: 6060 | C52: 23 | D52: 6066 | E52: 23 | F52: 6070 | K52: 0 | L52: 222
A53: 11 | B53: 6195 | C53: 21 | D53: 6213 | E53: 21 | F53: 6219 | K53: 0 | L53: 122
A54: 22 | B54: 6431 | C54: 23 | D54: 6436 | E54: 23 | F54: 6447 | K54: 0 | L54: 222
A55: 11 | B55: 6539 | C55: 21 | D55: 6550 | E55: 21 | F55: 6556 | K55: 0 | L55: 122
A56: 22 | B56: 6740 | C56: 23 | D56: 6744 | E56: 23 | F56: 6750 | K56: 0 | L56: 222
A57: 22 | B57: 6856 | C57: 23 | D57: 6860 | E57: 23 | F57: 6869 | K57: 0 | L57: 222
A58: 22 | B58: 6972 | C58: 23 | D58: 6983 | E58: 23 | F58: 6997 | K58: 0 | L58: 222
A59: 22 | B59: 7098 | C59: 23 | D59: 7101 | E59: 23 | F59: 7105 | K59: 0 | L59: 222
A60: 22 | B60: 7208 | C60: 23 | D60: 7212 | E60: 23 | F60: 7218 | K60: 0 | L60: 222
A61: 22 | B61: 7339 | C61: 23 | D61: 7342 | E61: 23 | F61: 7351 | K61: 0 | L61: 222
A62: 22 | B62: 7452 | C62: 23 | D62: 7455 | E62: 23 | F62: 7461 | K62: 0 | L62: 222
A63: 22 | B63: 7564 | C63: 23 | D63: 7576 | E63: 23 | F63: 7585 | K63: 0 | L63: 222
A64: 22 | B64: 7689 | C64: 23 | D64: 7693 | E64: 23 | F64: 7707 | K64: 0 | L64: 222
A65: 22 | B65: 7811 | C65: 23 | D65: 7817 | E65: 23 | F65: 7822 | K65: 0 | L65: 222
A66: 22 | B66: 7935 | C66: 23 | D66: 7939 | E66: 23 | F66: 7945 | K66: 0 | L66: 222
A67: 22 | B67: 8046 | C67: 23 | D67: 8050 | E67: 23 | F67: 8056 | K67: 0 | L67: 222
A68: 22 | B68: 8160 | C68: 23 | D68: 8163 | E68: 23 | F68: 8169 | K68: 0 | L68: 222
A69: 22 | B69: 8270 | C69: 23 | D69: 8274 | E69: 23 | F69: 8281 | K69: 0 | L69: 222
A70: 11 | B70: 8373 | C70: 21 | D70: 8384 | E70: 21 | F70: 8388 | K70: 0 | L70: 122
A71: 22 | B71: 8609 | C71: 23 | D71: 8613 | E71: 23 | F71: 8618 | K71: 0 | L71: 222
A72: 22 | B72: 8720 | C72: 23 | D72: 8724 | E72: 23 | F72: 8728 | K72: 0 | L72: 222
A73: 22 | B73: 8833 | C73: 23 | D73: 8835 | E73: 23 | F73: 8846 | K73: 0 | L73: 222
A74: 11 | B74: 8942 | C74: 21 | D74: 8951 | E74: 21 | F74: 8958 | K74: 0 | L74: 122
A75: 22 | B75: 9124 | C75: 23 | D75: 9130 | E75: 23 | F75: 9141 | K75: 0 | L75: 222
A76: 22 | B76: 9246 | C76: 23 | D76: 9250 | E76: 23 | F76: 9259 | K76: 0 | L76: 222
A77: 22 | B77: 9365 | C77: 23 | D77: 9376 | E77: 23 | F77: 9384 | K77: 0 | L77: 222
A78: 22 | B78: 9488 | C78: 23 | D78: 9494 | E78: 23 | F78: 9501 | K78: 0 | L78: 222
A79: 22 | B79: 9602 | C79: 23 | D79: 9606 | E79: 23 | F79: 9611 | K79: 0 | L79: 222
A80: 11 | B80: 9707 | C80: 21 | D80: 9717 | E80: 21 | F80: 9720 | K80: 0 | L80: 122
A81: 22 | B81: 9882 | C81: 23 | D81: 9888 | E81: 23 | F81: 9895 | K81: 0 | L81: 222
A82: 22 | B82: 9998 | C82: 23 | D82: 10005 | E82: 23 | F82: 10012 | K82: 0 | L82: 222
A83: 22 | B83: 10117 | C83: 23 | D83: 10120 | E83: 23 | F83: 10124 | K83: 0 | L83: 222
A84: 22 | B84: 10242 | C84: 23 | D84: 10246 | E84: 23 | F84: 10251 | K84: 0 | L84: 222
A85: 22 | B85: 10355 | C85: 23 | D85: 10359 | E85: 23 | F85: 10365 | K85: 0 | L85: 222
A86: 22 | B86: 10503 | C86: 23 | D86: 10506 | E86: 23 | F86: 10508 | K86: 0 | L86: 222
A87: 22 | B87: 10613 | C87: 23 | D87: 10619 | E87: 23 | F87: 10631 | K87: 0 | L87: 222
A88: 22 | B88: 10747 | C88: 23 | D88: 10751 | E88: 23 | F88: 10754 | K88: 0 | L88: 222
A89: 22 | B89: 10858 | C89: 23 | D89: 10861 | E89: 23 | F89: 10865 | K89: 0 | L89: 222
A90: 22 | B90: 10970 | C90: 23 | D90: 10973 | E90: 23 | F90: 10982 | K90: 0 | L90: 222
A91: 22 | B91: 11087 | C91: 23 | D91: 11091 | E91: 23 | F91: 11096 | K91: 0 | L91: 222
A92: 22 | B92: 11228 | C92: 23 | D92: 11232 | E92: 23 | F92: 11237 | K92: 0 | L92: 222
A93: 22 | B93: 11339 | C93: 23 | D93: 11343 | E93: 23 | F93: 11347 | K93: 0 | L93: 222
A94: 22 | B94: 11449 | C94: 23 | D94: 11453 | E94: 23 | F94: 11456 | K94: 0 | L94: 222
A95: 22 | B95: 11558 | C95: 23 | D95: 11563 | E95: 23 | F95: 11568 | K95: 0 | L95: 222
A96: 22 | B96: 11679 | C96: 23 | D96: 11683 | E96: 23 | F96: 11690 | K96: 0 | L96: 222
A97: 22 | B97: 11798 | C97: 23 | D97: 11806 | E97: 23 | F97: 11813 | K97: 0 | L97: 222
A98: 22 | B98: 11918 | C98: 23 | D98: 11924 | E98: 23 | F98: 11932 | K98: 0 | L98: 222
A99: 22 | B99: 12034 | C99: 23 | D99: 12041 | E99: 23 | F99: 12047 | K99: 0 | L99: 222
A100: 22 | B100: 12149 | C100: 23 | D100: 12152 | E100: 23 | F100: 12163 | K100: 0 | L100: 222
A101: 22 | B101: 12266 | C101: 23 | D101: 12270 | E101: 23 | F101: 12280 | K101: 0 | L101: 222
A102: 22 | B102: 12383 | C102: 23 | D102: 12389 | E102: 23 | F102: 12395 | K102: 0 | L102: 222
A103: 11 | B103: 12492 | C103: 21 | D103: 12504 | E103: 21 | F103: 12508 | K103: 0 | L103: 122
A104: 22 | B104: 12646 | C104: 23 | D104: 12655 | E104: 23 | F104: 12662 | K104: 0 | L104: 222
A105: 22 | B105: 12766 | C105: 23 | D105: 12769 | E105: 23 | F105: 12773 | K105: 0 | L105: 222
A106: 11 | B106: 12866 | C106: 21 | D106: 12877 | E106: 21 | F106: 12881 | K106: 0 | L106: 122
A107: 22 | B107: 13044 | C107: 23 | D107: 13048 | E107: 23 | F107: 13057 | K107: 0 | L107: 222
A108: 22 | B108: 13162 | C108: 23 | D108: 13166 | E108: 23 | F108: 13173 | K108: 0 | L108: 222
A109: 22 | B109: 13285 | C109: 23 | D109: 13292 | E109: 23 | F109: 13299 | K109: 0 | L109: 222
A110: 11 | B110: 13423 | C110: 21 | D110: 13435 | E110: 21 | F110: 13441 | K110: 0 | L110: 122
A111: 22 | B111: 13583 | C111: 23 | D111: 13590 | E111: 23 | F111: 13598 | K111: 0 | L111: 222
A112: 22 | B112: 13700 | C112: 23 | D112: 13703 | E112: 23 | F112: 13709 | K112: 0 | L112: 222
A113: 22 | B113: 13811 | C113: 23 | D113: 13815 | E113: 23 | F113: 13821 | K113: 0 | L113: 222
A114: 22 | B114: 13924 | C114: 23 | D114: 13927 | E114: 23 | F114: 13933 | K114: 0 | L114: 222
A115: 22 | B115: 14035 | C115: 23 | D115: 14040 | E115: 23 | F115: 14045 | K115: 0 | L115: 222
A116: 22 | B116: 14150 | C116: 23 | D116: 14153 | E116: 23 | F116: 14161 | K116: 0 | L116: 222
A117: 22 | B117: 14264 | C117: 23 | D117: 14267 | E117: 23 | F117: 14273 | K117: 0 | L117: 222
A118: 22 | B118: 14383 | C118: 23 | D118: 14387 | E118: 23 | F118: 14398 | K118: 0 | L118: 222
A119: 11 | B119: 14490 | C119: 21 | D119: 14507 | E119: 21 | F119: 14514 | K119: 0 | L119: 122
A120: 22 | B120: 14643 | C120: 23 | D120: 14650 | E120: 23 | F120: 14665 | K120: 0 | L120: 222
A121: 22 | B121: 14772 | C121: 23 | D121: 14783 | E121: 23 | F121: 14791 | K121: 0 | L121: 222
A122: 22 | B122: 14894 | C122: 23 | D122: 14897 | E122: 23 | F122: 14901 | K122: 0 | L122: 222
A123: 22 | B123: 15006 | C123: 23 | D123: 15010 | E123: 23 | F123: 15017 | K123: 0 | L123: 222
A124: 22 | B124: 15119 | C124: 23 | D124: 15123 | E124: 23 | F124: 15129 | K124: 0 | L124: 222
A125: 11 | B125: 15221 | C125: 21 | D125: 15231 | E125: 21 | F125: 15235 | K125: 0 | L125: 122
A126: 22 | B126: 15390 | C126: 23 | D126: 15403 | E126: 23 | F126: 15412 | K126: 0 | L126: 222
A127: 11 | B127: 15509 | C127: 21 | D127: 15521 | E127: 21 | F127: 15524 | K127: 0 | L127: 122
A128: 22 | B128: 15655 | C128: 23 | D128: 15660 | E128: 23 | F128: 15681 | K128: 0 | L128: 222
A129: 22 | B129: 15791 | C129: 23 | D129: 15795 | E129: 23 | F129: 15802 | K129: 0 | L129: 222
A130: 11 | B130: 15895 | C130: 21 | D130: 15905 | E130: 21 | F130: 15912 | K130: 0 | L130: 122
A131: 11 | B131: 16052 | C131: 21 | D131: 16066 | E131: 21 | F131: 16076 | K131: 0 | L131: 122
A132: 11 | B132: 16275 | C132: 21 | D132: 16284 | E132: 21 | F132: 16288 | K132: 0 | L132: 122
A133: 22 | B133: 16476 | C133: 23 | D133: 16485 | E133: 23 | F133: 16491 | K133: 0 | L133: 222
A134: 11 | B134: 16583 | C134: 21 | D134: 16598 | E134: 21 | F134: 16606 | K134: 0 | L134: 122
A135: 22 | B135: 16777 | C135: 23 | D135: 16785 | E135: 23 | F135: 16793 | K135: 0 | L135: 222
A136: 22 | B136: 16947 | C136: 23 | D136: 16950 | E136: 23 | F136: 16956 | K136: 0 | L136: 222
A137: 22 | B137: 17058 | C137: 23 | D137: 17064 | E137: 23 | F137: 17072 | K137: 0 | L137: 222
A138: 22 | B138: 17179 | C138: 23 | D138: 17194 | E138: 23 | F138: 17201 | K138: 0 | L138: 222
A139: 22 | B139: 17303 | C139: 23 | D139: 17308 | E139: 23 | F139: 17313 | K139: 0 | L139: 222
A140: 22 | B140: 17416 | C140: 23 | D140: 17419 | E140: 23 | F140: 17425 | K140: 0 | L140: 222
A141: 22 | B141: 17527 | C141: 23 | D141: 17532 | E141: 23 | F141: 17538 | K141: 0 | L141: 222
A142: 22 | B142: 17640 | C142: 23 | D142: 17645 | E142: 23 | F142: 17653 | K142: 0 | L142: 222
A143: 22 | B143: 17769 | C143: 23 | D143: 17775 | E143: 23 | F143: 17782 | K143: 0 | L143: 222
A144: 22 | B144: 17887 | C144: 23 | D144: 17897 | E144: 23 | F144: 17904 | K144: 0 | L144: 222
A145: 22 | B145: 18007 | C145: 23 | D145: 18017 | E145: 23 | F145: 18026 | K145: 0 | L145: 222
A146: 22 | B146: 18129 | C146: 23 | D146: 18134 | E146: 23 | F146: 18139 | K146: 0 | L146: 222
A147: 22 | B147: 18277 | C147: 23 | D147: 18281 | E147: 23 | F147: 18285 | K147: 0 | L147: 222
A148: 11 | B148: 18378 | C148: 21 | D148: 18386 | E148: 21 | F148: 18394 | K148: 0 | L148: 122
A149: 22 | B149: 18525 | C149: 23 | D149: 18533 | E149: 23 | F149: 18543 | K149: 0 | L149: 222
A150: 22 | B150: 18647 | C150: 23 | D150: 18651 | E150: 23 | F150: 18656 | K150: 0 | L150: 222
A151: 22 | B151: 18757 | C151: 23 | D151: 18760 | E151: 23 | F151: 18763 | K151: 0 | L151: 222
A152: 22 | B152: 18864 | C152: 23 | D152: 18869 | E152: 23 | F152: 18876 | K152: 0 | L152: 222
A153: 22 | B153: 18980 | C153: 23 | D153: 18989 | E153: 23 | F153: 19002 | K153: 0 | L153: 222
A154: 22 | B154: 19106 | C154: 23 | D154: 19110 | E154: 23 | F154: 19117 | K154: 0 | L154: 222
A155: 11 | B155: 19212 | C155: 21 | D155: 19222 | E155: 21 | F155: 19225 | K155: 0 | L155: 122
A156: 22 | B156: 19420 | C156: 23 | D156: 19426 | E156: 23 | F156: 19440 | K156: 0 | L156: 222
A157: 22 | B157: 19542 | C157: 23 | D157: 19546 | E157: 23 | F157: 19550 | K157: 0 | L157: 222
A158: 22 | B158: 19653 | C158: 23 | D158: 19657 | E158: 23 | F158: 19665 | K158: 0 | L158: 222
A159: 22 | B159: 19782 | C159: 23 | D159: 19788 | E159: 23 | F159: 19795 | K159: 0 | L159: 222
A160: 22 | B160: 19899 | C160: 23 | D160: 19902 | E160: 23 | F160: 19911 | K160: 0 | L160: 222
A161: 11 | B161: 20007 | C161: 21 | D161: 20015 | E161: 21 | F161: 20020 | K161: 0 | L161: 122
A162: 22 | B162: 20147 | C162: 23 | D162: 20152 | E162: 23 | F162: 20160 | K162: 0 | L162: 222
A163: 22 | B163: 20265 | C163: 23 | D163: 20268 | E163: 23 | F163: 20280 | K163: 0 | L163: 222
A164: 22 | B164: 20385 | C164: 23 | D164: 20389 | E164: 23 | F164: 20402 | K164: 0 | L164: 222
A165: 22 | B165: 20507 | C165: 23 | D165: 20510 | E165: 23 | F165: 20520 | K165: 0 | L165: 222
A166: 22 | B166: 20623 | C166: 23 | D166: 20626 | E166: 23 | F166: 20636 | K166: 0 | L166: 222
A167: 22 | B167: 20737 | C167: 23 | D167: 20740 | E167: 23 | F167: 20744 | K167: 0 | L167: 222
A168: 11 | B168: 20836 | C168: 21 | D168: 20845 | E168: 21 | F168: 20853 | K168: 0 | L168: 122
A169: 22 | B169: 20987 | C169: 23 | D169: 20992 | E169: 23 | F169: 20997 | K169: 0 | L169: 222
A170: 22 | B170: 21104 | C170: 23 | D170: 21108 | E170: 23 | F170: 21116 | K170: 0 | L170: 222
A171: 22 | B171: 21219 | C171: 23 | D171: 21223 | E171: 23 | F171: 21229 | K171: 0 | L171: 222
A172: 22 | B172: 21332 | C172: 23 | D172: 21335 | E172: 23 | F172: 21342 | K172: 0 | L172: 222
A173: 22 | B173: 21447 | C173: 23 | D173: 21451 | E173: 23 | F173: 21457 | K173: 0 | L173: 222
A174: 22 | B174: 21560 | C174: 23 | D174: 21563 | E174: 23 | F174: 21574 | K174: 0 | L174: 222
A175: 22 | B175: 21681 | C175: 23 | D175: 21684 | E175: 23 | F175: 21699 | K175: 0 | L175: 222
A176: 22 | B176: 21840 | C176: 23 | D176: 21844 | E176: 23 | F176: 21850 | K176: 0 | L176: 222
A177: 22 | B177: 21953 | C177: 23 | D177: 21956 | E177: 23 | F177: 21975 | K177: 0 | L177: 222
A178: 22 | B178: 22080 | C178: 23 | D178: 22084 | E178: 23 | F178: 22093 | K178: 0 | L178: 222
A179: 22 | B179: 22196 | C179: 23 | D179: 22201 | E179: 23 | F179: 22209 | K179: 0 | L179: 222
A180: 22 | B180: 22315 | C180: 23 | D180: 22319 | E180: 23 | F180: 22324 | K180: 0 | L180: 222
A181: 22 | B181: 22427 | C181: 23 | D181: 22430 | E181: 23 | F181: 22436 | K181: 0 | L181: 222
A182: 22 | B182: 22544 | C182: 23 | D182: 22549 | E182: 23 | F182: 22557 | K182: 0 | L182: 222
A183: 11 | B183: 22655 | C183: 21 | D183: 22670 | E183: 21 | F183: 22677 | K183: 0 | L183: 122
A184: 22 | B184: 22827 | C184: 23 | D184: 22830 | E184: 23 | F184: 22836 | K184: 0 | L184: 222
A185: 22 | B185: 22939 | C185: 23 | D185: 22942 | E185: 23 | F185: 22953 | K185: 0 | L185: 222
A186: 22 | B186: 23054 | C186: 23 | D186: 23060 | E186: 23 | F186: 23069 | K186: 0 | L186: 222
A187: 22 | B187: 23172 | C187: 23 | D187: 23181 | E187: 23 | F187: 23189 | K187: 0 | L187: 222
A188: 22 | B188: 23291 | C188: 23 | D188: 23296 | E188: 23 | F188: 23304 | K188: 0 | L188: 222
A189: 11 | B189: 23422 | C189: 21 | D189: 23436 | E189: 21 | F189: 23452 | K189: 0 | L189: 122
A190: 22 | B190: 23607 | C190: 23 | D190: 23612 | E190: 23 | F190: 23618 | K190: 0 | L190: 222
A191: 22 | B191: 23722 | C191: 23 | D191: 23729 | E191: 23 | F191: 23736 | K191: 0 | L191: 222
A192: 11 | B192: 23828 | C192: 21 | D192: 23838 | E192: 21 | F192: 23841 | K192: 0 | L192: 122
A193: 22 | B193: 23975 | C193: 23 | D193: 23981 | E193: 23 | F193: 23995 | L193: 222

Sheet !LA09922..Is
A1: Report for:!LA09922..Is
A2: Date: | B2: <date>
A3: Hen: | B3: <hen> | F3: Correct Sequence | G3: =Start!J2 -> 122 | P3: Total Sequences in Data | Q3: =4994-COUNTBLANK(L7:L5000) -> 195 | V3: Total Sequences in Block Data | W3: =COUNTA(L7:L39) -> 33 | AA3: Total Sequences in Block Data | AB3: =COUNTA(L40:L71) -> 32 | AF3: Total Sequences in Block Data | AG3: =COUNTA(L72:L104) -> 33 | AK3: Total Sequences in Block Data | AL3: =COUNTA(L105:L136) -> 32 | AP3: Total Sequences in Block Data | AQ3: =COUNTA(L137:L169) -> 33 | AU3: Total Sequences in Block Data | AV3: =COUNTA(L170:L201) -> 32
P4: Total Sequences in Summary | Q4: =SUM(O7:O14) -> 195 | V4: Total Sequences in Block Summary | W4: =SUM(U7:U14) -> 33 | AA4: Total Sequences in Block Summary | AB4: =SUM(Z7:Z14) -> 32 | AF4: Total Sequences in Block Summary | AG4: =SUM(AE7:AE14) -> 33 | AK4: Total Sequences in Block Summary | AL4: =SUM(AJ7:AJ14) -> 32 | AP4: Total Sequences in Block Summary | AQ4: =SUM(AO7:AO14) -> 33 | AU4: Total Sequences in Block Summary | AV4: =SUM(AT7:AT14) -> 32
T5: Block 1 | Y5: Block 2 | AD5: Block 3 | AI5: Block 4 | AN5: Block 5 | AS5: Block 6
A6: Sequence Component 1 | B6: Time 1 | C6: Sequence Component 2 | D6: Time 2 | E6: Sequence Component 3 | F6: Time 3 | G6: Sequence Component 4 | H6: Time 4 | I6: Sequence Component 5 | J6: Time 5 | K6: Correct? 0=No 1=Yes | L6: Sequence | N6: Frequency | P6: Relative Frequency | Q6: Variability | T6: Frequency | V6: Relative Frequency | W6: Variability | Y6: Frequency | AA6: Relative Frequency | AB6: Variability | AD6: Frequency | AF6: Relative Frequency | AG6: Variability | AI6: Frequency | AK6: Relative Frequency | AL6: Variability | AN6: Frequency | AP6: Relative Frequency | AQ6: Variability | AS6: Frequency | AU6: Relative Frequency | AV6: Variability
A7: 22 | B7: 42 | C7: 23 | D7: 45 | E7: 23 | F7: 51 | K7: 0 | L7: 222 | N7: 111 | O7: =COUNTIF($L$7:$L$500,N7) -> 0 | P7: =O7/$Q$4 -> 0 | Q7: =IF(P7=0,0,(P7*((LOG(P7))/LOG(2)))) -> 0 | T7: =N7 -> 111 | U7: =COUNTIF(L7:L39,T7) -> 0 | V7: =U7/(W4-U10) -> 0 | W7: =IF(V7=0,0,(V7*((LOG(V7))/LOG(2)))) -> 0 | Y7: =N7 -> 111 | Z7: =COUNTIF(L40:L71,Y7) -> 0 | AA7: =Z7/(AB4-Z10) -> 0 | AB7: =IF(AA7=0,0,(AA7*((LOG(AA7))/LOG(2)))) -> 0 | AD7: =N7 -> 111 | AE7: =COUNTIF(L72:L104,AD7) -> 0 | AF7: =AE7/(AG4-AE10) -> 0 | AG7: =IF(AF7=0,0,(AF7*((LOG(AF7))/LOG(2)))) -> 0 | AI7: =N7 -> 111 | AJ7: =COUNTIF(L105:L136,AI7) -> 0 | AK7: =AJ7/(AL4-AJ10) -> 0 | AL7: =IF(AK7=0,0,(AK7*((LOG(AK7))/LOG(2)))) -> 0 | AN7: =N7 -> 111 | AO7: =COUNTIF(L137:L169,AN7) -> 0 | AP7: =AO7/(AQ4-AO10) -> 0 | AQ7: =IF(AP7=0,0,(AP7*((LOG(AP7))/LOG(2)))) -> 0 | AS7: =N7 -> 111 | AT7: =COUNTIF(L170:L201,AS7) -> 0 | AU7: =AT7/(AV4-AT10) -> 0 | AV7: =IF(AU7=0,0,(AU7*((LOG(AU7))/LOG(2)))) -> 0
A8: 22 | B8: 153 | C8: 14 | D8: 162 | E8: 23 | F8: 176 | K8: 0 | L8: 212 | N8: 112 | O8: =COUNTIF($L$7:$L$500,N8) -> 0 | P8: =O8/$Q$4 -> 0 | Q8: =IF(P8=0,0,(P8*((LOG(P8))/LOG(2)))) -> 0 | T8: =N8 -> 112 | U8: =COUNTIF(L7:L39,T8) -> 0 | V8: =U8/(W4-U10) -> 0 | W8: =IF(V8=0,0,(V8*((LOG(V8))/LOG(2)))) -> 0 | Y8: =N8 -> 112 | Z8: =COUNTIF(L40:L71,Y8) -> 0 | AA8: =Z8/(AB4-Z10) -> 0 | AB8: =IF(AA8=0,0,(AA8*((LOG(AA8))/LOG(2)))) -> 0 | AD8: =N8 -> 112 | AE8: =COUNTIF(L72:L104,AD8) -> 0 | AF8: =AE8/(AG4-AE10) -> 0 | AG8: =IF(AF8=0,0,(AF8*((LOG(AF8))/LOG(2)))) -> 0 | AI8: =N8 -> 112 | AJ8: =COUNTIF(L105:L136,AI8) -> 0 | AK8: =AJ8/(AL4-AJ10) -> 0 | AL8: =IF(AK8=0,0,(AK8*((LOG(AK8))/LOG(2)))) -> 0 | AN8: =N8 -> 112 | AO8: =COUNTIF(L137:L169,AN8) -> 0 | AP8: =AO8/(AQ4-AO10) -> 0 | AQ8: =IF(AP8=0,0,(AP8*((LOG(AP8))/LOG(2)))) -> 0 | AS8: =N8 -> 112 | AT8: =COUNTIF(L170:L201,AS8) -> 0 | AU8: =AT8/(AV4-AT10) -> 0 | AV8: =IF(AU8=0,0,(AU8*((LOG(AU8))/LOG(2)))) -> 0
A9: 11 | B9: 295 | C9: 21 | D9: 303 | E9: 21 | F9: 308 | K9: 0 | L9: 122 | N9: 121 | O9: =COUNTIF($L$7:$L$500,N9) -> 0 | P9: =O9/$Q$4 -> 0 | Q9: =IF(P9=0,0,(P9*((LOG(P9))/LOG(2)))) -> 0 | T9: =N9 -> 121 | U9: =COUNTIF(L7:L39,T9) -> 0 | V9: =U9/(W4-U10) -> 0 | W9: =IF(V9=0,0,(V9*((LOG(V9))/LOG(2)))) -> 0 | Y9: =N9 -> 121 | Z9: =COUNTIF(L40:L71,Y9) -> 0 | AA9: =Z9/(AB4-Z10) -> 0 | AB9: =IF(AA9=0,0,(AA9*((LOG(AA9))/LOG(2)))) -> 0 | AD9: =N9 -> 121 | AE9: =COUNTIF(L72:L104,AD9) -> 0 | AF9: =AE9/(AG4-AE10) -> 0 | AG9: =IF(AF9=0,0,(AF9*((LOG(AF9))/LOG(2)))) -> 0 | AI9: =N9 -> 121 | AJ9: =COUNTIF(L105:L136,AI9) -> 0 | AK9: =AJ9/(AL4-AJ10) -> 0 | AL9: =IF(AK9=0,0,(AK9*((LOG(AK9))/LOG(2)))) -> 0 | AN9: =N9 -> 121 | AO9: =COUNTIF(L137:L169,AN9) -> 0 | AP9: =AO9/(AQ4-AO10) -> 0 | AQ9: =IF(AP9=0,0,(AP9*((LOG(AP9))/LOG(2)))) -> 0 | AS9: =N9 -> 121 | AT9: =COUNTIF(L170:L201,AS9) -> 0 | AU9: =AT9/(AV4-AT10) -> 0 | AV9: =IF(AU9=0,0,(AU9*((LOG(AU9))/LOG(2)))) -> 0
A10: 22 | B10: 545 | C10: 23 | D10: 551 | E10: 23 | F10: 556 | K10: 0 | L10: 222 | N10: 122 | O10: =COUNTIF($L$7:$L$500,N10) -> 26 | P10: =O10/$Q$4 -> 0.1333333333 | Q10: =IF(P10=0,0,(P10*((LOG(P10))/LOG(2)))) -> -0.3875854127 | T10: =N10 -> 122 | U10: =COUNTIF(L7:L39,T10) -> 3 | Y10: =N10 -> 122 | Z10: =COUNTIF(L40:L71,Y10) -> 4 | AD10: =N10 -> 122 | AE10: =COUNTIF(L72:L104,AD10) -> 2 | AI10: =N10 -> 122 | AJ10: =COUNTIF(L105:L136,AI10) -> 4 | AN10: =N10 -> 122 | AO10: =COUNTIF(L137:L169,AN10) -> 7 | AS10: =N10 -> 122 | AT10: =COUNTIF(L170:L201,AS10) -> 6
A11: 22 | B11: 654 | C11: 23 | D11: 662 | E11: 23 | F11: 669 | K11: 0 | L11: 222 | N11: 211 | O11: =COUNTIF($L$7:$L$500,N11) -> 1 | P11: =O11/$Q$4 -> 0.005128205128 | Q11: =IF(P11=0,0,(P11*((LOG(P11))/LOG(2)))) -> -0.03901195033 | T11: =N11 -> 211 | U11: =COUNTIF(L7:L39,T11) -> 0 | V11: =U11/(W4-U10) -> 0 | W11: =IF(V11=0,0,(V11*((LOG(V11))/LOG(2)))) -> 0 | Y11: =N11 -> 211 | Z11: =COUNTIF(L40:L71,Y11) -> 0 | AA11: =Z11/(AB4-Z10) -> 0 | AB11: =IF(AA11=0,0,(AA11*((LOG(AA11))/LOG(2)))) -> 0 | AD11: =N11 -> 211 | AE11: =COUNTIF(L72:L104,AD11) -> 1 | AF11: =AE11/(AG4-AE10) -> 0.03225806452 | AG11: =IF(AF11=0,0,(AF11*((LOG(AF11))/LOG(2)))) -> -0.1598127842 | AI11: =N11 -> 211 | AJ11: =COUNTIF(L105:L136,AI11) -> 0 | AK11: =AJ11/(AL4-AJ10) -> 0 | AL11: =IF(AK11=0,0,(AK11*((LOG(AK11))/LOG(2)))) -> 0 | AN11: =N11 -> 211 | AO11: =COUNTIF(L137:L169,AN11) -> 0 | AP11: =AO11/(AQ4-AO10) -> 0 | AQ11: =IF(AP11=0,0,(AP11*((LOG(AP11))/LOG(2)))) -> 0 | AS11: =N11 -> 211 | AT11: =COUNTIF(L170:L201,AS11) -> 0 | AU11: =AT11/(AV4-AT10) -> 0 | AV11: =IF(AU11=0,0,(AU11*((LOG(AU11))/LOG(2)))) -> 0
A12: 22 | B12: 767 | C12: 23 | D12: 772 | E12: 23 | F12: 778 | K12: 0 | L12: 222 | N12: 212 | O12: =COUNTIF($L$7:$L$500,N12) -> 5 | P12: =O12/$Q$4 -> 0.02564102564 | Q12: =IF(P12=0,0,(P12*((LOG(P12))/LOG(2)))) -> -0.1355231338 | T12: =N12 -> 212 | U12: =COUNTIF(L7:L39,T12) -> 1 | V12: =U12/(W4-U10) -> 0.03333333333 | W12: =IF(V12=0,0,(V12*((LOG(V12))/LOG(2)))) -> -0.1635630199 | Y12: =N12 -> 212 | Z12: =COUNTIF(L40:L71,Y12) -> 0 | AA12: =Z12/(AB4-Z10) -> 0 | AB12: =IF(AA12=0,0,(AA12*((LOG(AA12))/LOG(2)))) -> 0 | AD12: =N12 -> 212 | AE12: =COUNTIF(L72:L104,AD12) -> 1 | AF12: =AE12/(AG4-AE10) -> 0.03225806452 | AG12: =IF(AF12=0,0,(AF12*((LOG(AF12))/LOG(2)))) -> -0.1598127842 | AI12: =N12 -> 212 | AJ12: =COUNTIF(L105:L136,AI12) -> 3 | AK12: =AJ12/(AL4-AJ10) -> 0.1071428571 | AL12: =IF(AK12=0,0,(AK12*((LOG(AK12))/LOG(2)))) -> -0.3452563309 | AN12: =N12 -> 212 | AO12: =COUNTIF(L137:L169,AN12) -> 0 | AP12: =AO12/(AQ4-AO10) -> 0 | AQ12: =IF(AP12=0,0,(AP12*((LOG(AP12))/LOG(2)))) -> 0 | AS12: =N12 -> 212 | AT12: =COUNTIF(L170:L201,AS12) -> 0 | AU12: =AT12/(AV4-AT10) -> 0 | AV12: =IF(AU12=0,0,(AU12*((LOG(AU12))/LOG(2)))) -> 0
A13: 22 | B13: 883 | C13: 23 | D13: 898 | E13: 23 | F13: 906 | K13: 0 | L13: 222 | N13: 221 | O13: =COUNTIF($L$7:$L$500,N13) -> 1 | P13: =O13/$Q$4 -> 0.005128205128 | Q13: =IF(P13=0,0,(P13*((LOG(P13))/LOG(2)))) -> -0.03901195033 | T13: =N13 -> 221 | U13: =COUNTIF(L7:L39,T13) -> 0 | V13: =U13/(W4-U10) -> 0 | W13: =IF(V13=0,0,(V13*((LOG(V13))/LOG(2)))) -> 0 | Y13: =N13 -> 221 | Z13: =COUNTIF(L40:L71,Y13) -> 0 | AA13: =Z13/(AB4-Z10) -> 0 | AB13: =IF(AA13=0,0,(AA13*((LOG(AA13))/LOG(2)))) -> 0 | AD13: =N13 -> 221 | AE13: =COUNTIF(L72:L104,AD13) -> 0 | AF13: =AE13/(AG4-AE10) -> 0 | AG13: =IF(AF13=0,0,(AF13*((LOG(AF13))/LOG(2)))) -> 0 | AI13: =N13 -> 221 | AJ13: =COUNTIF(L105:L136,AI13) -> 1 | AK13: =AJ13/(AL4-AJ10) -> 0.03571428571 | AL13: =IF(AK13=0,0,(AK13*((LOG(AK13))/LOG(2)))) -> -0.1716912472 | AN13: =N13 -> 221 | AO13: =COUNTIF(L137:L169,AN13) -> 0 | AP13: =AO13/(AQ4-AO10) -> 0 | AQ13: =IF(AP13=0,0,(AP13*((LOG(AP13))/LOG(2)))) -> 0 | AS13: =N13 -> 221 | AT13: =COUNTIF(L170:L201,AS13) -> 0 | AU13: =AT13/(AV4-AT10) -> 0 | AV13: =IF(AU13=0,0,(AU13*((LOG(AU13))/LOG(2)))) -> 0
A14: 22 | B14: 1003 | C14: 23 | D14: 1010 | E14: 23 | F14: 1017 | K14: 0 | L14: 222 | N14: 222 | O14: =COUNTIF($L$7:$L$500,N14) -> 162 | P14: =O14/$Q$4 -> 0.8307692308 | Q14: =IF(P14=0,0,(P14*((LOG(P14))/LOG(2)))) -> -0.2222144121 | T14: =N14 -> 222 | U14: =COUNTIF(L7:L39,T14) -> 29 | V14: =U14/(W4-U10) -> 0.9666666667 | W14: =IF(V14=0,0,(V14*((LOG(V14))/LOG(2)))) -> -0.04727928046 | Y14: =N14 -> 222 | Z14: =COUNTIF(L40:L71,Y14) -> 28 | AA14: =Z14/(AB4-Z10) -> 1 | AB14: =IF(AA14=0,0,(AA14*((LOG(AA14))/LOG(2)))) -> 0 | AD14: =N14 -> 222 | AE14: =COUNTIF(L72:L104,AD14) -> 29 | AF14: =AE14/(AG4-AE10) -> 0.935483871 | AG14: =IF(AF14=0,0,(AF14*((LOG(AF14))/LOG(2)))) -> -0.09000787557 | AI14: =N14 -> 222 | AJ14: =COUNTIF(L105:L136,AI14) -> 24 | AK14: =AJ14/(AL4-AJ10) -> 0.8571428571 | AL14: =IF(AK14=0,0,(AK14*((LOG(AK14))/LOG(2)))) -> -0.1906220754 | AN14: =N14 -> 222 | AO14: =COUNTIF(L137:L169,AN14) -> 26 | AP14: =AO14/(AQ4-AO10) -> 1 | AQ14: =IF(AP14=0,0,(AP14*((LOG(AP14))/LOG(2)))) -> 0 | AS14: =N14 -> 222 | AT14: =COUNTIF(L170:L201,AS14) -> 26 | AU14: =AT14/(AV4-AT10) -> 1 | AV14: =IF(AU14=0,0,(AU14*((LOG(AU14))/LOG(2)))) -> 0
A15: 22 | B15: 1117 | C15: 23 | D15: 1128 | E15: 23 | F15: 1135 | K15: 0 | L15: 222 | P15: =SUM(P7:P14) -> 1 | Q15: =-SUM(Q7:Q14) -> 0.8233468593 | V15: =SUM(V7:V14) -> 1 | W15: =-SUM(W7:W14) -> 0.2108423003 | AA15: =SUM(AA7:AA14) -> 1 | AB15: =-SUM(AB7:AB14) -> 0 | AF15: =SUM(AF7:AF14) -> 1 | AG15: =-SUM(AG7:AG14) -> 0.409633444 | AK15: =SUM(AK7:AK14) -> 1 | AL15: =-SUM(AL7:AL14) -> 0.7075696535 | AP15: =SUM(AP7:AP14) -> 1 | AQ15: =-SUM(AQ7:AQ14) -> 0 | AU15: =SUM(AU7:AU14) -> 1 | AV15: =-SUM(AV7:AV14) -> 0
A16: 22 | B16: 1232 | C16: 23 | D16: 1235 | E16: 23 | F16: 1240 | K16: 0 | L16: 222 | P16: U= | Q16: =Q15/(LOG(Q4)/LOG(2)) -> 0.1082307229 | V16: U1= | W16: =W15/(LOG(W4)/LOG(2)) -> 0.04179734877 | AA16: U2= | AB16: =AB15/(LOG(AB4)/LOG(2)) -> 0 | AF16: U3= | AG16: =AG15/(LOG(AG4)/LOG(2)) -> 0.08120567788 | AK16: U4= | AL16: =AL15/(LOG(AL4)/LOG(2)) -> 0.1415139307 | AP16: U5= | AQ16: =AQ15/(LOG(AQ4)/LOG(2)) -> 0 | AU16: U6= | AV16: =AV15/(LOG(AV4)/LOG(2)) -> 0
A17: 22 | B17: 1339 | C17: 23 | D17: 1344 | E17: 23 | F17: 1353 | K17: 0 | L17: 222
A18: 22 | B18: 1453 | C18: 23 | D18: 1457 | E18: 23 | F18: 1463 | K18: 0 | L18: 222
A19: 11 | B19: 1560 | C19: 21 | D19: 1570 | E19: 21 | F19: 1575 | K19: 0 | L19: 122 | N19: Total Target Seq
A20: 22 | B20: 1809 | C20: 23 | D20: 1814 | E20: 23 | F20: 1823 | K20: 0 | L20: 222 | N20: =COUNTIF(L7:L201,G3) -> 26 | P20: 33 | Q20: 32 | R20: 33 | S20: 32 | T20: 33 | U20: 32
A21: 22 | B21: 1929 | C21: 23 | D21: 1940 | E21: 23 | F21: 1949 | K21: 0 | L21: 222 | P21: % of reinforcement given in 6 equal intervals based on number of trials
A22: 22 | B22: 2054 | C22: 23 | D22: 2062 | E22: 23 | F22: 2070 | K22: 0 | L22: 222 | P22: %_1 | Q22: %_2 | R22: %_3 | S22: %_4 | T22: %_5 | U22: %_6
A23: 22 | B23: 2174 | C23: 23 | D23: 2179 | E23: 23 | F23: 2185 | K23: 0 | L23: 222 | O23: target sequence | P23: =$G$3 -> 122 | Q23: =$G$3 -> 122 | R23: =$G$3 -> 122 | S23: =$G$3 -> 122 | T23: =$G$3 -> 122 | U23: =$G$3 -> 122
A24: 22 | B24: 2290 | C24: 23 | D24: 2293 | E24: 23 | F24: 2301 | K24: 0 | L24: 222 | O24: total reinforcement | P24: =U10 -> 3 | Q24: =Z10 -> 4 | R24: =AE10 -> 2 | S24: =AJ10 -> 4 | T24: =AO10 -> 7 | U24: =AT10 -> 6
A25: 22 | B25: 2399 | C25: 23 | D25: 2405 | E25: 23 | F25: 2411 | K25: 0 | L25: 222 | O25: % target
A26: 22 | B26: 2510 | C26: 23 | D26: 2516 | E26: 23 | F26: 2524 | K26: 0 | L26: 222 | O26: CCRF
A27: 22 | B27: 2627 | C27: 23 | D27: 2631 | E27: 23 | F27: 2639 | K27: 0 | L27: 222 | O27: % CCRf
A28: 22 | B28: 2744 | C28: 23 | D28: 2749 | E28: 23 | F28: 2757 | K28: 0 | L28: 222 | O28: average response rate | P28: =F39/P20 -> 123.9393939 | Q28: =(F71-F39)/Q20 -> 121.25 | R28: =(F104-F71)/R20 -> 119.1212121 | S28: =(F136-F104)/S20 -> 124.125 | T28: =(F169-F136)/T20 -> 118.8787879 | U28: =(F201-F169)/U20 -> 129.34375
A29: 22 | B29: 2868 | C29: 23 | D29: 2873 | E29: 23 | F29: 2882 | K29: 0 | L29: 222
A30: 22 | B30: 2983 | C30: 23 | D30: 2986 | E30: 23 | F30: 2996 | K30: 0 | L30: 222
A31: 22 | B31: 3097 | C31: 23 | D31: 3104 | E31: 23 | F31: 3109 | K31: 0 | L31: 222
A32: 22 | B32: 3224 | C32: 23 | D32: 3227 | E32: 23 | F32: 3232 | K32: 0 | L32: 222
A33: 11 | B33: 3325 | C33: 21 | D33: 3337 | E33: 21 | F33: 3351 | K33: 0 | L33: 122
A34: 22 | B34: 3526 | C34: 23 | D34: 3529 | E34: 23 | F34: 3534 | K34: 0 | L34: 222
A35: 22 | B35: 3637 | C35: 23 | D35: 3641 | E35: 23 | F35: 3644 | K35: 0 | L35: 222
A36: 22 | B36: 3751 | C36: 23 | D36: 3755 | E36: 23 | F36: 3758 | K36: 0 | L36: 222
A37: 22 | B37: 3864 | C37: 23 | D37: 3868 | E37: 23 | F37: 3875 | K37: 0 | L37: 222
A38: 22 | B38: 3978 | C38: 23 | D38: 3982 | E38: 23 | F38: 3988 | K38: 0 | L38: 222
A39: 22 | B39: 4080 | C39: 23 | D39: 4085 | E39: 23 | F39: 4090 | K39: 0 | L39: 222
A40: 22 | B40: 4190 | C40: 23 | D40: 4195 | E40: 23 | F40: 4201 | K40: 0 | L40: 222
A41: 22 | B41: 4307 | C41: 23 | D41: 4314 | E41: 23 | F41: 4322 | K41: 0 | L41: 222
A42: 22 | B42: 4424 | C42: 23 | D42: 4430 | E42: 23 | F42: 4436 | K42: 0 | L42: 222
A43: 22 | B43: 4541 | C43: 23 | D43: 4545 | E43: 23 | F43: 4551 | K43: 0 | L43: 222
A44: 22 | B44: 4681 | C44: 23 | D44: 4684 | E44: 23 | F44: 4690 | K44: 0 | L44: 222
A45: 22 | B45: 4794 | C45: 23 | D45: 4798 | E45: 23 | F45: 4803 | K45: 0 | L45: 222
A46: 22 | B46: 4912 | C46: 23 | D46: 4916 | E46: 23 | F46: 4922 | K46: 0 | L46: 222
A47: 11 | B47: 5014 | C47: 21 | D47: 5023 | E47: 21 | F47: 5027 | K47: 0 | L47: 122
A48: 22 | B48: 5202 | C48: 23 | D48: 5206 | E48: 23 | F48: 5210 | K48: 0 | L48: 222
A49: 22 | B49: 5311 | C49: 23 | D49: 5314 | E49: 23 | F49: 5320 | K49: 0 | L49: 222
A50: 22 | B50: 5421 | C50: 23 | D50: 5426 | E50: 23 | F50: 5432 | K50: 0 | L50: 222
A51: 11 | B51: 5525 | C51: 21 | D51: 5536 | E51: 21 | F51: 5540 | K51: 0 | L51: 122
A52: 22 | B52: 5722 | C52: 23 | D52: 5726 | E52: 23 | F52: 5731 | K52: 0 | L52: 222
A53: 22 | B53: 5833 | C53: 23 | D53: 5837 | E53: 23 | F53: 5841 | K53: 0 | L53: 222
A54: 22 | B54: 5942 | C54: 23 | D54: 5946 | E54: 23 | F54: 5951 | K54: 0 | L54: 222
A55: 22 | B55: 6051 | C55: 23 | D55: 6056 | E55: 23 | F55: 6068 | K55: 0 | L55: 222
A56: 22 | B56: 6183 | C56: 23 | D56: 6186 | E56: 23 | F56: 6190 | K56: 0 | L56: 222
A57: 22 | B57: 6290 | C57: 23 | D57: 6294 | E57: 23 | F57: 6299 | K57: 0 | L57: 222
A58: 22 | B58: 6400 | C58: 23 | D58: 6404 | E58: 23 | F58: 6410 | K58: 0 | L58: 222
A59: 22 | B59: 6519 | C59: 23 | D59: 6522 | E59: 23 | F59: 6534 | K59: 0 | L59: 222
A60: 22 | B60: 6636 | C60: 23 | D60: 6638 | E60: 23 | F60: 6642 | K60: 0 | L60: 222
A61: 22 | B61: 6741 | C61: 23 | D61: 6745 | E61: 23 | F61: 6751 | K61: 0 | L61: 222
A62: 11 | B62: 6843 | C62: 21 | D62: 6851 | E62: 21 | F62: 6857 | K62: 0 | L62: 122
A63: 22 | B63: 6975 | C63: 23 | D63: 6983 | E63: 23 | F63: 6990 | K63: 0 | L63: 222
A64: 22 | B64: 7093 | C64: 23 | D64: 7096 | E64: 23 | F64: 7100 | K64: 0 | L64: 222
A65: 11 | B65: 7193 | C65: 21 | D65: 7202 | E65: 21 | F65: 7209 | K65: 0 | L65: 122
A66: 22 | B66: 7378 | C66: 23 | D66: 7383 | E66: 23 | F66: 7391 | K66: 0 | L66: 222
A67: 22 | B67: 7493 | C67: 23 | D67: 7497 | E67: 23 | F67: 7507 | K67: 0 | L67: 222
A68: 22 | B68: 7608 | C68: 23 | D68: 7611 | E68: 23 | F68: 7616 | K68: 0 | L68: 222
A69: 22 | B69: 7721 | C69: 23 | D69: 7725 | E69: 23 | F69: 7729 | K69: 0 | L69: 222
A70: 22 | B70: 7833 | C70: 23 | D70: 7848 | E70: 23 | F70: 7855 | K70: 0 | L70: 222
A71: 22 | B71: 7958 | C71: 23 | D71: 7964 | E71: 23 | F71: 7970 | K71: 0 | L71: 222
A72: 22 | B72: 8072 | C72: 23 | D72: 8076 | E72: 23 | F72: 8083 | K72: 0 | L72: 222
A73: 22 | B73: 8187 | C73: 23 | D73: 8191 | E73: 23 | F73: 8194 | K73: 0 | L73: 222
A74: 22 | B74: 8298 | C74: 23 | D74: 8303 | E74: 23 | F74: 8313 | K74: 0 | L74: 222
A75: 22 | B75: 8416 | C75: 23 | D75: 8419 | E75: 23 | F75: 8423 | K75: 0 | L75: 222
A76: 22 | B76: 8525 | C76: 23 | D76: 8528 | E76: 23 | F76: 8540 | K76: 0 | L76: 222
A77: 22 | B77: 8661 | C77: 14 | D77: 8672 | E77: 23 | F77: 8683 | K77: 0 | L77: 212
A78: 22 | B78: 8782 | C78: 14 | D78: 8794 | E78: 14 | F78: 8801 | K78: 0 | L78: 211
A79: 22 | B79: 8904 | C79: 23 | D79: 8911 | E79: 23 | F79: 8915 | K79: 0 | L79: 222
A80: 22 | B80: 9020 | C80: 23 | D80: 9025 | E80: 23 | F80: 9031 | K80: 0 | L80: 222
A81: 22 | B81: 9135 | C81: 23 | D81: 9142 | E81: 23 | F81: 9150 | K81: 0 | L81: 222
A82: 22 | B82: 9252 | C82: 23 | D82: 9255 | E82: 23 | F82: 9260 | K82: 0 | L82: 222
A83: 22 | B83: 9363 | C83: 23 | D83: 9366 | E83: 23 | F83: 9374 | K83: 0 | L83: 222
A84: 22 | B84: 9476 | C84: 23 | D84: 9479 | E84: 23 | F84: 9483 | K84: 0 | L84: 222
A85: 22 | B85: 9582 | C85: 23 | D85: 9588 | E85: 23 | F85: 9595 | K85: 0 | L85: 222
A86: 22 | B86: 9699 | C86: 23 | D86: 9702 | E86: 23 | F86: 9706 | K86: 0 | L86: 222
A87: 22 | B87: 9808 | C87: 23 | D87: 9812 | E87: 23 | F87: 9818 | K87: 0 | L87: 222
A88: 22 | B88: 9933 | C88: 23 | D88: 9940 | E88: 23 | F88: 9948 | K88: 0 | L88: 222
A89: 22 | B89: 10053 | C89: 23 | D89: 10058 | E89: 23 | F89: 10068 | K89: 0 | L89: 222
A90: 22 | B90: 10173 | C90: 23 | D90: 10176 | E90: 23 | F90: 10181 | K90: 0 | L90: 222
A91: 11 | B91: 10273 | C91: 21 | D91: 10283 | E91: 21 | F91: 10286 | K91: 0 | L91: 122
A92: 22 | B92: 10447 | C92: 23 | D92: 10451 | E92: 23 | F92: 10457 | K92: 0 | L92: 222
A93: 22 | B93: 10570 | C93: 23 | D93: 10573 | E93: 23 | F93: 10577 | K93: 0 | L93: 222
A94: 22 | B94: 10681 | C94: 23 | D94: 10686 | E94: 23 | F94: 10695 | K94: 0 | L94: 222
A95: 22 | B95: 10797 | C95: 23 | D95: 10800 | E95: 23 | F95: 10804 | K95: 0 | L95: 222
A96: 22 | B96: 10907 | C96: 23 | D96: 10910 | E96: 23 | F96: 10914 | K96: 0 | L96: 222
A97: 22 | B97: 11025 | C97: 23 | D97: 11032 | E97: 23 | F97: 11039 | K97: 0 | L97: 222
A98: 22 | B98: 11140 | C98: 23 | D98: 11145 | E98: 23 | F98: 11151 | K98: 0 | L98: 222
A99: 11 | B99: 11264 | C99: 21 | D99: 11277 | E99: 21 | F99: 11281 | K99: 0 | L99: 122
A100: 22 | B100: 11413 | C100: 23 | D100: 11416 | E100: 23 | F100: 11422 | K100: 0 | L100: 222
A101: 22 | B101: 11534 | C101: 23 | D101: 11539 | E101: 23 | F101: 11547 | K101: 0 | L101: 222
A102: 22 | B102: 11649 | C102: 23 | D102: 11653 | E102: 23 | F102: 11665 | K102: 0 | L102: 222
A103: 22 | B103: 11770 | C103: 23 | D103: 11774 | E103: 23 | F103: 11781 | K103: 0 | L103: 222
A104: 22 | B104: 11890 | C104: 23 | D104: 11893 | E104: 23 | F104: 11901 | K104: 0 | L104: 222
A105: 22 | B105: 12004 | C105: 23 | D105: 12008 | E105: 23 | F105: 12017 | K105: 0 | L105: 222
A106: 11 | B106: 12109 | C106: 21 | D106: 12117 | E106: 21 | F106: 12120 | K106: 0 | L106: 122
A107: 22 | B107: 12273 | C107: 23 | D107: 12275 | E107: 23 | F107: 12282 | K107: 0 | L107: 222
A108: 22 | B108: 12384 | C108: 23 | D108: 12387 | E108: 23 | F108: 12391 | K108: 0 | L108: 222
A109: 22 | B109: 12496 | C109: 23 | D109: 12501 | E109: 23 | F109: 12504 | K109: 0 | L109: 222
A110: 22 | B110: 12605 | C110: 23 | D110: 12608 | E110: 23 | F110: 12614 | K110: 0 | L110: 222
A111: 22 | B111: 12717 | C111: 23 | D111: 12720 | E111: 23 | F111: 12727 | K111: 0 | L111: 222
A112: 22 | B112: 12839 | C112: 23 | D112: 12846 | E112: 23 | F112: 12854 | K112: 0 | L112: 222
A113: 11 | B113: 12964 | C113: 21 | D113: 12978 | E113: 21 | F113: 12984 | K113: 0 | L113: 122
A114: 22 | B114: 13093 | C114: 23 | D114: 13099 | E114: 23 | F114: 13104 | K114: 0 | L114: 222
A115: 22 | B115: 13207 | C115: 23 | D115: 13212 | E115: 23 | F115: 13218 | K115: 0 | L115: 222
A116: 22 | B116: 13320 | C116: 23 | D116: 13325 | E116: 23 | F116: 13331 | K116: 0 | L116: 222
A117: 22 | B117: 13458 | C117: 14 | D117: 13466 | E117: 23 | F117: 13479 | K117: 0 | L117: 212
A118: 22 | B118: 13587 | C118: 23 | D118: 13594 | E118: 23 | F118: 13600 | K118: 0 | L118: 222
A119: 22 | B119: 13713 | C119: 23 | D119: 13715 | E119: 23 | F119: 13721 | K119: 0 | L119: 222
A120: 22 | B120: 13821 | C120: 14 | D120: 13835 | E120: 23 | F120: 13849 | K120: 0 | L120: 212
A121: 22 | B121: 14104 | C121: 23 | D121: 14108 | E121: 23 | F121: 14118 | K121: 0 | L121: 222
A122: 11 | B122: 14219 | C122: 21 | D122: 14229 | E122: 21 | F122: 14235 | K122: 0 | L122: 122
A123: 22 | B123: 14371 | C123: 23 | D123: 14376 | E123: 23 | F123: 14383 | K123: 0 | L123: 222
A124: 22 | B124: 14477 | C124: 23 | D124: 14481 | E124: 23 | F124: 14485 | K124: 0 | L124: 222
A125: 22 | B125: 14584 | C125: 23 | D125: 14593 | E125: 14 | F125: 14604 | K125: 0 | L125: 221
A126: 22 | B126: 14700 | C126: 23 | D126: 14707 | E126: 23 | F126: 14712 | K126: 0 | L126: 222
A127: 22 | B127: 14812 | C127: 23 | D127: 14818 | E127: 23 | F127: 14824 | K127: 0 | L127: 222
A128: 22 | B128: 14923 | C128: 14 | D128: 14933 | E128: 23 | F128: 14946 | K128: 0 | L128: 212
A129: 22 | B129: 15049 | C129: 23 | D129: 15055 | E129: 23 | F129: 15061 | K129: 0 | L129: 222
A130: 11 | B130: 15162 | C130: 21 | D130: 15170 | E130: 21 | F130: 15177 | K130: 0 | L130: 122
A131: 22 | B131: 15303 | C131: 23 | D131: 15307 | E131: 23 | F131: 15314 | K131: 0 | L131: 222
A132: 22 | B132: 15411 | C132: 23 | D132: 15414 | E132: 23 | F132: 15418 | K132: 0 | L132: 222
A133: 22 | B133: 15520 | C133: 23 | D133: 15522 | E133: 23 | F133: 15525 | K133: 0 | L133: 222
A134: 22 | B134: 15638 | C134: 23 | D134: 15643 | E134: 23 | F134: 15650 | K134: 0 | L134: 222
A135: 22 | B135: 15753 | C135: 23 | D135: 15756 | E135: 23 | F135: 15761 | K135: 0 | L135: 222
A136: 22 | B136: 15865 | C136: 23 | D136: 15869 | E136: 23 | F136: 15873 | K136: 0 | L136: 222
A137: 22 | B137: 15976 | C137: 23 | D137: 15979 | E137: 23 | F137: 15985 | K137: 0 | L137: 222
A138: 22 | B138: 16087 | C138: 23 | D138: 16092 | E138: 23 | F138: 16097 | K138: 0 | L138: 222
A139: 22 | B139: 16198 | C139: 23 | D139: 16203 | E139: 23 | F139: 16212 | K139: 0 | L139: 222
A140: 22 | B140: 16313 | C140: 23 | D140: 16316 | E140: 23 | F140: 16319 | K140: 0 | L140: 222
A141: 22 | B141: 16422 | C141: 23 | D141: 16427 | E141: 23 | F141: 16432 | K141: 0 | L141: 222
A142: 11 | B142: 16528 | C142: 21 | D142: 16537 | E142: 21 | F142: 16541 | K142: 0 | L142: 122
A143: 11 | B143: 16650 | C143: 21 | D143: 16659 | E143: 21 | F143: 16661 | K143: 0 | L143: 122
A144: 22 | B144: 16808 | C144: 23 | D144: 16812 | E144: 23 | F144: 16817 | K144: 0 | L144: 222
A145: 22 | B145: 16922 | C145: 23 | D145: 16926 | E145: 23 | F145: 16932 | K145: 0 | L145: 222
A146: 22 | B146: 17035 | C146: 23 | D146: 17039 | E146: 23 | F146: 17045 | K146: 0 | L146: 222
A147: 22 | B147: 17149 | C147: 23 | D147: 17156 | E147: 23 | F147: 17163 | K147: 0 | L147: 222
A148: 22 | B148: 17265 | C148: 23 | D148: 17268 | E148: 23 | F148: 17279 | K148: 0 | L148: 222
A149: 11 | B149: 17370 | C149: 21 | D149: 17380 | E149: 21 | F149: 17383 | K149: 0 | L149: 122
A150: 22 | B150: 17487 | C150: 23 | D150: 17492 | E150: 23 | F150: 17501 | K150: 0 | L150: 222
A151: 22 | B151: 17604 | C151: 23 | D151: 17607 | E151: 23 | F151: 17614 | K151: 0 | L151: 222
A152: 22 | B152: 17719 | C152: 23 | D152: 17723 | E152: 23 | F152: 17731 | K152: 0 | L152: 222
A153: 22 | B153: 17832 | C153: 23 | D153: 17836 | E153: 23 | F153: 17844 | K153: 0 | L153: 222
A154: 22 | B154: 17944 | C154: 23 | D154: 17947 | E154: 23 | F154: 17951 | K154: 0 | L154: 222
A155: 22 | B155: 18051 | C155: 23 | D155: 18054 | E155: 23 | F155: 18059 | K155: 0 | L155: 222
A156: 11 | B156: 18151 | C156: 21 | D156: 18161 | E156: 21 | F156: 18169 | K156: 0 | L156: 122
A157: 22 | B157: 18285 | C157: 23 | D157: 18290 | E157: 23 | F157: 18294 | K157: 0 | L157: 222
A158: 11 | B158: 18386 | C158: 21 | D158: 18395 | E158: 21 | F158: 18399 | K158: 0 | L158: 122
A159: 22 | B159: 18520 | C159: 23 | D159: 18524 | E159: 23 | F159: 18531 | K159: 0 | L159: 222
A160: 22 | B160: 18635 | C160: 23 | D160: 18638 | E160: 23 | F160: 18645 | K160: 0 | L160: 222
A161: 22 | B161: 18747 | C161: 23 | D161: 18750 | E161: 23 | F161: 18767 | K161: 0 | L161: 222
A162: 22 | B162: 18871 | C162: 23 | D162: 18875 | E162: 23 | F162: 18880 | K162: 0 | L162: 222
A163: 22 | B163: 18985 | C163: 23 | D163: 18992 | E163: 23 | F163: 19000 | K163: 0 | L163: 222
A164: 22 | B164: 19100 | C164: 23 | D164: 19104 | E164: 23 | F164: 19108 | K164: 0 | L164: 222
A165: 22 | B165: 19209 | C165: 23 | D165: 19212 | E165: 23 | F165: 19216 | K165: 0 | L165: 222
A166: 11 | B166: 19308 | C166: 21 | D166: 19321 | E166: 21 | F166: 19326 | K166: 0 | L166: 122
A167: 22 | B167: 19483 | C167: 23 | D167: 19488 | E167: 23 | F167: 19493 | K167: 0 | L167: 222
A168: 11 | B168: 19585 | C168: 21 | D168: 19594 | E168: 21 | F168: 19601 | K168: 0 | L168: 122
A169: 22 | B169: 19780 | C169: 23 | D169: 19789 | E169: 23 | F169: 19796 | K169: 0 | L169: 222
A170: 22 | B170: 19903 | C170: 23 | D170: 19908 | E170: 23 | F170: 19917 | K170: 0 | L170: 222
A171: 22 | B171: 20026 | C171: 23 | D171: 20033 | E171: 23 | F171: 20042 | K171: 0 | L171: 222
A172: 11 | B172: 20135 | C172: 21 | D172: 20147 | E172: 21 | F172: 20152 | K172: 0 | L172: 122
A173: 22 | B173: 20274 | C173: 23 | D173: 20278 | E173: 23 | F173: 20282 | K173: 0 | L173: 222
A174: 11 | B174: 20377 | C174: 21 | D174: 20387 | E174: 21 | F174: 20390 | K174: 0 | L174: 122
A175: 22 | B175: 20539 | C175: 23 | D175: 20544 | E175: 23 | F175: 20551 | K175: 0 | L175: 222
A176: 22 | B176: 20654 | C176: 23 | D176: 20659 | E176: 23 | F176: 20667 | K176: 0 | L176: 222
A177: 22 | B177: 20772 | C177: 23 | D177: 20783 | E177: 23 | F177: 20792 | K177: 0 | L177: 222
A178: 22 | B178: 20896 | C178: 23 | D178: 20903 | E178: 23 | F178: 20911 | K178: 0 | L178: 222
A179: 22 | B179: 21014 | C179: 23 | D179: 21018 | E179: 23 | F179: 21024 | K179: 0 | L179: 222
A180: 11 | B180: 21117 | C180: 21 | D180: 21125 | E180: 21 | F180: 21130 | K180: 0 | L180: 122
A181: 22 | B181: 21296 | C181: 23 | D181: 21312 | E181: 23 | F181: 21320 | K181: 0 | L181: 222
A182: 22 | B182: 21427 | C182: 23 | D182: 21431 | E182: 23 | F182: 21439 | K182: 0 | L182: 222
A183: 22 | B183: 21590 | C183: 23 | D183: 21596 | E183: 23 | F183: 21602 | K183: 0 | L183: 222
A184: 22 | B184: 21711 | C184: 23 | D184: 21714 | E184: 23 | F184: 21726 | K184: 0 | L184: 222
A185: 22 | B185: 21827 | C185: 23 | D185: 21837 | E185: 23 | F185: 21851 | K185: 0 | L185: 222
A186: 22 | B186: 21955 | C186: 23 | D186: 21961 | E186: 23 | F186: 21969 | K186: 0 | L186: 222
A187: 22 | B187: 22076 | C187: 23 | D187: 22093 | E187: 23 | F187: 22100 | K187: 0 | L187: 222
A188: 22 | B188: 22206 | C188: 23 | D188: 22218 | E188: 23 | F188: 22231 | K188: 0 | L188: 222
A189: 11 | B189: 22331 | C189: 21 | D189: 22342 | E189: 21 | F189: 22351 | K189: 0 | L189: 122
A190: 22 | B190: 22522 | C190: 23 | D190: 22525 | E190: 23 | F190: 22534 | K190: 0 | L190: 222
A191: 22 | B191: 22636 | C191: 23 | D191: 22642 | E191: 23 | F191: 22648 | K191: 0 | L191: 222
A192: 22 | B192: 22751 | C192: 23 | D192: 22757 | E192: 23 | F192: 22765 | K192: 0 | L192: 222
A193: 22 | B193: 22872 | C193: 23 | D193: 22877 | E193: 23 | F193: 22885 | K193: 0 | L193: 222
A194: 22 | B194: 22995 | C194: 23 | D194: 23009 | E194: 23 | F194: 23017 | K194: 0 | L194: 222
A195: 11 | B195: 23119 | C195: 21 | D195: 23129 | E195: 21 | F195: 23133 | K195: 0 | L195: 122
A196: 22 | B196: 23277 | C196: 23 | D196: 23286 | E196: 23 | F196: 23293 | K196: 0 | L196: 222
A197: 11 | B197: 23395 | C197: 21 | D197: 23404 | E197: 21 | F197: 23409 | K197: 0 | L197: 122
A198: 22 | B198: 23540 | C198: 23 | D198: 23545 | E198: 23 | F198: 23555 | K198: 0 | L198: 222
A199: 22 | B199: 23662 | C199: 23 | D199: 23671 | E199: 23 | F199: 23680 | K199: 0 | L199: 222
A200: 22 | B200: 23788 | C200: 23 | D200: 23796 | E200: 23 | F200: 23806 | K200: 0 | L200: 222
... 1 more rows

Sheet !LA10B12..Is
A1: Report for:!LA10B12..Is
A2: Date: | B2: <date>
A3: Hen: | B3: <hen> | F3: Correct Sequence | G3: =Start!J2 -> 122 | P3: Total Sequences in Data | Q3: =4994-COUNTBLANK(L7:L5000) -> 127 | V3: Total Sequences in Block Data | W3: =COUNTA(L7:L27) -> 21 | AA3: Total Sequences in Block Data | AB3: =COUNTA(L28:L48) -> 21 | AF3: Total Sequences in Block Data | AG3: =COUNTA(L49:L70) -> 22 | AK3: Total Sequences in Block Data | AL3: =COUNTA(L71:L91) -> 21 | AP3: Total Sequences in Block Data | AQ3: =COUNTA(L92:L112) -> 21 | AU3: Total Sequences in Block Data | AV3: =COUNTA(L113:L133) -> 21
P4: Total Sequences in Summary | Q4: =SUM(O7:O14) -> 127 | V4: Total Sequences in Block Summary | W4: =SUM(U7:U14) -> 21 | AA4: Total Sequences in Block Summary | AB4: =SUM(Z7:Z14) -> 21 | AF4: Total Sequences in Block Summary | AG4: =SUM(AE7:AE14) -> 22 | AK4: Total Sequences in Block Summary | AL4: =SUM(AJ7:AJ14) -> 21 | AP4: Total Sequences in Block Summary | AQ4: =SUM(AO7:AO14) -> 21 | AU4: Total Sequences in Block Summary | AV4: =SUM(AT7:AT14) -> 21
T5: Block 1 | Y5: Block 2 | AD5: Block 3 | AI5: Block 4 | AN5: Block 5 | AS5: Block 6
A6: Sequence Component 1 | B6: Time 1 | C6: Sequence Component 2 | D6: Time 2 | E6: Sequence Component 3 | F6: Time 3 | G6: Sequence Component 4 | H6: Time 4 | I6: Sequence Component 5 | J6: Time 5 | K6: Correct? 0=No 1=Yes | L6: Sequence | N6: Frequency | P6: Relative Frequency | Q6: Variability | T6: Frequency | V6: Relative Frequency | W6: Variability | Y6: Frequency | AA6: Relative Frequency | AB6: Variability | AD6: Frequency | AF6: Relative Frequency | AG6: Variability | AI6: Frequency | AK6: Relative Frequency | AL6: Variability | AN6: Frequency | AP6: Relative Frequency | AQ6: Variability | AS6: Frequency | AU6: Relative Frequency | AV6: Variability
A7: 11 | B7: 144 | C7: 12 | D7: 155 | E7: 14 | F7: 162 | K7: 0 | L7: 111 | N7: 111 | O7: =COUNTIF($L$7:$L$500,N7) -> 127 | P7: =O7/$Q$4 -> 1 | Q7: =IF(P7=0,0,(P7*((LOG(P7))/LOG(2)))) -> 0 | T7: =N7 -> 111 | U7: =COUNTIF(L7:L27,T7) -> 21 | V7: =U7/(W4-U10) -> 1 | W7: =IF(V7=0,0,(V7*((LOG(V7))/LOG(2)))) -> 0 | Y7: =N7 -> 111 | Z7: =COUNTIF(L28:L48,Y7) -> 21 | AA7: =Z7/(AB4-Z10) -> 1 | AB7: =IF(AA7=0,0,(AA7*((LOG(AA7))/LOG(2)))) -> 0 | AD7: =N7 -> 111 | AE7: =COUNTIF(L49:L70,AD7) -> 22 | AF7: =AE7/(AG4-AE10) -> 1 | AG7: =IF(AF7=0,0,(AF7*((LOG(AF7))/LOG(2)))) -> 0 | AI7: =N7 -> 111 | AJ7: =COUNTIF(L71:L91,AI7) -> 21 | AK7: =AJ7/(AL4-AJ10) -> 1 | AL7: =IF(AK7=0,0,(AK7*((LOG(AK7))/LOG(2)))) -> 0 | AN7: =N7 -> 111 | AO7: =COUNTIF(L92:L112,AN7) -> 21 | AP7: =AO7/(AQ4-AO10) -> 1 | AQ7: =IF(AP7=0,0,(AP7*((LOG(AP7))/LOG(2)))) -> 0 | AS7: =N7 -> 111 | AT7: =COUNTIF(L113:L133,AS7) -> 21 | AU7: =AT7/(AV4-AT10) -> 1 | AV7: =IF(AU7=0,0,(AU7*((LOG(AU7))/LOG(2)))) -> 0
A8: 11 | B8: 282 | C8: 12 | D8: 310 | E8: 14 | F8: 342 | K8: 0 | L8: 111 | N8: 112 | O8: =COUNTIF($L$7:$L$500,N8) -> 0 | P8: =O8/$Q$4 -> 0 | Q8: =IF(P8=0,0,(P8*((LOG(P8))/LOG(2)))) -> 0 | T8: =N8 -> 112 | U8: =COUNTIF(L7:L27,T8) -> 0 | V8: =U8/(W4-U10) -> 0 | W8: =IF(V8=0,0,(V8*((LOG(V8))/LOG(2)))) -> 0 | Y8: =N8 -> 112 | Z8: =COUNTIF(L28:L48,Y8) -> 0 | AA8: =Z8/(AB4-Z10) -> 0 | AB8: =IF(AA8=0,0,(AA8*((LOG(AA8))/LOG(2)))) -> 0 | AD8: =N8 -> 112 | AE8: =COUNTIF(L49:L70,AD8) -> 0 | AF8: =AE8/(AG4-AE10) -> 0 | AG8: =IF(AF8=0,0,(AF8*((LOG(AF8))/LOG(2)))) -> 0 | AI8: =N8 -> 112 | AJ8: =COUNTIF(L71:L91,AI8) -> 0 | AK8: =AJ8/(AL4-AJ10) -> 0 | AL8: =IF(AK8=0,0,(AK8*((LOG(AK8))/LOG(2)))) -> 0 | AN8: =N8 -> 112 | AO8: =COUNTIF(L92:L112,AN8) -> 0 | AP8: =AO8/(AQ4-AO10) -> 0 | AQ8: =IF(AP8=0,0,(AP8*((LOG(AP8))/LOG(2)))) -> 0 | AS8: =N8 -> 112 | AT8: =COUNTIF(L113:L133,AS8) -> 0 | AU8: =AT8/(AV4-AT10) -> 0 | AV8: =IF(AU8=0,0,(AU8*((LOG(AU8))/LOG(2)))) -> 0
A9: 11 | B9: 462 | C9: 12 | D9: 467 | E9: 14 | F9: 473 | K9: 0 | L9: 111 | N9: 121 | O9: =COUNTIF($L$7:$L$500,N9) -> 0 | P9: =O9/$Q$4 -> 0 | Q9: =IF(P9=0,0,(P9*((LOG(P9))/LOG(2)))) -> 0 | T9: =N9 -> 121 | U9: =COUNTIF(L7:L27,T9) -> 0 | V9: =U9/(W4-U10) -> 0 | W9: =IF(V9=0,0,(V9*((LOG(V9))/LOG(2)))) -> 0 | Y9: =N9 -> 121 | Z9: =COUNTIF(L28:L48,Y9) -> 0 | AA9: =Z9/(AB4-Z10) -> 0 | AB9: =IF(AA9=0,0,(AA9*((LOG(AA9))/LOG(2)))) -> 0 | AD9: =N9 -> 121 | AE9: =COUNTIF(L49:L70,AD9) -> 0 | AF9: =AE9/(AG4-AE10) -> 0 | AG9: =IF(AF9=0,0,(AF9*((LOG(AF9))/LOG(2)))) -> 0 | AI9: =N9 -> 121 | AJ9: =COUNTIF(L71:L91,AI9) -> 0 | AK9: =AJ9/(AL4-AJ10) -> 0 | AL9: =IF(AK9=0,0,(AK9*((LOG(AK9))/LOG(2)))) -> 0 | AN9: =N9 -> 121 | AO9: =COUNTIF(L92:L112,AN9) -> 0 | AP9: =AO9/(AQ4-AO10) -> 0 | AQ9: =IF(AP9=0,0,(AP9*((LOG(AP9))/LOG(2)))) -> 0 | AS9: =N9 -> 121 | AT9: =COUNTIF(L113:L133,AS9) -> 0 | AU9: =AT9/(AV4-AT10) -> 0 | AV9: =IF(AU9=0,0,(AU9*((LOG(AU9))/LOG(2)))) -> 0
A10: 11 | B10: 596 | C10: 12 | D10: 605 | E10: 14 | F10: 611 | K10: 0 | L10: 111 | N10: 122 | O10: =COUNTIF($L$7:$L$500,N10) -> 0 | P10: =O10/$Q$4 -> 0 | Q10: =IF(P10=0,0,(P10*((LOG(P10))/LOG(2)))) -> 0 | T10: =N10 -> 122 | U10: =COUNTIF(L7:L27,T10) -> 0 | Y10: =N10 -> 122 | Z10: =COUNTIF(L28:L48,Y10) -> 0 | AD10: =N10 -> 122 | AE10: =COUNTIF(L49:L70,AD10) -> 0 | AI10: =N10 -> 122 | AJ10: =COUNTIF(L71:L91,AI10) -> 0 | AN10: =N10 -> 122 | AO10: =COUNTIF(L92:L112,AN10) -> 0 | AS10: =N10 -> 122 | AT10: =COUNTIF(L113:L133,AS10) -> 0
A11: 11 | B11: 712 | C11: 12 | D11: 743 | E11: 14 | F11: 785 | K11: 0 | L11: 111 | N11: 211 | O11: =COUNTIF($L$7:$L$500,N11) -> 0 | P11: =O11/$Q$4 -> 0 | Q11: =IF(P11=0,0,(P11*((LOG(P11))/LOG(2)))) -> 0 | T11: =N11 -> 211 | U11: =COUNTIF(L7:L27,T11) -> 0 | V11: =U11/(W4-U10) -> 0 | W11: =IF(V11=0,0,(V11*((LOG(V11))/LOG(2)))) -> 0 | Y11: =N11 -> 211 | Z11: =COUNTIF(L28:L48,Y11) -> 0 | AA11: =Z11/(AB4-Z10) -> 0 | AB11: =IF(AA11=0,0,(AA11*((LOG(AA11))/LOG(2)))) -> 0 | AD11: =N11 -> 211 | AE11: =COUNTIF(L49:L70,AD11) -> 0 | AF11: =AE11/(AG4-AE10) -> 0 | AG11: =IF(AF11=0,0,(AF11*((LOG(AF11))/LOG(2)))) -> 0 | AI11: =N11 -> 211 | AJ11: =COUNTIF(L71:L91,AI11) -> 0 | AK11: =AJ11/(AL4-AJ10) -> 0 | AL11: =IF(AK11=0,0,(AK11*((LOG(AK11))/LOG(2)))) -> 0 | AN11: =N11 -> 211 | AO11: =COUNTIF(L92:L112,AN11) -> 0 | AP11: =AO11/(AQ4-AO10) -> 0 | AQ11: =IF(AP11=0,0,(AP11*((LOG(AP11))/LOG(2)))) -> 0 | AS11: =N11 -> 211 | AT11: =COUNTIF(L113:L133,AS11) -> 0 | AU11: =AT11/(AV4-AT10) -> 0 | AV11: =IF(AU11=0,0,(AU11*((LOG(AU11))/LOG(2)))) -> 0
A12: 11 | B12: 901 | C12: 12 | D12: 937 | E12: 14 | F12: 984 | K12: 0 | L12: 111 | N12: 212 | O12: =COUNTIF($L$7:$L$500,N12) -> 0 | P12: =O12/$Q$4 -> 0 | Q12: =IF(P12=0,0,(P12*((LOG(P12))/LOG(2)))) -> 0 | T12: =N12 -> 212 | U12: =COUNTIF(L7:L27,T12) -> 0 | V12: =U12/(W4-U10) -> 0 | W12: =IF(V12=0,0,(V12*((LOG(V12))/LOG(2)))) -> 0 | Y12: =N12 -> 212 | Z12: =COUNTIF(L28:L48,Y12) -> 0 | AA12: =Z12/(AB4-Z10) -> 0 | AB12: =IF(AA12=0,0,(AA12*((LOG(AA12))/LOG(2)))) -> 0 | AD12: =N12 -> 212 | AE12: =COUNTIF(L49:L70,AD12) -> 0 | AF12: =AE12/(AG4-AE10) -> 0 | AG12: =IF(AF12=0,0,(AF12*((LOG(AF12))/LOG(2)))) -> 0 | AI12: =N12 -> 212 | AJ12: =COUNTIF(L71:L91,AI12) -> 0 | AK12: =AJ12/(AL4-AJ10) -> 0 | AL12: =IF(AK12=0,0,(AK12*((LOG(AK12))/LOG(2)))) -> 0 | AN12: =N12 -> 212 | AO12: =COUNTIF(L92:L112,AN12) -> 0 | AP12: =AO12/(AQ4-AO10) -> 0 | AQ12: =IF(AP12=0,0,(AP12*((LOG(AP12))/LOG(2)))) -> 0 | AS12: =N12 -> 212 | AT12: =COUNTIF(L113:L133,AS12) -> 0 | AU12: =AT12/(AV4-AT10) -> 0 | AV12: =IF(AU12=0,0,(AU12*((LOG(AU12))/LOG(2)))) -> 0
A13: 11 | B13: 1108 | C13: 12 | D13: 1114 | E13: 14 | F13: 1173 | K13: 0 | L13: 111 | N13: 221 | O13: =COUNTIF($L$7:$L$500,N13) -> 0 | P13: =O13/$Q$4 -> 0 | Q13: =IF(P13=0,0,(P13*((LOG(P13))/LOG(2)))) -> 0 | T13: =N13 -> 221 | U13: =COUNTIF(L7:L27,T13) -> 0 | V13: =U13/(W4-U10) -> 0 | W13: =IF(V13=0,0,(V13*((LOG(V13))/LOG(2)))) -> 0 | Y13: =N13 -> 221 | Z13: =COUNTIF(L28:L48,Y13) -> 0 | AA13: =Z13/(AB4-Z10) -> 0 | AB13: =IF(AA13=0,0,(AA13*((LOG(AA13))/LOG(2)))) -> 0 | AD13: =N13 -> 221 | AE13: =COUNTIF(L49:L70,AD13) -> 0 | AF13: =AE13/(AG4-AE10) -> 0 | AG13: =IF(AF13=0,0,(AF13*((LOG(AF13))/LOG(2)))) -> 0 | AI13: =N13 -> 221 | AJ13: =COUNTIF(L71:L91,AI13) -> 0 | AK13: =AJ13/(AL4-AJ10) -> 0 | AL13: =IF(AK13=0,0,(AK13*((LOG(AK13))/LOG(2)))) -> 0 | AN13: =N13 -> 221 | AO13: =COUNTIF(L92:L112,AN13) -> 0 | AP13: =AO13/(AQ4-AO10) -> 0 | AQ13: =IF(AP13=0,0,(AP13*((LOG(AP13))/LOG(2)))) -> 0 | AS13: =N13 -> 221 | AT13: =COUNTIF(L113:L133,AS13) -> 0 | AU13: =AT13/(AV4-AT10) -> 0 | AV13: =IF(AU13=0,0,(AU13*((LOG(AU13))/LOG(2)))) -> 0
A14: 11 | B14: 1315 | C14: 12 | D14: 1344 | E14: 14 | F14: 1381 | K14: 0 | L14: 111 | N14: 222 | O14: =COUNTIF($L$7:$L$500,N14) -> 0 | P14: =O14/$Q$4 -> 0 | Q14: =IF(P14=0,0,(P14*((LOG(P14))/LOG(2)))) -> 0 | T14: =N14 -> 222 | U14: =COUNTIF(L7:L27,T14) -> 0 | V14: =U14/(W4-U10) -> 0 | W14: =IF(V14=0,0,(V14*((LOG(V14))/LOG(2)))) -> 0 | Y14: =N14 -> 222 | Z14: =COUNTIF(L28:L48,Y14) -> 0 | AA14: =Z14/(AB4-Z10) -> 0 | AB14: =IF(AA14=0,0,(AA14*((LOG(AA14))/LOG(2)))) -> 0 | AD14: =N14 -> 222 | AE14: =COUNTIF(L49:L70,AD14) -> 0 | AF14: =AE14/(AG4-AE10) -> 0 | AG14: =IF(AF14=0,0,(AF14*((LOG(AF14))/LOG(2)))) -> 0 | AI14: =N14 -> 222 | AJ14: =COUNTIF(L71:L91,AI14) -> 0 | AK14: =AJ14/(AL4-AJ10) -> 0 | AL14: =IF(AK14=0,0,(AK14*((LOG(AK14))/LOG(2)))) -> 0 | AN14: =N14 -> 222 | AO14: =COUNTIF(L92:L112,AN14) -> 0 | AP14: =AO14/(AQ4-AO10) -> 0 | AQ14: =IF(AP14=0,0,(AP14*((LOG(AP14))/LOG(2)))) -> 0 | AS14: =N14 -> 222 | AT14: =COUNTIF(L113:L133,AS14) -> 0 | AU14: =AT14/(AV4-AT10) -> 0 | AV14: =IF(AU14=0,0,(AU14*((LOG(AU14))/LOG(2)))) -> 0
A15: 11 | B15: 1505 | C15: 12 | D15: 1518 | E15: 14 | F15: 1563 | K15: 0 | L15: 111 | P15: =SUM(P7:P14) -> 1 | Q15: =-SUM(Q7:Q14) -> 0 | V15: =SUM(V7:V14) -> 1 | W15: =-SUM(W7:W14) -> 0 | AA15: =SUM(AA7:AA14) -> 1 | AB15: =-SUM(AB7:AB14) -> 0 | AF15: =SUM(AF7:AF14) -> 1 | AG15: =-SUM(AG7:AG14) -> 0 | AK15: =SUM(AK7:AK14) -> 1 | AL15: =-SUM(AL7:AL14) -> 0 | AP15: =SUM(AP7:AP14) -> 1 | AQ15: =-SUM(AQ7:AQ14) -> 0 | AU15: =SUM(AU7:AU14) -> 1 | AV15: =-SUM(AV7:AV14) -> 0
A16: 11 | B16: 1690 | C16: 12 | D16: 1762 | E16: 14 | F16: 1769 | K16: 0 | L16: 111 | P16: U= | Q16: =Q15/(LOG(Q4)/LOG(2)) -> 0 | V16: U1= | W16: =W15/(LOG(W4)/LOG(2)) -> 0 | AA16: U2= | AB16: =AB15/(LOG(AB4)/LOG(2)) -> 0 | AF16: U3= | AG16: =AG15/(LOG(AG4)/LOG(2)) -> 0 | AK16: U4= | AL16: =AL15/(LOG(AL4)/LOG(2)) -> 0 | AP16: U5= | AQ16: =AQ15/(LOG(AQ4)/LOG(2)) -> 0 | AU16: U6= | AV16: =AV15/(LOG(AV4)/LOG(2)) -> 0
A17: 11 | B17: 1890 | C17: 12 | D17: 1927 | E17: 14 | F17: 1932 | K17: 0 | L17: 111
A18: 11 | B18: 2061 | C18: 12 | D18: 2105 | E18: 14 | F18: 2137 | K18: 0 | L18: 111
A19: 11 | B19: 2268 | C19: 12 | D19: 2274 | E19: 14 | F19: 2297 | K19: 0 | L19: 111 | N19: Total Target Seq
A20: 11 | B20: 2424 | C20: 12 | D20: 2430 | E20: 14 | F20: 2436 | K20: 0 | L20: 111 | N20: =COUNTIF(L7:L133,G3) -> 0 | P20: 21 | Q20: 21 | R20: 22 | S20: 21 | T20: 21 | U20: 21
A21: 11 | B21: 2531 | C21: 12 | D21: 2572 | E21: 14 | F21: 2602 | K21: 0 | L21: 111 | P21: % of reinforcement given in 6 equal intervals based on number of trials
A22: 11 | B22: 2711 | C22: 12 | D22: 2745 | E22: 14 | F22: 2787 | K22: 0 | L22: 111 | P22: %_1 | Q22: %_2 | R22: %_3 | S22: %_4 | T22: %_5 | U22: %_6
A23: 11 | B23: 2890 | C23: 12 | D23: 2904 | E23: 14 | F23: 2936 | K23: 0 | L23: 111 | O23: target sequence | P23: =$G$3 -> 122 | Q23: =$G$3 -> 122 | R23: =$G$3 -> 122 | S23: =$G$3 -> 122 | T23: =$G$3 -> 122 | U23: =$G$3 -> 122
A24: 11 | B24: 3055 | C24: 12 | D24: 3061 | E24: 14 | F24: 3088 | K24: 0 | L24: 111 | O24: total reinforcement | P24: =U10 -> 0 | Q24: =Z10 -> 0 | R24: =AE10 -> 0 | S24: =AJ10 -> 0 | T24: =AO10 -> 0 | U24: =AT10 -> 0
A25: 11 | B25: 3186 | C25: 12 | D25: 3208 | E25: 14 | F25: 3236 | K25: 0 | L25: 111 | O25: % target
A26: 11 | B26: 3334 | C26: 12 | D26: 3358 | E26: 14 | F26: 3364 | K26: 0 | L26: 111 | O26: CCRF
A27: 11 | B27: 3460 | C27: 12 | D27: 3478 | E27: 14 | F27: 3508 | K27: 0 | L27: 111 | O27: % CCRf
A28: 11 | B28: 3646 | C28: 12 | D28: 3692 | E28: 14 | F28: 3705 | K28: 0 | L28: 111 | O28: average response rate | P28: =F27/P20 -> 167.047619 | Q28: =(F48-F27)/Q20 -> 142.7142857 | R28: =(F70-F48)/R20 -> 147.6818182 | S28: =(F91-F70)/S20 -> 148.6666667 | T28: =(F112-F91)/T20 -> 149.3333333 | U28: =(F133-F112)/U20 -> 238.2857143
A29: 11 | B29: 3802 | C29: 12 | D29: 3829 | E29: 14 | F29: 3832 | K29: 0 | L29: 111
A30: 11 | B30: 3931 | C30: 12 | D30: 3982 | E30: 14 | F30: 3989 | K30: 0 | L30: 111
A31: 11 | B31: 4087 | C31: 12 | D31: 4114 | E31: 14 | F31: 4119 | K31: 0 | L31: 111
A32: 11 | B32: 4235 | C32: 12 | D32: 4263 | E32: 14 | F32: 4274 | K32: 0 | L32: 111
A33: 11 | B33: 4369 | C33: 12 | D33: 4399 | E33: 14 | F33: 4449 | K33: 0 | L33: 111
A34: 11 | B34: 4545 | C34: 12 | D34: 4583 | E34: 14 | F34: 4590 | K34: 0 | L34: 111
A35: 11 | B35: 4732 | C35: 12 | D35: 4739 | E35: 14 | F35: 4745 | K35: 0 | L35: 111
A36: 11 | B36: 4841 | C36: 12 | D36: 4873 | E36: 14 | F36: 4879 | K36: 0 | L36: 111
A37: 11 | B37: 4973 | C37: 12 | D37: 4999 | E37: 14 | F37: 5001 | K37: 0 | L37: 111
A38: 11 | B38: 5093 | C38: 12 | D38: 5129 | E38: 14 | F38: 5136 | K38: 0 | L38: 111
A39: 11 | B39: 5231 | C39: 12 | D39: 5266 | E39: 14 | F39: 5268 | K39: 0 | L39: 111
A40: 11 | B40: 5365 | C40: 12 | D40: 5367 | E40: 14 | F40: 5394 | K40: 0 | L40: 111
A41: 11 | B41: 5489 | C41: 12 | D41: 5517 | E41: 14 | F41: 5519 | K41: 0 | L41: 111
A42: 11 | B42: 5636 | C42: 12 | D42: 5663 | E42: 14 | F42: 5669 | K42: 0 | L42: 111
A43: 11 | B43: 5770 | C43: 12 | D43: 5806 | E43: 14 | F43: 5811 | K43: 0 | L43: 111
A44: 11 | B44: 5931 | C44: 12 | D44: 5952 | E44: 14 | F44: 5958 | K44: 0 | L44: 111
A45: 11 | B45: 6054 | C45: 12 | D45: 6088 | E45: 14 | F45: 6093 | K45: 0 | L45: 111
A46: 11 | B46: 6189 | C46: 12 | D46: 6217 | E46: 14 | F46: 6223 | K46: 0 | L46: 111
A47: 11 | B47: 6320 | C47: 12 | D47: 6363 | E47: 14 | F47: 6369 | K47: 0 | L47: 111
A48: 11 | B48: 6465 | C48: 12 | D48: 6499 | E48: 14 | F48: 6505 | K48: 0 | L48: 111
A49: 11 | B49: 6599 | C49: 12 | D49: 6604 | E49: 14 | F49: 6651 | K49: 0 | L49: 111
A50: 11 | B50: 6796 | C50: 12 | D50: 6838 | E50: 14 | F50: 6844 | K50: 0 | L50: 111
A51: 11 | B51: 6943 | C51: 12 | D51: 6969 | E51: 14 | F51: 6976 | K51: 0 | L51: 111
A52: 11 | B52: 7073 | C52: 12 | D52: 7108 | E52: 14 | F52: 7114 | K52: 0 | L52: 111
A53: 11 | B53: 7269 | C53: 12 | D53: 7274 | E53: 14 | F53: 7313 | K53: 0 | L53: 111
A54: 11 | B54: 7409 | C54: 12 | D54: 7415 | E54: 14 | F54: 7452 | K54: 0 | L54: 111
A55: 11 | B55: 7549 | C55: 12 | D55: 7586 | E55: 14 | F55: 7592 | K55: 0 | L55: 111
A56: 11 | B56: 7687 | C56: 12 | D56: 7715 | E56: 14 | F56: 7753 | K56: 0 | L56: 111
A57: 11 | B57: 7858 | C57: 12 | D57: 7866 | E57: 14 | F57: 7892 | K57: 0 | L57: 111
A58: 11 | B58: 8021 | C58: 12 | D58: 8046 | E58: 14 | F58: 8051 | K58: 0 | L58: 111
A59: 11 | B59: 8147 | C59: 12 | D59: 8176 | E59: 14 | F59: 8181 | K59: 0 | L59: 111
A60: 11 | B60: 8294 | C60: 12 | D60: 8319 | E60: 14 | F60: 8354 | K60: 0 | L60: 111
A61: 11 | B61: 8451 | C61: 12 | D61: 8471 | E61: 14 | F61: 8479 | K61: 0 | L61: 111
A62: 11 | B62: 8575 | C62: 12 | D62: 8615 | E62: 14 | F62: 8622 | K62: 0 | L62: 111
A63: 11 | B63: 8718 | C63: 12 | D63: 8723 | E63: 14 | F63: 8757 | K63: 0 | L63: 111
A64: 11 | B64: 8853 | C64: 12 | D64: 8858 | E64: 14 | F64: 8901 | K64: 0 | L64: 111
A65: 11 | B65: 8998 | C65: 12 | D65: 9003 | E65: 14 | F65: 9028 | K65: 0 | L65: 111
A66: 11 | B66: 9129 | C66: 12 | D66: 9173 | E66: 14 | F66: 9179 | K66: 0 | L66: 111
A67: 11 | B67: 9288 | C67: 12 | D67: 9320 | E67: 14 | F67: 9327 | K67: 0 | L67: 111
A68: 11 | B68: 9428 | C68: 12 | D68: 9433 | E68: 14 | F68: 9472 | K68: 0 | L68: 111
A69: 11 | B69: 9576 | C69: 12 | D69: 9581 | E69: 14 | F69: 9619 | K69: 0 | L69: 111
A70: 11 | B70: 9722 | C70: 12 | D70: 9727 | E70: 14 | F70: 9754 | K70: 0 | L70: 111
A71: 11 | B71: 9861 | C71: 12 | D71: 9897 | E71: 14 | F71: 9902 | K71: 0 | L71: 111
A72: 11 | B72: 9997 | C72: 12 | D72: 10003 | E72: 14 | F72: 10040 | K72: 0 | L72: 111
A73: 11 | B73: 10142 | C73: 12 | D73: 10192 | E73: 14 | F73: 10199 | K73: 0 | L73: 111
A74: 11 | B74: 10310 | C74: 12 | D74: 10338 | E74: 14 | F74: 10344 | K74: 0 | L74: 111
A75: 11 | B75: 10445 | C75: 12 | D75: 10449 | E75: 14 | F75: 10479 | K75: 0 | L75: 111
A76: 11 | B76: 10576 | C76: 12 | D76: 10581 | E76: 14 | F76: 10616 | K76: 0 | L76: 111
A77: 11 | B77: 10746 | C77: 12 | D77: 10777 | E77: 14 | F77: 10791 | K77: 0 | L77: 111
A78: 11 | B78: 10886 | C78: 12 | D78: 10928 | E78: 14 | F78: 10934 | K78: 0 | L78: 111
A79: 11 | B79: 11088 | C79: 12 | D79: 11093 | E79: 14 | F79: 11124 | K79: 0 | L79: 111
A80: 11 | B80: 11220 | C80: 12 | D80: 11226 | E80: 14 | F80: 11258 | K80: 0 | L80: 111
A81: 11 | B81: 11356 | C81: 12 | D81: 11388 | E81: 14 | F81: 11406 | K81: 0 | L81: 111
A82: 11 | B82: 11504 | C82: 12 | D82: 11508 | E82: 14 | F82: 11534 | K82: 0 | L82: 111
A83: 11 | B83: 11631 | C83: 12 | D83: 11635 | E83: 14 | F83: 11669 | K83: 0 | L83: 111
A84: 11 | B84: 11766 | C84: 12 | D84: 11814 | E84: 14 | F84: 11820 | K84: 0 | L84: 111
A85: 11 | B85: 11917 | C85: 12 | D85: 11957 | E85: 14 | F85: 11968 | K85: 0 | L85: 111
A86: 11 | B86: 12063 | C86: 12 | D86: 12068 | E86: 14 | F86: 12103 | K86: 0 | L86: 111
A87: 11 | B87: 12267 | C87: 12 | D87: 12275 | E87: 14 | F87: 12314 | K87: 0 | L87: 111
A88: 11 | B88: 12410 | C88: 12 | D88: 12414 | E88: 14 | F88: 12448 | K88: 0 | L88: 111
A89: 11 | B89: 12545 | C89: 12 | D89: 12559 | E89: 14 | F89: 12588 | K89: 0 | L89: 111
A90: 11 | B90: 12686 | C90: 12 | D90: 12691 | E90: 14 | F90: 12732 | K90: 0 | L90: 111
A91: 11 | B91: 12828 | C91: 12 | D91: 12842 | E91: 14 | F91: 12876 | K91: 0 | L91: 111
A92: 11 | B92: 12975 | C92: 12 | D92: 13023 | E92: 14 | F92: 13029 | K92: 0 | L92: 111
A93: 11 | B93: 13137 | C93: 12 | D93: 13164 | E93: 14 | F93: 13169 | K93: 0 | L93: 111
A94: 11 | B94: 13266 | C94: 12 | D94: 13273 | E94: 14 | F94: 13314 | K94: 0 | L94: 111
A95: 11 | B95: 13417 | C95: 12 | D95: 13467 | E95: 14 | F95: 13478 | K95: 0 | L95: 111
A96: 11 | B96: 13575 | C96: 12 | D96: 13606 | E96: 14 | F96: 13612 | K96: 0 | L96: 111
A97: 11 | B97: 13707 | C97: 12 | D97: 13734 | E97: 14 | F97: 13740 | K97: 0 | L97: 111
A98: 11 | B98: 13836 | C98: 12 | D98: 13841 | E98: 14 | F98: 13869 | K98: 0 | L98: 111
A99: 11 | B99: 14008 | C99: 12 | D99: 14014 | E99: 14 | F99: 14021 | K99: 0 | L99: 111
A100: 11 | B100: 14124 | C100: 12 | D100: 14166 | E100: 14 | F100: 14172 | K100: 0 | L100: 111
A101: 11 | B101: 14268 | C101: 12 | D101: 14304 | E101: 14 | F101: 14315 | K101: 0 | L101: 111
A102: 11 | B102: 14443 | C102: 12 | D102: 14450 | E102: 14 | F102: 14456 | K102: 0 | L102: 111
A103: 11 | B103: 14553 | C103: 12 | D103: 14559 | E103: 14 | F103: 14588 | K103: 0 | L103: 111
A104: 11 | B104: 14852 | C104: 12 | D104: 14863 | E104: 14 | F104: 14887 | K104: 0 | L104: 111
A105: 11 | B105: 14983 | C105: 12 | D105: 14988 | E105: 14 | F105: 15015 | K105: 0 | L105: 111
A106: 11 | B106: 15110 | C106: 12 | D106: 15116 | E106: 14 | F106: 15166 | K106: 0 | L106: 111
A107: 11 | B107: 15263 | C107: 12 | D107: 15266 | E107: 14 | F107: 15299 | K107: 0 | L107: 111
A108: 11 | B108: 15410 | C108: 12 | D108: 15427 | E108: 14 | F108: 15433 | K108: 0 | L108: 111
A109: 11 | B109: 15530 | C109: 12 | D109: 15534 | E109: 14 | F109: 15561 | K109: 0 | L109: 111
A110: 11 | B110: 15661 | C110: 12 | D110: 15699 | E110: 14 | F110: 15704 | K110: 0 | L110: 111
A111: 11 | B111: 15798 | C111: 12 | D111: 15869 | E111: 14 | F111: 15875 | K111: 0 | L111: 111
A112: 11 | B112: 15970 | C112: 12 | D112: 16006 | E112: 14 | F112: 16012 | K112: 0 | L112: 111
A113: 11 | B113: 16107 | C113: 12 | D113: 16111 | E113: 14 | F113: 16156 | K113: 0 | L113: 111
A114: 11 | B114: 16254 | C114: 12 | D114: 16260 | E114: 14 | F114: 16294 | K114: 0 | L114: 111
A115: 11 | B115: 16389 | C115: 12 | D115: 16429 | E115: 14 | F115: 16444 | K115: 0 | L115: 111
A116: 11 | B116: 16541 | C116: 12 | D116: 16580 | E116: 14 | F116: 16623 | K116: 0 | L116: 111
A117: 11 | B117: 16759 | C117: 12 | D117: 16765 | E117: 14 | F117: 16771 | K117: 0 | L117: 111
A118: 11 | B118: 16874 | C118: 12 | D118: 16904 | E118: 14 | F118: 16909 | K118: 0 | L118: 111
A119: 11 | B119: 17035 | C119: 12 | D119: 17039 | E119: 14 | F119: 17052 | K119: 0 | L119: 111
A120: 11 | B120: 17151 | C120: 12 | D120: 17189 | E120: 14 | F120: 17196 | K120: 0 | L120: 111
A121: 11 | B121: 17302 | C121: 12 | D121: 17368 | E121: 14 | F121: 17380 | K121: 0 | L121: 111
A122: 11 | B122: 17491 | C122: 12 | D122: 17496 | E122: 14 | F122: 17550 | K122: 0 | L122: 111
A123: 11 | B123: 17683 | C123: 12 | D123: 17688 | E123: 14 | F123: 17722 | K123: 0 | L123: 111
A124: 11 | B124: 18278 | C124: 12 | D124: 18336 | E124: 14 | F124: 18342 | K124: 0 | L124: 111
A125: 11 | B125: 18479 | C125: 12 | D125: 18485 | E125: 14 | F125: 18549 | K125: 0 | L125: 111
A126: 11 | B126: 18686 | C126: 12 | D126: 18737 | E126: 14 | F126: 18739 | K126: 0 | L126: 111
A127: 11 | B127: 18862 | C127: 12 | D127: 18946 | E127: 14 | F127: 19021 | K127: 0 | L127: 111
A128: 11 | B128: 19144 | C128: 12 | D128: 19221 | E128: 14 | F128: 19310 | K128: 0 | L128: 111
A129: 11 | B129: 19469 | C129: 12 | D129: 19476 | E129: 14 | F129: 19512 | K129: 0 | L129: 111
A130: 11 | B130: 19761 | C130: 12 | D130: 19767 | E130: 14 | F130: 19773 | K130: 0 | L130: 111
A131: 11 | B131: 19988 | C131: 12 | D131: 20422 | E131: 14 | F131: 20446 | K131: 0 | L131: 111
A132: 11 | B132: 20764 | C132: 12 | D132: 20873 | E132: 14 | F132: 20879 | K132: 0 | L132: 111
A133: 11 | B133: 21004 | C133: 12 | D133: 21011 | E133: 14 | F133: 21016 | K133: 0 | L133: 111

Sheet !LA11A12..Is
A1: Report for:!LA11A12..Is
A2: Date: | B2: <date>
A3: Hen: | B3: <hen> | F3: Correct Sequence | G3: =Start!J2 -> 122 | P3: Total Sequences in Data | Q3: =4994-COUNTBLANK(L7:L5000) -> 115 | V3: Total Sequences in Block Data | W3: =COUNTA(L7:L25) -> 19 | AA3: Total Sequences in Block Data | AB3: =COUNTA(L26:L44) -> 19 | AF3: Total Sequences in Block Data | AG3: =COUNTA(L45:L64) -> 20 | AK3: Total Sequences in Block Data | AL3: =COUNTA(L65:L83) -> 19 | AP3: Total Sequences in Block Data | AQ3: =COUNTA(L84:L102) -> 19 | AU3: Total Sequences in Block Data | AV3: =COUNTA(L103:L121) -> 19
P4: Total Sequences in Summary | Q4: =SUM(O7:O14) -> 115 | V4: Total Sequences in Block Summary | W4: =SUM(U7:U14) -> 19 | AA4: Total Sequences in Block Summary | AB4: =SUM(Z7:Z14) -> 19 | AF4: Total Sequences in Block Summary | AG4: =SUM(AE7:AE14) -> 20 | AK4: Total Sequences in Block Summary | AL4: =SUM(AJ7:AJ14) -> 19 | AP4: Total Sequences in Block Summary | AQ4: =SUM(AO7:AO14) -> 19 | AU4: Total Sequences in Block Summary | AV4: =SUM(AT7:AT14) -> 19
T5: Block 1 | Y5: Block 2 | AD5: Block 3 | AI5: Block 4 | AN5: Block 5 | AS5: Block 6
A6: Sequence Component 1 | B6: Time 1 | C6: Sequence Component 2 | D6: Time 2 | E6: Sequence Component 3 | F6: Time 3 | G6: Sequence Component 4 | H6: Time 4 | I6: Sequence Component 5 | J6: Time 5 | K6: Correct? 0=No 1=Yes | L6: Sequence | N6: Frequency | P6: Relative Frequency | Q6: Variability | T6: Frequency | V6: Relative Frequency | W6: Variability | Y6: Frequency | AA6: Relative Frequency | AB6: Variability | AD6: Frequency | AF6: Relative Frequency | AG6: Variability | AI6: Frequency | AK6: Relative Frequency | AL6: Variability | AN6: Frequency | AP6: Relative Frequency | AQ6: Variability | AS6: Frequency | AU6: Relative Frequency | AV6: Variability
A7: 11 | B7: 16 | C7: 12 | D7: 21 | E7: 23 | F7: 29 | K7: 0 | L7: 112 | N7: 111 | O7: =COUNTIF($L$7:$L$500,N7) -> 1 | P7: =O7/$Q$4 -> 0.008695652174 | Q7: =IF(P7=0,0,(P7*((LOG(P7))/LOG(2)))) -> -0.05952600044 | T7: =N7 -> 111 | U7: =COUNTIF(L7:L25,T7) -> 1 | V7: =U7/(W4-U10) -> 0.08333333333 | W7: =IF(V7=0,0,(V7*((LOG(V7))/LOG(2)))) -> -0.2987468751 | Y7: =N7 -> 111 | Z7: =COUNTIF(L26:L44,Y7) -> 0 | AA7: =Z7/(AB4-Z10) -> 0 | AB7: =IF(AA7=0,0,(AA7*((LOG(AA7))/LOG(2)))) -> 0 | AD7: =N7 -> 111 | AE7: =COUNTIF(L45:L64,AD7) -> 0 | AF7: =AE7/(AG4-AE10) -> 0 | AG7: =IF(AF7=0,0,(AF7*((LOG(AF7))/LOG(2)))) -> 0 | AI7: =N7 -> 111 | AJ7: =COUNTIF(L65:L83,AI7) -> 0 | AK7: =AJ7/(AL4-AJ10) -> 0 | AL7: =IF(AK7=0,0,(AK7*((LOG(AK7))/LOG(2)))) -> 0 | AN7: =N7 -> 111 | AO7: =COUNTIF(L84:L102,AN7) -> 0 | AP7: =AO7/(AQ4-AO10) -> 0 | AQ7: =IF(AP7=0,0,(AP7*((LOG(AP7))/LOG(2)))) -> 0 | AS7: =N7 -> 111 | AT7: =COUNTIF(L103:L121,AS7) -> 0 | AU7: =AT7/(AV4-AT10) -> 0 | AV7: =IF(AU7=0,0,(AU7*((LOG(AU7))/LOG(2)))) -> 0
A8: 11 | B8: 134 | C8: 12 | D8: 146 | E8: 14 | F8: 153 | K8: 0 | L8: 111 | N8: 112 | O8: =COUNTIF($L$7:$L$500,N8) -> 3 | P8: =O8/$Q$4 -> 0.02608695652 | Q8: =IF(P8=0,0,(P8*((LOG(P8))/LOG(2)))) -> -0.1372311535 | T8: =N8 -> 112 | U8: =COUNTIF(L7:L25,T8) -> 2 | V8: =U8/(W4-U10) -> 0.1666666667 | W8: =IF(V8=0,0,(V8*((LOG(V8))/LOG(2)))) -> -0.4308270835 | Y8: =N8 -> 112 | Z8: =COUNTIF(L26:L44,Y8) -> 1 | AA8: =Z8/(AB4-Z10) -> 0.07142857143 | AB8: =IF(AA8=0,0,(AA8*((LOG(AA8))/LOG(2)))) -> -0.271953923 | AD8: =N8 -> 112 | AE8: =COUNTIF(L45:L64,AD8) -> 0 | AF8: =AE8/(AG4-AE10) -> 0 | AG8: =IF(AF8=0,0,(AF8*((LOG(AF8))/LOG(2)))) -> 0 | AI8: =N8 -> 112 | AJ8: =COUNTIF(L65:L83,AI8) -> 0 | AK8: =AJ8/(AL4-AJ10) -> 0 | AL8: =IF(AK8=0,0,(AK8*((LOG(AK8))/LOG(2)))) -> 0 | AN8: =N8 -> 112 | AO8: =COUNTIF(L84:L102,AN8) -> 0 | AP8: =AO8/(AQ4-AO10) -> 0 | AQ8: =IF(AP8=0,0,(AP8*((LOG(AP8))/LOG(2)))) -> 0 | AS8: =N8 -> 112 | AT8: =COUNTIF(L103:L121,AS8) -> 0 | AU8: =AT8/(AV4-AT10) -> 0 | AV8: =IF(AU8=0,0,(AU8*((LOG(AU8))/LOG(2)))) -> 0
A9: 11 | B9: 255 | C9: 21 | D9: 265 | E9: 21 | F9: 270 | K9: 0 | L9: 122 | N9: 121 | O9: =COUNTIF($L$7:$L$500,N9) -> 1 | P9: =O9/$Q$4 -> 0.008695652174 | Q9: =IF(P9=0,0,(P9*((LOG(P9))/LOG(2)))) -> -0.05952600044 | T9: =N9 -> 121 | U9: =COUNTIF(L7:L25,T9) -> 1 | V9: =U9/(W4-U10) -> 0.08333333333 | W9: =IF(V9=0,0,(V9*((LOG(V9))/LOG(2)))) -> -0.2987468751 | Y9: =N9 -> 121 | Z9: =COUNTIF(L26:L44,Y9) -> 0 | AA9: =Z9/(AB4-Z10) -> 0 | AB9: =IF(AA9=0,0,(AA9*((LOG(AA9))/LOG(2)))) -> 0 | AD9: =N9 -> 121 | AE9: =COUNTIF(L45:L64,AD9) -> 0 | AF9: =AE9/(AG4-AE10) -> 0 | AG9: =IF(AF9=0,0,(AF9*((LOG(AF9))/LOG(2)))) -> 0 | AI9: =N9 -> 121 | AJ9: =COUNTIF(L65:L83,AI9) -> 0 | AK9: =AJ9/(AL4-AJ10) -> 0 | AL9: =IF(AK9=0,0,(AK9*((LOG(AK9))/LOG(2)))) -> 0 | AN9: =N9 -> 121 | AO9: =COUNTIF(L84:L102,AN9) -> 0 | AP9: =AO9/(AQ4-AO10) -> 0 | AQ9: =IF(AP9=0,0,(AP9*((LOG(AP9))/LOG(2)))) -> 0 | AS9: =N9 -> 121 | AT9: =COUNTIF(L103:L121,AS9) -> 0 | AU9: =AT9/(AV4-AT10) -> 0 | AV9: =IF(AU9=0,0,(AU9*((LOG(AU9))/LOG(2)))) -> 0
A10: 11 | B10: 418 | C10: 21 | D10: 433 | E10: 21 | F10: 439 | K10: 0 | L10: 122 | N10: 122 | O10: =COUNTIF($L$7:$L$500,N10) -> 40 | P10: =O10/$Q$4 -> 0.347826087 | Q10: =IF(P10=0,0,(P10*((LOG(P10))/LOG(2)))) -> -0.5299345934 | T10: =N10 -> 122 | U10: =COUNTIF(L7:L25,T10) -> 7 | Y10: =N10 -> 122 | Z10: =COUNTIF(L26:L44,Y10) -> 5 | AD10: =N10 -> 122 | AE10: =COUNTIF(L45:L64,AD10) -> 6 | AI10: =N10 -> 122 | AJ10: =COUNTIF(L65:L83,AI10) -> 6 | AN10: =N10 -> 122 | AO10: =COUNTIF(L84:L102,AN10) -> 6 | AS10: =N10 -> 122 | AT10: =COUNTIF(L103:L121,AS10) -> 10
A11: 22 | B11: 636 | C11: 23 | D11: 649 | E11: 23 | F11: 658 | K11: 0 | L11: 222 | N11: 211 | O11: =COUNTIF($L$7:$L$500,N11) -> 1 | P11: =O11/$Q$4 -> 0.008695652174 | Q11: =IF(P11=0,0,(P11*((LOG(P11))/LOG(2)))) -> -0.05952600044 | T11: =N11 -> 211 | U11: =COUNTIF(L7:L25,T11) -> 1 | V11: =U11/(W4-U10) -> 0.08333333333 | W11: =IF(V11=0,0,(V11*((LOG(V11))/LOG(2)))) -> -0.2987468751 | Y11: =N11 -> 211 | Z11: =COUNTIF(L26:L44,Y11) -> 0 | AA11: =Z11/(AB4-Z10) -> 0 | AB11: =IF(AA11=0,0,(AA11*((LOG(AA11))/LOG(2)))) -> 0 | AD11: =N11 -> 211 | AE11: =COUNTIF(L45:L64,AD11) -> 0 | AF11: =AE11/(AG4-AE10) -> 0 | AG11: =IF(AF11=0,0,(AF11*((LOG(AF11))/LOG(2)))) -> 0 | AI11: =N11 -> 211 | AJ11: =COUNTIF(L65:L83,AI11) -> 0 | AK11: =AJ11/(AL4-AJ10) -> 0 | AL11: =IF(AK11=0,0,(AK11*((LOG(AK11))/LOG(2)))) -> 0 | AN11: =N11 -> 211 | AO11: =COUNTIF(L84:L102,AN11) -> 0 | AP11: =AO11/(AQ4-AO10) -> 0 | AQ11: =IF(AP11=0,0,(AP11*((LOG(AP11))/LOG(2)))) -> 0 | AS11: =N11 -> 211 | AT11: =COUNTIF(L103:L121,AS11) -> 0 | AU11: =AT11/(AV4-AT10) -> 0 | AV11: =IF(AU11=0,0,(AU11*((LOG(AU11))/LOG(2)))) -> 0
A12: 11 | B12: 775 | C12: 21 | D12: 783 | E12: 21 | F12: 788 | K12: 0 | L12: 122 | N12: 212 | O12: =COUNTIF($L$7:$L$500,N12) -> 0 | P12: =O12/$Q$4 -> 0 | Q12: =IF(P12=0,0,(P12*((LOG(P12))/LOG(2)))) -> 0 | T12: =N12 -> 212 | U12: =COUNTIF(L7:L25,T12) -> 0 | V12: =U12/(W4-U10) -> 0 | W12: =IF(V12=0,0,(V12*((LOG(V12))/LOG(2)))) -> 0 | Y12: =N12 -> 212 | Z12: =COUNTIF(L26:L44,Y12) -> 0 | AA12: =Z12/(AB4-Z10) -> 0 | AB12: =IF(AA12=0,0,(AA12*((LOG(AA12))/LOG(2)))) -> 0 | AD12: =N12 -> 212 | AE12: =COUNTIF(L45:L64,AD12) -> 0 | AF12: =AE12/(AG4-AE10) -> 0 | AG12: =IF(AF12=0,0,(AF12*((LOG(AF12))/LOG(2)))) -> 0 | AI12: =N12 -> 212 | AJ12: =COUNTIF(L65:L83,AI12) -> 0 | AK12: =AJ12/(AL4-AJ10) -> 0 | AL12: =IF(AK12=0,0,(AK12*((LOG(AK12))/LOG(2)))) -> 0 | AN12: =N12 -> 212 | AO12: =COUNTIF(L84:L102,AN12) -> 0 | AP12: =AO12/(AQ4-AO10) -> 0 | AQ12: =IF(AP12=0,0,(AP12*((LOG(AP12))/LOG(2)))) -> 0 | AS12: =N12 -> 212 | AT12: =COUNTIF(L103:L121,AS12) -> 0 | AU12: =AT12/(AV4-AT10) -> 0 | AV12: =IF(AU12=0,0,(AU12*((LOG(AU12))/LOG(2)))) -> 0
A13: 22 | B13: 901 | C13: 23 | D13: 906 | E13: 23 | F13: 913 | K13: 0 | L13: 222 | N13: 221 | O13: =COUNTIF($L$7:$L$500,N13) -> 0 | P13: =O13/$Q$4 -> 0 | Q13: =IF(P13=0,0,(P13*((LOG(P13))/LOG(2)))) -> 0 | T13: =N13 -> 221 | U13: =COUNTIF(L7:L25,T13) -> 0 | V13: =U13/(W4-U10) -> 0 | W13: =IF(V13=0,0,(V13*((LOG(V13))/LOG(2)))) -> 0 | Y13: =N13 -> 221 | Z13: =COUNTIF(L26:L44,Y13) -> 0 | AA13: =Z13/(AB4-Z10) -> 0 | AB13: =IF(AA13=0,0,(AA13*((LOG(AA13))/LOG(2)))) -> 0 | AD13: =N13 -> 221 | AE13: =COUNTIF(L45:L64,AD13) -> 0 | AF13: =AE13/(AG4-AE10) -> 0 | AG13: =IF(AF13=0,0,(AF13*((LOG(AF13))/LOG(2)))) -> 0 | AI13: =N13 -> 221 | AJ13: =COUNTIF(L65:L83,AI13) -> 0 | AK13: =AJ13/(AL4-AJ10) -> 0 | AL13: =IF(AK13=0,0,(AK13*((LOG(AK13))/LOG(2)))) -> 0 | AN13: =N13 -> 221 | AO13: =COUNTIF(L84:L102,AN13) -> 0 | AP13: =AO13/(AQ4-AO10) -> 0 | AQ13: =IF(AP13=0,0,(AP13*((LOG(AP13))/LOG(2)))) -> 0 | AS13: =N13 -> 221 | AT13: =COUNTIF(L103:L121,AS13) -> 0 | AU13: =AT13/(AV4-AT10) -> 0 | AV13: =IF(AU13=0,0,(AU13*((LOG(AU13))/LOG(2)))) -> 0
A14: 11 | B14: 1011 | C14: 12 | D14: 1015 | E14: 23 | F14: 1025 | K14: 0 | L14: 112 | N14: 222 | O14: =COUNTIF($L$7:$L$500,N14) -> 69 | P14: =O14/$Q$4 -> 0.6 | Q14: =IF(P14=0,0,(P14*((LOG(P14))/LOG(2)))) -> -0.4421793565 | T14: =N14 -> 222 | U14: =COUNTIF(L7:L25,T14) -> 7 | V14: =U14/(W4-U10) -> 0.5833333333 | W14: =IF(V14=0,0,(V14*((LOG(V14))/LOG(2)))) -> -0.4536044209 | Y14: =N14 -> 222 | Z14: =COUNTIF(L26:L44,Y14) -> 13 | AA14: =Z14/(AB4-Z10) -> 0.9285714286 | AB14: =IF(AA14=0,0,(AA14*((LOG(AA14))/LOG(2)))) -> -0.09927840364 | AD14: =N14 -> 222 | AE14: =COUNTIF(L45:L64,AD14) -> 14 | AF14: =AE14/(AG4-AE10) -> 1 | AG14: =IF(AF14=0,0,(AF14*((LOG(AF14))/LOG(2)))) -> 0 | AI14: =N14 -> 222 | AJ14: =COUNTIF(L65:L83,AI14) -> 13 | AK14: =AJ14/(AL4-AJ10) -> 1 | AL14: =IF(AK14=0,0,(AK14*((LOG(AK14))/LOG(2)))) -> 0 | AN14: =N14 -> 222 | AO14: =COUNTIF(L84:L102,AN14) -> 13 | AP14: =AO14/(AQ4-AO10) -> 1 | AQ14: =IF(AP14=0,0,(AP14*((LOG(AP14))/LOG(2)))) -> 0 | AS14: =N14 -> 222 | AT14: =COUNTIF(L103:L121,AS14) -> 9 | AU14: =AT14/(AV4-AT10) -> 1 | AV14: =IF(AU14=0,0,(AU14*((LOG(AU14))/LOG(2)))) -> 0
A15: 11 | B15: 1122 | C15: 21 | D15: 1133 | E15: 21 | F15: 1141 | K15: 0 | L15: 122 | P15: =SUM(P7:P14) -> 1 | Q15: =-SUM(Q7:Q14) -> 1.287923105 | V15: =SUM(V7:V14) -> 1 | W15: =-SUM(W7:W14) -> 1.78067213 | AA15: =SUM(AA7:AA14) -> 1 | AB15: =-SUM(AB7:AB14) -> 0.3712323266 | AF15: =SUM(AF7:AF14) -> 1 | AG15: =-SUM(AG7:AG14) -> 0 | AK15: =SUM(AK7:AK14) -> 1 | AL15: =-SUM(AL7:AL14) -> 0 | AP15: =SUM(AP7:AP14) -> 1 | AQ15: =-SUM(AQ7:AQ14) -> 0 | AU15: =SUM(AU7:AU14) -> 1 | AV15: =-SUM(AV7:AV14) -> 0
A16: 22 | B16: 1298 | C16: 23 | D16: 1303 | E16: 23 | F16: 1309 | K16: 0 | L16: 222 | P16: U= | Q16: =Q15/(LOG(Q4)/LOG(2)) -> 0.1881418416 | V16: U1= | W16: =W15/(LOG(W4)/LOG(2)) -> 0.4191860911 | AA16: U2= | AB16: =AB15/(LOG(AB4)/LOG(2)) -> 0.08739139862 | AF16: U3= | AG16: =AG15/(LOG(AG4)/LOG(2)) -> 0 | AK16: U4= | AL16: =AL15/(LOG(AL4)/LOG(2)) -> 0 | AP16: U5= | AQ16: =AQ15/(LOG(AQ4)/LOG(2)) -> 0 | AU16: U6= | AV16: =AV15/(LOG(AV4)/LOG(2)) -> 0
A17: 22 | B17: 1413 | C17: 23 | D17: 1425 | E17: 23 | F17: 1437 | K17: 0 | L17: 222
A18: 11 | B18: 1571 | C18: 21 | D18: 1581 | E18: 12 | F18: 1595 | K18: 0 | L18: 121
A19: 22 | B19: 1693 | C19: 14 | D19: 1700 | E19: 14 | F19: 1704 | K19: 0 | L19: 211 | N19: Total Target Seq
A20: 11 | B20: 1800 | C20: 21 | D20: 1808 | E20: 21 | F20: 1812 | K20: 0 | L20: 122 | N20: =COUNTIF(L7:L121,G3) -> 40 | P20: 19 | Q20: 19 | R20: 20 | S20: 19 | T20: 19 | U20: 19
A21: 11 | B21: 1986 | C21: 21 | D21: 1998 | E21: 21 | F21: 2002 | K21: 0 | L21: 122 | P21: % of reinforcement given in 6 equal intervals based on number of trials
A22: 11 | B22: 2153 | C22: 21 | D22: 2163 | E22: 21 | F22: 2167 | K22: 0 | L22: 122 | P22: %_1 | Q22: %_2 | R22: %_3 | S22: %_4 | T22: %_5 | U22: %_6
A23: 22 | B23: 2325 | C23: 23 | D23: 2330 | E23: 23 | F23: 2336 | K23: 0 | L23: 222 | O23: target sequence | P23: =$G$3 -> 122 | Q23: =$G$3 -> 122 | R23: =$G$3 -> 122 | S23: =$G$3 -> 122 | T23: =$G$3 -> 122 | U23: =$G$3 -> 122
A24: 22 | B24: 2441 | C24: 23 | D24: 2447 | E24: 23 | F24: 2454 | K24: 0 | L24: 222 | O24: total reinforcement | P24: =U10 -> 7 | Q24: =Z10 -> 5 | R24: =AE10 -> 6 | S24: =AJ10 -> 6 | T24: =AO10 -> 6 | U24: =AT10 -> 10
A25: 22 | B25: 2557 | C25: 23 | D25: 2562 | E25: 23 | F25: 2568 | K25: 0 | L25: 222 | O25: % target
A26: 22 | B26: 2670 | C26: 23 | D26: 2674 | E26: 23 | F26: 2687 | K26: 0 | L26: 222 | O26: CCRF
A27: 22 | B27: 2790 | C27: 23 | D27: 2794 | E27: 23 | F27: 2798 | K27: 0 | L27: 222 | O27: % CCRf
A28: 11 | B28: 2894 | C28: 21 | D28: 2907 | E28: 21 | F28: 2913 | K28: 0 | L28: 122 | O28: average response rate | P28: =F25/P20 -> 135.1578947 | Q28: =(F44-F25)/Q20 -> 119.4736842 | R28: =(F64-F44)/R20 -> 129.6 | S28: =(F83-F64)/S20 -> 130.3157895 | T28: =(F102-F83)/T20 -> 124.7894737 | U28: =(F121-F102)/U20 -> 133.2631579
A29: 22 | B29: 3055 | C29: 23 | D29: 3059 | E29: 23 | F29: 3065 | K29: 0 | L29: 222
A30: 22 | B30: 3167 | C30: 23 | D30: 3171 | E30: 23 | F30: 3176 | K30: 0 | L30: 222
A31: 22 | B31: 3275 | C31: 23 | D31: 3280 | E31: 23 | F31: 3289 | K31: 0 | L31: 222
A32: 22 | B32: 3392 | C32: 23 | D32: 3395 | E32: 23 | F32: 3404 | K32: 0 | L32: 222
A33: 22 | B33: 3510 | C33: 23 | D33: 3518 | E33: 23 | F33: 3528 | K33: 0 | L33: 222
A34: 11 | B34: 3627 | C34: 21 | D34: 3635 | E34: 21 | F34: 3640 | K34: 0 | L34: 122
A35: 22 | B35: 3762 | C35: 23 | D35: 3765 | E35: 23 | F35: 3773 | K35: 0 | L35: 222
A36: 22 | B36: 3875 | C36: 23 | D36: 3879 | E36: 23 | F36: 3886 | K36: 0 | L36: 222
A37: 22 | B37: 3985 | C37: 23 | D37: 3989 | E37: 23 | F37: 3994 | K37: 0 | L37: 222
A38: 11 | B38: 4090 | C38: 21 | D38: 4099 | E38: 21 | F38: 4102 | K38: 0 | L38: 122
A39: 22 | B39: 4242 | C39: 23 | D39: 4251 | E39: 23 | F39: 4260 | K39: 0 | L39: 222
A40: 22 | B40: 4366 | C40: 23 | D40: 4371 | E40: 23 | F40: 4379 | K40: 0 | L40: 222
A41: 22 | B41: 4483 | C41: 23 | D41: 4488 | E41: 23 | F41: 4500 | K41: 0 | L41: 222
A42: 11 | B42: 4595 | C42: 12 | D42: 4603 | E42: 23 | F42: 4611 | K42: 0 | L42: 112
A43: 11 | B43: 4707 | C43: 21 | D43: 4715 | E43: 21 | F43: 4718 | K43: 0 | L43: 122
A44: 11 | B44: 4819 | C44: 21 | D44: 4828 | E44: 21 | F44: 4838 | K44: 0 | L44: 122
A45: 22 | B45: 4966 | C45: 23 | D45: 4969 | E45: 23 | F45: 4977 | K45: 0 | L45: 222
A46: 22 | B46: 5078 | C46: 23 | D46: 5087 | E46: 23 | F46: 5094 | K46: 0 | L46: 222
A47: 22 | B47: 5224 | C47: 23 | D47: 5231 | E47: 23 | F47: 5238 | K47: 0 | L47: 222
A48: 22 | B48: 5339 | C48: 23 | D48: 5344 | E48: 23 | F48: 5350 | K48: 0 | L48: 222
A49: 11 | B49: 5449 | C49: 21 | D49: 5459 | E49: 21 | F49: 5464 | K49: 0 | L49: 122
A50: 22 | B50: 5595 | C50: 23 | D50: 5600 | E50: 23 | F50: 5606 | K50: 0 | L50: 222
A51: 11 | B51: 5703 | C51: 21 | D51: 5712 | E51: 21 | F51: 5716 | K51: 0 | L51: 122
A52: 11 | B52: 5823 | C52: 21 | D52: 5832 | E52: 21 | F52: 5834 | K52: 0 | L52: 122
A53: 22 | B53: 5963 | C53: 23 | D53: 5971 | E53: 23 | F53: 5979 | K53: 0 | L53: 222
A54: 22 | B54: 6089 | C54: 23 | D54: 6093 | E54: 23 | F54: 6100 | K54: 0 | L54: 222
A55: 22 | B55: 6201 | C55: 23 | D55: 6206 | E55: 23 | F55: 6217 | K55: 0 | L55: 222
A56: 11 | B56: 6310 | C56: 21 | D56: 6318 | E56: 21 | F56: 6322 | K56: 0 | L56: 122
A57: 22 | B57: 6522 | C57: 23 | D57: 6525 | E57: 23 | F57: 6529 | K57: 0 | L57: 222
A58: 22 | B58: 6630 | C58: 23 | D58: 6634 | E58: 23 | F58: 6645 | K58: 0 | L58: 222
A59: 22 | B59: 6750 | C59: 23 | D59: 6754 | E59: 23 | F59: 6760 | K59: 0 | L59: 222
A60: 11 | B60: 6856 | C60: 21 | D60: 6866 | E60: 21 | F60: 6870 | K60: 0 | L60: 122
A61: 11 | B61: 7003 | C61: 21 | D61: 7011 | E61: 21 | F61: 7017 | K61: 0 | L61: 122
A62: 22 | B62: 7190 | C62: 23 | D62: 7193 | E62: 23 | F62: 7200 | K62: 0 | L62: 222
A63: 22 | B63: 7305 | C63: 23 | D63: 7311 | E63: 23 | F63: 7317 | K63: 0 | L63: 222
A64: 22 | B64: 7422 | C64: 23 | D64: 7426 | E64: 23 | F64: 7430 | K64: 0 | L64: 222
A65: 11 | B65: 7540 | C65: 21 | D65: 7550 | E65: 21 | F65: 7555 | K65: 0 | L65: 122
A66: 22 | B66: 7689 | C66: 23 | D66: 7693 | E66: 23 | F66: 7698 | K66: 0 | L66: 222
A67: 11 | B67: 7791 | C67: 21 | D67: 7800 | E67: 21 | F67: 7803 | K67: 0 | L67: 122
A68: 22 | B68: 7962 | C68: 23 | D68: 7966 | E68: 23 | F68: 7971 | K68: 0 | L68: 222
A69: 22 | B69: 8074 | C69: 23 | D69: 8078 | E69: 23 | F69: 8083 | K69: 0 | L69: 222
A70: 11 | B70: 8186 | C70: 21 | D70: 8196 | E70: 21 | F70: 8202 | K70: 0 | L70: 122
A71: 22 | B71: 8382 | C71: 23 | D71: 8386 | E71: 23 | F71: 8392 | K71: 0 | L71: 222
A72: 22 | B72: 8497 | C72: 23 | D72: 8502 | E72: 23 | F72: 8510 | K72: 0 | L72: 222
A73: 11 | B73: 8602 | C73: 21 | D73: 8612 | E73: 21 | F73: 8616 | K73: 0 | L73: 122
A74: 22 | B74: 8767 | C74: 23 | D74: 8770 | E74: 23 | F74: 8777 | K74: 0 | L74: 222
A75: 22 | B75: 8879 | C75: 23 | D75: 8883 | E75: 23 | F75: 8887 | K75: 0 | L75: 222
A76: 22 | B76: 8990 | C76: 23 | D76: 8993 | E76: 23 | F76: 9000 | K76: 0 | L76: 222
A77: 22 | B77: 9107 | C77: 23 | D77: 9117 | E77: 23 | F77: 9125 | K77: 0 | L77: 222
A78: 11 | B78: 9217 | C78: 21 | D78: 9227 | E78: 21 | F78: 9237 | K78: 0 | L78: 122
A79: 11 | B79: 9352 | C79: 21 | D79: 9360 | E79: 21 | F79: 9369 | K79: 0 | L79: 122
A80: 22 | B80: 9542 | C80: 23 | D80: 9547 | E80: 23 | F80: 9553 | K80: 0 | L80: 222
A81: 22 | B81: 9666 | C81: 23 | D81: 9674 | E81: 23 | F81: 9682 | K81: 0 | L81: 222
A82: 22 | B82: 9783 | C82: 23 | D82: 9786 | E82: 23 | F82: 9792 | K82: 0 | L82: 222
A83: 22 | B83: 9895 | C83: 23 | D83: 9900 | E83: 23 | F83: 9906 | K83: 0 | L83: 222
A84: 11 | B84: 9998 | C84: 21 | D84: 10013 | E84: 21 | F84: 10016 | K84: 0 | L84: 122
A85: 22 | B85: 10148 | C85: 23 | D85: 10151 | E85: 23 | F85: 10159 | K85: 0 | L85: 222
A86: 22 | B86: 10267 | C86: 23 | D86: 10271 | E86: 23 | F86: 10278 | K86: 0 | L86: 222
A87: 11 | B87: 10374 | C87: 21 | D87: 10384 | E87: 21 | F87: 10387 | K87: 0 | L87: 122
A88: 11 | B88: 10528 | C88: 21 | D88: 10535 | E88: 21 | F88: 10539 | K88: 0 | L88: 122
A89: 22 | B89: 10715 | C89: 23 | D89: 10719 | E89: 23 | F89: 10729 | K89: 0 | L89: 222
A90: 22 | B90: 10833 | C90: 23 | D90: 10836 | E90: 23 | F90: 10841 | K90: 0 | L90: 222
A91: 22 | B91: 10941 | C91: 23 | D91: 10945 | E91: 23 | F91: 10951 | K91: 0 | L91: 222
A92: 11 | B92: 11043 | C92: 21 | D92: 11055 | E92: 21 | F92: 11059 | K92: 0 | L92: 122
A93: 22 | B93: 11172 | C93: 23 | D93: 11175 | E93: 23 | F93: 11188 | K93: 0 | L93: 222
A94: 22 | B94: 11289 | C94: 23 | D94: 11292 | E94: 23 | F94: 11304 | K94: 0 | L94: 222
A95: 11 | B95: 11402 | C95: 21 | D95: 11411 | E95: 21 | F95: 11415 | K95: 0 | L95: 122
A96: 22 | B96: 11552 | C96: 23 | D96: 11556 | E96: 23 | F96: 11562 | K96: 0 | L96: 222
A97: 11 | B97: 11657 | C97: 21 | D97: 11666 | E97: 21 | F97: 11669 | K97: 0 | L97: 122
A98: 22 | B98: 11791 | C98: 23 | D98: 11795 | E98: 23 | F98: 11801 | K98: 0 | L98: 222
A99: 22 | B99: 11905 | C99: 23 | D99: 11909 | E99: 23 | F99: 11919 | K99: 0 | L99: 222
A100: 22 | B100: 12035 | C100: 23 | D100: 12043 | E100: 23 | F100: 12052 | K100: 0 | L100: 222
A101: 22 | B101: 12153 | C101: 23 | D101: 12156 | E101: 23 | F101: 12161 | K101: 0 | L101: 222
A102: 22 | B102: 12264 | C102: 23 | D102: 12269 | E102: 23 | F102: 12277 | K102: 0 | L102: 222
A103: 11 | B103: 12372 | C103: 21 | D103: 12382 | E103: 21 | F103: 12385 | K103: 0 | L103: 122
A104: 22 | B104: 12578 | C104: 23 | D104: 12581 | E104: 23 | F104: 12587 | K104: 0 | L104: 222
A105: 22 | B105: 12687 | C105: 23 | D105: 12690 | E105: 23 | F105: 12701 | K105: 0 | L105: 222
A106: 11 | B106: 12793 | C106: 21 | D106: 12803 | E106: 21 | F106: 12805 | K106: 0 | L106: 122
A107: 11 | B107: 12951 | C107: 21 | D107: 12960 | E107: 21 | F107: 12965 | K107: 0 | L107: 122
A108: 11 | B108: 13123 | C108: 21 | D108: 13132 | E108: 21 | F108: 13138 | K108: 0 | L108: 122
A109: 22 | B109: 13320 | C109: 23 | D109: 13327 | E109: 23 | F109: 13339 | K109: 0 | L109: 222
A110: 11 | B110: 13438 | C110: 21 | D110: 13449 | E110: 21 | F110: 13454 | K110: 0 | L110: 122
A111: 11 | B111: 13566 | C111: 21 | D111: 13576 | E111: 21 | F111: 13580 | K111: 0 | L111: 122
A112: 22 | B112: 13726 | C112: 23 | D112: 13731 | E112: 23 | F112: 13737 | K112: 0 | L112: 222
A113: 11 | B113: 13850 | C113: 21 | D113: 13858 | E113: 21 | F113: 13866 | K113: 0 | L113: 122
A114: 11 | B114: 13957 | C114: 21 | D114: 13966 | E114: 21 | F114: 13970 | K114: 0 | L114: 122
A115: 22 | B115: 14099 | C115: 23 | D115: 14106 | E115: 23 | F115: 14116 | K115: 0 | L115: 222
A116: 22 | B116: 14220 | C116: 23 | D116: 14225 | E116: 23 | F116: 14237 | K116: 0 | L116: 222
A117: 11 | B117: 14335 | C117: 21 | D117: 14346 | E117: 21 | F117: 14350 | K117: 0 | L117: 122
A118: 22 | B118: 14456 | C118: 23 | D118: 14462 | E118: 23 | F118: 14470 | K118: 0 | L118: 222
A119: 22 | B119: 14574 | C119: 23 | D119: 14578 | E119: 23 | F119: 14583 | K119: 0 | L119: 222
A120: 22 | B120: 14687 | C120: 23 | D120: 14692 | E120: 23 | F120: 14696 | K120: 0 | L120: 222
A121: 11 | B121: 14794 | C121: 21 | D121: 14802 | E121: 21 | F121: 14809 | K121: 1 | L121: 122

Sheet !LA13A52.. I
A1: Report for:!LA13A52.. I
A2: Date: | B2: <date>
A3: Hen: | B3: <hen> | F3: Correct Sequence | G3: =Start!J2 -> 122 | P3: Total Sequences in Data | Q3: =4994-COUNTBLANK(L7:L5000) -> 117 | V3: Total Sequences in Block Data | W3: =COUNTA(L7:L26) -> 20 | AA3: Total Sequences in Block Data | AB3: =COUNTA(L27:L45) -> 19 | AF3: Total Sequences in Block Data | AG3: =COUNTA(L46:L65) -> 20 | AK3: Total Sequences in Block Data | AL3: =COUNTA(L66:L84) -> 19 | AP3: Total Sequences in Block Data | AQ3: =COUNTA(L85:L104) -> 20 | AU3: Total Sequences in Block Data | AV3: =COUNTA(L105:L123) -> 19
P4: Total Sequences in Summary | Q4: =SUM(O7:O14) -> 117 | V4: Total Sequences in Block Summary | W4: =SUM(U7:U14) -> 20 | AA4: Total Sequences in Block Summary | AB4: =SUM(Z7:Z14) -> 19 | AF4: Total Sequences in Block Summary | AG4: =SUM(AE7:AE14) -> 20 | AK4: Total Sequences in Block Summary | AL4: =SUM(AJ7:AJ14) -> 19 | AP4: Total Sequences in Block Summary | AQ4: =SUM(AO7:AO14) -> 20 | AU4: Total Sequences in Block Summary | AV4: =SUM(AT7:AT14) -> 19
T5: Block 1 | Y5: Block 2 | AD5: Block 3 | AI5: Block 4 | AN5: Block 5 | AS5: Block 6
A6: Sequence Component 1 | B6: Time 1 | C6: Sequence Component 2 | D6: Time 2 | E6: Sequence Component 3 | F6: Time 3 | G6: Sequence Component 4 | H6: Time 4 | I6: Sequence Component 5 | J6: Time 5 | K6: Correct? 0=No 1=Yes | L6: Sequence | N6: Frequency | P6: Relative Frequency | Q6: Variability | T6: Frequency | V6: Relative Frequency | W6: Variability | Y6: Frequency | AA6: Relative Frequency | AB6: Variability | AD6: Frequency | AF6: Relative Frequency | AG6: Variability | AI6: Frequency | AK6: Relative Frequency | AL6: Variability | AN6: Frequency | AP6: Relative Frequency | AQ6: Variability | AS6: Frequency | AU6: Relative Frequency | AV6: Variability
A7: 22 | B7: 14 | C7: 23 | D7: 22 | E7: 23 | F7: 30 | K7: 0 | L7: 222 | N7: 111 | O7: =COUNTIF($L$7:$L$500,N7) -> 0 | P7: =O7/$Q$4 -> 0 | Q7: =IF(P7=0,0,(P7*((LOG(P7))/LOG(2)))) -> 0 | T7: =N7 -> 111 | U7: =COUNTIF(L7:L26,T7) -> 0 | V7: =U7/(W4-U10) -> 0 | W7: =IF(V7=0,0,(V7*((LOG(V7))/LOG(2)))) -> 0 | Y7: =N7 -> 111 | Z7: =COUNTIF(L27:L45,Y7) -> 0 | AA7: =Z7/(AB4-Z10) -> 0 | AB7: =IF(AA7=0,0,(AA7*((LOG(AA7))/LOG(2)))) -> 0 | AD7: =N7 -> 111 | AE7: =COUNTIF(L46:L65,AD7) -> 0 | AF7: =AE7/(AG4-AE10) -> 0 | AG7: =IF(AF7=0,0,(AF7*((LOG(AF7))/LOG(2)))) -> 0 | AI7: =N7 -> 111 | AJ7: =COUNTIF(L66:L84,AI7) -> 0 | AK7: =AJ7/(AL4-AJ10) -> 0 | AL7: =IF(AK7=0,0,(AK7*((LOG(AK7))/LOG(2)))) -> 0 | AN7: =N7 -> 111 | AO7: =COUNTIF(L85:L104,AN7) -> 0 | AP7: =AO7/(AQ4-AO10) -> 0 | AQ7: =IF(AP7=0,0,(AP7*((LOG(AP7))/LOG(2)))) -> 0 | AS7: =N7 -> 111 | AT7: =COUNTIF(L105:L123,AS7) -> 0 | AU7: =AT7/(AV4-AT10) -> 0 | AV7: =IF(AU7=0,0,(AU7*((LOG(AU7))/LOG(2)))) -> 0
A8: 22 | B8: 143 | C8: 23 | D8: 157 | E8: 23 | F8: 189 | K8: 0 | L8: 222 | N8: 112 | O8: =COUNTIF($L$7:$L$500,N8) -> 0 | P8: =O8/$Q$4 -> 0 | Q8: =IF(P8=0,0,(P8*((LOG(P8))/LOG(2)))) -> 0 | T8: =N8 -> 112 | U8: =COUNTIF(L7:L26,T8) -> 0 | V8: =U8/(W4-U10) -> 0 | W8: =IF(V8=0,0,(V8*((LOG(V8))/LOG(2)))) -> 0 | Y8: =N8 -> 112 | Z8: =COUNTIF(L27:L45,Y8) -> 0 | AA8: =Z8/(AB4-Z10) -> 0 | AB8: =IF(AA8=0,0,(AA8*((LOG(AA8))/LOG(2)))) -> 0 | AD8: =N8 -> 112 | AE8: =COUNTIF(L46:L65,AD8) -> 0 | AF8: =AE8/(AG4-AE10) -> 0 | AG8: =IF(AF8=0,0,(AF8*((LOG(AF8))/LOG(2)))) -> 0 | AI8: =N8 -> 112 | AJ8: =COUNTIF(L66:L84,AI8) -> 0 | AK8: =AJ8/(AL4-AJ10) -> 0 | AL8: =IF(AK8=0,0,(AK8*((LOG(AK8))/LOG(2)))) -> 0 | AN8: =N8 -> 112 | AO8: =COUNTIF(L85:L104,AN8) -> 0 | AP8: =AO8/(AQ4-AO10) -> 0 | AQ8: =IF(AP8=0,0,(AP8*((LOG(AP8))/LOG(2)))) -> 0 | AS8: =N8 -> 112 | AT8: =COUNTIF(L105:L123,AS8) -> 0 | AU8: =AT8/(AV4-AT10) -> 0 | AV8: =IF(AU8=0,0,(AU8*((LOG(AU8))/LOG(2)))) -> 0
A9: 22 | B9: 295 | C9: 23 | D9: 304 | E9: 23 | F9: 312 | K9: 0 | L9: 222 | N9: 121 | O9: =COUNTIF($L$7:$L$500,N9) -> 0 | P9: =O9/$Q$4 -> 0 | Q9: =IF(P9=0,0,(P9*((LOG(P9))/LOG(2)))) -> 0 | T9: =N9 -> 121 | U9: =COUNTIF(L7:L26,T9) -> 0 | V9: =U9/(W4-U10) -> 0 | W9: =IF(V9=0,0,(V9*((LOG(V9))/LOG(2)))) -> 0 | Y9: =N9 -> 121 | Z9: =COUNTIF(L27:L45,Y9) -> 0 | AA9: =Z9/(AB4-Z10) -> 0 | AB9: =IF(AA9=0,0,(AA9*((LOG(AA9))/LOG(2)))) -> 0 | AD9: =N9 -> 121 | AE9: =COUNTIF(L46:L65,AD9) -> 0 | AF9: =AE9/(AG4-AE10) -> 0 | AG9: =IF(AF9=0,0,(AF9*((LOG(AF9))/LOG(2)))) -> 0 | AI9: =N9 -> 121 | AJ9: =COUNTIF(L66:L84,AI9) -> 0 | AK9: =AJ9/(AL4-AJ10) -> 0 | AL9: =IF(AK9=0,0,(AK9*((LOG(AK9))/LOG(2)))) -> 0 | AN9: =N9 -> 121 | AO9: =COUNTIF(L85:L104,AN9) -> 0 | AP9: =AO9/(AQ4-AO10) -> 0 | AQ9: =IF(AP9=0,0,(AP9*((LOG(AP9))/LOG(2)))) -> 0 | AS9: =N9 -> 121 | AT9: =COUNTIF(L105:L123,AS9) -> 0 | AU9: =AT9/(AV4-AT10) -> 0 | AV9: =IF(AU9=0,0,(AU9*((LOG(AU9))/LOG(2)))) -> 0
A10: 11 | B10: 408 | C10: 21 | D10: 425 | E10: 21 | F10: 440 | K10: 0 | L10: 122 | N10: 122 | O10: =COUNTIF($L$7:$L$500,N10) -> 40 | P10: =O10/$Q$4 -> 0.3418803419 | Q10: =IF(P10=0,0,(P10*((LOG(P10))/LOG(2)))) -> -0.5293800426 | T10: =N10 -> 122 | U10: =COUNTIF(L7:L26,T10) -> 3 | Y10: =N10 -> 122 | Z10: =COUNTIF(L27:L45,Y10) -> 5 | AD10: =N10 -> 122 | AE10: =COUNTIF(L46:L65,AD10) -> 9 | AI10: =N10 -> 122 | AJ10: =COUNTIF(L66:L84,AI10) -> 6 | AN10: =N10 -> 122 | AO10: =COUNTIF(L85:L104,AN10) -> 8 | AS10: =N10 -> 122 | AT10: =COUNTIF(L105:L123,AS10) -> 9
A11: 22 | B11: 647 | C11: 23 | D11: 653 | E11: 23 | F11: 661 | K11: 0 | L11: 222 | N11: 211 | O11: =COUNTIF($L$7:$L$500,N11) -> 0 | P11: =O11/$Q$4 -> 0 | Q11: =IF(P11=0,0,(P11*((LOG(P11))/LOG(2)))) -> 0 | T11: =N11 -> 211 | U11: =COUNTIF(L7:L26,T11) -> 0 | V11: =U11/(W4-U10) -> 0 | W11: =IF(V11=0,0,(V11*((LOG(V11))/LOG(2)))) -> 0 | Y11: =N11 -> 211 | Z11: =COUNTIF(L27:L45,Y11) -> 0 | AA11: =Z11/(AB4-Z10) -> 0 | AB11: =IF(AA11=0,0,(AA11*((LOG(AA11))/LOG(2)))) -> 0 | AD11: =N11 -> 211 | AE11: =COUNTIF(L46:L65,AD11) -> 0 | AF11: =AE11/(AG4-AE10) -> 0 | AG11: =IF(AF11=0,0,(AF11*((LOG(AF11))/LOG(2)))) -> 0 | AI11: =N11 -> 211 | AJ11: =COUNTIF(L66:L84,AI11) -> 0 | AK11: =AJ11/(AL4-AJ10) -> 0 | AL11: =IF(AK11=0,0,(AK11*((LOG(AK11))/LOG(2)))) -> 0 | AN11: =N11 -> 211 | AO11: =COUNTIF(L85:L104,AN11) -> 0 | AP11: =AO11/(AQ4-AO10) -> 0 | AQ11: =IF(AP11=0,0,(AP11*((LOG(AP11))/LOG(2)))) -> 0 | AS11: =N11 -> 211 | AT11: =COUNTIF(L105:L123,AS11) -> 0 | AU11: =AT11/(AV4-AT10) -> 0 | AV11: =IF(AU11=0,0,(AU11*((LOG(AU11))/LOG(2)))) -> 0
A12: 22 | B12: 779 | C12: 23 | D12: 783 | E12: 23 | F12: 790 | K12: 0 | L12: 222 | N12: 212 | O12: =COUNTIF($L$7:$L$500,N12) -> 0 | P12: =O12/$Q$4 -> 0 | Q12: =IF(P12=0,0,(P12*((LOG(P12))/LOG(2)))) -> 0 | T12: =N12 -> 212 | U12: =COUNTIF(L7:L26,T12) -> 0 | V12: =U12/(W4-U10) -> 0 | W12: =IF(V12=0,0,(V12*((LOG(V12))/LOG(2)))) -> 0 | Y12: =N12 -> 212 | Z12: =COUNTIF(L27:L45,Y12) -> 0 | AA12: =Z12/(AB4-Z10) -> 0 | AB12: =IF(AA12=0,0,(AA12*((LOG(AA12))/LOG(2)))) -> 0 | AD12: =N12 -> 212 | AE12: =COUNTIF(L46:L65,AD12) -> 0 | AF12: =AE12/(AG4-AE10) -> 0 | AG12: =IF(AF12=0,0,(AF12*((LOG(AF12))/LOG(2)))) -> 0 | AI12: =N12 -> 212 | AJ12: =COUNTIF(L66:L84,AI12) -> 0 | AK12: =AJ12/(AL4-AJ10) -> 0 | AL12: =IF(AK12=0,0,(AK12*((LOG(AK12))/LOG(2)))) -> 0 | AN12: =N12 -> 212 | AO12: =COUNTIF(L85:L104,AN12) -> 0 | AP12: =AO12/(AQ4-AO10) -> 0 | AQ12: =IF(AP12=0,0,(AP12*((LOG(AP12))/LOG(2)))) -> 0 | AS12: =N12 -> 212 | AT12: =COUNTIF(L105:L123,AS12) -> 0 | AU12: =AT12/(AV4-AT10) -> 0 | AV12: =IF(AU12=0,0,(AU12*((LOG(AU12))/LOG(2)))) -> 0
A13: 22 | B13: 894 | C13: 23 | D13: 908 | E13: 23 | F13: 915 | K13: 0 | L13: 222 | N13: 221 | O13: =COUNTIF($L$7:$L$500,N13) -> 0 | P13: =O13/$Q$4 -> 0 | Q13: =IF(P13=0,0,(P13*((LOG(P13))/LOG(2)))) -> 0 | T13: =N13 -> 221 | U13: =COUNTIF(L7:L26,T13) -> 0 | V13: =U13/(W4-U10) -> 0 | W13: =IF(V13=0,0,(V13*((LOG(V13))/LOG(2)))) -> 0 | Y13: =N13 -> 221 | Z13: =COUNTIF(L27:L45,Y13) -> 0 | AA13: =Z13/(AB4-Z10) -> 0 | AB13: =IF(AA13=0,0,(AA13*((LOG(AA13))/LOG(2)))) -> 0 | AD13: =N13 -> 221 | AE13: =COUNTIF(L46:L65,AD13) -> 0 | AF13: =AE13/(AG4-AE10) -> 0 | AG13: =IF(AF13=0,0,(AF13*((LOG(AF13))/LOG(2)))) -> 0 | AI13: =N13 -> 221 | AJ13: =COUNTIF(L66:L84,AI13) -> 0 | AK13: =AJ13/(AL4-AJ10) -> 0 | AL13: =IF(AK13=0,0,(AK13*((LOG(AK13))/LOG(2)))) -> 0 | AN13: =N13 -> 221 | AO13: =COUNTIF(L85:L104,AN13) -> 0 | AP13: =AO13/(AQ4-AO10) -> 0 | AQ13: =IF(AP13=0,0,(AP13*((LOG(AP13))/LOG(2)))) -> 0 | AS13: =N13 -> 221 | AT13: =COUNTIF(L105:L123,AS13) -> 0 | AU13: =AT13/(AV4-AT10) -> 0 | AV13: =IF(AU13=0,0,(AU13*((LOG(AU13))/LOG(2)))) -> 0
A14: 11 | B14: 1010 | C14: 21 | D14: 1027 | E14: 21 | F14: 1035 | K14: 0 | L14: 122 | N14: 222 | O14: =COUNTIF($L$7:$L$500,N14) -> 77 | P14: =O14/$Q$4 -> 0.6581196581 | Q14: =IF(P14=0,0,(P14*((LOG(P14))/LOG(2)))) -> -0.3972266647 | T14: =N14 -> 222 | U14: =COUNTIF(L7:L26,T14) -> 17 | V14: =U14/(W4-U10) -> 1 | W14: =IF(V14=0,0,(V14*((LOG(V14))/LOG(2)))) -> 0 | Y14: =N14 -> 222 | Z14: =COUNTIF(L27:L45,Y14) -> 14 | AA14: =Z14/(AB4-Z10) -> 1 | AB14: =IF(AA14=0,0,(AA14*((LOG(AA14))/LOG(2)))) -> 0 | AD14: =N14 -> 222 | AE14: =COUNTIF(L46:L65,AD14) -> 11 | AF14: =AE14/(AG4-AE10) -> 1 | AG14: =IF(AF14=0,0,(AF14*((LOG(AF14))/LOG(2)))) -> 0 | AI14: =N14 -> 222 | AJ14: =COUNTIF(L66:L84,AI14) -> 13 | AK14: =AJ14/(AL4-AJ10) -> 1 | AL14: =IF(AK14=0,0,(AK14*((LOG(AK14))/LOG(2)))) -> 0 | AN14: =N14 -> 222 | AO14: =COUNTIF(L85:L104,AN14) -> 12 | AP14: =AO14/(AQ4-AO10) -> 1 | AQ14: =IF(AP14=0,0,(AP14*((LOG(AP14))/LOG(2)))) -> 0 | AS14: =N14 -> 222 | AT14: =COUNTIF(L105:L123,AS14) -> 10 | AU14: =AT14/(AV4-AT10) -> 1 | AV14: =IF(AU14=0,0,(AU14*((LOG(AU14))/LOG(2)))) -> 0
A15: 22 | B15: 1172 | C15: 23 | D15: 1178 | E15: 23 | F15: 1184 | K15: 0 | L15: 222 | P15: =SUM(P7:P14) -> 1 | Q15: =-SUM(Q7:Q14) -> 0.9266067074 | V15: =SUM(V7:V14) -> 1 | W15: =-SUM(W7:W14) -> 0 | AA15: =SUM(AA7:AA14) -> 1 | AB15: =-SUM(AB7:AB14) -> 0 | AF15: =SUM(AF7:AF14) -> 1 | AG15: =-SUM(AG7:AG14) -> 0 | AK15: =SUM(AK7:AK14) -> 1 | AL15: =-SUM(AL7:AL14) -> 0 | AP15: =SUM(AP7:AP14) -> 1 | AQ15: =-SUM(AQ7:AQ14) -> 0 | AU15: =SUM(AU7:AU14) -> 1 | AV15: =-SUM(AV7:AV14) -> 0
A16: 22 | B16: 1288 | C16: 23 | D16: 1293 | E16: 23 | F16: 1308 | K16: 0 | L16: 222 | P16: U= | Q16: =Q15/(LOG(Q4)/LOG(2)) -> 0.1348700899 | V16: U1= | W16: =W15/(LOG(W4)/LOG(2)) -> 0 | AA16: U2= | AB16: =AB15/(LOG(AB4)/LOG(2)) -> 0 | AF16: U3= | AG16: =AG15/(LOG(AG4)/LOG(2)) -> 0 | AK16: U4= | AL16: =AL15/(LOG(AL4)/LOG(2)) -> 0 | AP16: U5= | AQ16: =AQ15/(LOG(AQ4)/LOG(2)) -> 0 | AU16: U6= | AV16: =AV15/(LOG(AV4)/LOG(2)) -> 0
A17: 22 | B17: 1438 | C17: 23 | D17: 1442 | E17: 23 | F17: 1446 | K17: 0 | L17: 222
A18: 22 | B18: 1549 | C18: 23 | D18: 1552 | E18: 23 | F18: 1561 | K18: 0 | L18: 222
A19: 22 | B19: 1670 | C19: 23 | D19: 1681 | E19: 23 | F19: 1693 | K19: 0 | L19: 222 | N19: Total Target Seq
A20: 22 | B20: 1805 | C20: 23 | D20: 1813 | E20: 23 | F20: 1820 | K20: 0 | L20: 222 | N20: =COUNTIF(L7:L123,G3) -> 40 | P20: 20 | Q20: 19 | R20: 20 | S20: 19 | T20: 20 | U20: 19
A21: 22 | B21: 1923 | C21: 23 | D21: 1935 | E21: 23 | F21: 1945 | K21: 0 | L21: 222 | P21: % of reinforcement given in 6 equal intervals based on number of trials
A22: 22 | B22: 2056 | C22: 23 | D22: 2070 | E22: 23 | F22: 2076 | K22: 0 | L22: 222 | P22: %_1 | Q22: %_2 | R22: %_3 | S22: %_4 | T22: %_5 | U22: %_6
A23: 22 | B23: 2184 | C23: 23 | D23: 2195 | E23: 23 | F23: 2205 | K23: 0 | L23: 222 | O23: target sequence | P23: =$G$3 -> 122 | Q23: =$G$3 -> 122 | R23: =$G$3 -> 122 | S23: =$G$3 -> 122 | T23: =$G$3 -> 122 | U23: =$G$3 -> 122
A24: 22 | B24: 2331 | C24: 23 | D24: 2337 | E24: 23 | F24: 2346 | K24: 0 | L24: 222 | O24: total reinforcement | P24: =U10 -> 3 | Q24: =Z10 -> 5 | R24: =AE10 -> 9 | S24: =AJ10 -> 6 | T24: =AO10 -> 8 | U24: =AT10 -> 9
A25: 22 | B25: 2449 | C25: 23 | D25: 2453 | E25: 23 | F25: 2460 | K25: 0 | L25: 222 | O25: % target
A26: 11 | B26: 2552 | C26: 21 | D26: 2576 | E26: 21 | F26: 2584 | K26: 0 | L26: 122 | O26: CCRF
A27: 22 | B27: 2745 | C27: 23 | D27: 2749 | E27: 23 | F27: 2754 | K27: 0 | L27: 222 | O27: % CCRf
A28: 11 | B28: 2849 | C28: 21 | D28: 2861 | E28: 21 | F28: 2866 | K28: 0 | L28: 122 | O28: average response rate | P28: =F26/P20 -> 129.2 | Q28: =(F45-F26)/Q20 -> 143.2631579 | R28: =(F65-F45)/R20 -> 137.65 | S28: =(F84-F65)/S20 -> 140.0526316 | T28: =(F104-F84)/T20 -> 144.15 | U28: =(F123-F104)/U20 -> 136.0526316
A29: 22 | B29: 3082 | C29: 23 | D29: 3087 | E29: 23 | F29: 3093 | K29: 0 | L29: 222
A30: 11 | B30: 3191 | C30: 21 | D30: 3216 | E30: 21 | F30: 3230 | K30: 0 | L30: 122
A31: 22 | B31: 3426 | C31: 23 | D31: 3434 | E31: 23 | F31: 3442 | K31: 0 | L31: 222
A32: 11 | B32: 3538 | C32: 21 | D32: 3549 | E32: 21 | F32: 3557 | K32: 0 | L32: 122
A33: 11 | B33: 3690 | C33: 21 | D33: 3702 | E33: 21 | F33: 3709 | K33: 0 | L33: 122
A34: 22 | B34: 3892 | C34: 23 | D34: 3898 | E34: 23 | F34: 3907 | K34: 0 | L34: 222
A35: 22 | B35: 4013 | C35: 23 | D35: 4021 | E35: 23 | F35: 4031 | K35: 0 | L35: 222
A36: 22 | B36: 4138 | C36: 23 | D36: 4148 | E36: 23 | F36: 4156 | K36: 0 | L36: 222
A37: 22 | B37: 4271 | C37: 23 | D37: 4283 | E37: 23 | F37: 4290 | K37: 0 | L37: 222
A38: 22 | B38: 4395 | C38: 23 | D38: 4399 | E38: 23 | F38: 4407 | K38: 0 | L38: 222
A39: 22 | B39: 4520 | C39: 23 | D39: 4523 | E39: 23 | F39: 4530 | K39: 0 | L39: 222
A40: 22 | B40: 4630 | C40: 23 | D40: 4636 | E40: 23 | F40: 4640 | K40: 0 | L40: 222
A41: 22 | B41: 4746 | C41: 23 | D41: 4750 | E41: 23 | F41: 4755 | K41: 0 | L41: 222
A42: 22 | B42: 4874 | C42: 23 | D42: 4879 | E42: 23 | F42: 4885 | K42: 0 | L42: 222
A43: 22 | B43: 4988 | C43: 23 | D43: 4999 | E43: 23 | F43: 5008 | K43: 0 | L43: 222
A44: 11 | B44: 5103 | C44: 21 | D44: 5115 | E44: 21 | F44: 5120 | K44: 0 | L44: 122
A45: 22 | B45: 5293 | C45: 23 | D45: 5297 | E45: 23 | F45: 5306 | K45: 0 | L45: 222
A46: 11 | B46: 5402 | C46: 21 | D46: 5414 | E46: 21 | F46: 5427 | K46: 0 | L46: 122
A47: 22 | B47: 5611 | C47: 23 | D47: 5615 | E47: 23 | F47: 5622 | K47: 0 | L47: 222
A48: 11 | B48: 5717 | C48: 21 | D48: 5730 | E48: 21 | F48: 5749 | K48: 0 | L48: 122
A49: 22 | B49: 5905 | C49: 23 | D49: 5915 | E49: 23 | F49: 5923 | K49: 0 | L49: 222
A50: 11 | B50: 6053 | C50: 21 | D50: 6063 | E50: 21 | F50: 6067 | K50: 0 | L50: 122
A51: 22 | B51: 6202 | C51: 23 | D51: 6207 | E51: 23 | F51: 6214 | K51: 0 | L51: 222
A52: 11 | B52: 6309 | C52: 21 | D52: 6320 | E52: 21 | F52: 6329 | K52: 0 | L52: 122
A53: 11 | B53: 6446 | C53: 21 | D53: 6455 | E53: 21 | F53: 6459 | K53: 0 | L53: 122
A54: 22 | B54: 6627 | C54: 23 | D54: 6632 | E54: 23 | F54: 6646 | K54: 0 | L54: 222
A55: 22 | B55: 6757 | C55: 23 | D55: 6765 | E55: 23 | F55: 6774 | K55: 0 | L55: 222
A56: 11 | B56: 6871 | C56: 21 | D56: 6883 | E56: 21 | F56: 6893 | K56: 0 | L56: 122
A57: 22 | B57: 7032 | C57: 23 | D57: 7037 | E57: 23 | F57: 7041 | K57: 0 | L57: 222
A58: 22 | B58: 7159 | C58: 23 | D58: 7165 | E58: 23 | F58: 7171 | K58: 0 | L58: 222
A59: 22 | B59: 7275 | C59: 23 | D59: 7278 | E59: 23 | F59: 7283 | K59: 0 | L59: 222
A60: 11 | B60: 7379 | C60: 21 | D60: 7391 | E60: 21 | F60: 7394 | K60: 0 | L60: 122
A61: 22 | B61: 7553 | C61: 23 | D61: 7559 | E61: 23 | F61: 7565 | K61: 0 | L61: 222
A62: 22 | B62: 7671 | C62: 23 | D62: 7674 | E62: 23 | F62: 7682 | K62: 0 | L62: 222
A63: 22 | B63: 7792 | C63: 23 | D63: 7798 | E63: 23 | F63: 7806 | K63: 0 | L63: 222
A64: 11 | B64: 7902 | C64: 21 | D64: 7912 | E64: 21 | F64: 7917 | K64: 0 | L64: 122
A65: 11 | B65: 8046 | C65: 21 | D65: 8054 | E65: 21 | F65: 8059 | K65: 0 | L65: 122
A66: 22 | B66: 8187 | C66: 23 | D66: 8191 | E66: 23 | F66: 8196 | K66: 0 | L66: 222
A67: 11 | B67: 8295 | C67: 21 | D67: 8308 | E67: 21 | F67: 8320 | K67: 0 | L67: 122
A68: 11 | B68: 8458 | C68: 21 | D68: 8470 | E68: 21 | F68: 8484 | K68: 0 | L68: 122
A69: 22 | B69: 8727 | C69: 23 | D69: 8731 | E69: 23 | F69: 8737 | K69: 0 | L69: 222
A70: 22 | B70: 8842 | C70: 23 | D70: 8847 | E70: 23 | F70: 8857 | K70: 0 | L70: 222
A71: 22 | B71: 8962 | C71: 23 | D71: 8966 | E71: 23 | F71: 8979 | K71: 0 | L71: 222
A72: 22 | B72: 9090 | C72: 23 | D72: 9094 | E72: 23 | F72: 9104 | K72: 0 | L72: 222
A73: 11 | B73: 9196 | C73: 21 | D73: 9209 | E73: 21 | F73: 9221 | K73: 0 | L73: 122
A74: 22 | B74: 9365 | C74: 23 | D74: 9370 | E74: 23 | F74: 9377 | K74: 0 | L74: 222
A75: 11 | B75: 9472 | C75: 21 | D75: 9486 | E75: 21 | F75: 9499 | K75: 0 | L75: 122
A76: 22 | B76: 9638 | C76: 23 | D76: 9642 | E76: 23 | F76: 9652 | K76: 0 | L76: 222
A77: 22 | B77: 9775 | C77: 23 | D77: 9784 | E77: 23 | F77: 9792 | K77: 0 | L77: 222
A78: 22 | B78: 9903 | C78: 23 | D78: 9907 | E78: 23 | F78: 9914 | K78: 0 | L78: 222
A79: 22 | B79: 10022 | C79: 23 | D79: 10031 | E79: 23 | F79: 10039 | K79: 0 | L79: 222
A80: 11 | B80: 10132 | C80: 21 | D80: 10143 | E80: 21 | F80: 10146 | K80: 0 | L80: 122
A81: 11 | B81: 10320 | C81: 21 | D81: 10330 | E81: 21 | F81: 10336 | K81: 0 | L81: 122
A82: 22 | B82: 10450 | C82: 23 | D82: 10454 | E82: 23 | F82: 10460 | K82: 0 | L82: 222
A83: 22 | B83: 10568 | C83: 23 | D83: 10573 | E83: 23 | F83: 10583 | K83: 0 | L83: 222
A84: 22 | B84: 10693 | C84: 23 | D84: 10711 | E84: 23 | F84: 10720 | K84: 0 | L84: 222
A85: 22 | B85: 10864 | C85: 23 | D85: 10868 | E85: 23 | F85: 10880 | K85: 0 | L85: 222
A86: 22 | B86: 10990 | C86: 23 | D86: 10993 | E86: 23 | F86: 11001 | K86: 0 | L86: 222
A87: 22 | B87: 11103 | C87: 23 | D87: 11107 | E87: 23 | F87: 11115 | K87: 0 | L87: 222
A88: 11 | B88: 11210 | C88: 21 | D88: 11231 | E88: 21 | F88: 11270 | K88: 0 | L88: 122
A89: 22 | B89: 11424 | C89: 23 | D89: 11429 | E89: 23 | F89: 11437 | K89: 0 | L89: 222
A90: 22 | B90: 11540 | C90: 23 | D90: 11547 | E90: 23 | F90: 11556 | K90: 0 | L90: 222
A91: 11 | B91: 11661 | C91: 21 | D91: 11670 | E91: 21 | F91: 11677 | K91: 0 | L91: 122
A92: 11 | B92: 11816 | C92: 21 | D92: 11824 | E92: 21 | F92: 11836 | K92: 0 | L92: 122
A93: 11 | B93: 12007 | C93: 21 | D93: 12016 | E93: 21 | F93: 12023 | K93: 0 | L93: 122
A94: 11 | B94: 12180 | C94: 21 | D94: 12196 | E94: 21 | F94: 12204 | K94: 0 | L94: 122
A95: 22 | B95: 12412 | C95: 23 | D95: 12417 | E95: 23 | F95: 12430 | K95: 0 | L95: 222
A96: 22 | B96: 12542 | C96: 23 | D96: 12553 | E96: 23 | F96: 12561 | K96: 0 | L96: 222
A97: 22 | B97: 12671 | C97: 23 | D97: 12676 | E97: 23 | F97: 12682 | K97: 0 | L97: 222
A98: 22 | B98: 12791 | C98: 23 | D98: 12795 | E98: 23 | F98: 12803 | K98: 0 | L98: 222
A99: 22 | B99: 12906 | C99: 23 | D99: 12910 | E99: 23 | F99: 12921 | K99: 0 | L99: 222
A100: 11 | B100: 13017 | C100: 21 | D100: 13029 | E100: 21 | F100: 13032 | K100: 0 | L100: 122
A101: 22 | B101: 13160 | C101: 23 | D101: 13168 | E101: 23 | F101: 13181 | K101: 0 | L101: 222
A102: 11 | B102: 13307 | C102: 21 | D102: 13318 | E102: 21 | F102: 13323 | K102: 0 | L102: 122
A103: 22 | B103: 13469 | C103: 23 | D103: 13479 | E103: 23 | F103: 13489 | K103: 0 | L103: 222
A104: 11 | B104: 13586 | C104: 21 | D104: 13595 | E104: 21 | F104: 13603 | K104: 0 | L104: 122
A105: 11 | B105: 13699 | C105: 21 | D105: 13722 | E105: 21 | F105: 13733 | K105: 0 | L105: 122
A106: 11 | B106: 13869 | C106: 21 | D106: 13877 | E106: 21 | F106: 13894 | K106: 0 | L106: 122
A107: 22 | B107: 14038 | C107: 23 | D107: 14043 | E107: 23 | F107: 14051 | K107: 0 | L107: 222
A108: 22 | B108: 14167 | C108: 23 | D108: 14174 | E108: 23 | F108: 14196 | K108: 0 | L108: 222
A109: 22 | B109: 14303 | C109: 23 | D109: 14307 | E109: 23 | F109: 14316 | K109: 0 | L109: 222
A110: 22 | B110: 14424 | C110: 23 | D110: 14429 | E110: 23 | F110: 14442 | K110: 0 | L110: 222
A111: 11 | B111: 14538 | C111: 21 | D111: 14548 | E111: 21 | F111: 14551 | K111: 0 | L111: 122
A112: 22 | B112: 14672 | C112: 23 | D112: 14677 | E112: 23 | F112: 14682 | K112: 0 | L112: 222
A113: 11 | B113: 14783 | C113: 21 | D113: 14793 | E113: 21 | F113: 14803 | K113: 0 | L113: 122
A114: 22 | B114: 14922 | C114: 23 | D114: 14926 | E114: 23 | F114: 14941 | K114: 0 | L114: 222
A115: 11 | B115: 15039 | C115: 21 | D115: 15049 | E115: 21 | F115: 15053 | K115: 0 | L115: 122
A116: 22 | B116: 15187 | C116: 23 | D116: 15195 | E116: 23 | F116: 15208 | K116: 0 | L116: 222
A117: 11 | B117: 15303 | C117: 21 | D117: 15314 | E117: 21 | F117: 15331 | K117: 0 | L117: 122
A118: 22 | B118: 15489 | C118: 23 | D118: 15499 | E118: 23 | F118: 15507 | K118: 0 | L118: 222
A119: 11 | B119: 15607 | C119: 21 | D119: 15621 | E119: 21 | F119: 15635 | K119: 0 | L119: 122
A120: 11 | B120: 15739 | C120: 21 | D120: 15752 | E120: 21 | F120: 15757 | K120: 0 | L120: 122
A121: 22 | B121: 15930 | C121: 23 | D121: 15934 | E121: 23 | F121: 15941 | K121: 0 | L121: 222
A122: 22 | B122: 16050 | C122: 23 | D122: 16059 | E122: 23 | F122: 16072 | K122: 0 | L122: 222
A123: 11 | B123: 16165 | C123: 21 | D123: 16174 | E123: 21 | F123: 16188 | K123: 1 | L123: 122

Sheet !LA17B02.. I
A1: Report for:!LA17B02.. I
A2: Date: | B2: <date>
A3: Hen: | B3: <hen> | F3: Correct Sequence | G3: =Start!J2 -> 122 | P3: Total Sequences in Data | Q3: =4994-COUNTBLANK(L7:L5000) -> 116 | V3: Total Sequences in Block Data | W3: =COUNTA(L7:L25) -> 19 | AA3: Total Sequences in Block Data | AB3: =COUNTA(L26:L45) -> 20 | AF3: Total Sequences in Block Data | AG3: =COUNTA(L46:L64) -> 19 | AK3: Total Sequences in Block Data | AL3: =COUNTA(L65:L83) -> 19 | AP3: Total Sequences in Block Data | AQ3: =COUNTA(L84:L103) -> 20 | AU3: Total Sequences in Block Data | AV3: =COUNTA(L104:L122) -> 19
P4: Total Sequences in Summary | Q4: =SUM(O7:O14) -> 116 | V4: Total Sequences in Block Summary | W4: =SUM(U7:U14) -> 19 | AA4: Total Sequences in Block Summary | AB4: =SUM(Z7:Z14) -> 20 | AF4: Total Sequences in Block Summary | AG4: =SUM(AE7:AE14) -> 19 | AK4: Total Sequences in Block Summary | AL4: =SUM(AJ7:AJ14) -> 19 | AP4: Total Sequences in Block Summary | AQ4: =SUM(AO7:AO14) -> 20 | AU4: Total Sequences in Block Summary | AV4: =SUM(AT7:AT14) -> 19
T5: Block 1 | Y5: Block 2 | AD5: Block 3 | AI5: Block 4 | AN5: Block 5 | AS5: Block 6
A6: Sequence Component 1 | B6: Time 1 | C6: Sequence Component 2 | D6: Time 2 | E6: Sequence Component 3 | F6: Time 3 | G6: Sequence Component 4 | H6: Time 4 | I6: Sequence Component 5 | J6: Time 5 | K6: Correct? 0=No 1=Yes | L6: Sequence | N6: Frequency | P6: Relative Frequency | Q6: Variability | T6: Frequency | V6: Relative Frequency | W6: Variability | Y6: Frequency | AA6: Relative Frequency | AB6: Variability | AD6: Frequency | AF6: Relative Frequency | AG6: Variability | AI6: Frequency | AK6: Relative Frequency | AL6: Variability | AN6: Frequency | AP6: Relative Frequency | AQ6: Variability | AS6: Frequency | AU6: Relative Frequency | AV6: Variability
A7: 22 | B7: 11 | C7: 14 | D7: 71 | E7: 14 | F7: 76 | K7: 0 | L7: 211 | N7: 111 | O7: =COUNTIF($L$7:$L$500,N7) -> 0 | P7: =O7/$Q$4 -> 0 | Q7: =IF(P7=0,0,(P7*((LOG(P7))/LOG(2)))) -> 0 | T7: =N7 -> 111 | U7: =COUNTIF(L7:L25,T7) -> 0 | V7: =U7/(W4-U10) -> 0 | W7: =IF(V7=0,0,(V7*((LOG(V7))/LOG(2)))) -> 0 | Y7: =N7 -> 111 | Z7: =COUNTIF(L26:L45,Y7) -> 0 | AA7: =Z7/(AB4-Z10) -> 0 | AB7: =IF(AA7=0,0,(AA7*((LOG(AA7))/LOG(2)))) -> 0 | AD7: =N7 -> 111 | AE7: =COUNTIF(L46:L64,AD7) -> 0 | AF7: =AE7/(AG4-AE10) -> 0 | AG7: =IF(AF7=0,0,(AF7*((LOG(AF7))/LOG(2)))) -> 0 | AI7: =N7 -> 111 | AJ7: =COUNTIF(L65:L83,AI7) -> 0 | AK7: =AJ7/(AL4-AJ10) -> 0 | AL7: =IF(AK7=0,0,(AK7*((LOG(AK7))/LOG(2)))) -> 0 | AN7: =N7 -> 111 | AO7: =COUNTIF(L84:L103,AN7) -> 0 | AP7: =AO7/(AQ4-AO10) -> 0 | AQ7: =IF(AP7=0,0,(AP7*((LOG(AP7))/LOG(2)))) -> 0 | AS7: =N7 -> 111 | AT7: =COUNTIF(L104:L122,AS7) -> 0 | AU7: =AT7/(AV4-AT10) -> 0 | AV7: =IF(AU7=0,0,(AU7*((LOG(AU7))/LOG(2)))) -> 0
A8: 22 | B8: 192 | C8: 23 | D8: 197 | E8: 14 | F8: 205 | K8: 0 | L8: 221 | N8: 112 | O8: =COUNTIF($L$7:$L$500,N8) -> 0 | P8: =O8/$Q$4 -> 0 | Q8: =IF(P8=0,0,(P8*((LOG(P8))/LOG(2)))) -> 0 | T8: =N8 -> 112 | U8: =COUNTIF(L7:L25,T8) -> 0 | V8: =U8/(W4-U10) -> 0 | W8: =IF(V8=0,0,(V8*((LOG(V8))/LOG(2)))) -> 0 | Y8: =N8 -> 112 | Z8: =COUNTIF(L26:L45,Y8) -> 0 | AA8: =Z8/(AB4-Z10) -> 0 | AB8: =IF(AA8=0,0,(AA8*((LOG(AA8))/LOG(2)))) -> 0 | AD8: =N8 -> 112 | AE8: =COUNTIF(L46:L64,AD8) -> 0 | AF8: =AE8/(AG4-AE10) -> 0 | AG8: =IF(AF8=0,0,(AF8*((LOG(AF8))/LOG(2)))) -> 0 | AI8: =N8 -> 112 | AJ8: =COUNTIF(L65:L83,AI8) -> 0 | AK8: =AJ8/(AL4-AJ10) -> 0 | AL8: =IF(AK8=0,0,(AK8*((LOG(AK8))/LOG(2)))) -> 0 | AN8: =N8 -> 112 | AO8: =COUNTIF(L84:L103,AN8) -> 0 | AP8: =AO8/(AQ4-AO10) -> 0 | AQ8: =IF(AP8=0,0,(AP8*((LOG(AP8))/LOG(2)))) -> 0 | AS8: =N8 -> 112 | AT8: =COUNTIF(L104:L122,AS8) -> 0 | AU8: =AT8/(AV4-AT10) -> 0 | AV8: =IF(AU8=0,0,(AU8*((LOG(AU8))/LOG(2)))) -> 0
A9: 22 | B9: 314 | C9: 23 | D9: 323 | E9: 23 | F9: 331 | K9: 0 | L9: 222 | N9: 121 | O9: =COUNTIF($L$7:$L$500,N9) -> 0 | P9: =O9/$Q$4 -> 0 | Q9: =IF(P9=0,0,(P9*((LOG(P9))/LOG(2)))) -> 0 | T9: =N9 -> 121 | U9: =COUNTIF(L7:L25,T9) -> 0 | V9: =U9/(W4-U10) -> 0 | W9: =IF(V9=0,0,(V9*((LOG(V9))/LOG(2)))) -> 0 | Y9: =N9 -> 121 | Z9: =COUNTIF(L26:L45,Y9) -> 0 | AA9: =Z9/(AB4-Z10) -> 0 | AB9: =IF(AA9=0,0,(AA9*((LOG(AA9))/LOG(2)))) -> 0 | AD9: =N9 -> 121 | AE9: =COUNTIF(L46:L64,AD9) -> 0 | AF9: =AE9/(AG4-AE10) -> 0 | AG9: =IF(AF9=0,0,(AF9*((LOG(AF9))/LOG(2)))) -> 0 | AI9: =N9 -> 121 | AJ9: =COUNTIF(L65:L83,AI9) -> 0 | AK9: =AJ9/(AL4-AJ10) -> 0 | AL9: =IF(AK9=0,0,(AK9*((LOG(AK9))/LOG(2)))) -> 0 | AN9: =N9 -> 121 | AO9: =COUNTIF(L84:L103,AN9) -> 0 | AP9: =AO9/(AQ4-AO10) -> 0 | AQ9: =IF(AP9=0,0,(AP9*((LOG(AP9))/LOG(2)))) -> 0 | AS9: =N9 -> 121 | AT9: =COUNTIF(L104:L122,AS9) -> 0 | AU9: =AT9/(AV4-AT10) -> 0 | AV9: =IF(AU9=0,0,(AU9*((LOG(AU9))/LOG(2)))) -> 0
A10: 22 | B10: 435 | C10: 23 | D10: 442 | E10: 23 | F10: 450 | K10: 0 | L10: 222 | N10: 122 | O10: =COUNTIF($L$7:$L$500,N10) -> 40 | P10: =O10/$Q$4 -> 0.3448275862 | Q10: =IF(P10=0,0,(P10*((LOG(P10))/LOG(2)))) -> -0.5296734139 | T10: =N10 -> 122 | U10: =COUNTIF(L7:L25,T10) -> 4 | Y10: =N10 -> 122 | Z10: =COUNTIF(L26:L45,Y10) -> 9 | AD10: =N10 -> 122 | AE10: =COUNTIF(L46:L64,AD10) -> 7 | AI10: =N10 -> 122 | AJ10: =COUNTIF(L65:L83,AI10) -> 5 | AN10: =N10 -> 122 | AO10: =COUNTIF(L84:L103,AN10) -> 8 | AS10: =N10 -> 122 | AT10: =COUNTIF(L104:L122,AS10) -> 7
A11: 22 | B11: 556 | C11: 23 | D11: 559 | E11: 23 | F11: 567 | K11: 0 | L11: 222 | N11: 211 | O11: =COUNTIF($L$7:$L$500,N11) -> 1 | P11: =O11/$Q$4 -> 0.008620689655 | Q11: =IF(P11=0,0,(P11*((LOG(P11))/LOG(2)))) -> -0.05912052582 | T11: =N11 -> 211 | U11: =COUNTIF(L7:L25,T11) -> 1 | V11: =U11/(W4-U10) -> 0.06666666667 | W11: =IF(V11=0,0,(V11*((LOG(V11))/LOG(2)))) -> -0.260459373 | Y11: =N11 -> 211 | Z11: =COUNTIF(L26:L45,Y11) -> 0 | AA11: =Z11/(AB4-Z10) -> 0 | AB11: =IF(AA11=0,0,(AA11*((LOG(AA11))/LOG(2)))) -> 0 | AD11: =N11 -> 211 | AE11: =COUNTIF(L46:L64,AD11) -> 0 | AF11: =AE11/(AG4-AE10) -> 0 | AG11: =IF(AF11=0,0,(AF11*((LOG(AF11))/LOG(2)))) -> 0 | AI11: =N11 -> 211 | AJ11: =COUNTIF(L65:L83,AI11) -> 0 | AK11: =AJ11/(AL4-AJ10) -> 0 | AL11: =IF(AK11=0,0,(AK11*((LOG(AK11))/LOG(2)))) -> 0 | AN11: =N11 -> 211 | AO11: =COUNTIF(L84:L103,AN11) -> 0 | AP11: =AO11/(AQ4-AO10) -> 0 | AQ11: =IF(AP11=0,0,(AP11*((LOG(AP11))/LOG(2)))) -> 0 | AS11: =N11 -> 211 | AT11: =COUNTIF(L104:L122,AS11) -> 0 | AU11: =AT11/(AV4-AT10) -> 0 | AV11: =IF(AU11=0,0,(AU11*((LOG(AU11))/LOG(2)))) -> 0
A12: 22 | B12: 676 | C12: 23 | D12: 685 | E12: 23 | F12: 693 | K12: 0 | L12: 222 | N12: 212 | O12: =COUNTIF($L$7:$L$500,N12) -> 0 | P12: =O12/$Q$4 -> 0 | Q12: =IF(P12=0,0,(P12*((LOG(P12))/LOG(2)))) -> 0 | T12: =N12 -> 212 | U12: =COUNTIF(L7:L25,T12) -> 0 | V12: =U12/(W4-U10) -> 0 | W12: =IF(V12=0,0,(V12*((LOG(V12))/LOG(2)))) -> 0 | Y12: =N12 -> 212 | Z12: =COUNTIF(L26:L45,Y12) -> 0 | AA12: =Z12/(AB4-Z10) -> 0 | AB12: =IF(AA12=0,0,(AA12*((LOG(AA12))/LOG(2)))) -> 0 | AD12: =N12 -> 212 | AE12: =COUNTIF(L46:L64,AD12) -> 0 | AF12: =AE12/(AG4-AE10) -> 0 | AG12: =IF(AF12=0,0,(AF12*((LOG(AF12))/LOG(2)))) -> 0 | AI12: =N12 -> 212 | AJ12: =COUNTIF(L65:L83,AI12) -> 0 | AK12: =AJ12/(AL4-AJ10) -> 0 | AL12: =IF(AK12=0,0,(AK12*((LOG(AK12))/LOG(2)))) -> 0 | AN12: =N12 -> 212 | AO12: =COUNTIF(L84:L103,AN12) -> 0 | AP12: =AO12/(AQ4-AO10) -> 0 | AQ12: =IF(AP12=0,0,(AP12*((LOG(AP12))/LOG(2)))) -> 0 | AS12: =N12 -> 212 | AT12: =COUNTIF(L104:L122,AS12) -> 0 | AU12: =AT12/(AV4-AT10) -> 0 | AV12: =IF(AU12=0,0,(AU12*((LOG(AU12))/LOG(2)))) -> 0
A13: 11 | B13: 790 | C13: 21 | D13: 801 | E13: 21 | F13: 807 | K13: 0 | L13: 122 | N13: 221 | O13: =COUNTIF($L$7:$L$500,N13) -> 1 | P13: =O13/$Q$4 -> 0.008620689655 | Q13: =IF(P13=0,0,(P13*((LOG(P13))/LOG(2)))) -> -0.05912052582 | T13: =N13 -> 221 | U13: =COUNTIF(L7:L25,T13) -> 1 | V13: =U13/(W4-U10) -> 0.06666666667 | W13: =IF(V13=0,0,(V13*((LOG(V13))/LOG(2)))) -> -0.260459373 | Y13: =N13 -> 221 | Z13: =COUNTIF(L26:L45,Y13) -> 0 | AA13: =Z13/(AB4-Z10) -> 0 | AB13: =IF(AA13=0,0,(AA13*((LOG(AA13))/LOG(2)))) -> 0 | AD13: =N13 -> 221 | AE13: =COUNTIF(L46:L64,AD13) -> 0 | AF13: =AE13/(AG4-AE10) -> 0 | AG13: =IF(AF13=0,0,(AF13*((LOG(AF13))/LOG(2)))) -> 0 | AI13: =N13 -> 221 | AJ13: =COUNTIF(L65:L83,AI13) -> 0 | AK13: =AJ13/(AL4-AJ10) -> 0 | AL13: =IF(AK13=0,0,(AK13*((LOG(AK13))/LOG(2)))) -> 0 | AN13: =N13 -> 221 | AO13: =COUNTIF(L84:L103,AN13) -> 0 | AP13: =AO13/(AQ4-AO10) -> 0 | AQ13: =IF(AP13=0,0,(AP13*((LOG(AP13))/LOG(2)))) -> 0 | AS13: =N13 -> 221 | AT13: =COUNTIF(L104:L122,AS13) -> 0 | AU13: =AT13/(AV4-AT10) -> 0 | AV13: =IF(AU13=0,0,(AU13*((LOG(AU13))/LOG(2)))) -> 0
A14: 22 | B14: 999 | C14: 23 | D14: 1004 | E14: 23 | F14: 1016 | K14: 0 | L14: 222 | N14: 222 | O14: =COUNTIF($L$7:$L$500,N14) -> 74 | P14: =O14/$Q$4 -> 0.6379310345 | Q14: =IF(P14=0,0,(P14*((LOG(P14))/LOG(2)))) -> -0.4137159016 | T14: =N14 -> 222 | U14: =COUNTIF(L7:L25,T14) -> 13 | V14: =U14/(W4-U10) -> 0.8666666667 | W14: =IF(V14=0,0,(V14*((LOG(V14))/LOG(2)))) -> -0.1789240938 | Y14: =N14 -> 222 | Z14: =COUNTIF(L26:L45,Y14) -> 11 | AA14: =Z14/(AB4-Z10) -> 1 | AB14: =IF(AA14=0,0,(AA14*((LOG(AA14))/LOG(2)))) -> 0 | AD14: =N14 -> 222 | AE14: =COUNTIF(L46:L64,AD14) -> 12 | AF14: =AE14/(AG4-AE10) -> 1 | AG14: =IF(AF14=0,0,(AF14*((LOG(AF14))/LOG(2)))) -> 0 | AI14: =N14 -> 222 | AJ14: =COUNTIF(L65:L83,AI14) -> 14 | AK14: =AJ14/(AL4-AJ10) -> 1 | AL14: =IF(AK14=0,0,(AK14*((LOG(AK14))/LOG(2)))) -> 0 | AN14: =N14 -> 222 | AO14: =COUNTIF(L84:L103,AN14) -> 12 | AP14: =AO14/(AQ4-AO10) -> 1 | AQ14: =IF(AP14=0,0,(AP14*((LOG(AP14))/LOG(2)))) -> 0 | AS14: =N14 -> 222 | AT14: =COUNTIF(L104:L122,AS14) -> 12 | AU14: =AT14/(AV4-AT10) -> 1 | AV14: =IF(AU14=0,0,(AU14*((LOG(AU14))/LOG(2)))) -> 0
A15: 22 | B15: 1119 | C15: 23 | D15: 1123 | E15: 23 | F15: 1131 | K15: 0 | L15: 222 | P15: =SUM(P7:P14) -> 1 | Q15: =-SUM(Q7:Q14) -> 1.061630367 | V15: =SUM(V7:V14) -> 1 | W15: =-SUM(W7:W14) -> 0.6998428399 | AA15: =SUM(AA7:AA14) -> 1 | AB15: =-SUM(AB7:AB14) -> 0 | AF15: =SUM(AF7:AF14) -> 1 | AG15: =-SUM(AG7:AG14) -> 0 | AK15: =SUM(AK7:AK14) -> 1 | AL15: =-SUM(AL7:AL14) -> 0 | AP15: =SUM(AP7:AP14) -> 1 | AQ15: =-SUM(AQ7:AQ14) -> 0 | AU15: =SUM(AU7:AU14) -> 1 | AV15: =-SUM(AV7:AV14) -> 0
A16: 22 | B16: 1299 | C16: 23 | D16: 1303 | E16: 23 | F16: 1316 | K16: 0 | L16: 222 | P16: U= | Q16: =Q15/(LOG(Q4)/LOG(2)) -> 0.154802174 | V16: U1= | W16: =W15/(LOG(W4)/LOG(2)) -> 0.1647492425 | AA16: U2= | AB16: =AB15/(LOG(AB4)/LOG(2)) -> 0 | AF16: U3= | AG16: =AG15/(LOG(AG4)/LOG(2)) -> 0 | AK16: U4= | AL16: =AL15/(LOG(AL4)/LOG(2)) -> 0 | AP16: U5= | AQ16: =AQ15/(LOG(AQ4)/LOG(2)) -> 0 | AU16: U6= | AV16: =AV15/(LOG(AV4)/LOG(2)) -> 0
A17: 22 | B17: 1420 | C17: 23 | D17: 1424 | E17: 23 | F17: 1432 | K17: 0 | L17: 222
A18: 22 | B18: 1536 | C18: 23 | D18: 1539 | E18: 23 | F18: 1550 | K18: 0 | L18: 222
A19: 11 | B19: 1645 | C19: 21 | D19: 1675 | E19: 21 | F19: 1686 | K19: 0 | L19: 122 | N19: Total Target Seq
A20: 22 | B20: 1908 | C20: 23 | D20: 1928 | E20: 23 | F20: 1936 | K20: 0 | L20: 222 | N20: =COUNTIF(L7:L122,G3) -> 40 | P20: 19 | Q20: 20 | R20: 19 | S20: 19 | T20: 20 | U20: 19
A21: 11 | B21: 2032 | C21: 21 | D21: 2041 | E21: 21 | F21: 2047 | K21: 0 | L21: 122 | P21: % of reinforcement given in 6 equal intervals based on number of trials
A22: 22 | B22: 2230 | C22: 23 | D22: 2234 | E22: 23 | F22: 2240 | K22: 0 | L22: 222 | P22: %_1 | Q22: %_2 | R22: %_3 | S22: %_4 | T22: %_5 | U22: %_6
A23: 11 | B23: 2335 | C23: 21 | D23: 2343 | E23: 21 | F23: 2354 | K23: 0 | L23: 122 | O23: target sequence | P23: =$G$3 -> 122 | Q23: =$G$3 -> 122 | R23: =$G$3 -> 122 | S23: =$G$3 -> 122 | T23: =$G$3 -> 122 | U23: =$G$3 -> 122
A24: 22 | B24: 2557 | C24: 23 | D24: 2566 | E24: 23 | F24: 2572 | K24: 0 | L24: 222 | O24: total reinforcement | P24: =U10 -> 4 | Q24: =Z10 -> 9 | R24: =AE10 -> 7 | S24: =AJ10 -> 5 | T24: =AO10 -> 8 | U24: =AT10 -> 7
A25: 22 | B25: 2682 | C25: 23 | D25: 2690 | E25: 23 | F25: 2702 | K25: 0 | L25: 222 | O25: % target
A26: 11 | B26: 2797 | C26: 21 | D26: 2812 | E26: 21 | F26: 2830 | K26: 0 | L26: 122 | O26: CCRF
A27: 22 | B27: 3021 | C27: 23 | D27: 3039 | E27: 23 | F27: 3047 | K27: 0 | L27: 222 | O27: % CCRf
A28: 11 | B28: 3143 | C28: 21 | D28: 3152 | E28: 21 | F28: 3156 | K28: 0 | L28: 122 | O28: average response rate | P28: =F25/P20 -> 142.2105263 | Q28: =(F45-F25)/Q20 -> 139.45 | R28: =(F64-F45)/R20 -> 129.4210526 | S28: =(F83-F64)/S20 -> 127 | T28: =(F103-F83)/T20 -> 139.95 | U28: =(F122-F103)/U20 -> 125.4210526
A29: 22 | B29: 3343 | C29: 23 | D29: 3359 | E29: 23 | F29: 3366 | K29: 0 | L29: 222
A30: 22 | B30: 3473 | C30: 23 | D30: 3480 | E30: 23 | F30: 3488 | K30: 0 | L30: 222
A31: 22 | B31: 3595 | C31: 23 | D31: 3597 | E31: 23 | F31: 3605 | K31: 0 | L31: 222
A32: 11 | B32: 3702 | C32: 21 | D32: 3710 | E32: 21 | F32: 3715 | K32: 0 | L32: 122
A33: 22 | B33: 3836 | C33: 23 | D33: 3847 | E33: 23 | F33: 3854 | K33: 0 | L33: 222
A34: 11 | B34: 3951 | C34: 21 | D34: 3976 | E34: 21 | F34: 3986 | K34: 0 | L34: 122
A35: 22 | B35: 4140 | C35: 23 | D35: 4144 | E35: 23 | F35: 4155 | K35: 0 | L35: 222
A36: 22 | B36: 4264 | C36: 23 | D36: 4270 | E36: 23 | F36: 4279 | K36: 0 | L36: 222
A37: 22 | B37: 4386 | C37: 23 | D37: 4397 | E37: 23 | F37: 4406 | K37: 0 | L37: 222
A38: 11 | B38: 4502 | C38: 21 | D38: 4517 | E38: 21 | F38: 4522 | K38: 0 | L38: 122
A39: 22 | B39: 4660 | C39: 23 | D39: 4669 | E39: 23 | F39: 4675 | K39: 0 | L39: 222
A40: 11 | B40: 4772 | C40: 21 | D40: 4783 | E40: 21 | F40: 4793 | K40: 0 | L40: 122
A41: 11 | B41: 4885 | C41: 21 | D41: 4896 | E41: 21 | F41: 4902 | K41: 0 | L41: 122
A42: 11 | B42: 5033 | C42: 21 | D42: 5043 | E42: 21 | F42: 5049 | K42: 0 | L42: 122
A43: 11 | B43: 5175 | C43: 21 | D43: 5188 | E43: 21 | F43: 5201 | K43: 0 | L43: 122
A44: 22 | B44: 5345 | C44: 23 | D44: 5349 | E44: 23 | F44: 5367 | K44: 0 | L44: 222
A45: 22 | B45: 5474 | C45: 23 | D45: 5478 | E45: 23 | F45: 5491 | K45: 0 | L45: 222
A46: 11 | B46: 5587 | C46: 21 | D46: 5606 | E46: 21 | F46: 5615 | K46: 0 | L46: 122
A47: 22 | B47: 5747 | C47: 23 | D47: 5755 | E47: 23 | F47: 5769 | K47: 0 | L47: 222
A48: 22 | B48: 5877 | C48: 23 | D48: 5881 | E48: 23 | F48: 5892 | K48: 0 | L48: 222
A49: 22 | B49: 6000 | C49: 23 | D49: 6005 | E49: 23 | F49: 6013 | K49: 0 | L49: 222
A50: 22 | B50: 6120 | C50: 23 | D50: 6124 | E50: 23 | F50: 6134 | K50: 0 | L50: 222
A51: 11 | B51: 6231 | C51: 21 | D51: 6240 | E51: 21 | F51: 6246 | K51: 0 | L51: 122
A52: 11 | B52: 6337 | C52: 21 | D52: 6346 | E52: 21 | F52: 6354 | K52: 0 | L52: 122
A53: 22 | B53: 6533 | C53: 23 | D53: 6547 | E53: 23 | F53: 6555 | K53: 0 | L53: 222
A54: 22 | B54: 6665 | C54: 23 | D54: 6669 | E54: 23 | F54: 6685 | K54: 0 | L54: 222
A55: 11 | B55: 6782 | C55: 21 | D55: 6790 | E55: 21 | F55: 6805 | K55: 0 | L55: 122
A56: 11 | B56: 6897 | C56: 21 | D56: 6906 | E56: 21 | F56: 6914 | K56: 0 | L56: 122
A57: 22 | B57: 7064 | C57: 23 | D57: 7069 | E57: 23 | F57: 7078 | K57: 0 | L57: 222
A58: 22 | B58: 7184 | C58: 23 | D58: 7190 | E58: 23 | F58: 7202 | K58: 0 | L58: 222
A59: 11 | B59: 7297 | C59: 21 | D59: 7312 | E59: 21 | F59: 7321 | K59: 0 | L59: 122
A60: 22 | B60: 7454 | C60: 23 | D60: 7459 | E60: 23 | F60: 7468 | K60: 0 | L60: 222
A61: 22 | B61: 7574 | C61: 23 | D61: 7577 | E61: 23 | F61: 7588 | K61: 0 | L61: 222
A62: 22 | B62: 7694 | C62: 23 | D62: 7698 | E62: 23 | F62: 7714 | K62: 0 | L62: 222
A63: 22 | B63: 7834 | C63: 23 | D63: 7837 | E63: 23 | F63: 7842 | K63: 0 | L63: 222
A64: 11 | B64: 7937 | C64: 21 | D64: 7947 | E64: 21 | F64: 7950 | K64: 0 | L64: 122
A65: 22 | B65: 8085 | C65: 23 | D65: 8094 | E65: 23 | F65: 8104 | K65: 0 | L65: 222
A66: 11 | B66: 8201 | C66: 21 | D66: 8209 | E66: 21 | F66: 8220 | K66: 0 | L66: 122
A67: 22 | B67: 8335 | C67: 23 | D67: 8349 | E67: 23 | F67: 8362 | K67: 0 | L67: 222
A68: 22 | B68: 8474 | C68: 23 | D68: 8482 | E68: 23 | F68: 8488 | K68: 0 | L68: 222
A69: 11 | B69: 8583 | C69: 21 | D69: 8593 | E69: 21 | F69: 8598 | K69: 0 | L69: 122
A70: 22 | B70: 8703 | C70: 23 | D70: 8705 | E70: 23 | F70: 8708 | K70: 0 | L70: 222
A71: 22 | B71: 8810 | C71: 23 | D71: 8815 | E71: 23 | F71: 8824 | K71: 0 | L71: 222
A72: 11 | B72: 8924 | C72: 21 | D72: 8933 | E72: 21 | F72: 8937 | K72: 0 | L72: 122
A73: 22 | B73: 9056 | C73: 23 | D73: 9064 | E73: 23 | F73: 9085 | K73: 0 | L73: 222
A74: 22 | B74: 9195 | C74: 23 | D74: 9203 | E74: 23 | F74: 9210 | K74: 0 | L74: 222
A75: 22 | B75: 9316 | C75: 23 | D75: 9324 | E75: 23 | F75: 9331 | K75: 0 | L75: 222
A76: 22 | B76: 9436 | C76: 23 | D76: 9438 | E76: 23 | F76: 9447 | K76: 0 | L76: 222
A77: 22 | B77: 9550 | C77: 23 | D77: 9556 | E77: 23 | F77: 9560 | K77: 0 | L77: 222
A78: 22 | B78: 9676 | C78: 23 | D78: 9679 | E78: 23 | F78: 9688 | K78: 0 | L78: 222
A79: 22 | B79: 9794 | C79: 23 | D79: 9797 | E79: 23 | F79: 9806 | K79: 0 | L79: 222
A80: 11 | B80: 9901 | C80: 21 | D80: 9912 | E80: 21 | F80: 9924 | K80: 0 | L80: 122
A81: 22 | B81: 10079 | C81: 23 | D81: 10092 | E81: 23 | F81: 10103 | K81: 0 | L81: 222
A82: 22 | B82: 10211 | C82: 23 | D82: 10214 | E82: 23 | F82: 10218 | K82: 0 | L82: 222
A83: 11 | B83: 10313 | C83: 21 | D83: 10353 | E83: 21 | F83: 10363 | K83: 0 | L83: 122
A84: 22 | B84: 10564 | C84: 23 | D84: 10568 | E84: 23 | F84: 10576 | K84: 0 | L84: 222
A85: 11 | B85: 10677 | C85: 21 | D85: 10687 | E85: 21 | F85: 10691 | K85: 0 | L85: 122
A86: 22 | B86: 10813 | C86: 23 | D86: 10817 | E86: 23 | F86: 10826 | K86: 0 | L86: 222
A87: 22 | B87: 10935 | C87: 23 | D87: 10946 | E87: 23 | F87: 10955 | K87: 0 | L87: 222
A88: 22 | B88: 11060 | C88: 23 | D88: 11064 | E88: 23 | F88: 11068 | K88: 0 | L88: 222
A89: 11 | B89: 11177 | C89: 21 | D89: 11189 | E89: 21 | F89: 11202 | K89: 0 | L89: 122
A90: 11 | B90: 11334 | C90: 21 | D90: 11344 | E90: 21 | F90: 11348 | K90: 0 | L90: 122
A91: 22 | B91: 11500 | C91: 23 | D91: 11520 | E91: 23 | F91: 11528 | K91: 0 | L91: 222
A92: 22 | B92: 11635 | C92: 23 | D92: 11639 | E92: 23 | F92: 11649 | K92: 0 | L92: 222
A93: 11 | B93: 11746 | C93: 21 | D93: 11754 | E93: 21 | F93: 11758 | K93: 0 | L93: 122
A94: 22 | B94: 11879 | C94: 23 | D94: 11884 | E94: 23 | F94: 11894 | K94: 0 | L94: 222
A95: 11 | B95: 11990 | C95: 21 | D95: 12003 | E95: 21 | F95: 12012 | K95: 0 | L95: 122
A96: 22 | B96: 12160 | C96: 23 | D96: 12165 | E96: 23 | F96: 12176 | K96: 0 | L96: 222
A97: 22 | B97: 12284 | C97: 23 | D97: 12292 | E97: 23 | F97: 12304 | K97: 0 | L97: 222
A98: 11 | B98: 12400 | C98: 21 | D98: 12410 | E98: 21 | F98: 12420 | K98: 0 | L98: 122
A99: 22 | B99: 12590 | C99: 23 | D99: 12592 | E99: 23 | F99: 12599 | K99: 0 | L99: 222
A100: 22 | B100: 12706 | C100: 23 | D100: 12716 | E100: 23 | F100: 12724 | K100: 0 | L100: 222
A101: 11 | B101: 12821 | C101: 21 | D101: 12832 | E101: 21 | F101: 12836 | K101: 0 | L101: 122
A102: 11 | B102: 12931 | C102: 21 | D102: 12940 | E102: 21 | F102: 12953 | K102: 0 | L102: 122
A103: 22 | B103: 13145 | C103: 23 | D103: 13154 | E103: 23 | F103: 13162 | K103: 0 | L103: 222
A104: 22 | B104: 13268 | C104: 23 | D104: 13273 | E104: 23 | F104: 13280 | K104: 0 | L104: 222
A105: 11 | B105: 13376 | C105: 21 | D105: 13387 | E105: 21 | F105: 13394 | K105: 0 | L105: 122
A106: 22 | B106: 13537 | C106: 23 | D106: 13545 | E106: 23 | F106: 13558 | K106: 0 | L106: 222
A107: 11 | B107: 13649 | C107: 21 | D107: 13662 | E107: 21 | F107: 13665 | K107: 0 | L107: 122
A108: 22 | B108: 13795 | C108: 23 | D108: 13798 | E108: 23 | F108: 13808 | K108: 0 | L108: 222
A109: 11 | B109: 13907 | C109: 21 | D109: 13916 | E109: 21 | F109: 13920 | K109: 0 | L109: 122
A110: 22 | B110: 14040 | C110: 23 | D110: 14044 | E110: 23 | F110: 14054 | K110: 0 | L110: 222
A111: 22 | B111: 14166 | C111: 23 | D111: 14175 | E111: 23 | F111: 14182 | K111: 0 | L111: 222
A112: 22 | B112: 14291 | C112: 23 | D112: 14295 | E112: 23 | F112: 14303 | K112: 0 | L112: 222
A113: 22 | B113: 14409 | C113: 23 | D113: 14414 | E113: 23 | F113: 14422 | K113: 0 | L113: 222
A114: 22 | B114: 14527 | C114: 23 | D114: 14531 | E114: 23 | F114: 14539 | K114: 0 | L114: 222
A115: 11 | B115: 14636 | C115: 21 | D115: 14648 | E115: 21 | F115: 14653 | K115: 0 | L115: 122
A116: 22 | B116: 14796 | C116: 23 | D116: 14802 | E116: 23 | F116: 14811 | K116: 0 | L116: 222
A117: 11 | B117: 14907 | C117: 21 | D117: 14916 | E117: 21 | F117: 14923 | K117: 0 | L117: 122
A118: 22 | B118: 15032 | C118: 23 | D118: 15036 | E118: 23 | F118: 15046 | K118: 0 | L118: 222
A119: 22 | B119: 15154 | C119: 23 | D119: 15157 | E119: 23 | F119: 15166 | K119: 0 | L119: 222
A120: 11 | B120: 15264 | C120: 21 | D120: 15277 | E120: 21 | F120: 15286 | K120: 0 | L120: 122
A121: 22 | B121: 15405 | C121: 23 | D121: 15421 | E121: 23 | F121: 15433 | K121: 0 | L121: 222
A122: 11 | B122: 15530 | C122: 21 | D122: 15540 | E122: 21 | F122: 15545 | K122: 1 | L122: 122

Sheet !LA18A12.. I
A1: Report for:!LA18A12.. I
A2: Date: | B2: <date>
A3: Hen: | B3: <hen> | F3: Correct Sequence | G3: =Start!J2 -> 122 | P3: Total Sequences in Data | Q3: =4994-COUNTBLANK(L7:L5000) -> 83 | V3: Total Sequences in Block Data | W3: =COUNTA(L7:L20) -> 14 | AA3: Total Sequences in Block Data | AB3: =COUNTA(L21:L34) -> 14 | AF3: Total Sequences in Block Data | AG3: =COUNTA(L35:L47) -> 13 | AK3: Total Sequences in Block Data | AL3: =COUNTA(L48:L61) -> 14 | AP3: Total Sequences in Block Data | AQ3: =COUNTA(L62:L75) -> 14 | AU3: Total Sequences in Block Data | AV3: =COUNTA(L76:L89) -> 14
P4: Total Sequences in Summary | Q4: =SUM(O7:O14) -> 83 | V4: Total Sequences in Block Summary | W4: =SUM(U7:U14) -> 14 | AA4: Total Sequences in Block Summary | AB4: =SUM(Z7:Z14) -> 14 | AF4: Total Sequences in Block Summary | AG4: =SUM(AE7:AE14) -> 13 | AK4: Total Sequences in Block Summary | AL4: =SUM(AJ7:AJ14) -> 14 | AP4: Total Sequences in Block Summary | AQ4: =SUM(AO7:AO14) -> 14 | AU4: Total Sequences in Block Summary | AV4: =SUM(AT7:AT14) -> 14
T5: Block 1 | Y5: Block 2 | AD5: Block 3 | AI5: Block 4 | AN5: Block 5 | AS5: Block 6
A6: Sequence Component 1 | B6: Time 1 | C6: Sequence Component 2 | D6: Time 2 | E6: Sequence Component 3 | F6: Time 3 | G6: Sequence Component 4 | H6: Time 4 | I6: Sequence Component 5 | J6: Time 5 | K6: Correct? 0=No 1=Yes | L6: Sequence | N6: Frequency | P6: Relative Frequency | Q6: Variability | T6: Frequency | V6: Relative Frequency | W6: Variability | Y6: Frequency | AA6: Relative Frequency | AB6: Variability | AD6: Frequency | AF6: Relative Frequency | AG6: Variability | AI6: Frequency | AK6: Relative Frequency | AL6: Variability | AN6: Frequency | AP6: Relative Frequency | AQ6: Variability | AS6: Frequency | AU6: Relative Frequency | AV6: Variability
A7: 22 | B7: 47 | C7: 14 | D7: 59 | E7: 23 | F7: 118 | K7: 0 | L7: 212 | N7: 111 | O7: =COUNTIF($L$7:$L$500,N7) -> 0 | P7: =O7/$Q$4 -> 0 | Q7: =IF(P7=0,0,(P7*((LOG(P7))/LOG(2)))) -> 0 | T7: =N7 -> 111 | U7: =COUNTIF(L7:L20,T7) -> 0 | V7: =U7/(W4-U10) -> 0 | W7: =IF(V7=0,0,(V7*((LOG(V7))/LOG(2)))) -> 0 | Y7: =N7 -> 111 | Z7: =COUNTIF(L21:L34,Y7) -> 0 | AA7: =Z7/(AB4-Z10) -> 0 | AB7: =IF(AA7=0,0,(AA7*((LOG(AA7))/LOG(2)))) -> 0 | AD7: =N7 -> 111 | AE7: =COUNTIF(L35:L47,AD7) -> 0 | AF7: =AE7/(AG4-AE10) -> 0 | AG7: =IF(AF7=0,0,(AF7*((LOG(AF7))/LOG(2)))) -> 0 | AI7: =N7 -> 111 | AJ7: =COUNTIF(L48:L61,AI7) -> 0 | AK7: =AJ7/(AL4-AJ10) -> 0 | AL7: =IF(AK7=0,0,(AK7*((LOG(AK7))/LOG(2)))) -> 0 | AN7: =N7 -> 111 | AO7: =COUNTIF(L62:L75,AN7) -> 0 | AP7: =AO7/(AQ4-AO10) -> 0 | AQ7: =IF(AP7=0,0,(AP7*((LOG(AP7))/LOG(2)))) -> 0 | AS7: =N7 -> 111 | AT7: =COUNTIF(L76:L89,AS7) -> 0 | AU7: =AT7/(AV4-AT10) -> 0 | AV7: =IF(AU7=0,0,(AU7*((LOG(AU7))/LOG(2)))) -> 0
A8: 22 | B8: 214 | C8: 14 | D8: 228 | E8: 23 | F8: 237 | K8: 0 | L8: 212 | N8: 112 | O8: =COUNTIF($L$7:$L$500,N8) -> 0 | P8: =O8/$Q$4 -> 0 | Q8: =IF(P8=0,0,(P8*((LOG(P8))/LOG(2)))) -> 0 | T8: =N8 -> 112 | U8: =COUNTIF(L7:L20,T8) -> 0 | V8: =U8/(W4-U10) -> 0 | W8: =IF(V8=0,0,(V8*((LOG(V8))/LOG(2)))) -> 0 | Y8: =N8 -> 112 | Z8: =COUNTIF(L21:L34,Y8) -> 0 | AA8: =Z8/(AB4-Z10) -> 0 | AB8: =IF(AA8=0,0,(AA8*((LOG(AA8))/LOG(2)))) -> 0 | AD8: =N8 -> 112 | AE8: =COUNTIF(L35:L47,AD8) -> 0 | AF8: =AE8/(AG4-AE10) -> 0 | AG8: =IF(AF8=0,0,(AF8*((LOG(AF8))/LOG(2)))) -> 0 | AI8: =N8 -> 112 | AJ8: =COUNTIF(L48:L61,AI8) -> 0 | AK8: =AJ8/(AL4-AJ10) -> 0 | AL8: =IF(AK8=0,0,(AK8*((LOG(AK8))/LOG(2)))) -> 0 | AN8: =N8 -> 112 | AO8: =COUNTIF(L62:L75,AN8) -> 0 | AP8: =AO8/(AQ4-AO10) -> 0 | AQ8: =IF(AP8=0,0,(AP8*((LOG(AP8))/LOG(2)))) -> 0 | AS8: =N8 -> 112 | AT8: =COUNTIF(L76:L89,AS8) -> 0 | AU8: =AT8/(AV4-AT10) -> 0 | AV8: =IF(AU8=0,0,(AU8*((LOG(AU8))/LOG(2)))) -> 0
A9: 22 | B9: 335 | C9: 23 | D9: 358 | E9: 23 | F9: 363 | K9: 0 | L9: 222 | N9: 121 | O9: =COUNTIF($L$7:$L$500,N9) -> 0 | P9: =O9/$Q$4 -> 0 | Q9: =IF(P9=0,0,(P9*((LOG(P9))/LOG(2)))) -> 0 | T9: =N9 -> 121 | U9: =COUNTIF(L7:L20,T9) -> 0 | V9: =U9/(W4-U10) -> 0 | W9: =IF(V9=0,0,(V9*((LOG(V9))/LOG(2)))) -> 0 | Y9: =N9 -> 121 | Z9: =COUNTIF(L21:L34,Y9) -> 0 | AA9: =Z9/(AB4-Z10) -> 0 | AB9: =IF(AA9=0,0,(AA9*((LOG(AA9))/LOG(2)))) -> 0 | AD9: =N9 -> 121 | AE9: =COUNTIF(L35:L47,AD9) -> 0 | AF9: =AE9/(AG4-AE10) -> 0 | AG9: =IF(AF9=0,0,(AF9*((LOG(AF9))/LOG(2)))) -> 0 | AI9: =N9 -> 121 | AJ9: =COUNTIF(L48:L61,AI9) -> 0 | AK9: =AJ9/(AL4-AJ10) -> 0 | AL9: =IF(AK9=0,0,(AK9*((LOG(AK9))/LOG(2)))) -> 0 | AN9: =N9 -> 121 | AO9: =COUNTIF(L62:L75,AN9) -> 0 | AP9: =AO9/(AQ4-AO10) -> 0 | AQ9: =IF(AP9=0,0,(AP9*((LOG(AP9))/LOG(2)))) -> 0 | AS9: =N9 -> 121 | AT9: =COUNTIF(L76:L89,AS9) -> 0 | AU9: =AT9/(AV4-AT10) -> 0 | AV9: =IF(AU9=0,0,(AU9*((LOG(AU9))/LOG(2)))) -> 0
A10: 22 | B10: 461 | C10: 23 | D10: 467 | E10: 23 | F10: 473 | K10: 0 | L10: 222 | N10: 122 | O10: =COUNTIF($L$7:$L$500,N10) -> 40 | P10: =O10/$Q$4 -> 0.4819277108 | Q10: =IF(P10=0,0,(P10*((LOG(P10))/LOG(2)))) -> -0.5075235356 | T10: =N10 -> 122 | U10: =COUNTIF(L7:L20,T10) -> 3 | Y10: =N10 -> 122 | Z10: =COUNTIF(L21:L34,Y10) -> 8 | AD10: =N10 -> 122 | AE10: =COUNTIF(L35:L47,AD10) -> 7 | AI10: =N10 -> 122 | AJ10: =COUNTIF(L48:L61,AI10) -> 9 | AN10: =N10 -> 122 | AO10: =COUNTIF(L62:L75,AN10) -> 5 | AS10: =N10 -> 122 | AT10: =COUNTIF(L76:L89,AS10) -> 8
A11: 22 | B11: 573 | C11: 23 | D11: 590 | E11: 23 | F11: 599 | K11: 0 | L11: 222 | N11: 211 | O11: =COUNTIF($L$7:$L$500,N11) -> 0 | P11: =O11/$Q$4 -> 0 | Q11: =IF(P11=0,0,(P11*((LOG(P11))/LOG(2)))) -> 0 | T11: =N11 -> 211 | U11: =COUNTIF(L7:L20,T11) -> 0 | V11: =U11/(W4-U10) -> 0 | W11: =IF(V11=0,0,(V11*((LOG(V11))/LOG(2)))) -> 0 | Y11: =N11 -> 211 | Z11: =COUNTIF(L21:L34,Y11) -> 0 | AA11: =Z11/(AB4-Z10) -> 0 | AB11: =IF(AA11=0,0,(AA11*((LOG(AA11))/LOG(2)))) -> 0 | AD11: =N11 -> 211 | AE11: =COUNTIF(L35:L47,AD11) -> 0 | AF11: =AE11/(AG4-AE10) -> 0 | AG11: =IF(AF11=0,0,(AF11*((LOG(AF11))/LOG(2)))) -> 0 | AI11: =N11 -> 211 | AJ11: =COUNTIF(L48:L61,AI11) -> 0 | AK11: =AJ11/(AL4-AJ10) -> 0 | AL11: =IF(AK11=0,0,(AK11*((LOG(AK11))/LOG(2)))) -> 0 | AN11: =N11 -> 211 | AO11: =COUNTIF(L62:L75,AN11) -> 0 | AP11: =AO11/(AQ4-AO10) -> 0 | AQ11: =IF(AP11=0,0,(AP11*((LOG(AP11))/LOG(2)))) -> 0 | AS11: =N11 -> 211 | AT11: =COUNTIF(L76:L89,AS11) -> 0 | AU11: =AT11/(AV4-AT10) -> 0 | AV11: =IF(AU11=0,0,(AU11*((LOG(AU11))/LOG(2)))) -> 0
A12: 11 | B12: 695 | C12: 21 | D12: 704 | E12: 21 | F12: 708 | K12: 0 | L12: 122 | N12: 212 | O12: =COUNTIF($L$7:$L$500,N12) -> 2 | P12: =O12/$Q$4 -> 0.02409638554 | Q12: =IF(P12=0,0,(P12*((LOG(P12))/LOG(2)))) -> -0.1295190224 | T12: =N12 -> 212 | U12: =COUNTIF(L7:L20,T12) -> 2 | V12: =U12/(W4-U10) -> 0.1818181818 | W12: =IF(V12=0,0,(V12*((LOG(V12))/LOG(2)))) -> -0.4471693852 | Y12: =N12 -> 212 | Z12: =COUNTIF(L21:L34,Y12) -> 0 | AA12: =Z12/(AB4-Z10) -> 0 | AB12: =IF(AA12=0,0,(AA12*((LOG(AA12))/LOG(2)))) -> 0 | AD12: =N12 -> 212 | AE12: =COUNTIF(L35:L47,AD12) -> 0 | AF12: =AE12/(AG4-AE10) -> 0 | AG12: =IF(AF12=0,0,(AF12*((LOG(AF12))/LOG(2)))) -> 0 | AI12: =N12 -> 212 | AJ12: =COUNTIF(L48:L61,AI12) -> 0 | AK12: =AJ12/(AL4-AJ10) -> 0 | AL12: =IF(AK12=0,0,(AK12*((LOG(AK12))/LOG(2)))) -> 0 | AN12: =N12 -> 212 | AO12: =COUNTIF(L62:L75,AN12) -> 0 | AP12: =AO12/(AQ4-AO10) -> 0 | AQ12: =IF(AP12=0,0,(AP12*((LOG(AP12))/LOG(2)))) -> 0 | AS12: =N12 -> 212 | AT12: =COUNTIF(L76:L89,AS12) -> 0 | AU12: =AT12/(AV4-AT10) -> 0 | AV12: =IF(AU12=0,0,(AU12*((LOG(AU12))/LOG(2)))) -> 0
A13: 22 | B13: 846 | C13: 23 | D13: 850 | E13: 23 | F13: 853 | K13: 0 | L13: 222 | N13: 221 | O13: =COUNTIF($L$7:$L$500,N13) -> 0 | P13: =O13/$Q$4 -> 0 | Q13: =IF(P13=0,0,(P13*((LOG(P13))/LOG(2)))) -> 0 | T13: =N13 -> 221 | U13: =COUNTIF(L7:L20,T13) -> 0 | V13: =U13/(W4-U10) -> 0 | W13: =IF(V13=0,0,(V13*((LOG(V13))/LOG(2)))) -> 0 | Y13: =N13 -> 221 | Z13: =COUNTIF(L21:L34,Y13) -> 0 | AA13: =Z13/(AB4-Z10) -> 0 | AB13: =IF(AA13=0,0,(AA13*((LOG(AA13))/LOG(2)))) -> 0 | AD13: =N13 -> 221 | AE13: =COUNTIF(L35:L47,AD13) -> 0 | AF13: =AE13/(AG4-AE10) -> 0 | AG13: =IF(AF13=0,0,(AF13*((LOG(AF13))/LOG(2)))) -> 0 | AI13: =N13 -> 221 | AJ13: =COUNTIF(L48:L61,AI13) -> 0 | AK13: =AJ13/(AL4-AJ10) -> 0 | AL13: =IF(AK13=0,0,(AK13*((LOG(AK13))/LOG(2)))) -> 0 | AN13: =N13 -> 221 | AO13: =COUNTIF(L62:L75,AN13) -> 0 | AP13: =AO13/(AQ4-AO10) -> 0 | AQ13: =IF(AP13=0,0,(AP13*((LOG(AP13))/LOG(2)))) -> 0 | AS13: =N13 -> 221 | AT13: =COUNTIF(L76:L89,AS13) -> 0 | AU13: =AT13/(AV4-AT10) -> 0 | AV13: =IF(AU13=0,0,(AU13*((LOG(AU13))/LOG(2)))) -> 0
A14: 11 | B14: 949 | C14: 21 | D14: 960 | E14: 21 | F14: 964 | K14: 0 | L14: 122 | N14: 222 | O14: =COUNTIF($L$7:$L$500,N14) -> 41 | P14: =O14/$Q$4 -> 0.4939759036 | Q14: =IF(P14=0,0,(P14*((LOG(P14))/LOG(2)))) -> -0.502614271 | T14: =N14 -> 222 | U14: =COUNTIF(L7:L20,T14) -> 9 | V14: =U14/(W4-U10) -> 0.8181818182 | W14: =IF(V14=0,0,(V14*((LOG(V14))/LOG(2)))) -> -0.2368690504 | Y14: =N14 -> 222 | Z14: =COUNTIF(L21:L34,Y14) -> 6 | AA14: =Z14/(AB4-Z10) -> 1 | AB14: =IF(AA14=0,0,(AA14*((LOG(AA14))/LOG(2)))) -> 0 | AD14: =N14 -> 222 | AE14: =COUNTIF(L35:L47,AD14) -> 6 | AF14: =AE14/(AG4-AE10) -> 1 | AG14: =IF(AF14=0,0,(AF14*((LOG(AF14))/LOG(2)))) -> 0 | AI14: =N14 -> 222 | AJ14: =COUNTIF(L48:L61,AI14) -> 5 | AK14: =AJ14/(AL4-AJ10) -> 1 | AL14: =IF(AK14=0,0,(AK14*((LOG(AK14))/LOG(2)))) -> 0 | AN14: =N14 -> 222 | AO14: =COUNTIF(L62:L75,AN14) -> 9 | AP14: =AO14/(AQ4-AO10) -> 1 | AQ14: =IF(AP14=0,0,(AP14*((LOG(AP14))/LOG(2)))) -> 0 | AS14: =N14 -> 222 | AT14: =COUNTIF(L76:L89,AS14) -> 6 | AU14: =AT14/(AV4-AT10) -> 1 | AV14: =IF(AU14=0,0,(AU14*((LOG(AU14))/LOG(2)))) -> 0
A15: 22 | B15: 1118 | C15: 23 | D15: 1121 | E15: 23 | F15: 1127 | K15: 0 | L15: 222 | P15: =SUM(P7:P14) -> 1 | Q15: =-SUM(Q7:Q14) -> 1.139656829 | V15: =SUM(V7:V14) -> 1 | W15: =-SUM(W7:W14) -> 0.6840384356 | AA15: =SUM(AA7:AA14) -> 1 | AB15: =-SUM(AB7:AB14) -> 0 | AF15: =SUM(AF7:AF14) -> 1 | AG15: =-SUM(AG7:AG14) -> 0 | AK15: =SUM(AK7:AK14) -> 1 | AL15: =-SUM(AL7:AL14) -> 0 | AP15: =SUM(AP7:AP14) -> 1 | AQ15: =-SUM(AQ7:AQ14) -> 0 | AU15: =SUM(AU7:AU14) -> 1 | AV15: =-SUM(AV7:AV14) -> 0
A16: 22 | B16: 1233 | C16: 23 | D16: 1243 | E16: 23 | F16: 1250 | K16: 0 | L16: 222 | P16: U= | Q16: =Q15/(LOG(Q4)/LOG(2)) -> 0.1787685929 | V16: U1= | W16: =W15/(LOG(W4)/LOG(2)) -> 0.1796623771 | AA16: U2= | AB16: =AB15/(LOG(AB4)/LOG(2)) -> 0 | AF16: U3= | AG16: =AG15/(LOG(AG4)/LOG(2)) -> 0 | AK16: U4= | AL16: =AL15/(LOG(AL4)/LOG(2)) -> 0 | AP16: U5= | AQ16: =AQ15/(LOG(AQ4)/LOG(2)) -> 0 | AU16: U6= | AV16: =AV15/(LOG(AV4)/LOG(2)) -> 0
A17: 22 | B17: 1354 | C17: 23 | D17: 1358 | E17: 23 | F17: 1365 | K17: 0 | L17: 222
A18: 11 | B18: 1461 | C18: 21 | D18: 1470 | E18: 21 | F18: 1474 | K18: 0 | L18: 122
A19: 22 | B19: 1574 | C19: 23 | D19: 1583 | E19: 23 | F19: 1591 | K19: 0 | L19: 222 | N19: Total Target Seq
A20: 22 | B20: 1698 | C20: 23 | D20: 1702 | E20: 23 | F20: 1713 | K20: 0 | L20: 222 | N20: =COUNTIF(L7:L89,G3) -> 40 | P20: 14 | Q20: 14 | R20: 13 | S20: 14 | T20: 14 | U20: 14
A21: 22 | B21: 1821 | C21: 23 | D21: 1827 | E21: 23 | F21: 1835 | K21: 0 | L21: 222 | P21: % of reinforcement given in 6 equal intervals based on number of trials
A22: 11 | B22: 1932 | C22: 21 | D22: 1940 | E22: 21 | F22: 1945 | K22: 0 | L22: 122 | P22: %_1 | Q22: %_2 | R22: %_3 | S22: %_4 | T22: %_5 | U22: %_6
A23: 22 | B23: 2047 | C23: 23 | D23: 2050 | E23: 23 | F23: 2061 | K23: 0 | L23: 222 | O23: target sequence | P23: =$G$3 -> 122 | Q23: =$G$3 -> 122 | R23: =$G$3 -> 122 | S23: =$G$3 -> 122 | T23: =$G$3 -> 122 | U23: =$G$3 -> 122
A24: 11 | B24: 2155 | C24: 21 | D24: 2164 | E24: 21 | F24: 2169 | K24: 0 | L24: 122 | O24: total reinforcement | P24: =U10 -> 3 | Q24: =Z10 -> 8 | R24: =AE10 -> 7 | S24: =AJ10 -> 9 | T24: =AO10 -> 5 | U24: =AT10 -> 8
A25: 22 | B25: 2280 | C25: 23 | D25: 2286 | E25: 23 | F25: 2294 | K25: 0 | L25: 222 | O25: % target
A26: 11 | B26: 2390 | C26: 21 | D26: 2400 | E26: 21 | F26: 2417 | K26: 0 | L26: 122 | O26: CCRF
A27: 11 | B27: 2518 | C27: 21 | D27: 2526 | E27: 21 | F27: 2535 | K27: 0 | L27: 122 | O27: % CCRf
A28: 22 | B28: 2652 | C28: 23 | D28: 2662 | E28: 23 | F28: 2670 | K28: 0 | L28: 222 | O28: average response rate | P28: =F20/P20 -> 122.3571429 | Q28: =(F34-F20)/Q20 -> 121.5 | R28: =(F47-F34)/R20 -> 124.0769231 | S28: =(F61-F47)/S20 -> 120.2142857 | T28: =(F75-F61)/T20 -> 124.0714286 | U28: =(F89-F75)/U20 -> 132.1428571
A29: 22 | B29: 2781 | C29: 23 | D29: 2784 | E29: 23 | F29: 2790 | K29: 0 | L29: 222
A30: 11 | B30: 2886 | C30: 21 | D30: 2897 | E30: 21 | F30: 2905 | K30: 0 | L30: 122
A31: 11 | B31: 2997 | C31: 21 | D31: 3005 | E31: 21 | F31: 3010 | K31: 0 | L31: 122
A32: 22 | B32: 3154 | C32: 23 | D32: 3157 | E32: 23 | F32: 3166 | K32: 0 | L32: 222
A33: 11 | B33: 3261 | C33: 21 | D33: 3276 | E33: 21 | F33: 3280 | K33: 0 | L33: 122
A34: 11 | B34: 3401 | C34: 21 | D34: 3409 | E34: 21 | F34: 3414 | K34: 0 | L34: 122
A35: 22 | B35: 3551 | C35: 23 | D35: 3558 | E35: 23 | F35: 3571 | K35: 0 | L35: 222
A36: 22 | B36: 3681 | C36: 23 | D36: 3684 | E36: 23 | F36: 3690 | K36: 0 | L36: 222
A37: 11 | B37: 3788 | C37: 21 | D37: 3800 | E37: 21 | F37: 3805 | K37: 0 | L37: 122
A38: 22 | B38: 3906 | C38: 23 | D38: 3913 | E38: 23 | F38: 3922 | K38: 0 | L38: 222
A39: 11 | B39: 4019 | C39: 21 | D39: 4028 | E39: 21 | F39: 4032 | K39: 0 | L39: 122
A40: 11 | B40: 4132 | C40: 21 | D40: 4142 | E40: 21 | F40: 4154 | K40: 0 | L40: 122
A41: 22 | B41: 4260 | C41: 23 | D41: 4264 | E41: 23 | F41: 4271 | K41: 0 | L41: 222
A42: 11 | B42: 4366 | C42: 21 | D42: 4377 | E42: 21 | F42: 4382 | K42: 0 | L42: 122
A43: 11 | B43: 4475 | C43: 21 | D43: 4490 | E43: 21 | F43: 4494 | K43: 0 | L43: 122
A44: 11 | B44: 4587 | C44: 21 | D44: 4603 | E44: 21 | F44: 4611 | K44: 0 | L44: 122
A45: 22 | B45: 4787 | C45: 23 | D45: 4796 | E45: 23 | F45: 4803 | K45: 0 | L45: 222
A46: 11 | B46: 4899 | C46: 21 | D46: 4907 | E46: 21 | F46: 4912 | K46: 0 | L46: 122
A47: 22 | B47: 5014 | C47: 23 | D47: 5018 | E47: 23 | F47: 5027 | K47: 0 | L47: 222
A48: 11 | B48: 5124 | C48: 21 | D48: 5136 | E48: 21 | F48: 5140 | K48: 0 | L48: 122
A49: 11 | B49: 5230 | C49: 21 | D49: 5245 | E49: 21 | F49: 5249 | K49: 0 | L49: 122
A50: 11 | B50: 5341 | C50: 21 | D50: 5354 | E50: 21 | F50: 5361 | K50: 0 | L50: 122
A51: 22 | B51: 5493 | C51: 23 | D51: 5503 | E51: 23 | F51: 5511 | K51: 0 | L51: 222
A52: 11 | B52: 5607 | C52: 21 | D52: 5617 | E52: 21 | F52: 5621 | K52: 0 | L52: 122
A53: 11 | B53: 5718 | C53: 21 | D53: 5727 | E53: 21 | F53: 5735 | K53: 0 | L53: 122
A54: 22 | B54: 5860 | C54: 23 | D54: 5865 | E54: 23 | F54: 5874 | K54: 0 | L54: 222
A55: 11 | B55: 5966 | C55: 21 | D55: 5979 | E55: 21 | F55: 5983 | K55: 0 | L55: 122
A56: 11 | B56: 6079 | C56: 21 | D56: 6089 | E56: 21 | F56: 6093 | K56: 0 | L56: 122
A57: 22 | B57: 6203 | C57: 23 | D57: 6210 | E57: 23 | F57: 6218 | K57: 0 | L57: 222
A58: 11 | B58: 6314 | C58: 21 | D58: 6326 | E58: 21 | F58: 6331 | K58: 0 | L58: 122
A59: 22 | B59: 6457 | C59: 23 | D59: 6470 | E59: 23 | F59: 6478 | K59: 0 | L59: 222
A60: 11 | B60: 6573 | C60: 21 | D60: 6581 | E60: 21 | F60: 6586 | K60: 0 | L60: 122
A61: 22 | B61: 6689 | C61: 23 | D61: 6702 | E61: 23 | F61: 6710 | K61: 0 | L61: 222
A62: 11 | B62: 6806 | C62: 21 | D62: 6817 | E62: 21 | F62: 6822 | K62: 0 | L62: 122
A63: 11 | B63: 6915 | C63: 21 | D63: 6923 | E63: 21 | F63: 6938 | K63: 0 | L63: 122
A64: 22 | B64: 7075 | C64: 23 | D64: 7081 | E64: 23 | F64: 7089 | K64: 0 | L64: 222
A65: 22 | B65: 7194 | C65: 23 | D65: 7201 | E65: 23 | F65: 7212 | K65: 0 | L65: 222
A66: 22 | B66: 7314 | C66: 23 | D66: 7317 | E66: 23 | F66: 7322 | K66: 0 | L66: 222
A67: 11 | B67: 7425 | C67: 21 | D67: 7434 | E67: 21 | F67: 7450 | K67: 0 | L67: 122
A68: 22 | B68: 7608 | C68: 23 | D68: 7613 | E68: 23 | F68: 7624 | K68: 0 | L68: 222
A69: 22 | B69: 7729 | C69: 23 | D69: 7738 | E69: 23 | F69: 7747 | K69: 0 | L69: 222
A70: 22 | B70: 7852 | C70: 23 | D70: 7856 | E70: 23 | F70: 7867 | K70: 0 | L70: 222
A71: 11 | B71: 7965 | C71: 21 | D71: 7974 | E71: 21 | F71: 7977 | K71: 0 | L71: 122
A72: 22 | B72: 8076 | C72: 23 | D72: 8080 | E72: 23 | F72: 8086 | K72: 0 | L72: 222
A73: 11 | B73: 8183 | C73: 21 | D73: 8191 | E73: 21 | F73: 8206 | K73: 0 | L73: 122
A74: 22 | B74: 8313 | C74: 23 | D74: 8318 | E74: 23 | F74: 8325 | K74: 0 | L74: 222
A75: 22 | B75: 8430 | C75: 23 | D75: 8439 | E75: 23 | F75: 8447 | K75: 0 | L75: 222
A76: 22 | B76: 8595 | C76: 23 | D76: 8604 | E76: 23 | F76: 8612 | K76: 0 | L76: 222
A77: 11 | B77: 8708 | C77: 21 | D77: 8717 | E77: 21 | F77: 8721 | K77: 0 | L77: 122
A78: 11 | B78: 8819 | C78: 21 | D78: 8827 | E78: 21 | F78: 8832 | K78: 0 | L78: 122
A79: 22 | B79: 8939 | C79: 23 | D79: 8943 | E79: 23 | F79: 8951 | K79: 0 | L79: 222
A80: 22 | B80: 9056 | C80: 23 | D80: 9060 | E80: 23 | F80: 9071 | K80: 0 | L80: 222
A81: 11 | B81: 9165 | C81: 21 | D81: 9175 | E81: 21 | F81: 9179 | K81: 0 | L81: 122
A82: 22 | B82: 9285 | C82: 23 | D82: 9291 | E82: 23 | F82: 9296 | K82: 0 | L82: 222
A83: 11 | B83: 9395 | C83: 21 | D83: 9404 | E83: 21 | F83: 9408 | K83: 0 | L83: 122
A84: 22 | B84: 9519 | C84: 23 | D84: 9540 | E84: 23 | F84: 9554 | K84: 0 | L84: 222
A85: 11 | B85: 9649 | C85: 21 | D85: 9658 | E85: 21 | F85: 9663 | K85: 0 | L85: 122
A86: 11 | B86: 9783 | C86: 21 | D86: 9793 | E86: 21 | F86: 9807 | K86: 0 | L86: 122
A87: 11 | B87: 9920 | C87: 21 | D87: 9929 | E87: 21 | F87: 9945 | K87: 0 | L87: 122
A88: 22 | B88: 10168 | C88: 23 | D88: 10176 | E88: 23 | F88: 10187 | K88: 0 | L88: 222
A89: 11 | B89: 10283 | C89: 21 | D89: 10293 | E89: 21 | F89: 10297 | K89: 1 | L89: 122

Sheet !LA19B02.. I
A1: Report for:!LA19B02.. I
A2: Date: | B2: <date>
A3: Hen: | B3: <hen> | F3: Correct Sequence | G3: =Start!J2 -> 122 | P3: Total Sequences in Data | Q3: =4994-COUNTBLANK(L7:L5000) -> 90 | V3: Total Sequences in Block Data | W3: =COUNTA(L7:L21) -> 15 | AA3: Total Sequences in Block Data | AB3: =COUNTA(L22:L36) -> 15 | AF3: Total Sequences in Block Data | AG3: =COUNTA(L37:L51) -> 15 | AK3: Total Sequences in Block Data | AL3: =COUNTA(L52:L66) -> 15 | AP3: Total Sequences in Block Data | AQ3: =COUNTA(L67:L81) -> 15 | AU3: Total Sequences in Block Data | AV3: =COUNTA(L82:L96) -> 15
P4: Total Sequences in Summary | Q4: =SUM(O7:O14) -> 90 | V4: Total Sequences in Block Summary | W4: =SUM(U7:U14) -> 15 | AA4: Total Sequences in Block Summary | AB4: =SUM(Z7:Z14) -> 15 | AF4: Total Sequences in Block Summary | AG4: =SUM(AE7:AE14) -> 15 | AK4: Total Sequences in Block Summary | AL4: =SUM(AJ7:AJ14) -> 15 | AP4: Total Sequences in Block Summary | AQ4: =SUM(AO7:AO14) -> 15 | AU4: Total Sequences in Block Summary | AV4: =SUM(AT7:AT14) -> 15
T5: Block 1 | Y5: Block 2 | AD5: Block 3 | AI5: Block 4 | AN5: Block 5 | AS5: Block 6
A6: Sequence Component 1 | B6: Time 1 | C6: Sequence Component 2 | D6: Time 2 | E6: Sequence Component 3 | F6: Time 3 | G6: Sequence Component 4 | H6: Time 4 | I6: Sequence Component 5 | J6: Time 5 | K6: Correct? 0=No 1=Yes | L6: Sequence | N6: Frequency | P6: Relative Frequency | Q6: Variability | T6: Frequency | V6: Relative Frequency | W6: Variability | Y6: Frequency | AA6: Relative Frequency | AB6: Variability | AD6: Frequency | AF6: Relative Frequency | AG6: Variability | AI6: Frequency | AK6: Relative Frequency | AL6: Variability | AN6: Frequency | AP6: Relative Frequency | AQ6: Variability | AS6: Frequency | AU6: Relative Frequency | AV6: Variability
A7: 11 | B7: 5 | C7: 21 | D7: 15 | E7: 21 | F7: 19 | K7: 0 | L7: 122 | N7: 111 | O7: =COUNTIF($L$7:$L$500,N7) -> 0 | P7: =O7/$Q$4 -> 0 | Q7: =IF(P7=0,0,(P7*((LOG(P7))/LOG(2)))) -> 0 | T7: =N7 -> 111 | U7: =COUNTIF(L7:L21,T7) -> 0 | V7: =U7/(W4-U10) -> 0 | W7: =IF(V7=0,0,(V7*((LOG(V7))/LOG(2)))) -> 0 | Y7: =N7 -> 111 | Z7: =COUNTIF(L22:L36,Y7) -> 0 | AA7: =Z7/(AB4-Z10) -> 0 | AB7: =IF(AA7=0,0,(AA7*((LOG(AA7))/LOG(2)))) -> 0 | AD7: =N7 -> 111 | AE7: =COUNTIF(L37:L51,AD7) -> 0 | AF7: =AE7/(AG4-AE10) -> 0 | AG7: =IF(AF7=0,0,(AF7*((LOG(AF7))/LOG(2)))) -> 0 | AI7: =N7 -> 111 | AJ7: =COUNTIF(L52:L66,AI7) -> 0 | AK7: =AJ7/(AL4-AJ10) -> 0 | AL7: =IF(AK7=0,0,(AK7*((LOG(AK7))/LOG(2)))) -> 0 | AN7: =N7 -> 111 | AO7: =COUNTIF(L67:L81,AN7) -> 0 | AP7: =AO7/(AQ4-AO10) -> 0 | AQ7: =IF(AP7=0,0,(AP7*((LOG(AP7))/LOG(2)))) -> 0 | AS7: =N7 -> 111 | AT7: =COUNTIF(L82:L96,AS7) -> 0 | AU7: =AT7/(AV4-AT10) -> 0 | AV7: =IF(AU7=0,0,(AU7*((LOG(AU7))/LOG(2)))) -> 0
A8: 22 | B8: 170 | C8: 23 | D8: 182 | E8: 23 | F8: 187 | K8: 0 | L8: 222 | N8: 112 | O8: =COUNTIF($L$7:$L$500,N8) -> 0 | P8: =O8/$Q$4 -> 0 | Q8: =IF(P8=0,0,(P8*((LOG(P8))/LOG(2)))) -> 0 | T8: =N8 -> 112 | U8: =COUNTIF(L7:L21,T8) -> 0 | V8: =U8/(W4-U10) -> 0 | W8: =IF(V8=0,0,(V8*((LOG(V8))/LOG(2)))) -> 0 | Y8: =N8 -> 112 | Z8: =COUNTIF(L22:L36,Y8) -> 0 | AA8: =Z8/(AB4-Z10) -> 0 | AB8: =IF(AA8=0,0,(AA8*((LOG(AA8))/LOG(2)))) -> 0 | AD8: =N8 -> 112 | AE8: =COUNTIF(L37:L51,AD8) -> 0 | AF8: =AE8/(AG4-AE10) -> 0 | AG8: =IF(AF8=0,0,(AF8*((LOG(AF8))/LOG(2)))) -> 0 | AI8: =N8 -> 112 | AJ8: =COUNTIF(L52:L66,AI8) -> 0 | AK8: =AJ8/(AL4-AJ10) -> 0 | AL8: =IF(AK8=0,0,(AK8*((LOG(AK8))/LOG(2)))) -> 0 | AN8: =N8 -> 112 | AO8: =COUNTIF(L67:L81,AN8) -> 0 | AP8: =AO8/(AQ4-AO10) -> 0 | AQ8: =IF(AP8=0,0,(AP8*((LOG(AP8))/LOG(2)))) -> 0 | AS8: =N8 -> 112 | AT8: =COUNTIF(L82:L96,AS8) -> 0 | AU8: =AT8/(AV4-AT10) -> 0 | AV8: =IF(AU8=0,0,(AU8*((LOG(AU8))/LOG(2)))) -> 0
A9: 22 | B9: 290 | C9: 23 | D9: 294 | E9: 23 | F9: 298 | K9: 0 | L9: 222 | N9: 121 | O9: =COUNTIF($L$7:$L$500,N9) -> 0 | P9: =O9/$Q$4 -> 0 | Q9: =IF(P9=0,0,(P9*((LOG(P9))/LOG(2)))) -> 0 | T9: =N9 -> 121 | U9: =COUNTIF(L7:L21,T9) -> 0 | V9: =U9/(W4-U10) -> 0 | W9: =IF(V9=0,0,(V9*((LOG(V9))/LOG(2)))) -> 0 | Y9: =N9 -> 121 | Z9: =COUNTIF(L22:L36,Y9) -> 0 | AA9: =Z9/(AB4-Z10) -> 0 | AB9: =IF(AA9=0,0,(AA9*((LOG(AA9))/LOG(2)))) -> 0 | AD9: =N9 -> 121 | AE9: =COUNTIF(L37:L51,AD9) -> 0 | AF9: =AE9/(AG4-AE10) -> 0 | AG9: =IF(AF9=0,0,(AF9*((LOG(AF9))/LOG(2)))) -> 0 | AI9: =N9 -> 121 | AJ9: =COUNTIF(L52:L66,AI9) -> 0 | AK9: =AJ9/(AL4-AJ10) -> 0 | AL9: =IF(AK9=0,0,(AK9*((LOG(AK9))/LOG(2)))) -> 0 | AN9: =N9 -> 121 | AO9: =COUNTIF(L67:L81,AN9) -> 0 | AP9: =AO9/(AQ4-AO10) -> 0 | AQ9: =IF(AP9=0,0,(AP9*((LOG(AP9))/LOG(2)))) -> 0 | AS9: =N9 -> 121 | AT9: =COUNTIF(L82:L96,AS9) -> 0 | AU9: =AT9/(AV4-AT10) -> 0 | AV9: =IF(AU9=0,0,(AU9*((LOG(AU9))/LOG(2)))) -> 0
A10: 11 | B10: 395 | C10: 21 | D10: 404 | E10: 21 | F10: 409 | K10: 0 | L10: 122 | N10: 122 | O10: =COUNTIF($L$7:$L$500,N10) -> 40 | P10: =O10/$Q$4 -> 0.4444444444 | Q10: =IF(P10=0,0,(P10*((LOG(P10))/LOG(2)))) -> -0.5199666673 | T10: =N10 -> 122 | U10: =COUNTIF(L7:L21,T10) -> 6 | Y10: =N10 -> 122 | Z10: =COUNTIF(L22:L36,Y10) -> 7 | AD10: =N10 -> 122 | AE10: =COUNTIF(L37:L51,AD10) -> 10 | AI10: =N10 -> 122 | AJ10: =COUNTIF(L52:L66,AI10) -> 6 | AN10: =N10 -> 122 | AO10: =COUNTIF(L67:L81,AN10) -> 6 | AS10: =N10 -> 122 | AT10: =COUNTIF(L82:L96,AS10) -> 5
A11: 11 | B11: 501 | C11: 21 | D11: 509 | E11: 21 | F11: 516 | K11: 0 | L11: 122 | N11: 211 | O11: =COUNTIF($L$7:$L$500,N11) -> 0 | P11: =O11/$Q$4 -> 0 | Q11: =IF(P11=0,0,(P11*((LOG(P11))/LOG(2)))) -> 0 | T11: =N11 -> 211 | U11: =COUNTIF(L7:L21,T11) -> 0 | V11: =U11/(W4-U10) -> 0 | W11: =IF(V11=0,0,(V11*((LOG(V11))/LOG(2)))) -> 0 | Y11: =N11 -> 211 | Z11: =COUNTIF(L22:L36,Y11) -> 0 | AA11: =Z11/(AB4-Z10) -> 0 | AB11: =IF(AA11=0,0,(AA11*((LOG(AA11))/LOG(2)))) -> 0 | AD11: =N11 -> 211 | AE11: =COUNTIF(L37:L51,AD11) -> 0 | AF11: =AE11/(AG4-AE10) -> 0 | AG11: =IF(AF11=0,0,(AF11*((LOG(AF11))/LOG(2)))) -> 0 | AI11: =N11 -> 211 | AJ11: =COUNTIF(L52:L66,AI11) -> 0 | AK11: =AJ11/(AL4-AJ10) -> 0 | AL11: =IF(AK11=0,0,(AK11*((LOG(AK11))/LOG(2)))) -> 0 | AN11: =N11 -> 211 | AO11: =COUNTIF(L67:L81,AN11) -> 0 | AP11: =AO11/(AQ4-AO10) -> 0 | AQ11: =IF(AP11=0,0,(AP11*((LOG(AP11))/LOG(2)))) -> 0 | AS11: =N11 -> 211 | AT11: =COUNTIF(L82:L96,AS11) -> 0 | AU11: =AT11/(AV4-AT10) -> 0 | AV11: =IF(AU11=0,0,(AU11*((LOG(AU11))/LOG(2)))) -> 0
A12: 22 | B12: 656 | C12: 23 | D12: 659 | E12: 23 | F12: 664 | K12: 0 | L12: 222 | N12: 212 | O12: =COUNTIF($L$7:$L$500,N12) -> 0 | P12: =O12/$Q$4 -> 0 | Q12: =IF(P12=0,0,(P12*((LOG(P12))/LOG(2)))) -> 0 | T12: =N12 -> 212 | U12: =COUNTIF(L7:L21,T12) -> 0 | V12: =U12/(W4-U10) -> 0 | W12: =IF(V12=0,0,(V12*((LOG(V12))/LOG(2)))) -> 0 | Y12: =N12 -> 212 | Z12: =COUNTIF(L22:L36,Y12) -> 0 | AA12: =Z12/(AB4-Z10) -> 0 | AB12: =IF(AA12=0,0,(AA12*((LOG(AA12))/LOG(2)))) -> 0 | AD12: =N12 -> 212 | AE12: =COUNTIF(L37:L51,AD12) -> 0 | AF12: =AE12/(AG4-AE10) -> 0 | AG12: =IF(AF12=0,0,(AF12*((LOG(AF12))/LOG(2)))) -> 0 | AI12: =N12 -> 212 | AJ12: =COUNTIF(L52:L66,AI12) -> 0 | AK12: =AJ12/(AL4-AJ10) -> 0 | AL12: =IF(AK12=0,0,(AK12*((LOG(AK12))/LOG(2)))) -> 0 | AN12: =N12 -> 212 | AO12: =COUNTIF(L67:L81,AN12) -> 0 | AP12: =AO12/(AQ4-AO10) -> 0 | AQ12: =IF(AP12=0,0,(AP12*((LOG(AP12))/LOG(2)))) -> 0 | AS12: =N12 -> 212 | AT12: =COUNTIF(L82:L96,AS12) -> 0 | AU12: =AT12/(AV4-AT10) -> 0 | AV12: =IF(AU12=0,0,(AU12*((LOG(AU12))/LOG(2)))) -> 0
A13: 22 | B13: 767 | C13: 23 | D13: 774 | E13: 23 | F13: 786 | K13: 0 | L13: 222 | N13: 221 | O13: =COUNTIF($L$7:$L$500,N13) -> 0 | P13: =O13/$Q$4 -> 0 | Q13: =IF(P13=0,0,(P13*((LOG(P13))/LOG(2)))) -> 0 | T13: =N13 -> 221 | U13: =COUNTIF(L7:L21,T13) -> 0 | V13: =U13/(W4-U10) -> 0 | W13: =IF(V13=0,0,(V13*((LOG(V13))/LOG(2)))) -> 0 | Y13: =N13 -> 221 | Z13: =COUNTIF(L22:L36,Y13) -> 0 | AA13: =Z13/(AB4-Z10) -> 0 | AB13: =IF(AA13=0,0,(AA13*((LOG(AA13))/LOG(2)))) -> 0 | AD13: =N13 -> 221 | AE13: =COUNTIF(L37:L51,AD13) -> 0 | AF13: =AE13/(AG4-AE10) -> 0 | AG13: =IF(AF13=0,0,(AF13*((LOG(AF13))/LOG(2)))) -> 0 | AI13: =N13 -> 221 | AJ13: =COUNTIF(L52:L66,AI13) -> 0 | AK13: =AJ13/(AL4-AJ10) -> 0 | AL13: =IF(AK13=0,0,(AK13*((LOG(AK13))/LOG(2)))) -> 0 | AN13: =N13 -> 221 | AO13: =COUNTIF(L67:L81,AN13) -> 0 | AP13: =AO13/(AQ4-AO10) -> 0 | AQ13: =IF(AP13=0,0,(AP13*((LOG(AP13))/LOG(2)))) -> 0 | AS13: =N13 -> 221 | AT13: =COUNTIF(L82:L96,AS13) -> 0 | AU13: =AT13/(AV4-AT10) -> 0 | AV13: =IF(AU13=0,0,(AU13*((LOG(AU13))/LOG(2)))) -> 0
A14: 22 | B14: 889 | C14: 23 | D14: 899 | E14: 23 | F14: 917 | K14: 0 | L14: 222 | N14: 222 | O14: =COUNTIF($L$7:$L$500,N14) -> 50 | P14: =O14/$Q$4 -> 0.5555555556 | Q14: =IF(P14=0,0,(P14*((LOG(P14))/LOG(2)))) -> -0.4711093925 | T14: =N14 -> 222 | U14: =COUNTIF(L7:L21,T14) -> 9 | V14: =U14/(W4-U10) -> 1 | W14: =IF(V14=0,0,(V14*((LOG(V14))/LOG(2)))) -> 0 | Y14: =N14 -> 222 | Z14: =COUNTIF(L22:L36,Y14) -> 8 | AA14: =Z14/(AB4-Z10) -> 1 | AB14: =IF(AA14=0,0,(AA14*((LOG(AA14))/LOG(2)))) -> 0 | AD14: =N14 -> 222 | AE14: =COUNTIF(L37:L51,AD14) -> 5 | AF14: =AE14/(AG4-AE10) -> 1 | AG14: =IF(AF14=0,0,(AF14*((LOG(AF14))/LOG(2)))) -> 0 | AI14: =N14 -> 222 | AJ14: =COUNTIF(L52:L66,AI14) -> 9 | AK14: =AJ14/(AL4-AJ10) -> 1 | AL14: =IF(AK14=0,0,(AK14*((LOG(AK14))/LOG(2)))) -> 0 | AN14: =N14 -> 222 | AO14: =COUNTIF(L67:L81,AN14) -> 9 | AP14: =AO14/(AQ4-AO10) -> 1 | AQ14: =IF(AP14=0,0,(AP14*((LOG(AP14))/LOG(2)))) -> 0 | AS14: =N14 -> 222 | AT14: =COUNTIF(L82:L96,AS14) -> 10 | AU14: =AT14/(AV4-AT10) -> 1 | AV14: =IF(AU14=0,0,(AU14*((LOG(AU14))/LOG(2)))) -> 0
A15: 22 | B15: 1024 | C15: 23 | D15: 1030 | E15: 23 | F15: 1035 | K15: 0 | L15: 222 | P15: =SUM(P7:P14) -> 1 | Q15: =-SUM(Q7:Q14) -> 0.9910760598 | V15: =SUM(V7:V14) -> 1 | W15: =-SUM(W7:W14) -> 0 | AA15: =SUM(AA7:AA14) -> 1 | AB15: =-SUM(AB7:AB14) -> 0 | AF15: =SUM(AF7:AF14) -> 1 | AG15: =-SUM(AG7:AG14) -> 0 | AK15: =SUM(AK7:AK14) -> 1 | AL15: =-SUM(AL7:AL14) -> 0 | AP15: =SUM(AP7:AP14) -> 1 | AQ15: =-SUM(AQ7:AQ14) -> 0 | AU15: =SUM(AU7:AU14) -> 1 | AV15: =-SUM(AV7:AV14) -> 0
A16: 11 | B16: 1162 | C16: 21 | D16: 1171 | E16: 21 | F16: 1176 | K16: 0 | L16: 122 | P16: U= | Q16: =Q15/(LOG(Q4)/LOG(2)) -> 0.1526645852 | V16: U1= | W16: =W15/(LOG(W4)/LOG(2)) -> 0 | AA16: U2= | AB16: =AB15/(LOG(AB4)/LOG(2)) -> 0 | AF16: U3= | AG16: =AG15/(LOG(AG4)/LOG(2)) -> 0 | AK16: U4= | AL16: =AL15/(LOG(AL4)/LOG(2)) -> 0 | AP16: U5= | AQ16: =AQ15/(LOG(AQ4)/LOG(2)) -> 0 | AU16: U6= | AV16: =AV15/(LOG(AV4)/LOG(2)) -> 0
A17: 22 | B17: 1285 | C17: 23 | D17: 1289 | E17: 23 | F17: 1295 | K17: 0 | L17: 222
A18: 11 | B18: 1392 | C18: 21 | D18: 1400 | E18: 21 | F18: 1418 | K18: 0 | L18: 122
A19: 22 | B19: 1549 | C19: 23 | D19: 1552 | E19: 23 | F19: 1565 | K19: 0 | L19: 222 | N19: Total Target Seq
A20: 11 | B20: 1660 | C20: 21 | D20: 1669 | E20: 21 | F20: 1675 | K20: 0 | L20: 122 | N20: =COUNTIF(L7:L96,G3) -> 40 | P20: 15 | Q20: 15 | R20: 15 | S20: 15 | T20: 15 | U20: 15
A21: 22 | B21: 1813 | C21: 23 | D21: 1816 | E21: 23 | F21: 1827 | K21: 0 | L21: 222 | P21: % of reinforcement given in 6 equal intervals based on number of trials
A22: 22 | B22: 1939 | C22: 23 | D22: 1943 | E22: 23 | F22: 1948 | K22: 0 | L22: 222 | P22: %_1 | Q22: %_2 | R22: %_3 | S22: %_4 | T22: %_5 | U22: %_6
A23: 11 | B23: 2043 | C23: 21 | D23: 2058 | E23: 21 | F23: 2066 | K23: 0 | L23: 122 | O23: target sequence | P23: =$G$3 -> 122 | Q23: =$G$3 -> 122 | R23: =$G$3 -> 122 | S23: =$G$3 -> 122 | T23: =$G$3 -> 122 | U23: =$G$3 -> 122
A24: 22 | B24: 2175 | C24: 23 | D24: 2182 | E24: 23 | F24: 2194 | K24: 0 | L24: 222 | O24: total reinforcement | P24: =U10 -> 6 | Q24: =Z10 -> 7 | R24: =AE10 -> 10 | S24: =AJ10 -> 6 | T24: =AO10 -> 6 | U24: =AT10 -> 5
A25: 11 | B25: 2290 | C25: 21 | D25: 2300 | E25: 21 | F25: 2304 | K25: 0 | L25: 122 | O25: % target
A26: 22 | B26: 2444 | C26: 23 | D26: 2452 | E26: 23 | F26: 2457 | K26: 0 | L26: 222 | O26: CCRF
A27: 22 | B27: 2568 | C27: 23 | D27: 2571 | E27: 23 | F27: 2580 | K27: 0 | L27: 222 | O27: % CCRf
A28: 11 | B28: 2675 | C28: 21 | D28: 2684 | E28: 21 | F28: 2688 | K28: 0 | L28: 122 | O28: average response rate | P28: =F21/P20 -> 121.8 | Q28: =(F36-F21)/Q20 -> 131 | R28: =(F51-F36)/R20 -> 136.7333333 | S28: =(F66-F51)/S20 -> 122.8 | T28: =(F81-F66)/T20 -> 119.4666667 | U28: =(F96-F81)/U20 -> 127.8
A29: 22 | B29: 2828 | C29: 23 | D29: 2832 | E29: 23 | F29: 2846 | K29: 0 | L29: 222
A30: 11 | B30: 2944 | C30: 21 | D30: 2954 | E30: 21 | F30: 2961 | K30: 0 | L30: 122
A31: 11 | B31: 3053 | C31: 21 | D31: 3060 | E31: 21 | F31: 3064 | K31: 0 | L31: 122
A32: 22 | B32: 3212 | C32: 23 | D32: 3221 | E32: 23 | F32: 3228 | K32: 0 | L32: 222
A33: 11 | B33: 3323 | C33: 21 | D33: 3334 | E33: 21 | F33: 3337 | K33: 0 | L33: 122
A34: 11 | B34: 3467 | C34: 21 | D34: 3477 | E34: 21 | F34: 3485 | K34: 0 | L34: 122
A35: 22 | B35: 3640 | C35: 23 | D35: 3651 | E35: 23 | F35: 3664 | K35: 0 | L35: 222
A36: 22 | B36: 3776 | C36: 23 | D36: 3784 | E36: 23 | F36: 3792 | K36: 0 | L36: 222
A37: 11 | B37: 3886 | C37: 21 | D37: 3901 | E37: 21 | F37: 3912 | K37: 0 | L37: 122
A38: 22 | B38: 4027 | C38: 23 | D38: 4031 | E38: 23 | F38: 4035 | K38: 0 | L38: 222
A39: 11 | B39: 4132 | C39: 21 | D39: 4142 | E39: 21 | F39: 4146 | K39: 0 | L39: 122
A40: 22 | B40: 4253 | C40: 23 | D40: 4258 | E40: 23 | F40: 4263 | K40: 0 | L40: 222
A41: 11 | B41: 4361 | C41: 21 | D41: 4373 | E41: 21 | F41: 4382 | K41: 0 | L41: 122
A42: 11 | B42: 4512 | C42: 21 | D42: 4520 | E42: 21 | F42: 4524 | K42: 0 | L42: 122
A43: 11 | B43: 4636 | C43: 21 | D43: 4657 | E43: 21 | F43: 4660 | K43: 0 | L43: 122
A44: 11 | B44: 4815 | C44: 21 | D44: 4826 | E44: 21 | F44: 4854 | K44: 0 | L44: 122
A45: 11 | B45: 4958 | C45: 21 | D45: 4969 | E45: 21 | F45: 4973 | K45: 0 | L45: 122
A46: 11 | B46: 5107 | C46: 21 | D46: 5114 | E46: 21 | F46: 5128 | K46: 0 | L46: 122
A47: 22 | B47: 5285 | C47: 23 | D47: 5291 | E47: 23 | F47: 5305 | K47: 0 | L47: 222
A48: 11 | B48: 5400 | C48: 21 | D48: 5413 | E48: 21 | F48: 5420 | K48: 0 | L48: 122
A49: 11 | B49: 5549 | C49: 21 | D49: 5573 | E49: 21 | F49: 5581 | K49: 0 | L49: 122
A50: 22 | B50: 5704 | C50: 23 | D50: 5718 | E50: 23 | F50: 5728 | K50: 0 | L50: 222
A51: 22 | B51: 5832 | C51: 23 | D51: 5836 | E51: 23 | F51: 5843 | K51: 0 | L51: 222
A52: 22 | B52: 5948 | C52: 23 | D52: 5952 | E52: 23 | F52: 5963 | K52: 0 | L52: 222
A53: 11 | B53: 6088 | C53: 21 | D53: 6097 | E53: 21 | F53: 6118 | K53: 0 | L53: 122
A54: 22 | B54: 6221 | C54: 23 | D54: 6225 | E54: 23 | F54: 6234 | K54: 0 | L54: 222
A55: 11 | B55: 6326 | C55: 21 | D55: 6339 | E55: 21 | F55: 6342 | K55: 0 | L55: 122
A56: 11 | B56: 6460 | C56: 21 | D56: 6468 | E56: 21 | F56: 6473 | K56: 0 | L56: 122
A57: 22 | B57: 6604 | C57: 23 | D57: 6609 | E57: 23 | F57: 6616 | K57: 0 | L57: 222
A58: 22 | B58: 6719 | C58: 23 | D58: 6723 | E58: 23 | F58: 6730 | K58: 0 | L58: 222
A59: 11 | B59: 6825 | C59: 21 | D59: 6834 | E59: 21 | F59: 6843 | K59: 0 | L59: 122
A60: 22 | B60: 6948 | C60: 23 | D60: 6952 | E60: 23 | F60: 6961 | K60: 0 | L60: 222
A61: 22 | B61: 7065 | C61: 23 | D61: 7075 | E61: 23 | F61: 7083 | K61: 0 | L61: 222
A62: 11 | B62: 7178 | C62: 21 | D62: 7190 | E62: 21 | F62: 7194 | K62: 0 | L62: 122
A63: 11 | B63: 7287 | C63: 21 | D63: 7295 | E63: 21 | F63: 7299 | K63: 0 | L63: 122
A64: 22 | B64: 7421 | C64: 23 | D64: 7434 | E64: 23 | F64: 7447 | K64: 0 | L64: 222
A65: 22 | B65: 7551 | C65: 23 | D65: 7555 | E65: 23 | F65: 7562 | K65: 0 | L65: 222
A66: 22 | B66: 7666 | C66: 23 | D66: 7676 | E66: 23 | F66: 7685 | K66: 0 | L66: 222
A67: 22 | B67: 7801 | C67: 23 | D67: 7805 | E67: 23 | F67: 7812 | K67: 0 | L67: 222
A68: 22 | B68: 7929 | C68: 23 | D68: 7933 | E68: 23 | F68: 7939 | K68: 0 | L68: 222
A69: 22 | B69: 8042 | C69: 23 | D69: 8046 | E69: 23 | F69: 8050 | K69: 0 | L69: 222
A70: 11 | B70: 8145 | C70: 21 | D70: 8156 | E70: 21 | F70: 8161 | K70: 0 | L70: 122
A71: 11 | B71: 8260 | C71: 21 | D71: 8268 | E71: 21 | F71: 8273 | K71: 0 | L71: 122
A72: 22 | B72: 8431 | C72: 23 | D72: 8435 | E72: 23 | F72: 8441 | K72: 0 | L72: 222
A73: 11 | B73: 8537 | C73: 21 | D73: 8546 | E73: 21 | F73: 8550 | K73: 0 | L73: 122
A74: 22 | B74: 8650 | C74: 23 | D74: 8654 | E74: 23 | F74: 8660 | K74: 0 | L74: 222
A75: 22 | B75: 8765 | C75: 23 | D75: 8769 | E75: 23 | F75: 8775 | K75: 0 | L75: 222
A76: 22 | B76: 8885 | C76: 23 | D76: 8889 | E76: 23 | F76: 8903 | K76: 0 | L76: 222
A77: 22 | B77: 9007 | C77: 23 | D77: 9011 | E77: 23 | F77: 9017 | K77: 0 | L77: 222
A78: 11 | B78: 9112 | C78: 21 | D78: 9121 | E78: 21 | F78: 9124 | K78: 0 | L78: 122
A79: 22 | B79: 9249 | C79: 23 | D79: 9254 | E79: 23 | F79: 9258 | K79: 0 | L79: 222
A80: 11 | B80: 9356 | C80: 21 | D80: 9363 | E80: 21 | F80: 9371 | K80: 0 | L80: 122
A81: 11 | B81: 9464 | C81: 21 | D81: 9473 | E81: 21 | F81: 9477 | K81: 0 | L81: 122
A82: 22 | B82: 9672 | C82: 23 | D82: 9685 | E82: 23 | F82: 9694 | K82: 0 | L82: 222
A83: 22 | B83: 9798 | C83: 23 | D83: 9808 | E83: 23 | F83: 9817 | K83: 0 | L83: 222
A84: 22 | B84: 9919 | C84: 23 | D84: 9924 | E84: 23 | F84: 9930 | K84: 0 | L84: 222
A85: 11 | B85: 10024 | C85: 21 | D85: 10032 | E85: 21 | F85: 10036 | K85: 0 | L85: 122
A86: 22 | B86: 10154 | C86: 23 | D86: 10158 | E86: 23 | F86: 10164 | K86: 0 | L86: 222
A87: 22 | B87: 10272 | C87: 23 | D87: 10278 | E87: 23 | F87: 10286 | K87: 0 | L87: 222
A88: 22 | B88: 10389 | C88: 23 | D88: 10393 | E88: 23 | F88: 10398 | K88: 0 | L88: 222
A89: 11 | B89: 10492 | C89: 21 | D89: 10501 | E89: 21 | F89: 10505 | K89: 0 | L89: 122
A90: 11 | B90: 10605 | C90: 21 | D90: 10613 | E90: 21 | F90: 10618 | K90: 0 | L90: 122
A91: 22 | B91: 10756 | C91: 23 | D91: 10760 | E91: 23 | F91: 10773 | K91: 0 | L91: 222
A92: 22 | B92: 10877 | C92: 23 | D92: 10881 | E92: 23 | F92: 10895 | K92: 0 | L92: 222
A93: 11 | B93: 10992 | C93: 21 | D93: 11000 | E93: 21 | F93: 11004 | K93: 0 | L93: 122
A94: 22 | B94: 11118 | C94: 23 | D94: 11121 | E94: 23 | F94: 11128 | K94: 0 | L94: 222
A95: 22 | B95: 11233 | C95: 23 | D95: 11236 | E95: 23 | F95: 11245 | K95: 0 | L95: 222
A96: 11 | B96: 11365 | C96: 21 | D96: 11377 | E96: 21 | F96: 11394 | K96: 1 | L96: 122

Sheet !LA20A02.. I
A1: Report for:!LA20A02.. I
A2: Date: | B2: <date>
A3: Hen: | B3: <hen> | F3: Correct Sequence | G3: =Start!J2 -> 122 | P3: Total Sequences in Data | Q3: =4994-COUNTBLANK(L7:L5000) -> 98 | V3: Total Sequences in Block Data | W3: =COUNTA(L7:L22) -> 16 | AA3: Total Sequences in Block Data | AB3: =COUNTA(L23:L39) -> 17 | AF3: Total Sequences in Block Data | AG3: =COUNTA(L40:L55) -> 16 | AK3: Total Sequences in Block Data | AL3: =COUNTA(L56:L71) -> 16 | AP3: Total Sequences in Block Data | AQ3: =COUNTA(L72:L88) -> 17 | AU3: Total Sequences in Block Data | AV3: =COUNTA(L89:L104) -> 16
P4: Total Sequences in Summary | Q4: =SUM(O7:O14) -> 98 | V4: Total Sequences in Block Summary | W4: =SUM(U7:U14) -> 16 | AA4: Total Sequences in Block Summary | AB4: =SUM(Z7:Z14) -> 17 | AF4: Total Sequences in Block Summary | AG4: =SUM(AE7:AE14) -> 16 | AK4: Total Sequences in Block Summary | AL4: =SUM(AJ7:AJ14) -> 16 | AP4: Total Sequences in Block Summary | AQ4: =SUM(AO7:AO14) -> 17 | AU4: Total Sequences in Block Summary | AV4: =SUM(AT7:AT14) -> 16
T5: Block 1 | Y5: Block 2 | AD5: Block 3 | AI5: Block 4 | AN5: Block 5 | AS5: Block 6
A6: Sequence Component 1 | B6: Time 1 | C6: Sequence Component 2 | D6: Time 2 | E6: Sequence Component 3 | F6: Time 3 | G6: Sequence Component 4 | H6: Time 4 | I6: Sequence Component 5 | J6: Time 5 | K6: Correct? 0=No 1=Yes | L6: Sequence | N6: Frequency | P6: Relative Frequency | Q6: Variability | T6: Frequency | V6: Relative Frequency | W6: Variability | Y6: Frequency | AA6: Relative Frequency | AB6: Variability | AD6: Frequency | AF6: Relative Frequency | AG6: Variability | AI6: Frequency | AK6: Relative Frequency | AL6: Variability | AN6: Frequency | AP6: Relative Frequency | AQ6: Variability | AS6: Frequency | AU6: Relative Frequency | AV6: Variability
A7: 22 | B7: 5 | C7: 14 | D7: 16 | E7: 23 | F7: 26 | K7: 0 | L7: 212 | N7: 111 | O7: =COUNTIF($L$7:$L$500,N7) -> 0 | P7: =O7/$Q$4 -> 0 | Q7: =IF(P7=0,0,(P7*((LOG(P7))/LOG(2)))) -> 0 | T7: =N7 -> 111 | U7: =COUNTIF(L7:L22,T7) -> 0 | V7: =U7/(W4-U10) -> 0 | W7: =IF(V7=0,0,(V7*((LOG(V7))/LOG(2)))) -> 0 | Y7: =N7 -> 111 | Z7: =COUNTIF(L23:L39,Y7) -> 0 | AA7: =Z7/(AB4-Z10) -> 0 | AB7: =IF(AA7=0,0,(AA7*((LOG(AA7))/LOG(2)))) -> 0 | AD7: =N7 -> 111 | AE7: =COUNTIF(L40:L55,AD7) -> 0 | AF7: =AE7/(AG4-AE10) -> 0 | AG7: =IF(AF7=0,0,(AF7*((LOG(AF7))/LOG(2)))) -> 0 | AI7: =N7 -> 111 | AJ7: =COUNTIF(L56:L71,AI7) -> 0 | AK7: =AJ7/(AL4-AJ10) -> 0 | AL7: =IF(AK7=0,0,(AK7*((LOG(AK7))/LOG(2)))) -> 0 | AN7: =N7 -> 111 | AO7: =COUNTIF(L72:L88,AN7) -> 0 | AP7: =AO7/(AQ4-AO10) -> 0 | AQ7: =IF(AP7=0,0,(AP7*((LOG(AP7))/LOG(2)))) -> 0 | AS7: =N7 -> 111 | AT7: =COUNTIF(L89:L104,AS7) -> 0 | AU7: =AT7/(AV4-AT10) -> 0 | AV7: =IF(AU7=0,0,(AU7*((LOG(AU7))/LOG(2)))) -> 0
A8: 22 | B8: 127 | C8: 23 | D8: 132 | E8: 23 | F8: 137 | K8: 0 | L8: 222 | N8: 112 | O8: =COUNTIF($L$7:$L$500,N8) -> 1 | P8: =O8/$Q$4 -> 0.01020408163 | Q8: =IF(P8=0,0,(P8*((LOG(P8))/LOG(2)))) -> -0.06749703923 | T8: =N8 -> 112 | U8: =COUNTIF(L7:L22,T8) -> 0 | V8: =U8/(W4-U10) -> 0 | W8: =IF(V8=0,0,(V8*((LOG(V8))/LOG(2)))) -> 0 | Y8: =N8 -> 112 | Z8: =COUNTIF(L23:L39,Y8) -> 0 | AA8: =Z8/(AB4-Z10) -> 0 | AB8: =IF(AA8=0,0,(AA8*((LOG(AA8))/LOG(2)))) -> 0 | AD8: =N8 -> 112 | AE8: =COUNTIF(L40:L55,AD8) -> 0 | AF8: =AE8/(AG4-AE10) -> 0 | AG8: =IF(AF8=0,0,(AF8*((LOG(AF8))/LOG(2)))) -> 0 | AI8: =N8 -> 112 | AJ8: =COUNTIF(L56:L71,AI8) -> 0 | AK8: =AJ8/(AL4-AJ10) -> 0 | AL8: =IF(AK8=0,0,(AK8*((LOG(AK8))/LOG(2)))) -> 0 | AN8: =N8 -> 112 | AO8: =COUNTIF(L72:L88,AN8) -> 0 | AP8: =AO8/(AQ4-AO10) -> 0 | AQ8: =IF(AP8=0,0,(AP8*((LOG(AP8))/LOG(2)))) -> 0 | AS8: =N8 -> 112 | AT8: =COUNTIF(L89:L104,AS8) -> 1 | AU8: =AT8/(AV4-AT10) -> 0.09090909091 | AV8: =IF(AU8=0,0,(AU8*((LOG(AU8))/LOG(2)))) -> -0.3144937835
A9: 11 | B9: 232 | C9: 21 | D9: 244 | E9: 21 | F9: 251 | K9: 0 | L9: 122 | N9: 121 | O9: =COUNTIF($L$7:$L$500,N9) -> 0 | P9: =O9/$Q$4 -> 0 | Q9: =IF(P9=0,0,(P9*((LOG(P9))/LOG(2)))) -> 0 | T9: =N9 -> 121 | U9: =COUNTIF(L7:L22,T9) -> 0 | V9: =U9/(W4-U10) -> 0 | W9: =IF(V9=0,0,(V9*((LOG(V9))/LOG(2)))) -> 0 | Y9: =N9 -> 121 | Z9: =COUNTIF(L23:L39,Y9) -> 0 | AA9: =Z9/(AB4-Z10) -> 0 | AB9: =IF(AA9=0,0,(AA9*((LOG(AA9))/LOG(2)))) -> 0 | AD9: =N9 -> 121 | AE9: =COUNTIF(L40:L55,AD9) -> 0 | AF9: =AE9/(AG4-AE10) -> 0 | AG9: =IF(AF9=0,0,(AF9*((LOG(AF9))/LOG(2)))) -> 0 | AI9: =N9 -> 121 | AJ9: =COUNTIF(L56:L71,AI9) -> 0 | AK9: =AJ9/(AL4-AJ10) -> 0 | AL9: =IF(AK9=0,0,(AK9*((LOG(AK9))/LOG(2)))) -> 0 | AN9: =N9 -> 121 | AO9: =COUNTIF(L72:L88,AN9) -> 0 | AP9: =AO9/(AQ4-AO10) -> 0 | AQ9: =IF(AP9=0,0,(AP9*((LOG(AP9))/LOG(2)))) -> 0 | AS9: =N9 -> 121 | AT9: =COUNTIF(L89:L104,AS9) -> 0 | AU9: =AT9/(AV4-AT10) -> 0 | AV9: =IF(AU9=0,0,(AU9*((LOG(AU9))/LOG(2)))) -> 0
A10: 22 | B10: 400 | C10: 23 | D10: 404 | E10: 23 | F10: 415 | K10: 0 | L10: 222 | N10: 122 | O10: =COUNTIF($L$7:$L$500,N10) -> 40 | P10: =O10/$Q$4 -> 0.4081632653 | Q10: =IF(P10=0,0,(P10*((LOG(P10))/LOG(2)))) -> -0.5276660201 | T10: =N10 -> 122 | U10: =COUNTIF(L7:L22,T10) -> 5 | Y10: =N10 -> 122 | Z10: =COUNTIF(L23:L39,Y10) -> 8 | AD10: =N10 -> 122 | AE10: =COUNTIF(L40:L55,AD10) -> 7 | AI10: =N10 -> 122 | AJ10: =COUNTIF(L56:L71,AI10) -> 7 | AN10: =N10 -> 122 | AO10: =COUNTIF(L72:L88,AN10) -> 8 | AS10: =N10 -> 122 | AT10: =COUNTIF(L89:L104,AS10) -> 5
A11: 22 | B11: 522 | C11: 23 | D11: 526 | E11: 23 | F11: 531 | K11: 0 | L11: 222 | N11: 211 | O11: =COUNTIF($L$7:$L$500,N11) -> 0 | P11: =O11/$Q$4 -> 0 | Q11: =IF(P11=0,0,(P11*((LOG(P11))/LOG(2)))) -> 0 | T11: =N11 -> 211 | U11: =COUNTIF(L7:L22,T11) -> 0 | V11: =U11/(W4-U10) -> 0 | W11: =IF(V11=0,0,(V11*((LOG(V11))/LOG(2)))) -> 0 | Y11: =N11 -> 211 | Z11: =COUNTIF(L23:L39,Y11) -> 0 | AA11: =Z11/(AB4-Z10) -> 0 | AB11: =IF(AA11=0,0,(AA11*((LOG(AA11))/LOG(2)))) -> 0 | AD11: =N11 -> 211 | AE11: =COUNTIF(L40:L55,AD11) -> 0 | AF11: =AE11/(AG4-AE10) -> 0 | AG11: =IF(AF11=0,0,(AF11*((LOG(AF11))/LOG(2)))) -> 0 | AI11: =N11 -> 211 | AJ11: =COUNTIF(L56:L71,AI11) -> 0 | AK11: =AJ11/(AL4-AJ10) -> 0 | AL11: =IF(AK11=0,0,(AK11*((LOG(AK11))/LOG(2)))) -> 0 | AN11: =N11 -> 211 | AO11: =COUNTIF(L72:L88,AN11) -> 0 | AP11: =AO11/(AQ4-AO10) -> 0 | AQ11: =IF(AP11=0,0,(AP11*((LOG(AP11))/LOG(2)))) -> 0 | AS11: =N11 -> 211 | AT11: =COUNTIF(L89:L104,AS11) -> 0 | AU11: =AT11/(AV4-AT10) -> 0 | AV11: =IF(AU11=0,0,(AU11*((LOG(AU11))/LOG(2)))) -> 0
A12: 22 | B12: 640 | C12: 23 | D12: 647 | E12: 23 | F12: 654 | K12: 0 | L12: 222 | N12: 212 | O12: =COUNTIF($L$7:$L$500,N12) -> 1 | P12: =O12/$Q$4 -> 0.01020408163 | Q12: =IF(P12=0,0,(P12*((LOG(P12))/LOG(2)))) -> -0.06749703923 | T12: =N12 -> 212 | U12: =COUNTIF(L7:L22,T12) -> 1 | V12: =U12/(W4-U10) -> 0.09090909091 | W12: =IF(V12=0,0,(V12*((LOG(V12))/LOG(2)))) -> -0.3144937835 | Y12: =N12 -> 212 | Z12: =COUNTIF(L23:L39,Y12) -> 0 | AA12: =Z12/(AB4-Z10) -> 0 | AB12: =IF(AA12=0,0,(AA12*((LOG(AA12))/LOG(2)))) -> 0 | AD12: =N12 -> 212 | AE12: =COUNTIF(L40:L55,AD12) -> 0 | AF12: =AE12/(AG4-AE10) -> 0 | AG12: =IF(AF12=0,0,(AF12*((LOG(AF12))/LOG(2)))) -> 0 | AI12: =N12 -> 212 | AJ12: =COUNTIF(L56:L71,AI12) -> 0 | AK12: =AJ12/(AL4-AJ10) -> 0 | AL12: =IF(AK12=0,0,(AK12*((LOG(AK12))/LOG(2)))) -> 0 | AN12: =N12 -> 212 | AO12: =COUNTIF(L72:L88,AN12) -> 0 | AP12: =AO12/(AQ4-AO10) -> 0 | AQ12: =IF(AP12=0,0,(AP12*((LOG(AP12))/LOG(2)))) -> 0 | AS12: =N12 -> 212 | AT12: =COUNTIF(L89:L104,AS12) -> 0 | AU12: =AT12/(AV4-AT10) -> 0 | AV12: =IF(AU12=0,0,(AU12*((LOG(AU12))/LOG(2)))) -> 0
A13: 22 | B13: 760 | C13: 23 | D13: 764 | E13: 23 | F13: 775 | K13: 0 | L13: 222 | N13: 221 | O13: =COUNTIF($L$7:$L$500,N13) -> 0 | P13: =O13/$Q$4 -> 0 | Q13: =IF(P13=0,0,(P13*((LOG(P13))/LOG(2)))) -> 0 | T13: =N13 -> 221 | U13: =COUNTIF(L7:L22,T13) -> 0 | V13: =U13/(W4-U10) -> 0 | W13: =IF(V13=0,0,(V13*((LOG(V13))/LOG(2)))) -> 0 | Y13: =N13 -> 221 | Z13: =COUNTIF(L23:L39,Y13) -> 0 | AA13: =Z13/(AB4-Z10) -> 0 | AB13: =IF(AA13=0,0,(AA13*((LOG(AA13))/LOG(2)))) -> 0 | AD13: =N13 -> 221 | AE13: =COUNTIF(L40:L55,AD13) -> 0 | AF13: =AE13/(AG4-AE10) -> 0 | AG13: =IF(AF13=0,0,(AF13*((LOG(AF13))/LOG(2)))) -> 0 | AI13: =N13 -> 221 | AJ13: =COUNTIF(L56:L71,AI13) -> 0 | AK13: =AJ13/(AL4-AJ10) -> 0 | AL13: =IF(AK13=0,0,(AK13*((LOG(AK13))/LOG(2)))) -> 0 | AN13: =N13 -> 221 | AO13: =COUNTIF(L72:L88,AN13) -> 0 | AP13: =AO13/(AQ4-AO10) -> 0 | AQ13: =IF(AP13=0,0,(AP13*((LOG(AP13))/LOG(2)))) -> 0 | AS13: =N13 -> 221 | AT13: =COUNTIF(L89:L104,AS13) -> 0 | AU13: =AT13/(AV4-AT10) -> 0 | AV13: =IF(AU13=0,0,(AU13*((LOG(AU13))/LOG(2)))) -> 0
A14: 11 | B14: 871 | C14: 21 | D14: 885 | E14: 21 | F14: 891 | K14: 0 | L14: 122 | N14: 222 | O14: =COUNTIF($L$7:$L$500,N14) -> 56 | P14: =O14/$Q$4 -> 0.5714285714 | Q14: =IF(P14=0,0,(P14*((LOG(P14))/LOG(2)))) -> -0.4613456697 | T14: =N14 -> 222 | U14: =COUNTIF(L7:L22,T14) -> 10 | V14: =U14/(W4-U10) -> 0.9090909091 | W14: =IF(V14=0,0,(V14*((LOG(V14))/LOG(2)))) -> -0.1250032034 | Y14: =N14 -> 222 | Z14: =COUNTIF(L23:L39,Y14) -> 9 | AA14: =Z14/(AB4-Z10) -> 1 | AB14: =IF(AA14=0,0,(AA14*((LOG(AA14))/LOG(2)))) -> 0 | AD14: =N14 -> 222 | AE14: =COUNTIF(L40:L55,AD14) -> 9 | AF14: =AE14/(AG4-AE10) -> 1 | AG14: =IF(AF14=0,0,(AF14*((LOG(AF14))/LOG(2)))) -> 0 | AI14: =N14 -> 222 | AJ14: =COUNTIF(L56:L71,AI14) -> 9 | AK14: =AJ14/(AL4-AJ10) -> 1 | AL14: =IF(AK14=0,0,(AK14*((LOG(AK14))/LOG(2)))) -> 0 | AN14: =N14 -> 222 | AO14: =COUNTIF(L72:L88,AN14) -> 9 | AP14: =AO14/(AQ4-AO10) -> 1 | AQ14: =IF(AP14=0,0,(AP14*((LOG(AP14))/LOG(2)))) -> 0 | AS14: =N14 -> 222 | AT14: =COUNTIF(L89:L104,AS14) -> 10 | AU14: =AT14/(AV4-AT10) -> 0.9090909091 | AV14: =IF(AU14=0,0,(AU14*((LOG(AU14))/LOG(2)))) -> -0.1250032034
A15: 11 | B15: 1004 | C15: 21 | D15: 1014 | E15: 21 | F15: 1019 | K15: 0 | L15: 122 | P15: =SUM(P7:P14) -> 1 | Q15: =-SUM(Q7:Q14) -> 1.124005768 | V15: =SUM(V7:V14) -> 1 | W15: =-SUM(W7:W14) -> 0.4394969869 | AA15: =SUM(AA7:AA14) -> 1 | AB15: =-SUM(AB7:AB14) -> 0 | AF15: =SUM(AF7:AF14) -> 1 | AG15: =-SUM(AG7:AG14) -> 0 | AK15: =SUM(AK7:AK14) -> 1 | AL15: =-SUM(AL7:AL14) -> 0 | AP15: =SUM(AP7:AP14) -> 1 | AQ15: =-SUM(AQ7:AQ14) -> 0 | AU15: =SUM(AU7:AU14) -> 1 | AV15: =-SUM(AV7:AV14) -> 0.4394969869
A16: 22 | B16: 1184 | C16: 23 | D16: 1189 | E16: 23 | F16: 1193 | K16: 0 | L16: 222 | P16: U= | Q16: =Q15/(LOG(Q4)/LOG(2)) -> 0.1699251811 | V16: U1= | W16: =W15/(LOG(W4)/LOG(2)) -> 0.1098742467 | AA16: U2= | AB16: =AB15/(LOG(AB4)/LOG(2)) -> 0 | AF16: U3= | AG16: =AG15/(LOG(AG4)/LOG(2)) -> 0 | AK16: U4= | AL16: =AL15/(LOG(AL4)/LOG(2)) -> 0 | AP16: U5= | AQ16: =AQ15/(LOG(AQ4)/LOG(2)) -> 0 | AU16: U6= | AV16: =AV15/(LOG(AV4)/LOG(2)) -> 0.1098742467
A17: 11 | B17: 1288 | C17: 21 | D17: 1297 | E17: 21 | F17: 1301 | K17: 0 | L17: 122
A18: 22 | B18: 1419 | C18: 23 | D18: 1423 | E18: 23 | F18: 1428 | K18: 0 | L18: 222
A19: 22 | B19: 1534 | C19: 23 | D19: 1539 | E19: 23 | F19: 1544 | K19: 0 | L19: 222 | N19: Total Target Seq
A20: 22 | B20: 1648 | C20: 23 | D20: 1652 | E20: 23 | F20: 1659 | K20: 0 | L20: 222 | N20: =COUNTIF(L7:L104,G3) -> 40 | P20: 16 | Q20: 17 | R20: 16 | S20: 16 | T20: 17 | U20: 16
A21: 11 | B21: 1754 | C21: 21 | D21: 1763 | E21: 21 | F21: 1766 | K21: 0 | L21: 122 | P21: % of reinforcement given in 6 equal intervals based on number of trials
A22: 22 | B22: 1878 | C22: 23 | D22: 1881 | E22: 23 | F22: 1899 | K22: 0 | L22: 222 | P22: %_1 | Q22: %_2 | R22: %_3 | S22: %_4 | T22: %_5 | U22: %_6
A23: 11 | B23: 1995 | C23: 21 | D23: 2004 | E23: 21 | F23: 2007 | K23: 0 | L23: 122 | O23: target sequence | P23: =$G$3 -> 122 | Q23: =$G$3 -> 122 | R23: =$G$3 -> 122 | S23: =$G$3 -> 122 | T23: =$G$3 -> 122 | U23: =$G$3 -> 122
A24: 22 | B24: 2116 | C24: 23 | D24: 2119 | E24: 23 | F24: 2130 | K24: 0 | L24: 222 | O24: total reinforcement | P24: =U10 -> 5 | Q24: =Z10 -> 8 | R24: =AE10 -> 7 | S24: =AJ10 -> 7 | T24: =AO10 -> 8 | U24: =AT10 -> 5
A25: 11 | B25: 2266 | C25: 21 | D25: 2281 | E25: 21 | F25: 2284 | K25: 0 | L25: 122 | O25: % target
A26: 11 | B26: 2387 | C26: 21 | D26: 2396 | E26: 21 | F26: 2403 | K26: 0 | L26: 122 | O26: CCRF
A27: 22 | B27: 2512 | C27: 23 | D27: 2517 | E27: 23 | F27: 2526 | K27: 0 | L27: 222 | O27: % CCRf
A28: 22 | B28: 2634 | C28: 23 | D28: 2639 | E28: 23 | F28: 2648 | K28: 0 | L28: 222 | O28: average response rate | P28: =F22/P20 -> 118.6875 | Q28: =(F39-F22)/Q20 -> 121.9411765 | R28: =(F55-F39)/R20 -> 119.125 | S28: =(F71-F55)/S20 -> 123.25 | T28: =(F88-F71)/T20 -> 125.6470588 | U28: =(F104-F88)/U20 -> 123.25
A29: 11 | B29: 2745 | C29: 21 | D29: 2755 | E29: 21 | F29: 2761 | K29: 0 | L29: 122
A30: 22 | B30: 2869 | C30: 23 | D30: 2880 | E30: 23 | F30: 2887 | K30: 0 | L30: 222
A31: 22 | B31: 2991 | C31: 23 | D31: 3006 | E31: 23 | F31: 3014 | K31: 0 | L31: 222
A32: 11 | B32: 3110 | C32: 21 | D32: 3120 | E32: 21 | F32: 3126 | K32: 0 | L32: 122
A33: 11 | B33: 3223 | C33: 21 | D33: 3232 | E33: 21 | F33: 3236 | K33: 0 | L33: 122
A34: 22 | B34: 3380 | C34: 23 | D34: 3385 | E34: 23 | F34: 3392 | K34: 0 | L34: 222
A35: 22 | B35: 3500 | C35: 23 | D35: 3504 | E35: 23 | F35: 3508 | K35: 0 | L35: 222
A36: 22 | B36: 3620 | C36: 23 | D36: 3627 | E36: 23 | F36: 3635 | K36: 0 | L36: 222
A37: 11 | B37: 3731 | C37: 21 | D37: 3740 | E37: 21 | F37: 3743 | K37: 0 | L37: 122
A38: 22 | B38: 3848 | C38: 23 | D38: 3854 | E38: 23 | F38: 3863 | K38: 0 | L38: 222
A39: 11 | B39: 3959 | C39: 21 | D39: 3968 | E39: 21 | F39: 3972 | K39: 0 | L39: 122
A40: 22 | B40: 4086 | C40: 23 | D40: 4089 | E40: 23 | F40: 4094 | K40: 0 | L40: 222
A41: 11 | B41: 4190 | C41: 21 | D41: 4197 | E41: 21 | F41: 4210 | K41: 0 | L41: 122
A42: 22 | B42: 4322 | C42: 23 | D42: 4329 | E42: 23 | F42: 4340 | K42: 0 | L42: 222
A43: 22 | B43: 4445 | C43: 23 | D43: 4450 | E43: 23 | F43: 4453 | K43: 0 | L43: 222
A44: 11 | B44: 4550 | C44: 21 | D44: 4559 | E44: 21 | F44: 4566 | K44: 0 | L44: 122
A45: 22 | B45: 4678 | C45: 23 | D45: 4681 | E45: 23 | F45: 4686 | K45: 0 | L45: 222
A46: 11 | B46: 4782 | C46: 21 | D46: 4788 | E46: 21 | F46: 4791 | K46: 0 | L46: 122
A47: 11 | B47: 4901 | C47: 21 | D47: 4910 | E47: 21 | F47: 4933 | K47: 0 | L47: 122
A48: 22 | B48: 5052 | C48: 23 | D48: 5056 | E48: 23 | F48: 5061 | K48: 0 | L48: 222
A49: 11 | B49: 5156 | C49: 21 | D49: 5167 | E49: 21 | F49: 5171 | K49: 0 | L49: 122
A50: 22 | B50: 5276 | C50: 23 | D50: 5279 | E50: 23 | F50: 5294 | K50: 0 | L50: 222
A51: 11 | B51: 5393 | C51: 21 | D51: 5401 | E51: 21 | F51: 5407 | K51: 0 | L51: 122
A52: 22 | B52: 5507 | C52: 23 | D52: 5511 | E52: 23 | F52: 5517 | K52: 0 | L52: 222
A53: 22 | B53: 5624 | C53: 23 | D53: 5627 | E53: 23 | F53: 5637 | K53: 0 | L53: 222
A54: 11 | B54: 5735 | C54: 21 | D54: 5743 | E54: 21 | F54: 5746 | K54: 0 | L54: 122
A55: 22 | B55: 5868 | C55: 23 | D55: 5873 | E55: 23 | F55: 5878 | K55: 0 | L55: 222
A56: 22 | B56: 5982 | C56: 23 | D56: 5986 | E56: 23 | F56: 5995 | K56: 0 | L56: 222
A57: 11 | B57: 6090 | C57: 21 | D57: 6099 | E57: 21 | F57: 6103 | K57: 0 | L57: 122
A58: 22 | B58: 6207 | C58: 23 | D58: 6212 | E58: 23 | F58: 6219 | K58: 0 | L58: 222
A59: 22 | B59: 6323 | C59: 23 | D59: 6326 | E59: 23 | F59: 6331 | K59: 0 | L59: 222
A60: 11 | B60: 6431 | C60: 21 | D60: 6439 | E60: 21 | F60: 6446 | K60: 0 | L60: 122
A61: 22 | B61: 6574 | C61: 23 | D61: 6578 | E61: 23 | F61: 6585 | K61: 0 | L61: 222
A62: 11 | B62: 6680 | C62: 21 | D62: 6689 | E62: 21 | F62: 6692 | K62: 0 | L62: 122
A63: 22 | B63: 6834 | C63: 23 | D63: 6838 | E63: 23 | F63: 6842 | K63: 0 | L63: 222
A64: 11 | B64: 6938 | C64: 21 | D64: 6950 | E64: 21 | F64: 6963 | K64: 0 | L64: 122
A65: 11 | B65: 7079 | C65: 21 | D65: 7086 | E65: 21 | F65: 7089 | K65: 0 | L65: 122
A66: 22 | B66: 7250 | C66: 23 | D66: 7254 | E66: 23 | F66: 7268 | K66: 0 | L66: 222
A67: 22 | B67: 7373 | C67: 23 | D67: 7378 | E67: 23 | F67: 7383 | K67: 0 | L67: 222
A68: 11 | B68: 7478 | C68: 21 | D68: 7488 | E68: 21 | F68: 7491 | K68: 0 | L68: 122
A69: 22 | B69: 7597 | C69: 23 | D69: 7608 | E69: 23 | F69: 7618 | K69: 0 | L69: 222
A70: 11 | B70: 7713 | C70: 21 | D70: 7723 | E70: 21 | F70: 7727 | K70: 0 | L70: 122
A71: 22 | B71: 7842 | C71: 23 | D71: 7845 | E71: 23 | F71: 7850 | K71: 0 | L71: 222
A72: 22 | B72: 7955 | C72: 23 | D72: 7960 | E72: 23 | F72: 7964 | K72: 0 | L72: 222
A73: 11 | B73: 8094 | C73: 21 | D73: 8102 | E73: 21 | F73: 8106 | K73: 0 | L73: 122
A74: 22 | B74: 8211 | C74: 23 | D74: 8215 | E74: 23 | F74: 8234 | K74: 0 | L74: 222
A75: 22 | B75: 8338 | C75: 23 | D75: 8341 | E75: 23 | F75: 8346 | K75: 0 | L75: 222
A76: 11 | B76: 8439 | C76: 21 | D76: 8453 | E76: 21 | F76: 8461 | K76: 0 | L76: 122
A77: 11 | B77: 8574 | C77: 21 | D77: 8584 | E77: 21 | F77: 8588 | K77: 0 | L77: 122
A78: 11 | B78: 8694 | C78: 21 | D78: 8702 | E78: 21 | F78: 8715 | K78: 0 | L78: 122
A79: 22 | B79: 8841 | C79: 23 | D79: 8855 | E79: 23 | F79: 8869 | K79: 0 | L79: 222
A80: 11 | B80: 8965 | C80: 21 | D80: 8978 | E80: 21 | F80: 8987 | K80: 0 | L80: 122
A81: 11 | B81: 9083 | C81: 21 | D81: 9091 | E81: 21 | F81: 9107 | K81: 0 | L81: 122
A82: 22 | B82: 9247 | C82: 23 | D82: 9257 | E82: 23 | F82: 9273 | K82: 0 | L82: 222
A83: 22 | B83: 9376 | C83: 23 | D83: 9384 | E83: 23 | F83: 9390 | K83: 0 | L83: 222
A84: 11 | B84: 9482 | C84: 21 | D84: 9492 | E84: 21 | F84: 9497 | K84: 0 | L84: 122
A85: 22 | B85: 9616 | C85: 23 | D85: 9622 | E85: 23 | F85: 9631 | K85: 0 | L85: 222
A86: 11 | B86: 9723 | C86: 21 | D86: 9736 | E86: 21 | F86: 9740 | K86: 0 | L86: 122
A87: 22 | B87: 9852 | C87: 23 | D87: 9855 | E87: 23 | F87: 9865 | K87: 0 | L87: 222
A88: 22 | B88: 9969 | C88: 23 | D88: 9976 | E88: 23 | F88: 9986 | K88: 0 | L88: 222
A89: 22 | B89: 10097 | C89: 23 | D89: 10105 | E89: 23 | F89: 10113 | K89: 0 | L89: 222
A90: 22 | B90: 10218 | C90: 23 | D90: 10222 | E90: 23 | F90: 10237 | K90: 0 | L90: 222
A91: 22 | B91: 10340 | C91: 23 | D91: 10345 | E91: 23 | F91: 10355 | K91: 0 | L91: 222
A92: 22 | B92: 10460 | C92: 23 | D92: 10464 | E92: 23 | F92: 10474 | K92: 0 | L92: 222
A93: 11 | B93: 10570 | C93: 21 | D93: 10579 | E93: 21 | F93: 10582 | K93: 0 | L93: 122
A94: 22 | B94: 10708 | C94: 23 | D94: 10715 | E94: 23 | F94: 10721 | K94: 0 | L94: 222
A95: 22 | B95: 10832 | C95: 23 | D95: 10835 | E95: 23 | F95: 10840 | K95: 0 | L95: 222
A96: 11 | B96: 10938 | C96: 21 | D96: 10945 | E96: 21 | F96: 10954 | K96: 0 | L96: 122
A97: 22 | B97: 11069 | C97: 23 | D97: 11072 | E97: 23 | F97: 11086 | K97: 0 | L97: 222
A98: 11 | B98: 11183 | C98: 21 | D98: 11193 | E98: 21 | F98: 11209 | K98: 0 | L98: 122
A99: 22 | B99: 11344 | C99: 23 | D99: 11348 | E99: 23 | F99: 11360 | K99: 0 | L99: 222
A100: 11 | B100: 11461 | C100: 12 | D100: 11466 | E100: 23 | F100: 11483 | K100: 0 | L100: 112
A101: 11 | B101: 11578 | C101: 21 | D101: 11590 | E101: 21 | F101: 11599 | K101: 0 | L101: 122
A102: 22 | B102: 11711 | C102: 23 | D102: 11717 | E102: 23 | F102: 11726 | K102: 0 | L102: 222
A103: 22 | B103: 11834 | C103: 23 | D103: 11838 | E103: 23 | F103: 11849 | K103: 0 | L103: 222
A104: 11 | B104: 11944 | C104: 21 | D104: 11955 | E104: 21 | F104: 11958 | K104: 1 | L104: 122

Sheet !LA21912.. I
A1: Report for:!LA21912.. I
A2: Date: | B2: <date>
A3: Hen: | B3: <hen> | F3: Correct Sequence | G3: =Start!J2 -> 122 | P3: Total Sequences in Data | Q3: =4994-COUNTBLANK(L7:L5000) -> 78 | V3: Total Sequences in Block Data | W3: =COUNTA(L7:L19) -> 13 | AA3: Total Sequences in Block Data | AB3: =COUNTA(L20:L32) -> 13 | AF3: Total Sequences in Block Data | AG3: =COUNTA(L33:L45) -> 13 | AK3: Total Sequences in Block Data | AL3: =COUNTA(L46:L58) -> 13 | AP3: Total Sequences in Block Data | AQ3: =COUNTA(L59:L71) -> 13 | AU3: Total Sequences in Block Data | AV3: =COUNTA(L72:L84) -> 13
P4: Total Sequences in Summary | Q4: =SUM(O7:O14) -> 78 | V4: Total Sequences in Block Summary | W4: =SUM(U7:U14) -> 13 | AA4: Total Sequences in Block Summary | AB4: =SUM(Z7:Z14) -> 13 | AF4: Total Sequences in Block Summary | AG4: =SUM(AE7:AE14) -> 13 | AK4: Total Sequences in Block Summary | AL4: =SUM(AJ7:AJ14) -> 13 | AP4: Total Sequences in Block Summary | AQ4: =SUM(AO7:AO14) -> 13 | AU4: Total Sequences in Block Summary | AV4: =SUM(AT7:AT14) -> 13
T5: Block 1 | Y5: Block 2 | AD5: Block 3 | AI5: Block 4 | AN5: Block 5 | AS5: Block 6
A6: Sequence Component 1 | B6: Time 1 | C6: Sequence Component 2 | D6: Time 2 | E6: Sequence Component 3 | F6: Time 3 | G6: Sequence Component 4 | H6: Time 4 | I6: Sequence Component 5 | J6: Time 5 | K6: Correct? 0=No 1=Yes | L6: Sequence | N6: Frequency | P6: Relative Frequency | Q6: Variability | T6: Frequency | V6: Relative Frequency | W6: Variability | Y6: Frequency | AA6: Relative Frequency | AB6: Variability | AD6: Frequency | AF6: Relative Frequency | AG6: Variability | AI6: Frequency | AK6: Relative Frequency | AL6: Variability | AN6: Frequency | AP6: Relative Frequency | AQ6: Variability | AS6: Frequency | AU6: Relative Frequency | AV6: Variability
A7: 22 | B7: 11 | C7: 23 | D7: 17 | E7: 23 | F7: 24 | K7: 0 | L7: 222 | N7: 111 | O7: =COUNTIF($L$7:$L$500,N7) -> 0 | P7: =O7/$Q$4 -> 0 | Q7: =IF(P7=0,0,(P7*((LOG(P7))/LOG(2)))) -> 0 | T7: =N7 -> 111 | U7: =COUNTIF(L7:L19,T7) -> 0 | V7: =U7/(W4-U10) -> 0 | W7: =IF(V7=0,0,(V7*((LOG(V7))/LOG(2)))) -> 0 | Y7: =N7 -> 111 | Z7: =COUNTIF(L20:L32,Y7) -> 0 | AA7: =Z7/(AB4-Z10) -> 0 | AB7: =IF(AA7=0,0,(AA7*((LOG(AA7))/LOG(2)))) -> 0 | AD7: =N7 -> 111 | AE7: =COUNTIF(L33:L45,AD7) -> 0 | AF7: =AE7/(AG4-AE10) -> 0 | AG7: =IF(AF7=0,0,(AF7*((LOG(AF7))/LOG(2)))) -> 0 | AI7: =N7 -> 111 | AJ7: =COUNTIF(L46:L58,AI7) -> 0 | AK7: =AJ7/(AL4-AJ10) -> 0 | AL7: =IF(AK7=0,0,(AK7*((LOG(AK7))/LOG(2)))) -> 0 | AN7: =N7 -> 111 | AO7: =COUNTIF(L59:L71,AN7) -> 0 | AP7: =AO7/(AQ4-AO10) -> 0 | AQ7: =IF(AP7=0,0,(AP7*((LOG(AP7))/LOG(2)))) -> 0 | AS7: =N7 -> 111 | AT7: =COUNTIF(L72:L84,AS7) -> 0 | AU7: =AT7/(AV4-AT10) -> 0 | AV7: =IF(AU7=0,0,(AU7*((LOG(AU7))/LOG(2)))) -> 0
A8: 22 | B8: 132 | C8: 23 | D8: 138 | E8: 23 | F8: 145 | K8: 0 | L8: 222 | N8: 112 | O8: =COUNTIF($L$7:$L$500,N8) -> 2 | P8: =O8/$Q$4 -> 0.02564102564 | Q8: =IF(P8=0,0,(P8*((LOG(P8))/LOG(2)))) -> -0.1355231338 | T8: =N8 -> 112 | U8: =COUNTIF(L7:L19,T8) -> 0 | V8: =U8/(W4-U10) -> 0 | W8: =IF(V8=0,0,(V8*((LOG(V8))/LOG(2)))) -> 0 | Y8: =N8 -> 112 | Z8: =COUNTIF(L20:L32,Y8) -> 0 | AA8: =Z8/(AB4-Z10) -> 0 | AB8: =IF(AA8=0,0,(AA8*((LOG(AA8))/LOG(2)))) -> 0 | AD8: =N8 -> 112 | AE8: =COUNTIF(L33:L45,AD8) -> 1 | AF8: =AE8/(AG4-AE10) -> 0.125 | AG8: =IF(AF8=0,0,(AF8*((LOG(AF8))/LOG(2)))) -> -0.375 | AI8: =N8 -> 112 | AJ8: =COUNTIF(L46:L58,AI8) -> 1 | AK8: =AJ8/(AL4-AJ10) -> 0.1666666667 | AL8: =IF(AK8=0,0,(AK8*((LOG(AK8))/LOG(2)))) -> -0.4308270835 | AN8: =N8 -> 112 | AO8: =COUNTIF(L59:L71,AN8) -> 0 | AP8: =AO8/(AQ4-AO10) -> 0 | AQ8: =IF(AP8=0,0,(AP8*((LOG(AP8))/LOG(2)))) -> 0 | AS8: =N8 -> 112 | AT8: =COUNTIF(L72:L84,AS8) -> 0 | AU8: =AT8/(AV4-AT10) -> 0 | AV8: =IF(AU8=0,0,(AU8*((LOG(AU8))/LOG(2)))) -> 0
A9: 11 | B9: 243 | C9: 21 | D9: 253 | E9: 21 | F9: 257 | K9: 0 | L9: 122 | N9: 121 | O9: =COUNTIF($L$7:$L$500,N9) -> 0 | P9: =O9/$Q$4 -> 0 | Q9: =IF(P9=0,0,(P9*((LOG(P9))/LOG(2)))) -> 0 | T9: =N9 -> 121 | U9: =COUNTIF(L7:L19,T9) -> 0 | V9: =U9/(W4-U10) -> 0 | W9: =IF(V9=0,0,(V9*((LOG(V9))/LOG(2)))) -> 0 | Y9: =N9 -> 121 | Z9: =COUNTIF(L20:L32,Y9) -> 0 | AA9: =Z9/(AB4-Z10) -> 0 | AB9: =IF(AA9=0,0,(AA9*((LOG(AA9))/LOG(2)))) -> 0 | AD9: =N9 -> 121 | AE9: =COUNTIF(L33:L45,AD9) -> 0 | AF9: =AE9/(AG4-AE10) -> 0 | AG9: =IF(AF9=0,0,(AF9*((LOG(AF9))/LOG(2)))) -> 0 | AI9: =N9 -> 121 | AJ9: =COUNTIF(L46:L58,AI9) -> 0 | AK9: =AJ9/(AL4-AJ10) -> 0 | AL9: =IF(AK9=0,0,(AK9*((LOG(AK9))/LOG(2)))) -> 0 | AN9: =N9 -> 121 | AO9: =COUNTIF(L59:L71,AN9) -> 0 | AP9: =AO9/(AQ4-AO10) -> 0 | AQ9: =IF(AP9=0,0,(AP9*((LOG(AP9))/LOG(2)))) -> 0 | AS9: =N9 -> 121 | AT9: =COUNTIF(L72:L84,AS9) -> 0 | AU9: =AT9/(AV4-AT10) -> 0 | AV9: =IF(AU9=0,0,(AU9*((LOG(AU9))/LOG(2)))) -> 0
A10: 22 | B10: 401 | C10: 23 | D10: 405 | E10: 23 | F10: 421 | K10: 0 | L10: 222 | N10: 122 | O10: =COUNTIF($L$7:$L$500,N10) -> 40 | P10: =O10/$Q$4 -> 0.5128205128 | Q10: =IF(P10=0,0,(P10*((LOG(P10))/LOG(2)))) -> -0.4940892943 | T10: =N10 -> 122 | U10: =COUNTIF(L7:L19,T10) -> 5 | Y10: =N10 -> 122 | Z10: =COUNTIF(L20:L32,Y10) -> 8 | AD10: =N10 -> 122 | AE10: =COUNTIF(L33:L45,AD10) -> 5 | AI10: =N10 -> 122 | AJ10: =COUNTIF(L46:L58,AI10) -> 7 | AN10: =N10 -> 122 | AO10: =COUNTIF(L59:L71,AN10) -> 8 | AS10: =N10 -> 122 | AT10: =COUNTIF(L72:L84,AS10) -> 7
A11: 11 | B11: 518 | C11: 21 | D11: 528 | E11: 21 | F11: 531 | K11: 0 | L11: 122 | N11: 211 | O11: =COUNTIF($L$7:$L$500,N11) -> 0 | P11: =O11/$Q$4 -> 0 | Q11: =IF(P11=0,0,(P11*((LOG(P11))/LOG(2)))) -> 0 | T11: =N11 -> 211 | U11: =COUNTIF(L7:L19,T11) -> 0 | V11: =U11/(W4-U10) -> 0 | W11: =IF(V11=0,0,(V11*((LOG(V11))/LOG(2)))) -> 0 | Y11: =N11 -> 211 | Z11: =COUNTIF(L20:L32,Y11) -> 0 | AA11: =Z11/(AB4-Z10) -> 0 | AB11: =IF(AA11=0,0,(AA11*((LOG(AA11))/LOG(2)))) -> 0 | AD11: =N11 -> 211 | AE11: =COUNTIF(L33:L45,AD11) -> 0 | AF11: =AE11/(AG4-AE10) -> 0 | AG11: =IF(AF11=0,0,(AF11*((LOG(AF11))/LOG(2)))) -> 0 | AI11: =N11 -> 211 | AJ11: =COUNTIF(L46:L58,AI11) -> 0 | AK11: =AJ11/(AL4-AJ10) -> 0 | AL11: =IF(AK11=0,0,(AK11*((LOG(AK11))/LOG(2)))) -> 0 | AN11: =N11 -> 211 | AO11: =COUNTIF(L59:L71,AN11) -> 0 | AP11: =AO11/(AQ4-AO10) -> 0 | AQ11: =IF(AP11=0,0,(AP11*((LOG(AP11))/LOG(2)))) -> 0 | AS11: =N11 -> 211 | AT11: =COUNTIF(L72:L84,AS11) -> 0 | AU11: =AT11/(AV4-AT10) -> 0 | AV11: =IF(AU11=0,0,(AU11*((LOG(AU11))/LOG(2)))) -> 0
A12: 22 | B12: 671 | C12: 23 | D12: 676 | E12: 23 | F12: 681 | K12: 0 | L12: 222 | N12: 212 | O12: =COUNTIF($L$7:$L$500,N12) -> 0 | P12: =O12/$Q$4 -> 0 | Q12: =IF(P12=0,0,(P12*((LOG(P12))/LOG(2)))) -> 0 | T12: =N12 -> 212 | U12: =COUNTIF(L7:L19,T12) -> 0 | V12: =U12/(W4-U10) -> 0 | W12: =IF(V12=0,0,(V12*((LOG(V12))/LOG(2)))) -> 0 | Y12: =N12 -> 212 | Z12: =COUNTIF(L20:L32,Y12) -> 0 | AA12: =Z12/(AB4-Z10) -> 0 | AB12: =IF(AA12=0,0,(AA12*((LOG(AA12))/LOG(2)))) -> 0 | AD12: =N12 -> 212 | AE12: =COUNTIF(L33:L45,AD12) -> 0 | AF12: =AE12/(AG4-AE10) -> 0 | AG12: =IF(AF12=0,0,(AF12*((LOG(AF12))/LOG(2)))) -> 0 | AI12: =N12 -> 212 | AJ12: =COUNTIF(L46:L58,AI12) -> 0 | AK12: =AJ12/(AL4-AJ10) -> 0 | AL12: =IF(AK12=0,0,(AK12*((LOG(AK12))/LOG(2)))) -> 0 | AN12: =N12 -> 212 | AO12: =COUNTIF(L59:L71,AN12) -> 0 | AP12: =AO12/(AQ4-AO10) -> 0 | AQ12: =IF(AP12=0,0,(AP12*((LOG(AP12))/LOG(2)))) -> 0 | AS12: =N12 -> 212 | AT12: =COUNTIF(L72:L84,AS12) -> 0 | AU12: =AT12/(AV4-AT10) -> 0 | AV12: =IF(AU12=0,0,(AU12*((LOG(AU12))/LOG(2)))) -> 0
A13: 11 | B13: 777 | C13: 21 | D13: 789 | E13: 21 | F13: 796 | K13: 0 | L13: 122 | N13: 221 | O13: =COUNTIF($L$7:$L$500,N13) -> 0 | P13: =O13/$Q$4 -> 0 | Q13: =IF(P13=0,0,(P13*((LOG(P13))/LOG(2)))) -> 0 | T13: =N13 -> 221 | U13: =COUNTIF(L7:L19,T13) -> 0 | V13: =U13/(W4-U10) -> 0 | W13: =IF(V13=0,0,(V13*((LOG(V13))/LOG(2)))) -> 0 | Y13: =N13 -> 221 | Z13: =COUNTIF(L20:L32,Y13) -> 0 | AA13: =Z13/(AB4-Z10) -> 0 | AB13: =IF(AA13=0,0,(AA13*((LOG(AA13))/LOG(2)))) -> 0 | AD13: =N13 -> 221 | AE13: =COUNTIF(L33:L45,AD13) -> 0 | AF13: =AE13/(AG4-AE10) -> 0 | AG13: =IF(AF13=0,0,(AF13*((LOG(AF13))/LOG(2)))) -> 0 | AI13: =N13 -> 221 | AJ13: =COUNTIF(L46:L58,AI13) -> 0 | AK13: =AJ13/(AL4-AJ10) -> 0 | AL13: =IF(AK13=0,0,(AK13*((LOG(AK13))/LOG(2)))) -> 0 | AN13: =N13 -> 221 | AO13: =COUNTIF(L59:L71,AN13) -> 0 | AP13: =AO13/(AQ4-AO10) -> 0 | AQ13: =IF(AP13=0,0,(AP13*((LOG(AP13))/LOG(2)))) -> 0 | AS13: =N13 -> 221 | AT13: =COUNTIF(L72:L84,AS13) -> 0 | AU13: =AT13/(AV4-AT10) -> 0 | AV13: =IF(AU13=0,0,(AU13*((LOG(AU13))/LOG(2)))) -> 0
A14: 11 | B14: 889 | C14: 21 | D14: 898 | E14: 21 | F14: 901 | K14: 0 | L14: 122 | N14: 222 | O14: =COUNTIF($L$7:$L$500,N14) -> 36 | P14: =O14/$Q$4 -> 0.4615384615 | Q14: =IF(P14=0,0,(P14*((LOG(P14))/LOG(2)))) -> -0.5148356388 | T14: =N14 -> 222 | U14: =COUNTIF(L7:L19,T14) -> 8 | V14: =U14/(W4-U10) -> 1 | W14: =IF(V14=0,0,(V14*((LOG(V14))/LOG(2)))) -> 0 | Y14: =N14 -> 222 | Z14: =COUNTIF(L20:L32,Y14) -> 5 | AA14: =Z14/(AB4-Z10) -> 1 | AB14: =IF(AA14=0,0,(AA14*((LOG(AA14))/LOG(2)))) -> 0 | AD14: =N14 -> 222 | AE14: =COUNTIF(L33:L45,AD14) -> 7 | AF14: =AE14/(AG4-AE10) -> 0.875 | AG14: =IF(AF14=0,0,(AF14*((LOG(AF14))/LOG(2)))) -> -0.1685644432 | AI14: =N14 -> 222 | AJ14: =COUNTIF(L46:L58,AI14) -> 5 | AK14: =AJ14/(AL4-AJ10) -> 0.8333333333 | AL14: =IF(AK14=0,0,(AK14*((LOG(AK14))/LOG(2)))) -> -0.2191953382 | AN14: =N14 -> 222 | AO14: =COUNTIF(L59:L71,AN14) -> 5 | AP14: =AO14/(AQ4-AO10) -> 1 | AQ14: =IF(AP14=0,0,(AP14*((LOG(AP14))/LOG(2)))) -> 0 | AS14: =N14 -> 222 | AT14: =COUNTIF(L72:L84,AS14) -> 6 | AU14: =AT14/(AV4-AT10) -> 1 | AV14: =IF(AU14=0,0,(AU14*((LOG(AU14))/LOG(2)))) -> 0
A15: 22 | B15: 1016 | C15: 23 | D15: 1020 | E15: 23 | F15: 1030 | K15: 0 | L15: 222 | P15: =SUM(P7:P14) -> 1 | Q15: =-SUM(Q7:Q14) -> 1.144448067 | V15: =SUM(V7:V14) -> 1 | W15: =-SUM(W7:W14) -> 0 | AA15: =SUM(AA7:AA14) -> 1 | AB15: =-SUM(AB7:AB14) -> 0 | AF15: =SUM(AF7:AF14) -> 1 | AG15: =-SUM(AG7:AG14) -> 0.5435644432 | AK15: =SUM(AK7:AK14) -> 1 | AL15: =-SUM(AL7:AL14) -> 0.6500224216 | AP15: =SUM(AP7:AP14) -> 1 | AQ15: =-SUM(AQ7:AQ14) -> 0 | AU15: =SUM(AU7:AU14) -> 1 | AV15: =-SUM(AV7:AV14) -> 0
A16: 22 | B16: 1144 | C16: 23 | D16: 1149 | E16: 23 | F16: 1155 | K16: 0 | L16: 222 | P16: U= | Q16: =Q15/(LOG(Q4)/LOG(2)) -> 0.1820803231 | V16: U1= | W16: =W15/(LOG(W4)/LOG(2)) -> 0 | AA16: U2= | AB16: =AB15/(LOG(AB4)/LOG(2)) -> 0 | AF16: U3= | AG16: =AG15/(LOG(AG4)/LOG(2)) -> 0.1468918519 | AK16: U4= | AL16: =AL15/(LOG(AL4)/LOG(2)) -> 0.1756608596 | AP16: U5= | AQ16: =AQ15/(LOG(AQ4)/LOG(2)) -> 0 | AU16: U6= | AV16: =AV15/(LOG(AV4)/LOG(2)) -> 0
A17: 22 | B17: 1265 | C17: 23 | D17: 1283 | E17: 23 | F17: 1291 | K17: 0 | L17: 222
A18: 11 | B18: 1386 | C18: 21 | D18: 1400 | E18: 21 | F18: 1402 | K18: 0 | L18: 122
A19: 22 | B19: 1518 | C19: 23 | D19: 1525 | E19: 23 | F19: 1532 | K19: 0 | L19: 222 | N19: Total Target Seq
A20: 11 | B20: 1628 | C20: 21 | D20: 1638 | E20: 21 | F20: 1645 | K20: 0 | L20: 122 | N20: =COUNTIF(L7:L84,G3) -> 40 | P20: 13 | Q20: 13 | R20: 13 | S20: 13 | T20: 13 | U20: 13
A21: 11 | B21: 1820 | C21: 21 | D21: 1832 | E21: 21 | F21: 1836 | K21: 0 | L21: 122 | P21: % of reinforcement given in 6 equal intervals based on number of trials
A22: 22 | B22: 1982 | C22: 23 | D22: 1985 | E22: 23 | F22: 1996 | K22: 0 | L22: 222 | P22: %_1 | Q22: %_2 | R22: %_3 | S22: %_4 | T22: %_5 | U22: %_6
A23: 11 | B23: 2090 | C23: 21 | D23: 2104 | E23: 21 | F23: 2110 | K23: 0 | L23: 122 | O23: target sequence | P23: =$G$3 -> 122 | Q23: =$G$3 -> 122 | R23: =$G$3 -> 122 | S23: =$G$3 -> 122 | T23: =$G$3 -> 122 | U23: =$G$3 -> 122
A24: 11 | B24: 2220 | C24: 21 | D24: 2228 | E24: 21 | F24: 2233 | K24: 0 | L24: 122 | O24: total reinforcement | P24: =U10 -> 5 | Q24: =Z10 -> 8 | R24: =AE10 -> 5 | S24: =AJ10 -> 7 | T24: =AO10 -> 8 | U24: =AT10 -> 7
A25: 22 | B25: 2336 | C25: 23 | D25: 2339 | E25: 23 | F25: 2370 | K25: 0 | L25: 222 | O25: % target
A26: 11 | B26: 2466 | C26: 21 | D26: 2476 | E26: 21 | F26: 2482 | K26: 0 | L26: 122 | O26: CCRF
A27: 22 | B27: 2594 | C27: 23 | D27: 2598 | E27: 23 | F27: 2602 | K27: 0 | L27: 222 | O27: % CCRf
A28: 22 | B28: 2711 | C28: 23 | D28: 2723 | E28: 23 | F28: 2734 | K28: 0 | L28: 222 | O28: average response rate | P28: =F19/P20 -> 117.8461538 | Q28: =(F32-F19)/Q20 -> 129.7692308 | R28: =(F45-F32)/R20 -> 137.6923077 | S28: =(F58-F45)/S20 -> 132.6923077 | T28: =(F71-F58)/T20 -> 130.9230769 | U28: =(F84-F71)/U20 -> 154.6153846
A29: 22 | B29: 2838 | C29: 23 | D29: 2842 | E29: 23 | F29: 2855 | K29: 0 | L29: 222
A30: 11 | B30: 2951 | C30: 21 | D30: 2958 | E30: 21 | F30: 2963 | K30: 0 | L30: 122
A31: 11 | B31: 3086 | C31: 21 | D31: 3094 | E31: 21 | F31: 3099 | K31: 0 | L31: 122
A32: 11 | B32: 3192 | C32: 21 | D32: 3201 | E32: 21 | F32: 3219 | K32: 0 | L32: 122
A33: 22 | B33: 3388 | C33: 23 | D33: 3393 | E33: 23 | F33: 3407 | K33: 0 | L33: 222
A34: 11 | B34: 3505 | C34: 21 | D34: 3518 | E34: 21 | F34: 3526 | K34: 0 | L34: 122
A35: 22 | B35: 3637 | C35: 23 | D35: 3642 | E35: 23 | F35: 3650 | K35: 0 | L35: 222
A36: 11 | B36: 3746 | C36: 21 | D36: 3766 | E36: 21 | F36: 3789 | K36: 0 | L36: 122
A37: 22 | B37: 3951 | C37: 23 | D37: 3965 | E37: 23 | F37: 3975 | K37: 0 | L37: 222
A38: 22 | B38: 4081 | C38: 23 | D38: 4085 | E38: 23 | F38: 4095 | K38: 0 | L38: 222
A39: 22 | B39: 4214 | C39: 23 | D39: 4218 | E39: 23 | F39: 4237 | K39: 0 | L39: 222
A40: 11 | B40: 4332 | C40: 21 | D40: 4345 | E40: 21 | F40: 4349 | K40: 0 | L40: 122
A41: 22 | B41: 4483 | C41: 23 | D41: 4487 | E41: 23 | F41: 4499 | K41: 0 | L41: 222
A42: 11 | B42: 4594 | C42: 12 | D42: 4602 | E42: 23 | F42: 4611 | K42: 0 | L42: 112
A43: 11 | B43: 4708 | C43: 21 | D43: 4721 | E43: 21 | F43: 4730 | K43: 0 | L43: 122
A44: 22 | B44: 4870 | C44: 23 | D44: 4879 | E44: 23 | F44: 4893 | K44: 0 | L44: 222
A45: 11 | B45: 4988 | C45: 21 | D45: 5001 | E45: 21 | F45: 5009 | K45: 0 | L45: 122
A46: 22 | B46: 5121 | C46: 23 | D46: 5129 | E46: 23 | F46: 5137 | K46: 0 | L46: 222
A47: 22 | B47: 5244 | C47: 23 | D47: 5253 | E47: 23 | F47: 5259 | K47: 0 | L47: 222
A48: 11 | B48: 5355 | C48: 21 | D48: 5365 | E48: 21 | F48: 5376 | K48: 0 | L48: 122
A49: 11 | B49: 5474 | C49: 21 | D49: 5488 | E49: 21 | F49: 5501 | K49: 0 | L49: 122
A50: 22 | B50: 5669 | C50: 23 | D50: 5675 | E50: 23 | F50: 5686 | K50: 0 | L50: 222
A51: 11 | B51: 5784 | C51: 21 | D51: 5796 | E51: 21 | F51: 5800 | K51: 0 | L51: 122
A52: 11 | B52: 5950 | C52: 21 | D52: 5958 | E52: 21 | F52: 5962 | K52: 0 | L52: 122
A53: 22 | B53: 6083 | C53: 23 | D53: 6087 | E53: 23 | F53: 6102 | K53: 0 | L53: 222
A54: 11 | B54: 6200 | C54: 21 | D54: 6210 | E54: 21 | F54: 6215 | K54: 0 | L54: 122
A55: 11 | B55: 6345 | C55: 21 | D55: 6353 | E55: 21 | F55: 6369 | K55: 0 | L55: 122
A56: 11 | B56: 6466 | C56: 21 | D56: 6478 | E56: 21 | F56: 6486 | K56: 0 | L56: 122
A57: 22 | B57: 6596 | C57: 23 | D57: 6600 | E57: 23 | F57: 6619 | K57: 0 | L57: 222
A58: 11 | B58: 6715 | C58: 12 | D58: 6722 | E58: 23 | F58: 6734 | K58: 0 | L58: 112
A59: 11 | B59: 6835 | C59: 21 | D59: 6844 | E59: 21 | F59: 6846 | K59: 0 | L59: 122
A60: 11 | B60: 6942 | C60: 21 | D60: 6952 | E60: 21 | F60: 6956 | K60: 0 | L60: 122
A61: 22 | B61: 7095 | C61: 23 | D61: 7100 | E61: 23 | F61: 7112 | K61: 0 | L61: 222
A62: 11 | B62: 7207 | C62: 21 | D62: 7216 | E62: 21 | F62: 7221 | K62: 0 | L62: 122
A63: 22 | B63: 7329 | C63: 23 | D63: 7334 | E63: 23 | F63: 7340 | K63: 0 | L63: 222
A64: 11 | B64: 7436 | C64: 21 | D64: 7446 | E64: 21 | F64: 7500 | K64: 0 | L64: 122
A65: 22 | B65: 7635 | C65: 23 | D65: 7638 | E65: 23 | F65: 7649 | K65: 0 | L65: 222
A66: 22 | B66: 7753 | C66: 23 | D66: 7760 | E66: 23 | F66: 7770 | K66: 0 | L66: 222
A67: 11 | B67: 7868 | C67: 21 | D67: 7880 | E67: 21 | F67: 7896 | K67: 0 | L67: 122
A68: 22 | B68: 8017 | C68: 23 | D68: 8022 | E68: 23 | F68: 8033 | K68: 0 | L68: 222
A69: 11 | B69: 8128 | C69: 21 | D69: 8140 | E69: 21 | F69: 8143 | K69: 0 | L69: 122
A70: 11 | B70: 8241 | C70: 21 | D70: 8270 | E70: 21 | F70: 8300 | K70: 0 | L70: 122
A71: 11 | B71: 8411 | C71: 21 | D71: 8428 | E71: 21 | F71: 8436 | K71: 0 | L71: 122
A72: 11 | B72: 8599 | C72: 21 | D72: 8608 | E72: 21 | F72: 8611 | K72: 0 | L72: 122
A73: 11 | B73: 8733 | C73: 21 | D73: 8776 | E73: 21 | F73: 8793 | K73: 0 | L73: 122
A74: 11 | B74: 8968 | C74: 21 | D74: 9013 | E74: 21 | F74: 9026 | K74: 0 | L74: 122
A75: 22 | B75: 9147 | C75: 23 | D75: 9180 | E75: 23 | F75: 9194 | K75: 0 | L75: 222
A76: 22 | B76: 9299 | C76: 23 | D76: 9305 | E76: 23 | F76: 9321 | K76: 0 | L76: 222
A77: 11 | B77: 9416 | C77: 21 | D77: 9467 | E77: 21 | F77: 9481 | K77: 0 | L77: 122
A78: 22 | B78: 9602 | C78: 23 | D78: 9606 | E78: 23 | F78: 9612 | K78: 0 | L78: 222
A79: 22 | B79: 9719 | C79: 23 | D79: 9728 | E79: 23 | F79: 9744 | K79: 0 | L79: 222
A80: 11 | B80: 9852 | C80: 21 | D80: 9865 | E80: 21 | F80: 9871 | K80: 0 | L80: 122
A81: 22 | B81: 10044 | C81: 23 | D81: 10058 | E81: 23 | F81: 10072 | K81: 0 | L81: 222
A82: 11 | B82: 10171 | C82: 21 | D82: 10179 | E82: 21 | F82: 10183 | K82: 0 | L82: 122
A83: 22 | B83: 10301 | C83: 23 | D83: 10310 | E83: 23 | F83: 10322 | K83: 0 | L83: 222
A84: 11 | B84: 10419 | C84: 21 | D84: 10427 | E84: 21 | F84: 10446 | K84: 1 | L84: 122

Sheet !LA25A02.. I
A1: Report for:!LA25A02.. I
A2: Date: | B2: <date>
A3: Hen: | B3: <hen> | F3: Correct Sequence | G3: =Start!J2 -> 122 | P3: Total Sequences in Data | Q3: =4994-COUNTBLANK(L7:L5000) -> 83 | V3: Total Sequences in Block Data | W3: =COUNTA(L7:L20) -> 14 | AA3: Total Sequences in Block Data | AB3: =COUNTA(L21:L34) -> 14 | AF3: Total Sequences in Block Data | AG3: =COUNTA(L35:L47) -> 13 | AK3: Total Sequences in Block Data | AL3: =COUNTA(L48:L61) -> 14 | AP3: Total Sequences in Block Data | AQ3: =COUNTA(L62:L75) -> 14 | AU3: Total Sequences in Block Data | AV3: =COUNTA(L76:L89) -> 14
P4: Total Sequences in Summary | Q4: =SUM(O7:O14) -> 83 | V4: Total Sequences in Block Summary | W4: =SUM(U7:U14) -> 14 | AA4: Total Sequences in Block Summary | AB4: =SUM(Z7:Z14) -> 14 | AF4: Total Sequences in Block Summary | AG4: =SUM(AE7:AE14) -> 13 | AK4: Total Sequences in Block Summary | AL4: =SUM(AJ7:AJ14) -> 14 | AP4: Total Sequences in Block Summary | AQ4: =SUM(AO7:AO14) -> 14 | AU4: Total Sequences in Block Summary | AV4: =SUM(AT7:AT14) -> 14
T5: Block 1 | Y5: Block 2 | AD5: Block 3 | AI5: Block 4 | AN5: Block 5 | AS5: Block 6
A6: Sequence Component 1 | B6: Time 1 | C6: Sequence Component 2 | D6: Time 2 | E6: Sequence Component 3 | F6: Time 3 | G6: Sequence Component 4 | H6: Time 4 | I6: Sequence Component 5 | J6: Time 5 | K6: Correct? 0=No 1=Yes | L6: Sequence | N6: Frequency | P6: Relative Frequency | Q6: Variability | T6: Frequency | V6: Relative Frequency | W6: Variability | Y6: Frequency | AA6: Relative Frequency | AB6: Variability | AD6: Frequency | AF6: Relative Frequency | AG6: Variability | AI6: Frequency | AK6: Relative Frequency | AL6: Variability | AN6: Frequency | AP6: Relative Frequency | AQ6: Variability | AS6: Frequency | AU6: Relative Frequency | AV6: Variability
A7: 22 | B7: 32 | C7: 14 | D7: 43 | E7: 23 | F7: 55 | K7: 0 | L7: 212 | N7: 111 | O7: =COUNTIF($L$7:$L$500,N7) -> 3 | P7: =O7/$Q$4 -> 0.03614457831 | Q7: =IF(P7=0,0,(P7*((LOG(P7))/LOG(2)))) -> -0.1731353107 | T7: =N7 -> 111 | U7: =COUNTIF(L7:L20,T7) -> 2 | V7: =U7/(W4-U10) -> 0.1428571429 | W7: =IF(V7=0,0,(V7*((LOG(V7))/LOG(2)))) -> -0.4010507032 | Y7: =N7 -> 111 | Z7: =COUNTIF(L21:L34,Y7) -> 1 | AA7: =Z7/(AB4-Z10) -> 0.1666666667 | AB7: =IF(AA7=0,0,(AA7*((LOG(AA7))/LOG(2)))) -> -0.4308270835 | AD7: =N7 -> 111 | AE7: =COUNTIF(L35:L47,AD7) -> 0 | AF7: =AE7/(AG4-AE10) -> 0 | AG7: =IF(AF7=0,0,(AF7*((LOG(AF7))/LOG(2)))) -> 0 | AI7: =N7 -> 111 | AJ7: =COUNTIF(L48:L61,AI7) -> 0 | AK7: =AJ7/(AL4-AJ10) -> 0 | AL7: =IF(AK7=0,0,(AK7*((LOG(AK7))/LOG(2)))) -> 0 | AN7: =N7 -> 111 | AO7: =COUNTIF(L62:L75,AN7) -> 0 | AP7: =AO7/(AQ4-AO10) -> 0 | AQ7: =IF(AP7=0,0,(AP7*((LOG(AP7))/LOG(2)))) -> 0 | AS7: =N7 -> 111 | AT7: =COUNTIF(L76:L89,AS7) -> 0 | AU7: =AT7/(AV4-AT10) -> 0 | AV7: =IF(AU7=0,0,(AU7*((LOG(AU7))/LOG(2)))) -> 0
A8: 22 | B8: 156 | C8: 23 | D8: 163 | E8: 23 | F8: 169 | K8: 0 | L8: 222 | N8: 112 | O8: =COUNTIF($L$7:$L$500,N8) -> 13 | P8: =O8/$Q$4 -> 0.156626506 | Q8: =IF(P8=0,0,(P8*((LOG(P8))/LOG(2)))) -> -0.4189132081 | T8: =N8 -> 112 | U8: =COUNTIF(L7:L20,T8) -> 8 | V8: =U8/(W4-U10) -> 0.5714285714 | W8: =IF(V8=0,0,(V8*((LOG(V8))/LOG(2)))) -> -0.4613456697 | Y8: =N8 -> 112 | Z8: =COUNTIF(L21:L34,Y8) -> 4 | AA8: =Z8/(AB4-Z10) -> 0.6666666667 | AB8: =IF(AA8=0,0,(AA8*((LOG(AA8))/LOG(2)))) -> -0.3899750005 | AD8: =N8 -> 112 | AE8: =COUNTIF(L35:L47,AD8) -> 1 | AF8: =AE8/(AG4-AE10) -> 0.2 | AG8: =IF(AF8=0,0,(AF8*((LOG(AF8))/LOG(2)))) -> -0.464385619 | AI8: =N8 -> 112 | AJ8: =COUNTIF(L48:L61,AI8) -> 0 | AK8: =AJ8/(AL4-AJ10) -> 0 | AL8: =IF(AK8=0,0,(AK8*((LOG(AK8))/LOG(2)))) -> 0 | AN8: =N8 -> 112 | AO8: =COUNTIF(L62:L75,AN8) -> 0 | AP8: =AO8/(AQ4-AO10) -> 0 | AQ8: =IF(AP8=0,0,(AP8*((LOG(AP8))/LOG(2)))) -> 0 | AS8: =N8 -> 112 | AT8: =COUNTIF(L76:L89,AS8) -> 0 | AU8: =AT8/(AV4-AT10) -> 0 | AV8: =IF(AU8=0,0,(AU8*((LOG(AU8))/LOG(2)))) -> 0
A9: 22 | B9: 283 | C9: 23 | D9: 287 | E9: 23 | F9: 292 | K9: 0 | L9: 222 | N9: 121 | O9: =COUNTIF($L$7:$L$500,N9) -> 0 | P9: =O9/$Q$4 -> 0 | Q9: =IF(P9=0,0,(P9*((LOG(P9))/LOG(2)))) -> 0 | T9: =N9 -> 121 | U9: =COUNTIF(L7:L20,T9) -> 0 | V9: =U9/(W4-U10) -> 0 | W9: =IF(V9=0,0,(V9*((LOG(V9))/LOG(2)))) -> 0 | Y9: =N9 -> 121 | Z9: =COUNTIF(L21:L34,Y9) -> 0 | AA9: =Z9/(AB4-Z10) -> 0 | AB9: =IF(AA9=0,0,(AA9*((LOG(AA9))/LOG(2)))) -> 0 | AD9: =N9 -> 121 | AE9: =COUNTIF(L35:L47,AD9) -> 0 | AF9: =AE9/(AG4-AE10) -> 0 | AG9: =IF(AF9=0,0,(AF9*((LOG(AF9))/LOG(2)))) -> 0 | AI9: =N9 -> 121 | AJ9: =COUNTIF(L48:L61,AI9) -> 0 | AK9: =AJ9/(AL4-AJ10) -> 0 | AL9: =IF(AK9=0,0,(AK9*((LOG(AK9))/LOG(2)))) -> 0 | AN9: =N9 -> 121 | AO9: =COUNTIF(L62:L75,AN9) -> 0 | AP9: =AO9/(AQ4-AO10) -> 0 | AQ9: =IF(AP9=0,0,(AP9*((LOG(AP9))/LOG(2)))) -> 0 | AS9: =N9 -> 121 | AT9: =COUNTIF(L76:L89,AS9) -> 0 | AU9: =AT9/(AV4-AT10) -> 0 | AV9: =IF(AU9=0,0,(AU9*((LOG(AU9))/LOG(2)))) -> 0
A10: 11 | B10: 388 | C10: 12 | D10: 395 | E10: 23 | F10: 402 | K10: 0 | L10: 112 | N10: 122 | O10: =COUNTIF($L$7:$L$500,N10) -> 40 | P10: =O10/$Q$4 -> 0.4819277108 | Q10: =IF(P10=0,0,(P10*((LOG(P10))/LOG(2)))) -> -0.5075235356 | T10: =N10 -> 122 | U10: =COUNTIF(L7:L20,T10) -> 0 | Y10: =N10 -> 122 | Z10: =COUNTIF(L21:L34,Y10) -> 8 | AD10: =N10 -> 122 | AE10: =COUNTIF(L35:L47,AD10) -> 8 | AI10: =N10 -> 122 | AJ10: =COUNTIF(L48:L61,AI10) -> 10 | AN10: =N10 -> 122 | AO10: =COUNTIF(L62:L75,AN10) -> 7 | AS10: =N10 -> 122 | AT10: =COUNTIF(L76:L89,AS10) -> 7
A11: 11 | B11: 497 | C11: 12 | D11: 507 | E11: 23 | F11: 516 | K11: 0 | L11: 112 | N11: 211 | O11: =COUNTIF($L$7:$L$500,N11) -> 0 | P11: =O11/$Q$4 -> 0 | Q11: =IF(P11=0,0,(P11*((LOG(P11))/LOG(2)))) -> 0 | T11: =N11 -> 211 | U11: =COUNTIF(L7:L20,T11) -> 0 | V11: =U11/(W4-U10) -> 0 | W11: =IF(V11=0,0,(V11*((LOG(V11))/LOG(2)))) -> 0 | Y11: =N11 -> 211 | Z11: =COUNTIF(L21:L34,Y11) -> 0 | AA11: =Z11/(AB4-Z10) -> 0 | AB11: =IF(AA11=0,0,(AA11*((LOG(AA11))/LOG(2)))) -> 0 | AD11: =N11 -> 211 | AE11: =COUNTIF(L35:L47,AD11) -> 0 | AF11: =AE11/(AG4-AE10) -> 0 | AG11: =IF(AF11=0,0,(AF11*((LOG(AF11))/LOG(2)))) -> 0 | AI11: =N11 -> 211 | AJ11: =COUNTIF(L48:L61,AI11) -> 0 | AK11: =AJ11/(AL4-AJ10) -> 0 | AL11: =IF(AK11=0,0,(AK11*((LOG(AK11))/LOG(2)))) -> 0 | AN11: =N11 -> 211 | AO11: =COUNTIF(L62:L75,AN11) -> 0 | AP11: =AO11/(AQ4-AO10) -> 0 | AQ11: =IF(AP11=0,0,(AP11*((LOG(AP11))/LOG(2)))) -> 0 | AS11: =N11 -> 211 | AT11: =COUNTIF(L76:L89,AS11) -> 0 | AU11: =AT11/(AV4-AT10) -> 0 | AV11: =IF(AU11=0,0,(AU11*((LOG(AU11))/LOG(2)))) -> 0
A12: 11 | B12: 611 | C12: 12 | D12: 623 | E12: 23 | F12: 631 | K12: 0 | L12: 112 | N12: 212 | O12: =COUNTIF($L$7:$L$500,N12) -> 1 | P12: =O12/$Q$4 -> 0.01204819277 | Q12: =IF(P12=0,0,(P12*((LOG(P12))/LOG(2)))) -> -0.07680770399 | T12: =N12 -> 212 | U12: =COUNTIF(L7:L20,T12) -> 1 | V12: =U12/(W4-U10) -> 0.07142857143 | W12: =IF(V12=0,0,(V12*((LOG(V12))/LOG(2)))) -> -0.271953923 | Y12: =N12 -> 212 | Z12: =COUNTIF(L21:L34,Y12) -> 0 | AA12: =Z12/(AB4-Z10) -> 0 | AB12: =IF(AA12=0,0,(AA12*((LOG(AA12))/LOG(2)))) -> 0 | AD12: =N12 -> 212 | AE12: =COUNTIF(L35:L47,AD12) -> 0 | AF12: =AE12/(AG4-AE10) -> 0 | AG12: =IF(AF12=0,0,(AF12*((LOG(AF12))/LOG(2)))) -> 0 | AI12: =N12 -> 212 | AJ12: =COUNTIF(L48:L61,AI12) -> 0 | AK12: =AJ12/(AL4-AJ10) -> 0 | AL12: =IF(AK12=0,0,(AK12*((LOG(AK12))/LOG(2)))) -> 0 | AN12: =N12 -> 212 | AO12: =COUNTIF(L62:L75,AN12) -> 0 | AP12: =AO12/(AQ4-AO10) -> 0 | AQ12: =IF(AP12=0,0,(AP12*((LOG(AP12))/LOG(2)))) -> 0 | AS12: =N12 -> 212 | AT12: =COUNTIF(L76:L89,AS12) -> 0 | AU12: =AT12/(AV4-AT10) -> 0 | AV12: =IF(AU12=0,0,(AU12*((LOG(AU12))/LOG(2)))) -> 0
A13: 11 | B13: 729 | C13: 12 | D13: 733 | E13: 23 | F13: 743 | K13: 0 | L13: 112 | N13: 221 | O13: =COUNTIF($L$7:$L$500,N13) -> 0 | P13: =O13/$Q$4 -> 0 | Q13: =IF(P13=0,0,(P13*((LOG(P13))/LOG(2)))) -> 0 | T13: =N13 -> 221 | U13: =COUNTIF(L7:L20,T13) -> 0 | V13: =U13/(W4-U10) -> 0 | W13: =IF(V13=0,0,(V13*((LOG(V13))/LOG(2)))) -> 0 | Y13: =N13 -> 221 | Z13: =COUNTIF(L21:L34,Y13) -> 0 | AA13: =Z13/(AB4-Z10) -> 0 | AB13: =IF(AA13=0,0,(AA13*((LOG(AA13))/LOG(2)))) -> 0 | AD13: =N13 -> 221 | AE13: =COUNTIF(L35:L47,AD13) -> 0 | AF13: =AE13/(AG4-AE10) -> 0 | AG13: =IF(AF13=0,0,(AF13*((LOG(AF13))/LOG(2)))) -> 0 | AI13: =N13 -> 221 | AJ13: =COUNTIF(L48:L61,AI13) -> 0 | AK13: =AJ13/(AL4-AJ10) -> 0 | AL13: =IF(AK13=0,0,(AK13*((LOG(AK13))/LOG(2)))) -> 0 | AN13: =N13 -> 221 | AO13: =COUNTIF(L62:L75,AN13) -> 0 | AP13: =AO13/(AQ4-AO10) -> 0 | AQ13: =IF(AP13=0,0,(AP13*((LOG(AP13))/LOG(2)))) -> 0 | AS13: =N13 -> 221 | AT13: =COUNTIF(L76:L89,AS13) -> 0 | AU13: =AT13/(AV4-AT10) -> 0 | AV13: =IF(AU13=0,0,(AU13*((LOG(AU13))/LOG(2)))) -> 0
A14: 11 | B14: 839 | C14: 12 | D14: 849 | E14: 23 | F14: 874 | K14: 0 | L14: 112 | N14: 222 | O14: =COUNTIF($L$7:$L$500,N14) -> 26 | P14: =O14/$Q$4 -> 0.313253012 | Q14: =IF(P14=0,0,(P14*((LOG(P14))/LOG(2)))) -> -0.5245734041 | T14: =N14 -> 222 | U14: =COUNTIF(L7:L20,T14) -> 3 | V14: =U14/(W4-U10) -> 0.2142857143 | W14: =IF(V14=0,0,(V14*((LOG(V14))/LOG(2)))) -> -0.4762269474 | Y14: =N14 -> 222 | Z14: =COUNTIF(L21:L34,Y14) -> 1 | AA14: =Z14/(AB4-Z10) -> 0.1666666667 | AB14: =IF(AA14=0,0,(AA14*((LOG(AA14))/LOG(2)))) -> -0.4308270835 | AD14: =N14 -> 222 | AE14: =COUNTIF(L35:L47,AD14) -> 4 | AF14: =AE14/(AG4-AE10) -> 0.8 | AG14: =IF(AF14=0,0,(AF14*((LOG(AF14))/LOG(2)))) -> -0.2575424759 | AI14: =N14 -> 222 | AJ14: =COUNTIF(L48:L61,AI14) -> 4 | AK14: =AJ14/(AL4-AJ10) -> 1 | AL14: =IF(AK14=0,0,(AK14*((LOG(AK14))/LOG(2)))) -> 0 | AN14: =N14 -> 222 | AO14: =COUNTIF(L62:L75,AN14) -> 7 | AP14: =AO14/(AQ4-AO10) -> 1 | AQ14: =IF(AP14=0,0,(AP14*((LOG(AP14))/LOG(2)))) -> 0 | AS14: =N14 -> 222 | AT14: =COUNTIF(L76:L89,AS14) -> 7 | AU14: =AT14/(AV4-AT10) -> 1 | AV14: =IF(AU14=0,0,(AU14*((LOG(AU14))/LOG(2)))) -> 0
A15: 11 | B15: 969 | C15: 12 | D15: 974 | E15: 23 | F15: 984 | K15: 0 | L15: 112 | P15: =SUM(P7:P14) -> 1 | Q15: =-SUM(Q7:Q14) -> 1.700953163 | V15: =SUM(V7:V14) -> 1 | W15: =-SUM(W7:W14) -> 1.610577243 | AA15: =SUM(AA7:AA14) -> 1 | AB15: =-SUM(AB7:AB14) -> 1.251629167 | AF15: =SUM(AF7:AF14) -> 1 | AG15: =-SUM(AG7:AG14) -> 0.7219280949 | AK15: =SUM(AK7:AK14) -> 1 | AL15: =-SUM(AL7:AL14) -> 0 | AP15: =SUM(AP7:AP14) -> 1 | AQ15: =-SUM(AQ7:AQ14) -> 0 | AU15: =SUM(AU7:AU14) -> 1 | AV15: =-SUM(AV7:AV14) -> 0
A16: 22 | B16: 1091 | C16: 23 | D16: 1095 | E16: 23 | F16: 1104 | K16: 0 | L16: 222 | P16: U= | Q16: =Q15/(LOG(Q4)/LOG(2)) -> 0.266814532 | V16: U1= | W16: =W15/(LOG(W4)/LOG(2)) -> 0.4230173641 | AA16: U2= | AB16: =AB15/(LOG(AB4)/LOG(2)) -> 0.3287398189 | AF16: U3= | AG16: =AG15/(LOG(AG4)/LOG(2)) -> 0.195092516 | AK16: U4= | AL16: =AL15/(LOG(AL4)/LOG(2)) -> 0 | AP16: U5= | AQ16: =AQ15/(LOG(AQ4)/LOG(2)) -> 0 | AU16: U6= | AV16: =AV15/(LOG(AV4)/LOG(2)) -> 0
A17: 11 | B17: 1200 | C17: 12 | D17: 1203 | E17: 23 | F17: 1214 | K17: 0 | L17: 112
A18: 11 | B18: 1312 | C18: 12 | D18: 1318 | E18: 23 | F18: 1332 | K18: 0 | L18: 112
A19: 11 | B19: 1429 | C19: 12 | D19: 1432 | E19: 14 | F19: 1436 | K19: 0 | L19: 111 | N19: Total Target Seq
A20: 11 | B20: 1544 | C20: 12 | D20: 1547 | E20: 14 | F20: 1551 | K20: 0 | L20: 111 | N20: =COUNTIF(L7:L89,G3) -> 40 | P20: 14 | Q20: 14 | R20: 13 | S20: 14 | T20: 14 | U20: 14
A21: 11 | B21: 1646 | C21: 12 | D21: 1654 | E21: 23 | F21: 1662 | K21: 0 | L21: 112 | P21: % of reinforcement given in 6 equal intervals based on number of trials
A22: 11 | B22: 1757 | C22: 21 | D22: 1771 | E22: 21 | F22: 1774 | K22: 0 | L22: 122 | P22: %_1 | Q22: %_2 | R22: %_3 | S22: %_4 | T22: %_5 | U22: %_6
A23: 11 | B23: 1891 | C23: 12 | D23: 1896 | E23: 23 | F23: 1905 | K23: 0 | L23: 112 | O23: target sequence | P23: =$G$3 -> 122 | Q23: =$G$3 -> 122 | R23: =$G$3 -> 122 | S23: =$G$3 -> 122 | T23: =$G$3 -> 122 | U23: =$G$3 -> 122
A24: 11 | B24: 2002 | C24: 12 | D24: 2006 | E24: 23 | F24: 2025 | K24: 0 | L24: 112 | O24: total reinforcement | P24: =U10 -> 0 | Q24: =Z10 -> 8 | R24: =AE10 -> 8 | S24: =AJ10 -> 10 | T24: =AO10 -> 7 | U24: =AT10 -> 7
A25: 11 | B25: 2122 | C25: 12 | D25: 2126 | E25: 23 | F25: 2134 | K25: 0 | L25: 112 | O25: % target
A26: 11 | B26: 2257 | C26: 21 | D26: 2265 | E26: 21 | F26: 2271 | K26: 0 | L26: 122 | O26: CCRF
A27: 11 | B27: 2364 | C27: 21 | D27: 2373 | E27: 21 | F27: 2376 | K27: 0 | L27: 122 | O27: % CCRf
A28: 11 | B28: 2467 | C28: 21 | D28: 2488 | E28: 21 | F28: 2496 | K28: 0 | L28: 122 | O28: average response rate | P28: =F20/P20 -> 110.7857143 | Q28: =(F34-F20)/Q20 -> 125.7142857 | R28: =(F47-F34)/R20 -> 128 | S28: =(F61-F47)/S20 -> 135 | T28: =(F75-F61)/T20 -> 129.4285714 | U28: =(F89-F75)/U20 -> 121.5714286
A29: 11 | B29: 2589 | C29: 21 | D29: 2601 | E29: 21 | F29: 2613 | K29: 0 | L29: 122
A30: 11 | B30: 2715 | C30: 12 | D30: 2736 | E30: 14 | F30: 2742 | K30: 0 | L30: 111
A31: 11 | B31: 2848 | C31: 21 | D31: 2858 | E31: 21 | F31: 2868 | K31: 0 | L31: 122
A32: 22 | B32: 3040 | C32: 23 | D32: 3064 | E32: 23 | F32: 3073 | K32: 0 | L32: 222
A33: 11 | B33: 3170 | C33: 21 | D33: 3188 | E33: 21 | F33: 3202 | K33: 0 | L33: 122
A34: 11 | B34: 3294 | C34: 21 | D34: 3306 | E34: 21 | F34: 3311 | K34: 0 | L34: 122
A35: 11 | B35: 3403 | C35: 21 | D35: 3412 | E35: 21 | F35: 3415 | K35: 0 | L35: 122
A36: 22 | B36: 3619 | C36: 23 | D36: 3622 | E36: 23 | F36: 3627 | K36: 0 | L36: 222
A37: 11 | B37: 3723 | C37: 21 | D37: 3742 | E37: 21 | F37: 3761 | K37: 0 | L37: 122
A38: 11 | B38: 3854 | C38: 21 | D38: 3864 | E38: 21 | F38: 3869 | K38: 0 | L38: 122
A39: 11 | B39: 3981 | C39: 21 | D39: 3988 | E39: 21 | F39: 3992 | K39: 0 | L39: 122
A40: 22 | B40: 4108 | C40: 23 | D40: 4116 | E40: 23 | F40: 4129 | K40: 0 | L40: 222
A41: 11 | B41: 4224 | C41: 12 | D41: 4229 | E41: 23 | F41: 4236 | K41: 0 | L41: 112
A42: 11 | B42: 4331 | C42: 21 | D42: 4342 | E42: 21 | F42: 4345 | K42: 0 | L42: 122
A43: 22 | B43: 4452 | C43: 23 | D43: 4456 | E43: 23 | F43: 4464 | K43: 0 | L43: 222
A44: 11 | B44: 4559 | C44: 21 | D44: 4570 | E44: 21 | F44: 4573 | K44: 0 | L44: 122
A45: 11 | B45: 4683 | C45: 21 | D45: 4698 | E45: 21 | F45: 4708 | K45: 0 | L45: 122
A46: 22 | B46: 4853 | C46: 23 | D46: 4859 | E46: 23 | F46: 4864 | K46: 0 | L46: 222
A47: 11 | B47: 4959 | C47: 21 | D47: 4968 | E47: 21 | F47: 4975 | K47: 0 | L47: 122
A48: 11 | B48: 5073 | C48: 21 | D48: 5082 | E48: 21 | F48: 5090 | K48: 0 | L48: 122
A49: 11 | B49: 5200 | C49: 21 | D49: 5209 | E49: 21 | F49: 5214 | K49: 0 | L49: 122
A50: 11 | B50: 5340 | C50: 21 | D50: 5350 | E50: 21 | F50: 5362 | K50: 0 | L50: 122
A51: 11 | B51: 5507 | C51: 21 | D51: 5515 | E51: 21 | F51: 5520 | K51: 0 | L51: 122
A52: 11 | B52: 5615 | C52: 21 | D52: 5626 | E52: 21 | F52: 5635 | K52: 0 | L52: 122
A53: 22 | B53: 5795 | C53: 23 | D53: 5801 | E53: 23 | F53: 5811 | K53: 0 | L53: 222
A54: 11 | B54: 5906 | C54: 21 | D54: 5917 | E54: 21 | F54: 5937 | K54: 0 | L54: 122
A55: 11 | B55: 6033 | C55: 21 | D55: 6042 | E55: 21 | F55: 6045 | K55: 0 | L55: 122
A56: 22 | B56: 6205 | C56: 23 | D56: 6209 | E56: 23 | F56: 6224 | K56: 0 | L56: 222
A57: 11 | B57: 6322 | C57: 21 | D57: 6332 | E57: 21 | F57: 6344 | K57: 0 | L57: 122
A58: 22 | B58: 6470 | C58: 23 | D58: 6477 | E58: 23 | F58: 6483 | K58: 0 | L58: 222
A59: 11 | B59: 6579 | C59: 21 | D59: 6608 | E59: 21 | F59: 6624 | K59: 0 | L59: 122
A60: 22 | B60: 6740 | C60: 23 | D60: 6744 | E60: 23 | F60: 6752 | K60: 0 | L60: 222
A61: 11 | B61: 6849 | C61: 21 | D61: 6861 | E61: 21 | F61: 6865 | K61: 0 | L61: 122
A62: 22 | B62: 6980 | C62: 23 | D62: 6988 | E62: 23 | F62: 6995 | K62: 0 | L62: 222
A63: 11 | B63: 7090 | C63: 21 | D63: 7100 | E63: 21 | F63: 7103 | K63: 0 | L63: 122
A64: 11 | B64: 7256 | C64: 21 | D64: 7264 | E64: 21 | F64: 7270 | K64: 0 | L64: 122
A65: 11 | B65: 7378 | C65: 21 | D65: 7386 | E65: 21 | F65: 7405 | K65: 0 | L65: 122
A66: 11 | B66: 7510 | C66: 21 | D66: 7521 | E66: 21 | F66: 7534 | K66: 0 | L66: 122
A67: 22 | B67: 7660 | C67: 23 | D67: 7676 | E67: 23 | F67: 7684 | K67: 0 | L67: 222
A68: 22 | B68: 7793 | C68: 23 | D68: 7807 | E68: 23 | F68: 7815 | K68: 0 | L68: 222
A69: 11 | B69: 7912 | C69: 21 | D69: 7919 | E69: 21 | F69: 7923 | K69: 0 | L69: 122
A70: 22 | B70: 8034 | C70: 23 | D70: 8038 | E70: 23 | F70: 8042 | K70: 0 | L70: 222
A71: 22 | B71: 8158 | C71: 23 | D71: 8162 | E71: 23 | F71: 8166 | K71: 0 | L71: 222
A72: 22 | B72: 8270 | C72: 23 | D72: 8273 | E72: 23 | F72: 8283 | K72: 0 | L72: 222
A73: 22 | B73: 8446 | C73: 23 | D73: 8449 | E73: 23 | F73: 8463 | K73: 0 | L73: 222
A74: 11 | B74: 8558 | C74: 21 | D74: 8567 | E74: 21 | F74: 8572 | K74: 0 | L74: 122
A75: 11 | B75: 8662 | C75: 21 | D75: 8674 | E75: 21 | F75: 8677 | K75: 0 | L75: 122
A76: 11 | B76: 8779 | C76: 21 | D76: 8786 | E76: 21 | F76: 8791 | K76: 0 | L76: 122
A77: 22 | B77: 8950 | C77: 23 | D77: 8954 | E77: 23 | F77: 8968 | K77: 0 | L77: 222
A78: 11 | B78: 9065 | C78: 21 | D78: 9073 | E78: 21 | F78: 9075 | K78: 0 | L78: 122
A79: 22 | B79: 9186 | C79: 23 | D79: 9193 | E79: 23 | F79: 9202 | K79: 0 | L79: 222
A80: 11 | B80: 9298 | C80: 21 | D80: 9305 | E80: 21 | F80: 9310 | K80: 0 | L80: 122
A81: 22 | B81: 9412 | C81: 23 | D81: 9418 | E81: 23 | F81: 9426 | K81: 0 | L81: 222
A82: 11 | B82: 9524 | C82: 21 | D82: 9533 | E82: 21 | F82: 9537 | K82: 0 | L82: 122
A83: 22 | B83: 9655 | C83: 23 | D83: 9661 | E83: 23 | F83: 9669 | K83: 0 | L83: 222
A84: 11 | B84: 9766 | C84: 21 | D84: 9774 | E84: 21 | F84: 9778 | K84: 0 | L84: 122
A85: 22 | B85: 9882 | C85: 23 | D85: 9888 | E85: 23 | F85: 9896 | K85: 0 | L85: 222
A86: 11 | B86: 9991 | C86: 21 | D86: 9999 | E86: 21 | F86: 10006 | K86: 0 | L86: 122
A87: 22 | B87: 10108 | C87: 23 | D87: 10116 | E87: 23 | F87: 10122 | K87: 0 | L87: 222
A88: 22 | B88: 10227 | C88: 23 | D88: 10259 | E88: 23 | F88: 10269 | K88: 0 | L88: 222
A89: 11 | B89: 10363 | C89: 21 | D89: 10372 | E89: 21 | F89: 10379 | K89: 1 | L89: 122

Sheet !LA26A22.. I
A1: Report for:!LA26A22.. I
A2: Date: | B2: <date>
A3: Hen: | B3: <hen> | F3: Correct Sequence | G3: =Start!J2 -> 122 | P3: Total Sequences in Data | Q3: =4994-COUNTBLANK(L7:L5000) -> 77 | V3: Total Sequences in Block Data | W3: =COUNTA(L7:L19) -> 13 | AA3: Total Sequences in Block Data | AB3: =COUNTA(L20:L32) -> 13 | AF3: Total Sequences in Block Data | AG3: =COUNTA(L33:L44) -> 12 | AK3: Total Sequences in Block Data | AL3: =COUNTA(L45:L57) -> 13 | AP3: Total Sequences in Block Data | AQ3: =COUNTA(L58:L70) -> 13 | AU3: Total Sequences in Block Data | AV3: =COUNTA(L71:L83) -> 13
P4: Total Sequences in Summary | Q4: =SUM(O7:O14) -> 77 | V4: Total Sequences in Block Summary | W4: =SUM(U7:U14) -> 13 | AA4: Total Sequences in Block Summary | AB4: =SUM(Z7:Z14) -> 13 | AF4: Total Sequences in Block Summary | AG4: =SUM(AE7:AE14) -> 12 | AK4: Total Sequences in Block Summary | AL4: =SUM(AJ7:AJ14) -> 13 | AP4: Total Sequences in Block Summary | AQ4: =SUM(AO7:AO14) -> 13 | AU4: Total Sequences in Block Summary | AV4: =SUM(AT7:AT14) -> 13
T5: Block 1 | Y5: Block 2 | AD5: Block 3 | AI5: Block 4 | AN5: Block 5 | AS5: Block 6
A6: Sequence Component 1 | B6: Time 1 | C6: Sequence Component 2 | D6: Time 2 | E6: Sequence Component 3 | F6: Time 3 | G6: Sequence Component 4 | H6: Time 4 | I6: Sequence Component 5 | J6: Time 5 | K6: Correct? 0=No 1=Yes | L6: Sequence | N6: Frequency | P6: Relative Frequency | Q6: Variability | T6: Frequency | V6: Relative Frequency | W6: Variability | Y6: Frequency | AA6: Relative Frequency | AB6: Variability | AD6: Frequency | AF6: Relative Frequency | AG6: Variability | AI6: Frequency | AK6: Relative Frequency | AL6: Variability | AN6: Frequency | AP6: Relative Frequency | AQ6: Variability | AS6: Frequency | AU6: Relative Frequency | AV6: Variability
A7: 22 | B7: 14 | C7: 23 | D7: 20 | E7: 23 | F7: 26 | K7: 0 | L7: 222 | N7: 111 | O7: =COUNTIF($L$7:$L$500,N7) -> 0 | P7: =O7/$Q$4 -> 0 | Q7: =IF(P7=0,0,(P7*((LOG(P7))/LOG(2)))) -> 0 | T7: =N7 -> 111 | U7: =COUNTIF(L7:L19,T7) -> 0 | V7: =U7/(W4-U10) -> 0 | W7: =IF(V7=0,0,(V7*((LOG(V7))/LOG(2)))) -> 0 | Y7: =N7 -> 111 | Z7: =COUNTIF(L20:L32,Y7) -> 0 | AA7: =Z7/(AB4-Z10) -> 0 | AB7: =IF(AA7=0,0,(AA7*((LOG(AA7))/LOG(2)))) -> 0 | AD7: =N7 -> 111 | AE7: =COUNTIF(L33:L44,AD7) -> 0 | AF7: =AE7/(AG4-AE10) -> 0 | AG7: =IF(AF7=0,0,(AF7*((LOG(AF7))/LOG(2)))) -> 0 | AI7: =N7 -> 111 | AJ7: =COUNTIF(L45:L57,AI7) -> 0 | AK7: =AJ7/(AL4-AJ10) -> 0 | AL7: =IF(AK7=0,0,(AK7*((LOG(AK7))/LOG(2)))) -> 0 | AN7: =N7 -> 111 | AO7: =COUNTIF(L58:L70,AN7) -> 0 | AP7: =AO7/(AQ4-AO10) -> 0 | AQ7: =IF(AP7=0,0,(AP7*((LOG(AP7))/LOG(2)))) -> 0 | AS7: =N7 -> 111 | AT7: =COUNTIF(L71:L83,AS7) -> 0 | AU7: =AT7/(AV4-AT10) -> 0 | AV7: =IF(AU7=0,0,(AU7*((LOG(AU7))/LOG(2)))) -> 0
A8: 11 | B8: 122 | C8: 21 | D8: 134 | E8: 21 | F8: 143 | K8: 0 | L8: 122 | N8: 112 | O8: =COUNTIF($L$7:$L$500,N8) -> 1 | P8: =O8/$Q$4 -> 0.01298701299 | Q8: =IF(P8=0,0,(P8*((LOG(P8))/LOG(2)))) -> -0.08138683819 | T8: =N8 -> 112 | U8: =COUNTIF(L7:L19,T8) -> 0 | V8: =U8/(W4-U10) -> 0 | W8: =IF(V8=0,0,(V8*((LOG(V8))/LOG(2)))) -> 0 | Y8: =N8 -> 112 | Z8: =COUNTIF(L20:L32,Y8) -> 0 | AA8: =Z8/(AB4-Z10) -> 0 | AB8: =IF(AA8=0,0,(AA8*((LOG(AA8))/LOG(2)))) -> 0 | AD8: =N8 -> 112 | AE8: =COUNTIF(L33:L44,AD8) -> 0 | AF8: =AE8/(AG4-AE10) -> 0 | AG8: =IF(AF8=0,0,(AF8*((LOG(AF8))/LOG(2)))) -> 0 | AI8: =N8 -> 112 | AJ8: =COUNTIF(L45:L57,AI8) -> 0 | AK8: =AJ8/(AL4-AJ10) -> 0 | AL8: =IF(AK8=0,0,(AK8*((LOG(AK8))/LOG(2)))) -> 0 | AN8: =N8 -> 112 | AO8: =COUNTIF(L58:L70,AN8) -> 0 | AP8: =AO8/(AQ4-AO10) -> 0 | AQ8: =IF(AP8=0,0,(AP8*((LOG(AP8))/LOG(2)))) -> 0 | AS8: =N8 -> 112 | AT8: =COUNTIF(L71:L83,AS8) -> 1 | AU8: =AT8/(AV4-AT10) -> 0.125 | AV8: =IF(AU8=0,0,(AU8*((LOG(AU8))/LOG(2)))) -> -0.375
A9: 22 | B9: 252 | C9: 23 | D9: 258 | E9: 23 | F9: 265 | K9: 0 | L9: 222 | N9: 121 | O9: =COUNTIF($L$7:$L$500,N9) -> 0 | P9: =O9/$Q$4 -> 0 | Q9: =IF(P9=0,0,(P9*((LOG(P9))/LOG(2)))) -> 0 | T9: =N9 -> 121 | U9: =COUNTIF(L7:L19,T9) -> 0 | V9: =U9/(W4-U10) -> 0 | W9: =IF(V9=0,0,(V9*((LOG(V9))/LOG(2)))) -> 0 | Y9: =N9 -> 121 | Z9: =COUNTIF(L20:L32,Y9) -> 0 | AA9: =Z9/(AB4-Z10) -> 0 | AB9: =IF(AA9=0,0,(AA9*((LOG(AA9))/LOG(2)))) -> 0 | AD9: =N9 -> 121 | AE9: =COUNTIF(L33:L44,AD9) -> 0 | AF9: =AE9/(AG4-AE10) -> 0 | AG9: =IF(AF9=0,0,(AF9*((LOG(AF9))/LOG(2)))) -> 0 | AI9: =N9 -> 121 | AJ9: =COUNTIF(L45:L57,AI9) -> 0 | AK9: =AJ9/(AL4-AJ10) -> 0 | AL9: =IF(AK9=0,0,(AK9*((LOG(AK9))/LOG(2)))) -> 0 | AN9: =N9 -> 121 | AO9: =COUNTIF(L58:L70,AN9) -> 0 | AP9: =AO9/(AQ4-AO10) -> 0 | AQ9: =IF(AP9=0,0,(AP9*((LOG(AP9))/LOG(2)))) -> 0 | AS9: =N9 -> 121 | AT9: =COUNTIF(L71:L83,AS9) -> 0 | AU9: =AT9/(AV4-AT10) -> 0 | AV9: =IF(AU9=0,0,(AU9*((LOG(AU9))/LOG(2)))) -> 0
A10: 22 | B10: 372 | C10: 23 | D10: 376 | E10: 23 | F10: 383 | K10: 0 | L10: 222 | N10: 122 | O10: =COUNTIF($L$7:$L$500,N10) -> 40 | P10: =O10/$Q$4 -> 0.5194805195 | Q10: =IF(P10=0,0,(P10*((LOG(P10))/LOG(2)))) -> -0.4908355563 | T10: =N10 -> 122 | U10: =COUNTIF(L7:L19,T10) -> 6 | Y10: =N10 -> 122 | Z10: =COUNTIF(L20:L32,Y10) -> 6 | AD10: =N10 -> 122 | AE10: =COUNTIF(L33:L44,AD10) -> 7 | AI10: =N10 -> 122 | AJ10: =COUNTIF(L45:L57,AI10) -> 9 | AN10: =N10 -> 122 | AO10: =COUNTIF(L58:L70,AN10) -> 7 | AS10: =N10 -> 122 | AT10: =COUNTIF(L71:L83,AS10) -> 5
A11: 11 | B11: 480 | C11: 21 | D11: 488 | E11: 21 | F11: 509 | K11: 0 | L11: 122 | N11: 211 | O11: =COUNTIF($L$7:$L$500,N11) -> 0 | P11: =O11/$Q$4 -> 0 | Q11: =IF(P11=0,0,(P11*((LOG(P11))/LOG(2)))) -> 0 | T11: =N11 -> 211 | U11: =COUNTIF(L7:L19,T11) -> 0 | V11: =U11/(W4-U10) -> 0 | W11: =IF(V11=0,0,(V11*((LOG(V11))/LOG(2)))) -> 0 | Y11: =N11 -> 211 | Z11: =COUNTIF(L20:L32,Y11) -> 0 | AA11: =Z11/(AB4-Z10) -> 0 | AB11: =IF(AA11=0,0,(AA11*((LOG(AA11))/LOG(2)))) -> 0 | AD11: =N11 -> 211 | AE11: =COUNTIF(L33:L44,AD11) -> 0 | AF11: =AE11/(AG4-AE10) -> 0 | AG11: =IF(AF11=0,0,(AF11*((LOG(AF11))/LOG(2)))) -> 0 | AI11: =N11 -> 211 | AJ11: =COUNTIF(L45:L57,AI11) -> 0 | AK11: =AJ11/(AL4-AJ10) -> 0 | AL11: =IF(AK11=0,0,(AK11*((LOG(AK11))/LOG(2)))) -> 0 | AN11: =N11 -> 211 | AO11: =COUNTIF(L58:L70,AN11) -> 0 | AP11: =AO11/(AQ4-AO10) -> 0 | AQ11: =IF(AP11=0,0,(AP11*((LOG(AP11))/LOG(2)))) -> 0 | AS11: =N11 -> 211 | AT11: =COUNTIF(L71:L83,AS11) -> 0 | AU11: =AT11/(AV4-AT10) -> 0 | AV11: =IF(AU11=0,0,(AU11*((LOG(AU11))/LOG(2)))) -> 0
A12: 22 | B12: 652 | C12: 23 | D12: 657 | E12: 23 | F12: 666 | K12: 0 | L12: 222 | N12: 212 | O12: =COUNTIF($L$7:$L$500,N12) -> 0 | P12: =O12/$Q$4 -> 0 | Q12: =IF(P12=0,0,(P12*((LOG(P12))/LOG(2)))) -> 0 | T12: =N12 -> 212 | U12: =COUNTIF(L7:L19,T12) -> 0 | V12: =U12/(W4-U10) -> 0 | W12: =IF(V12=0,0,(V12*((LOG(V12))/LOG(2)))) -> 0 | Y12: =N12 -> 212 | Z12: =COUNTIF(L20:L32,Y12) -> 0 | AA12: =Z12/(AB4-Z10) -> 0 | AB12: =IF(AA12=0,0,(AA12*((LOG(AA12))/LOG(2)))) -> 0 | AD12: =N12 -> 212 | AE12: =COUNTIF(L33:L44,AD12) -> 0 | AF12: =AE12/(AG4-AE10) -> 0 | AG12: =IF(AF12=0,0,(AF12*((LOG(AF12))/LOG(2)))) -> 0 | AI12: =N12 -> 212 | AJ12: =COUNTIF(L45:L57,AI12) -> 0 | AK12: =AJ12/(AL4-AJ10) -> 0 | AL12: =IF(AK12=0,0,(AK12*((LOG(AK12))/LOG(2)))) -> 0 | AN12: =N12 -> 212 | AO12: =COUNTIF(L58:L70,AN12) -> 0 | AP12: =AO12/(AQ4-AO10) -> 0 | AQ12: =IF(AP12=0,0,(AP12*((LOG(AP12))/LOG(2)))) -> 0 | AS12: =N12 -> 212 | AT12: =COUNTIF(L71:L83,AS12) -> 0 | AU12: =AT12/(AV4-AT10) -> 0 | AV12: =IF(AU12=0,0,(AU12*((LOG(AU12))/LOG(2)))) -> 0
A13: 22 | B13: 771 | C13: 23 | D13: 775 | E13: 23 | F13: 783 | K13: 0 | L13: 222 | N13: 221 | O13: =COUNTIF($L$7:$L$500,N13) -> 0 | P13: =O13/$Q$4 -> 0 | Q13: =IF(P13=0,0,(P13*((LOG(P13))/LOG(2)))) -> 0 | T13: =N13 -> 221 | U13: =COUNTIF(L7:L19,T13) -> 0 | V13: =U13/(W4-U10) -> 0 | W13: =IF(V13=0,0,(V13*((LOG(V13))/LOG(2)))) -> 0 | Y13: =N13 -> 221 | Z13: =COUNTIF(L20:L32,Y13) -> 0 | AA13: =Z13/(AB4-Z10) -> 0 | AB13: =IF(AA13=0,0,(AA13*((LOG(AA13))/LOG(2)))) -> 0 | AD13: =N13 -> 221 | AE13: =COUNTIF(L33:L44,AD13) -> 0 | AF13: =AE13/(AG4-AE10) -> 0 | AG13: =IF(AF13=0,0,(AF13*((LOG(AF13))/LOG(2)))) -> 0 | AI13: =N13 -> 221 | AJ13: =COUNTIF(L45:L57,AI13) -> 0 | AK13: =AJ13/(AL4-AJ10) -> 0 | AL13: =IF(AK13=0,0,(AK13*((LOG(AK13))/LOG(2)))) -> 0 | AN13: =N13 -> 221 | AO13: =COUNTIF(L58:L70,AN13) -> 0 | AP13: =AO13/(AQ4-AO10) -> 0 | AQ13: =IF(AP13=0,0,(AP13*((LOG(AP13))/LOG(2)))) -> 0 | AS13: =N13 -> 221 | AT13: =COUNTIF(L71:L83,AS13) -> 0 | AU13: =AT13/(AV4-AT10) -> 0 | AV13: =IF(AU13=0,0,(AU13*((LOG(AU13))/LOG(2)))) -> 0
